Workbook

Sheet Instructions
A1: Project Name: | C1: Reclaim Model - Overview of Program
B2: Enter Mine Name | C2: All users are urged to read the Reclaim Model User Manual - Scroll down for overview description of program.
A3: Reclaim Menu | C3: The default Excel menu bar has an additional tab labelled "Add-Ins" that provides options specific to the Reclaim Model.
B4: Clear | C4: This option deletes all input data, deletes any duplicated elements and blanks out the project name. It also allows for segregation into land costs vs water costs if required.
B5: Duplicate | C5: This option Duplicates components of the project. E.g. if there is more than one Open Pit, use duplicate to add a second Open Pit. Quantities for the new Open Pit are erased, but the Activities and Cost Codes are carried over from the original Open Pit. The new Open Pit subtotal is added to the Summary page.
B6: Unit Costs | C6: This option opens a window of unit costs to provide easy reference. NOTE: the unit cost table has a filter in the 'UNITS' column. You can select to only see a particular unit (e.g. km) or multiple units (km and m3) or all units.
A8: Worksheets
B9: Summary | C9: This worksheet contains a cumulative summary of costs for each component of the project. Associated costs such as engineering and project management are added as a percentage of the component costs.
B10: Components | C10: Costs are derived for individual closure and reclamation activities by multiplying a "quantity" of activity by a "unit cost". An activity can be edited, added, or deleted from worksheet. However, care should be taken not to modify cells that are defined and used elsewhere in the program.
C11: Do not change the content or column width of the first column of each component worksheet.
B12: Unit Costs | C12: This worksheet contains a look up table with costs for typical work associated with each closure and reclamation activity
A14: Limitations | C14: The Reclaim Program will NOT work if the worksheets are changed such that the following requirements are not met. Please review the following prior to modifying worksheets.
B15: Worksheet Names | C15: The names of the worksheets must not be changed.
B16: Defined Names | C16: Certain cells have defined names, which must not be changed. Where the cell is named, the name will appear in the "Name Box" to the left of the formula bar.
B17: First line of data | C17: The first line of data for any component worksheet starts on line 4. Do not change the first line of a component worksheet, i.e. the component name.
B18: Cell A1 | C18: Cell A1 on the component sheet MUST always contain the count of that component for the duplicate function to operate. DO NOT CHANGE.
B19: Adding Lines | C19: You can add lines to components and the unit cost table, as long as they are not the last lines. The last line might fall outside the named ranges. You can check the size of the named range by selecting the name from the drop down box at the top left of the sheet. Usually this box has a cell reference, or a name.
A21: Conditions of Use | C21: The Reclamation Cost Estimating Model was prepared to serve as a guide for Government Agencies, mining companies, and others to estimate the cost of mine reclamation. This model is not intended to replace reclamation planning or to be used to determine the activities required to reclaim a site or to dictate how much should be spent on reclamation.
C23: Reclaim was prepared by CIRNAC and GNWT and are not responsible for the completeness or accuracy of any reclamation estimate made using this model. The user agrees to check and take responsibility for all aspects of any cost estimate made using this model.
A25: The following table provides guidance as to whether water management and treatment is considered short term or long term. All water treatment is covered under the 'Water Treatment" sheet.
A26: Water treatment during ICM is linked to the "ICM" sheet. Water treatment during construction is linked to the "Water Management" sheet. Long term or post-closure water treatment is linked
A27: and in the "PostClosure" sheet.
D28: ICM/ Capital Ex. | E28: Long term
A29: Open Pit | C29: flood pit - install/operate pumping system | D29: x
C30: construct diversion ditches | D30: x
C31: treat 1st filling | D31: x
C32: install pump/decant system | D32: x
C33: passive/biological treatment | D33: x
C34: overflow treatment | E34: x
A35: Rock Pile/Heap Leach Facility | C35: construct diversion ditches | D35: x
C36: install groundwater collection system | D36: x
C37: install toe seepage collection system | D37: x
C38: collect and treat groundwater | E38: x
C39: collect and treat seepage (ARD/ML) | E39: x
C40: install passive treatment system | D40: x
C41: operate and maintain passive treatment system | E41: x
C42: operate pump and detoxify heap leach pile (cyanide destruction) | D42: x
A43: Tailings Facility | C43: construct diversion ditches | D43: x
C44: pump supernatant (to pit, U/G) | D44: x
C45: treat supernatant | D45: x
C46: install toe seepage collection system | D46: x
C47: collect and treat seepage (ARD/ML) | E47: x
C48: install passive treatment system | D48: x
C49: operate and maintain passive treatment system | E49: x
A50: U/G Mine | C50: accelerate flooding | D50: x
C51: install seepage collection system | D51: x
C52: install dewatering/pumping system | D52: x
C53: operate seepage/dewatering system (ARD/ML) | E53: x
A54: Water Management | C54: refill lakes | D54: x
C55: redirect creeks/streams | D55: x
C56: stabilize water management ponds | D56: x
C57: stabilize/close sediment ponds | D57: x
C58: fresh water supply - breach embankment | D58: x
C59: fresh water supply - remove piping system | D59: x
C60: construct water treatment plant | D60: x
C61: construct sludge pond | D61: x
C62: water control in reclamation quarry | D62: x
C63: operate/maintain water treatment plant | E63: x

Sheet Tools
B2: Save file before clearing all data
B5: These functions duplicate components within worksheet
B8: Shows both active worksheet as well as table of Unit Costs in a separate window

Sheet Summary
J1: Number of Years of ICM | K1: =ICM!E22 -> 5
J2: When will Post-Closure Begin | K2: 8
J3: Estimated Annual Inflation | K3: 0.03
B5: SUMMARY OF COSTS (2024 Dolars) | K5: SUMMARY OF COSTS (Future Value)
A7: CAPITAL COSTS | B7: COMPONENT NAME | D7: COST | F7: LAND LIABILITY | H7: WATER LIABILITY | J7: CAPITAL COSTS | K7: COMPONENT NAME | M7: COST | O7: LAND LIABILITY | Q7: WATER LIABILITY
A8: INTERIM CARE AND MAINTENANCE | B8: =IF(ISBLANK(ICM!$C$1),"",ICM!$C$1) ->  | D8: =ICMTotal -> 4.27e-05 | F8: - | H8: =ICMTotal -> 4.27e-05 | J8: INTERIM CARE AND MAINTENANCE | K8: =IF(ISBLANK(ICM!$C$1),"",ICM!$C$1) ->  | M8: =D8 -> 4.27e-05 | O8: - | Q8: =H8 -> 4.27e-05
A9: OPEN PIT | B9: =IF(ISBLANK('Open Pit'!$C$1),"",'Open Pit'!$C$1) ->  | D9: =Pit1Total -> 0.0001 | F9: =Pit1LandTotal -> 0 | H9: =Pit1WaterTotal -> 0 | J9: OPEN PIT | K9: =IF(ISBLANK('Open Pit'!$C$1),"",'Open Pit'!$C$1) ->  | M9: =D9*(1+$K$3)^$K$1 -> 0.0001159274074 | O9: =F9/D9*M9 -> 0 | Q9: =M9-O9 -> 0.0001159274074
A10: UNDERGROUND MINE | B10: =IF(ISBLANK('UG Mine'!$C$1),"",'UG Mine'!$C$1) ->  | D10: =UG1Total -> 0.0001 | F10: =UG1LandTotal -> 0 | H10: =UG1WaterTotal -> 0 | J10: UNDERGROUND MINE | K10: =IF(ISBLANK('UG Mine'!$C$1),"",'UG Mine'!$C$1) ->  | M10: =D10*(1+$K$3)^$K$1 -> 0.0001159274074 | O10: =F10/D10*M10 -> 0 | Q10: =M10-O10 -> 0.0001159274074
A11: TAILINGS FACILITY | B11: =IF(ISBLANK(Tailings!$C$1),"",Tailings!$C$1) ->  | D11: =Tailings1Total -> 0.0001 | F11: =Tailings1LandTotal -> 0 | H11: =Tailings1WaterTotal -> 0 | J11: TAILINGS FACILITY | K11: =IF(ISBLANK(Tailings!$C$1),"",Tailings!$C$1) ->  | M11: 0.0001159274074 | O11: 0 | Q11: 0.0001159274074
A12: ROCK PILE | B12: =IF(ISBLANK('Rock Pile'!$C$1),"",'Rock Pile'!$C$1) ->  | D12: =RP1Total -> 0.0001 | F12: =RP1LandTotal -> 0 | H12: =RP1WaterTotal -> 0 | J12: ROCK PILE | K12: =IF(ISBLANK('Rock Pile'!$C$1),"",'Rock Pile'!$C$1) ->  | M12: 0.0001159274074 | O12: 0 | Q12: 0.0001159274074
A13: BUILDINGS AND EQUIPMENT | B13: =IF(ISBLANK('Bldgs & Equip'!$C$1),"",'Bldgs & Equip'!$C$1) ->  | D13: =Bldg1Total -> 0.0001 | F13: =Bldg1LandTotal -> 0 | H13: =Bldg1WaterTotal -> 0 | J13: BUILDINGS AND EQUIPMENT | K13: =IF(ISBLANK('Bldgs & Equip'!$C$1),"",'Bldgs & Equip'!$C$1) ->  | M13: 0.0001159274074 | O13: 0 | Q13: 0.0001159274074
A14: CHEMICALS AND CONTAMINATED SOIL MANAGEMENT | B14: =IF(ISBLANK(Chemicals!$C$1),"",Chemicals!$C$1) ->  | D14: =Chem1Total -> 0.0001 | F14: =Chem1LandTotal -> 0 | H14: =Chem1WaterTotal -> 0 | J14: CHEMICALS AND CONTAMINATED SOIL MANAGEMENT | K14: =IF(ISBLANK(Chemicals!$C$1),"",Chemicals!$C$1) ->  | M14: =D14*(1+$K$3)^$K$1 -> 0.0001159274074 | O14: 0 | Q14: 0.0001159274074
A15: WATER MANAGEMENT | D15: ='Water Management'!H57 -> 1e-05 | F15: - | H15: =Water1Total -> 1e-05 | J15: WATER MANAGEMENT | M15: 1.159274074e-05 | O15: - | Q15: =M15 -> 1.159274074e-05
A16: POST-CLOSURE MONITORING AND MAINTENANCE | B16: =IF(ISBLANK(PostClosure!$C$1),"",PostClosure!$C$1) ->  | D16: =PC1Total -> 1e-07 | F16: =D16*$F$19 -> 0 | H16: =D16*$H$19 -> 0 | J16: POST-CLOSURE MONITORING AND MAINTENANCE | K16: =IF(ISBLANK(PostClosure!$C$1),"",PostClosure!$C$1) ->  | M16: =(PCAnnualTotal*(1+$K$3)^($K$2+$K$1))*((POWER((1+K3),PostClosure!E37)-1)/K3)+('Water Treatment'!AF34*(1+$K$3)^($K$2+$K$1))*((POWER((1+K3),'Water Treatment'!AC35)-1)/K3) -> 0 | O16: =F16/D16*M16 -> 0 | Q16: 0
B18: SUBTOTAL: Capital Costs | D18: =SUM(D8:D16) -> 0.0006528 | F18: =SUM(F8:F16) -> 0 | H18: =SUM(H8:H16) -> 5.27e-05 | K18: SUBTOTAL: Capital Costs | M18: =SUM(M8:M16) -> 0.0007498571853 | O18: =SUM(O8:O16) -> 0 | Q18: =SUM(Q8:Q16) -> 0.0007498571853
B19: PERCENT OF SUBTOTAL | F19: =SUM(F8:F15)/SUM(D8:D15) -> 0 | H19: =IF(F19<0.01,0,1-F19) -> 0 | K19: PERCENT OF SUBTOTAL | O19: =F19 -> 0 | Q19: =H19 -> 0
A21: INDIRECT COSTS | D21: COST | F21: LAND LIABILITY | H21: WATER LIABILITY | J21: INDIRECT COSTS | M21: COST | O21: LAND LIABILITY | Q21: WATER LIABILITY
A22: MOBILIZATION | D22: =SUM(Mobilization!H58,Mobilization!R58,Mobilization!AB58) -> 0.0003 | F22: =$F$19*D22 -> 0 | H22: =+$H$19*D22 -> 0 | J22: =A22 -> MOBILIZATION | M22: =Mobilization!H58+Mobilization!R58*(1+$K$3)^$K$1+Mobilization!AB58*(1+$K$3)^$K$2 -> 0.0003426044156 | O22: =+$F$19*M22 -> 0 | Q22: =+$H$19*M22 -> 0
A23: ENGINEERING DESIGN | B23: 0.05 | D23: =B23*$D$18 -> 3.264e-05 | F23: =+$F$19*D23 -> 0 | H23: =+$H$19*D23 -> 0 | J23: ENGINEERING DESIGN | K23: =B23 -> 0.05 | M23: =K23*$M$18 -> 3.749285927e-05 | O23: =+$F$19*M23 -> 0 | Q23: =+$H$19*M23 -> 0
A24: PROJECT MANAGEMENT | B24: 0.08 | D24: =B24*$D$18 -> 5.2224e-05 | F24: 0 | H24: 0 | J24: PROJECT MANAGEMENT | K24: 0.08 | M24: 5.998857483e-05 | O24: 0 | Q24: 0
A25: MONITORING & QA/QC | B25: 0.01 | D25: =B25*$D$18 -> 6.528e-06 | F25: =+$F$19*D25 -> 0 | H25: =+$H$19*D25 -> 0 | J25: MONITORING & QA/QC | K25: 0.01 | M25: =K25*$M$18 -> 7.498571853e-06 | O25: =+$F$19*M25 -> 0 | Q25: =+$H$19*M25 -> 0
A26: BONDING/INSURANCE | B26: 0.03 | D26: 1.9584e-05 | F26: 0 | H26: 0 | J26: BONDING/INSURANCE | K26: 0.03 | M26: 2.249571556e-05 | O26: 0 | Q26: 0
A27: ENGAGEMENT AND REGULATORY COMPLIANCE | B27: 0.03 | D27: 1.9584e-05 | F27: 0 | H27: 0 | J27: ENGAGEMENT AND REGULATORY COMPLIANCE | K27: 0.03 | M27: 2.249571556e-05 | O27: 0 | Q27: 0
A28: CONTINGENCY | B28: 0.25 | D28: =B28*$D$18 -> 0.0001632 | F28: 0 | H28: 0 | J28: CONTINGENCY | K28: 0.25 | M28: 0.0001874642963 | O28: 0 | Q28: 0
A29: OWNERS REPRESENTATIVE | B29: 0.05 | D29: =B29*$D$18 -> 3.264e-05 | F29: =+$F$19*D29 -> 0 | H29: =+$H$19*D29 -> 0 | J29: OWNERS REPRESENTATIVE | K29: =B29 -> 0.05 | M29: =K29*$M$18 -> 3.749285927e-05 | O29: =+$F$19*M29 -> 0 | Q29: =+$H$19*M29 -> 0
A30: MARKET PRICE FACTOR ADJUSTMENT | B30: 0 | D30: =B30*$D$18 -> 0 | F30: =+$F$19*D30 -> 0 | H30: =+$H$19*D30 -> 0 | J30: MARKET PRICE FACTOR ADJUSTMENT | K30: =B30 -> 0 | M30: =K30*$M$18 -> 0 | O30: =+$F$19*M30 -> 0 | Q30: =+$H$19*M30 -> 0
B31: SUBTOTAL: Indirect Costs | D31: =SUM(D22:D30) -> 0.0006264 | F31: =SUM(F22:F30) -> 0 | H31: =SUM(H22:H30) -> 0 | K31: SUBTOTAL: Indirect Costs | M31: =SUM(M22:M30) -> 0.0007175330082 | O31: =SUM(O22:O30) -> 0 | Q31: =SUM(Q22:Q30) -> 0
A33: TOTAL COSTS | D33: =D18+D31 -> 0.0012792 | F33: =F18+F31 -> 0 | H33: =H18+H31 -> 5.27e-05 | J33: TOTAL COSTS | M33: =M18+M31 -> 0.001467390194 | O33: =O18+O31 -> 0 | Q33: =Q18+Q31 -> 0.0007498571853

Sheet ICM
A1: 1 | B1: Interim Care and Maintenance
B3: ACTIVITY/MATERIAL | C3: Notes | D3: Units | E3: Quantity | F3: Cost Code | G3: Unit Cost | H3: Cost
B4: INTERIM CARE & MAINTENANCE
B5: On-site caretaker | D5: hr | F5: =NA() ->  | G5: =IF(ISNA(F5),0,INDEX(IF(RIGHT(F5,1)="A",unitcostaverage,IF(RIGHT(F5,1)="L",UnitCostLow, IF(RIGHT(F5,1)="H",UnitCostHigh,UnitCostSpecified))),MATCH(LEFT(F5,LEN(F5)-1),CostCode,0))) -> 0 | H5: =G5*E5 -> 0
B6: Extra personnel | D6: hr | F6: =NA() ->  | G6: 0 | H6: 0
B7: -electrician | D7: hr | F7: =NA() ->  | G7: 0 | H7: =G7*E7 -> 0
B8: -mechanic | D8: hr | F8: =NA() ->  | G8: 0 | H8: =G8*E8 -> 0
B9: Annual fuel | D9: litre | F9: =NA() ->  | G9: 0 | H9: 0
B10: Misc. supplies | D10: allow | F10: =NA() ->  | G10: 0 | H10: =G10*E10 -> 0
B11: Pick-up truck | D11: each | F11: =NA() ->  | G11: 0 | H11: 0
B12: Small dozer | D12: allow | F12: =NA() ->  | G12: 0 | H12: 0
B13: Small excavator | D13: allow | F13: =NA() ->  | G13: 0 | H13: 0
B14: Snow machine | D14: allow | F14: =NA() ->  | G14: 0 | H14: 0
B15: Communications | D15: allow | F15: =NA() ->  | G15: 0 | H15: 0
B16: SNP/AEMP water sampling & reporting | D16: each | F16: =NA() ->  | G16: 0 | H16: 0
B17: Geotechnical assessment & reporting | D17: each | F17: =NA() ->  | G17: 0 | H17: 0
B18: Airstrip Maintenance | D18: ha | F18: =NA() ->  | G18: =IF(ISNA(F18),0,INDEX(IF(RIGHT(F18,1)="A",unitcostaverage,IF(RIGHT(F18,1)="L",UnitCostLow, IF(RIGHT(F18,1)="H",UnitCostHigh,UnitCostSpecified))),MATCH(LEFT(F18,LEN(F18)-1),CostCode,0))) -> 0 | H18: =G18*E18 -> 0
B19: Maintain Road Access | D19: ha | F19: =NA() ->  | G19: =IF(ISNA(F19),0,INDEX(IF(RIGHT(F19,1)="A",unitcostaverage,IF(RIGHT(F19,1)="L",UnitCostLow, IF(RIGHT(F19,1)="H",UnitCostHigh,UnitCostSpecified))),MATCH(LEFT(F19,LEN(F19)-1),CostCode,0))) -> 0 | H19: =G19*E19 -> 0
B20: Other | D20: each | F20: =NA() ->  | G20: 0 | H20: 0
G21: Annual Interim C&M Cost | H21: =SUM(H5:H20) -> 0
B22: Number of years of ICM | D22: years | E22: 5 | G22: Sub Total | H22: =H21*E22 -> 0
B23: Total water treatment cost, from "ICM Water Treatment" | H23: ='Water Treatment'!H36 -> 0
B25: Human Health and Ecological Risk Assessment (% Closure Costs) | G25: 0.03 | H25: =G25*SUM(Summary!D9:D15) -> 1.83e-05
B26: Finalize Closure and Reclamation Plan (% Closure Costs) | G26: 0.04 | H26: =G26*SUM(Summary!D9:D15) -> 2.44e-05
G27: Total | H27: =H23+H22+H25+H26 -> 4.27e-05

Sheet Open Pit
A1: =COUNTIF(B1:YH1,"*Open Pit Name*") -> 1 | B1: Open Pit Name | G1: Pit # | H1: 1
B3: ACTIVITY/MATERIAL | C3: Notes | D3: Units | E3: Quantity | F3: Cost Code | G3: Unit Cost | H3: Cost | I3: % Land | J3: Land Cost | K3: Water Cost
B4: CONTROL ACCESS
B5: Fence | D5: m | F5: =NA() ->  | G5: =IF(ISNA(F5),0,INDEX(IF(RIGHT(F5,1)="A",unitcostaverage,IF(RIGHT(F5,1)="L",UnitCostLow, IF(RIGHT(F5,1)="H",UnitCostHigh,UnitCostSpecified))),MATCH(LEFT(F5,LEN(F5)-1),CostCode,0))) -> 0 | H5: =G5*E5 -> 0 | J5: =H5*I5 -> 0 | K5: =H5-J5 -> 0
B6: Signs | D6: each | F6: =NA() ->  | G6: =IF(ISNA(F6),0,INDEX(IF(RIGHT(F6,1)="A",unitcostaverage,IF(RIGHT(F6,1)="L",UnitCostLow, IF(RIGHT(F6,1)="H",UnitCostHigh,UnitCostSpecified))),MATCH(LEFT(F6,LEN(F6)-1),CostCode,0))) -> 0 | H6: =G6*E6 -> 0 | J6: 0 | K6: 0
B7: Berm at crest | D7: m3 | F7: =NA() ->  | G7: =IF(ISNA(F7),0,INDEX(IF(RIGHT(F7,1)="A",unitcostaverage,IF(RIGHT(F7,1)="L",UnitCostLow, IF(RIGHT(F7,1)="H",UnitCostHigh,UnitCostSpecified))),MATCH(LEFT(F7,LEN(F7)-1),CostCode,0))) -> 0 | H7: =G7*E7 -> 0 | J7: 0 | K7: 0
B8: Block roads | D8: m3 | F8: =NA() ->  | G8: =IF(ISNA(F8),0,INDEX(IF(RIGHT(F8,1)="A",unitcostaverage,IF(RIGHT(F8,1)="L",UnitCostLow, IF(RIGHT(F8,1)="H",UnitCostHigh,UnitCostSpecified))),MATCH(LEFT(F8,LEN(F8)-1),CostCode,0))) -> 0 | H8: =G8*E8 -> 0 | J8: 0 | K8: 0
B9: Other | F9: =NA() ->  | G9: =IF(ISNA(F9),0,INDEX(IF(RIGHT(F9,1)="A",unitcostaverage,IF(RIGHT(F9,1)="L",UnitCostLow, IF(RIGHT(F9,1)="H",UnitCostHigh,UnitCostSpecified))),MATCH(LEFT(F9,LEN(F9)-1),CostCode,0))) -> 0 | H9: =G9*E9 -> 0 | J9: 0 | K9: 0
B10: STABILITY STUDY
B11: Conduct stability and setback study | D11: allow | F11: =NA() ->  | G11: =IF(ISNA(F11),0,INDEX(IF(RIGHT(F11,1)="A",unitcostaverage,IF(RIGHT(F11,1)="L",UnitCostLow, IF(RIGHT(F11,1)="H",UnitCostHigh,UnitCostSpecified))),MATCH(LEFT(F11,LEN(F11)-1),CostCode,0))) -> 0 | H11: =G11*E11 -> 0 | J11: =H11*I11 -> 0 | K11: =H11-J11 -> 0
B12: STABILIZE SLOPES
B13: Off-load crest, soil A | D13: m3 | F13: =NA() ->  | G13: =IF(ISNA(F13),0,INDEX(IF(RIGHT(F13,1)="A",unitcostaverage,IF(RIGHT(F13,1)="L",UnitCostLow, IF(RIGHT(F13,1)="H",UnitCostHigh,UnitCostSpecified))),MATCH(LEFT(F13,LEN(F13)-1),CostCode,0))) -> 0 | H13: =G13*E13 -> 0 | J13: =H13*I13 -> 0 | K13: =H13-J13 -> 0
B14: Off-load crest, soil B | D14: m3 | F14: =NA() ->  | G14: 0 | H14: 0 | J14: 0 | K14: 0
B15: Doze/trim overburden at crest | D15: m3 | F15: =NA() ->  | G15: 0 | H15: 0 | J15: 0 | K15: 0
B16: Drill & blast pit crest | D16: m3 | F16: =NA() ->  | G16: 0 | H16: 0 | J16: 0 | K16: 0
B17: Buttress slope | D17: m3 | F17: =NA() ->  | G17: 0 | H17: 0 | J17: 0 | K17: 0
B18: Other | F18: =NA() ->  | G18: 0 | H18: 0 | J18: 0 | K18: 0
B19: COVER/CONTOUR SLOPES
B20: Place fill, soil A | D20: m3 | F20: =NA() ->  | G20: =IF(ISNA(F20),0,INDEX(IF(RIGHT(F20,1)="A",unitcostaverage,IF(RIGHT(F20,1)="L",UnitCostLow, IF(RIGHT(F20,1)="H",UnitCostHigh,UnitCostSpecified))),MATCH(LEFT(F20,LEN(F20)-1),CostCode,0))) -> 0 | H20: =G20*E20 -> 0 | J20: =H20*I20 -> 0 | K20: =H20-J20 -> 0
B21: Place fill, soil B | D21: m3 | F21: =NA() ->  | G21: 0 | H21: 0 | J21: 0 | K21: 0
B22: Rip rap | D22: m3 | F22: =NA() ->  | G22: 0 | H22: 0 | J22: 0 | K22: 0
B23: Vegetate slopes | D23: ha | F23: =NA() ->  | G23: 0 | H23: 0 | J23: 0 | K23: 0
B24: Vegetate pit floor | D24: ha | F24: =NA() ->  | G24: 0 | H24: 0 | J24: 0 | K24: 0
B25: Other | F25: =NA() ->  | G25: 0 | H25: 0 | J25: 0 | K25: 0
B26: CONSTRUCT DIVERSION DITCHES
B27: Excavate ditches -soil | D27: m3 | F27: =NA() ->  | G27: =IF(ISNA(F27),0,INDEX(IF(RIGHT(F27,1)="A",unitcostaverage,IF(RIGHT(F27,1)="L",UnitCostLow, IF(RIGHT(F27,1)="H",UnitCostHigh,UnitCostSpecified))),MATCH(LEFT(F27,LEN(F27)-1),CostCode,0))) -> 0 | H27: =G27*E27 -> 0 | J27: =H27*I27 -> 0 | K27: =H27-J27 -> 0
B28: Excavate ditches -rock | D28: m3 | F28: =NA() ->  | G28: =IF(ISNA(F28),0,INDEX(IF(RIGHT(F28,1)="A",unitcostaverage,IF(RIGHT(F28,1)="L",UnitCostLow, IF(RIGHT(F28,1)="H",UnitCostHigh,UnitCostSpecified))),MATCH(LEFT(F28,LEN(F28)-1),CostCode,0))) -> 0 | H28: =G28*E28 -> 0 | J28: 0 | K28: 0
B29: Rip rap in channel base | D29: m3 | F29: =NA() ->  | G29: =IF(ISNA(F29),0,INDEX(IF(RIGHT(F29,1)="A",unitcostaverage,IF(RIGHT(F29,1)="L",UnitCostLow, IF(RIGHT(F29,1)="H",UnitCostHigh,UnitCostSpecified))),MATCH(LEFT(F29,LEN(F29)-1),CostCode,0))) -> 0 | H29: =G29*E29 -> 0 | J29: 0 | K29: 0
B30: CONSTRUCT SPILLWAY
B31: Excavate channel | D31: m3 | F31: =NA() ->  | G31: =IF(ISNA(F31),0,INDEX(IF(RIGHT(F31,1)="A",unitcostaverage,IF(RIGHT(F31,1)="L",UnitCostLow, IF(RIGHT(F31,1)="H",UnitCostHigh,UnitCostSpecified))),MATCH(LEFT(F31,LEN(F31)-1),CostCode,0))) -> 0 | H31: =G31*E31 -> 0 | J31: =H31*I31 -> 0 | K31: =H31-J31 -> 0
B32: Concrete | D32: m3 | F32: =NA() ->  | G32: =IF(ISNA(F32),0,INDEX(IF(RIGHT(F32,1)="A",unitcostaverage,IF(RIGHT(F32,1)="L",UnitCostLow, IF(RIGHT(F32,1)="H",UnitCostHigh,UnitCostSpecified))),MATCH(LEFT(F32,LEN(F32)-1),CostCode,0))) -> 0 | H32: =G32*E32 -> 0 | J32: 0 | K32: 0
B33: Rip rap | D33: m3 | F33: =NA() ->  | G33: =IF(ISNA(F33),0,INDEX(IF(RIGHT(F33,1)="A",unitcostaverage,IF(RIGHT(F33,1)="L",UnitCostLow, IF(RIGHT(F33,1)="H",UnitCostHigh,UnitCostSpecified))),MATCH(LEFT(F33,LEN(F33)-1),CostCode,0))) -> 0 | H33: =G33*E33 -> 0 | J33: 0 | K33: 0
B34: Other | F34: =NA() ->  | G34: =IF(ISNA(F34),0,INDEX(IF(RIGHT(F34,1)="A",unitcostaverage,IF(RIGHT(F34,1)="L",UnitCostLow, IF(RIGHT(F34,1)="H",UnitCostHigh,UnitCostSpecified))),MATCH(LEFT(F34,LEN(F34)-1),CostCode,0))) -> 0 | H34: =G34*E34 -> 0 | J34: 0 | K34: 0
B35: DEVELOP AND RECLAIM QUARRIES AND BORROWS
B36: Strip overburden | D36: m3 | F36: =NA() ->  | G36: =IF(ISNA(F36),0,INDEX(IF(RIGHT(F36,1)="A",unitcostaverage,IF(RIGHT(F36,1)="L",UnitCostLow, IF(RIGHT(F36,1)="H",UnitCostHigh,UnitCostSpecified))),MATCH(LEFT(F36,LEN(F36)-1),CostCode,0))) -> 0 | H36: =G36*E36 -> 0 | J36: =H36*I36 -> 0 | K36: =H36-J36 -> 0
B37: Drill & blast | D37: m3 | F37: =NA() ->  | G37: =IF(ISNA(F37),0,INDEX(IF(RIGHT(F37,1)="A",unitcostaverage,IF(RIGHT(F37,1)="L",UnitCostLow, IF(RIGHT(F37,1)="H",UnitCostHigh,UnitCostSpecified))),MATCH(LEFT(F37,LEN(F37)-1),CostCode,0))) -> 0 | H37: 0 | J37: 0 | K37: 0
B38: Contour slopes | D38: m3 | F38: =NA() ->  | G38: =IF(ISNA(F38),0,INDEX(IF(RIGHT(F38,1)="A",unitcostaverage,IF(RIGHT(F38,1)="L",UnitCostLow, IF(RIGHT(F38,1)="H",UnitCostHigh,UnitCostSpecified))),MATCH(LEFT(F38,LEN(F38)-1),CostCode,0))) -> 0 | H38: =G38*E38 -> 0 | J38: =H38*I38 -> 0 | K38: =H38-J38 -> 0
B39: Place overburden | D39: m3 | F39: =NA() ->  | G39: =IF(ISNA(F39),0,INDEX(IF(RIGHT(F39,1)="A",unitcostaverage,IF(RIGHT(F39,1)="L",UnitCostLow, IF(RIGHT(F39,1)="H",UnitCostHigh,UnitCostSpecified))),MATCH(LEFT(F39,LEN(F39)-1),CostCode,0))) -> 0 | H39: =G39*E39 -> 0 | J39: 0 | K39: 0
B40: Other | F40: =NA() ->  | G40: =IF(ISNA(F40),0,INDEX(IF(RIGHT(F40,1)="A",unitcostaverage,IF(RIGHT(F40,1)="L",UnitCostLow, IF(RIGHT(F40,1)="H",UnitCostHigh,UnitCostSpecified))),MATCH(LEFT(F40,LEN(F40)-1),CostCode,0))) -> 0 | H40: =G40*E40 -> 0 | J40: =H40*I40 -> 0 | K40: =H40-J40 -> 0
B41: OTHER RECLAMATION ACTIVITIES
B42: Backfill of Pit | D42: m3 | F42: =NA() ->  | G42: =IF(ISNA(F42),0,INDEX(IF(RIGHT(F42,1)="A",unitcostaverage,IF(RIGHT(F42,1)="L",UnitCostLow, IF(RIGHT(F42,1)="H",UnitCostHigh,UnitCostSpecified))),MATCH(LEFT(F42,LEN(F42)-1),CostCode,0))) -> 0 | H42: =G42*E42 -> 0 | J42: =H42*I42 -> 0 | K42: =H42-J42 -> 0
B43: Other | F43: =NA() ->  | G43: =IF(ISNA(F43),0,INDEX(IF(RIGHT(F43,1)="A",unitcostaverage,IF(RIGHT(F43,1)="L",UnitCostLow, IF(RIGHT(F43,1)="H",UnitCostHigh,UnitCostSpecified))),MATCH(LEFT(F43,LEN(F43)-1),CostCode,0))) -> 0 | H43: =G43*E43 -> 0 | J43: 0 | K43: 0
B44: FLOOD PIT-Capital
B45: Remove stationary equipment (sump pumps) | D45: each | F45: =NA() ->  | G45: =IF(ISNA(F45),0,INDEX(IF(RIGHT(F45,1)="A",unitcostaverage,IF(RIGHT(F45,1)="L",UnitCostLow, IF(RIGHT(F45,1)="H",UnitCostHigh,UnitCostSpecified))),MATCH(LEFT(F45,LEN(F45)-1),CostCode,0))) -> 0 | H45: =G45*E45 -> 0 | J45: =H45*I45 -> 0 | K45: =H45-J45 -> 0
B46: Remove dewatering pipeline | D46: m | F46: =NA() ->  | G46: 0 | H46: 0 | J46: 0 | K46: 0
B47: Remove power lines | D47: each | F47: =NA() ->  | G47: 0 | H47: 0 | J47: 0 | K47: 0
B48: Construct diversion ditches | D48: m3 | F48: =NA() ->  | G48: 0 | H48: 0 | J48: 0 | K48: 0
B49: -Ditch, mat'l A | D49: m3 | F49: =NA() ->  | G49: 0 | H49: 0 | J49: 0 | K49: 0
B50: -Ditch, mat'l B | D50: m3 | F50: =NA() ->  | G50: 0 | H50: 0 | J50: 0 | K50: 0
B51: Construct embankment/dam | D51: m3 | F51: =NA() ->  | G51: 0 | H51: 0 | J51: 0 | K51: 0
B52: Supply/install pump station | D52: each | F52: =NA() ->  | G52: 0 | H52: 0 | J52: 0 | K52: 0
B53: Supply/install piping system | D53: m | F53: =NA() ->  | G53: 0 | H53: 0 | J53: 0 | K53: 0
B54: Remove pump post-closure | D54: each | F54: =NA() ->  | G54: 0 | H54: 0 | J54: 0 | K54: 0
B55: Remove pipeline post-closure | D55: m | F55: =NA() ->  | G55: 0 | H55: 0 | J55: 0 | K55: 0
B56: FLOOD PIT-Annual Cost
B57: Operate pumps (power) | D57: m3 | F57: =NA() ->  | G57: =IF(ISNA(F57),0,INDEX(IF(RIGHT(F57,1)="A",unitcostaverage,IF(RIGHT(F57,1)="L",UnitCostLow, IF(RIGHT(F57,1)="H",UnitCostHigh,UnitCostSpecified))),MATCH(LEFT(F57,LEN(F57)-1),CostCode,0))) -> 0 | H57: =G57*E57 -> 0 | J57: =H57*I57 -> 0 | K57: =H57*(1-I57) -> 0
B58: Maintain pump/pipeline | D58: allow | F58: =NA() ->  | G58: 0 | H58: 0 | J58: =H58*I58 -> 0 | K58: =H58*(1-I58) -> 0
B59: Labour: fuel management, commissioning/decom | D59: $/h | F59: =NA() ->  | G59: 0 | H59: 0 | J59: =H59*I59 -> 0 | K59: =H59*(1-I59) -> 0
B60: Chemical addition, _____ kg/m3 of water | D60: kg | F60: =NA() ->  | G60: 0 | H60: 0 | J60: 0 | K60: 0
B61: Chemicals, purchase and shipping | D61: kg | F61: =NA() ->  | G61: 0 | H61: 0 | J61: 0 | K61: 0
B62: Passive/biological additives | D62: $/ha | F62: =NA() ->  | G62: 0 | H62: 0 | J62: =H62*I62 -> 0 | K62: =H62*(1-I62) -> 0
B63: Passive additives purchase and shipping | D63: tonne | F63: =NA() ->  | G63: 0 | H63: 0 | J63: =H63*I63 -> 0 | K63: =H63*(1-I63) -> 0
B64: Other | F64: =NA() ->  | G64: 0 | H64: 0 | J64: =H64*I64 -> 0 | K64: 0
G65: Annual pumping costs | H65: =SUM(H57:H64)+0.0001 -> 0.0001
B66: Number of years of pump flooding | D66: years
G67: Total pumping costs | H67: =H65*E66 -> 0 | J67: =H67*I67 -> 0 | K67: =H67*(1-I67) -> 0
G68: Total | H68: =SUM(H5:H55)+H67+0.0001 -> 0.0001 | J68: =SUM(J5:J55)+J67 -> 0 | K68: =SUM(K5:K55)+K67 -> 0
G69: % of Total | J69: =J68/H68 -> 0 | K69: =K68/H68 -> 0

Sheet UG Mine
A1: 1 | B1: Underground Mine Name | G1: UG Mine # | H1: 1
B3: ACTIVITY/MATERIAL | C3: Notes | D3: Unit | E3: Qty | F3: Cost Code | G3: Unit Cost | H3: Cost | I3: % Land | J3: Land Cost | K3: Water Cost
B4: CONTROL ACCESS
B5: Fence | D5: m | F5: =NA() ->  | G5: =IF(ISNA(F5),0,INDEX(IF(RIGHT(F5,1)="A",unitcostaverage,IF(RIGHT(F5,1)="L",UnitCostLow, IF(RIGHT(F5,1)="H",UnitCostHigh,UnitCostSpecified))),MATCH(LEFT(F5,LEN(F5)-1),CostCode,0))) -> 0 | H5: =G5*E5 -> 0 | J5: =H5*I5 -> 0 | K5: =H5-J5 -> 0
B6: Signs | D6: each | F6: =NA() ->  | G6: 0 | H6: 0 | J6: 0 | K6: 0
B7: Block roads | D7: m3 | F7: =NA() ->  | G7: 0 | H7: =G7*E7 -> 0 | J7: 0 | K7: 0
B8: Berm | D8: m3 | F8: =NA() ->  | G8: 0 | H8: 0 | J8: 0 | K8: 0
B9: Concrete wall in portals | D9: m3 | F9: =NA() ->  | G9: 0 | H9: 0 | J9: 0 | K9: 0
B10: Backfill portal #1 | D10: m3 | F10: =NA() ->  | G10: 0 | H10: 0 | J10: 0 | K10: 0
B11: Backfill portal #2 | D11: m3 | F11: =NA() ->  | G11: 0 | H11: 0 | J11: 0 | K11: 0
B12: Cap raise # 1 | D12: m3 | F12: =NA() ->  | G12: 0 | H12: 0 | J12: 0 | K12: 0
B13: Cap raise #2 | D13: m3 | F13: =NA() ->  | G13: 0 | H13: 0 | J13: 0 | K13: 0
B14: Cap shaft #1 | D14: m3 | F14: =NA() ->  | G14: 0 | H14: 0 | J14: 0 | K14: 0
B15: Cap shaft #2 | D15: m3 | F15: =NA() ->  | G15: 0 | H15: 0 | J15: 0 | K15: 0
B16: Backfill adits | D16: m3 | F16: =NA() ->  | G16: 0 | H16: 0 | J16: 0 | K16: 0
B17: Backfill open stope | D17: m3 | F17: =NA() ->  | G17: 0 | H17: 0 | J17: 0 | K17: 0
B18: Concrete cap over open stope | D18: m3 | F18: =NA() ->  | G18: 0 | H18: 0 | J18: 0 | K18: 0
B19: Other | F19: =NA() ->  | G19: 0 | H19: 0 | J19: 0 | K19: 0
B20: REMOVE HAZARDOUS MATERIALS
B21: Remove hazardous materials, U/G labor | D21: mandays | F21: =NA() ->  | G21: =IF(ISNA(F21),0,INDEX(IF(RIGHT(F21,1)="A",unitcostaverage,IF(RIGHT(F21,1)="L",UnitCostLow, IF(RIGHT(F21,1)="H",UnitCostHigh,UnitCostSpecified))),MATCH(LEFT(F21,LEN(F21)-1),CostCode,0))) -> 0 | H21: =G21*E21 -> 0 | J21: =H21*I21 -> 0 | K21: =H21-J21 -> 0
B22: Remove/decontam. stationary & elect. equip | D22: mandays | F22: =NA() ->  | G22: =IF(ISNA(F22),0,INDEX(IF(RIGHT(F22,1)="A",unitcostaverage,IF(RIGHT(F22,1)="L",UnitCostLow, IF(RIGHT(F22,1)="H",UnitCostHigh,UnitCostSpecified))),MATCH(LEFT(F22,LEN(F22)-1),CostCode,0))) -> 0 | H22: =G22*E22 -> 0 | J22: 0 | K22: 0
B23: Remove/decontam. mobile equipment | D23: each | F23: =NA() ->  | G23: =IF(ISNA(F23),0,INDEX(IF(RIGHT(F23,1)="A",unitcostaverage,IF(RIGHT(F23,1)="L",UnitCostLow, IF(RIGHT(F23,1)="H",UnitCostHigh,UnitCostSpecified))),MATCH(LEFT(F23,LEN(F23)-1),CostCode,0))) -> 0 | H23: =G23*E23 -> 0 | J23: 0 | K23: 0
B24: Remove misc. haz. mat & explosives | D24: kg | F24: =NA() ->  | G24: =IF(ISNA(F24),0,INDEX(IF(RIGHT(F24,1)="A",unitcostaverage,IF(RIGHT(F24,1)="L",UnitCostLow, IF(RIGHT(F24,1)="H",UnitCostHigh,UnitCostSpecified))),MATCH(LEFT(F24,LEN(F24)-1),CostCode,0))) -> 0 | H24: =G24*E24 -> 0 | J24: 0 | K24: 0
B25: Other | F25: =NA() ->  | G25: =IF(ISNA(F25),0,INDEX(IF(RIGHT(F25,1)="A",unitcostaverage,IF(RIGHT(F25,1)="L",UnitCostLow, IF(RIGHT(F25,1)="H",UnitCostHigh,UnitCostSpecified))),MATCH(LEFT(F25,LEN(F25)-1),CostCode,0))) -> 0 | H25: =G25*E25 -> 0 | J25: 0 | K25: 0
B26: INSTALL BULKHEADS
B27: Bulkheads to control water flow | D27: each | F27: =NA() ->  | G27: =IF(ISNA(F27),0,INDEX(IF(RIGHT(F27,1)="A",unitcostaverage,IF(RIGHT(F27,1)="L",UnitCostLow, IF(RIGHT(F27,1)="H",UnitCostHigh,UnitCostSpecified))),MATCH(LEFT(F27,LEN(F27)-1),CostCode,0))) -> 0 | H27: =G27*E27 -> 0 | J27: =H27*I27 -> 0 | K27: =H27-J27 -> 0
B28: Grout bulkhead | D28: m3 | F28: =NA() ->  | G28: =IF(ISNA(F28),0,INDEX(IF(RIGHT(F28,1)="A",unitcostaverage,IF(RIGHT(F28,1)="L",UnitCostLow, IF(RIGHT(F28,1)="H",UnitCostHigh,UnitCostSpecified))),MATCH(LEFT(F28,LEN(F28)-1),CostCode,0))) -> 0 | H28: =G28*E28 -> 0 | J28: 0 | K28: 0
B29: FLOOD MINE
B30: Supply/install pump | D30: each | F30: =NA() ->  | G30: =IF(ISNA(F30),0,INDEX(IF(RIGHT(F30,1)="A",unitcostaverage,IF(RIGHT(F30,1)="L",UnitCostLow, IF(RIGHT(F30,1)="H",UnitCostHigh,UnitCostSpecified))),MATCH(LEFT(F30,LEN(F30)-1),CostCode,0))) -> 0 | H30: =G30*E30 -> 0 | J30: =H30*I30 -> 0 | K30: =H30-J30 -> 0
B31: Supply/install piping system | D31: each | F31: =NA() ->  | G31: =IF(ISNA(F31),0,INDEX(IF(RIGHT(F31,1)="A",unitcostaverage,IF(RIGHT(F31,1)="L",UnitCostLow, IF(RIGHT(F31,1)="H",UnitCostHigh,UnitCostSpecified))),MATCH(LEFT(F31,LEN(F31)-1),CostCode,0))) -> 0 | H31: =G31*E31 -> 0 | J31: 0 | K31: 0
B32: Operate pumps to flood workings | D32: m3 | F32: =NA() ->  | G32: =IF(ISNA(F32),0,INDEX(IF(RIGHT(F32,1)="A",unitcostaverage,IF(RIGHT(F32,1)="L",UnitCostLow, IF(RIGHT(F32,1)="H",UnitCostHigh,UnitCostSpecified))),MATCH(LEFT(F32,LEN(F32)-1),CostCode,0))) -> 0 | H32: =G32*E32 -> 0 | J32: 0 | K32: 0
B33: Other | F33: =NA() ->  | G33: =IF(ISNA(F33),0,INDEX(IF(RIGHT(F33,1)="A",unitcostaverage,IF(RIGHT(F33,1)="L",UnitCostLow, IF(RIGHT(F33,1)="H",UnitCostHigh,UnitCostSpecified))),MATCH(LEFT(F33,LEN(F33)-1),CostCode,0))) -> 0 | H33: =G33*E33 -> 0 | J33: 0 | K33: 0
B34: INSTALL GROUNDWATER COLLECTION SYSTEM
B35: Excavate/install sumps | D35: m2 | F35: =NA() ->  | G35: =IF(ISNA(F35),0,INDEX(IF(RIGHT(F35,1)="A",unitcostaverage,IF(RIGHT(F35,1)="L",UnitCostLow, IF(RIGHT(F35,1)="H",UnitCostHigh,UnitCostSpecified))),MATCH(LEFT(F35,LEN(F35)-1),CostCode,0))) -> 0 | H35: =G35*E35 -> 0 | J35: =H35*I35 -> 0 | K35: =H35-J35 -> 0
B36: Install pumping wells | D36: m3 | F36: =NA() ->  | G36: =IF(ISNA(F36),0,INDEX(IF(RIGHT(F36,1)="A",unitcostaverage,IF(RIGHT(F36,1)="L",UnitCostLow, IF(RIGHT(F36,1)="H",UnitCostHigh,UnitCostSpecified))),MATCH(LEFT(F36,LEN(F36)-1),CostCode,0))) -> 0 | H36: =G36*E36 -> 0 | J36: 0 | K36: 0
B37: Install pumps/pipelines/power supply | D37: LS | F37: =NA() ->  | G37: =IF(ISNA(F37),0,INDEX(IF(RIGHT(F37,1)="A",unitcostaverage,IF(RIGHT(F37,1)="L",UnitCostLow, IF(RIGHT(F37,1)="H",UnitCostHigh,UnitCostSpecified))),MATCH(LEFT(F37,LEN(F37)-1),CostCode,0))) -> 0 | H37: =G37*E37 -> 0 | J37: 0 | K37: 0
B38: SPECIALIZED ITEMS
B39: Install water quality monitoring pipes | D39: each | F39: =NA() ->  | G39: =IF(ISNA(F39),0,INDEX(IF(RIGHT(F39,1)="A",unitcostaverage,IF(RIGHT(F39,1)="L",UnitCostLow, IF(RIGHT(F39,1)="H",UnitCostHigh,UnitCostSpecified))),MATCH(LEFT(F39,LEN(F39)-1),CostCode,0))) -> 0 | H39: =G39*E39 -> 0 | J39: =H39*I39 -> 0 | K39: =H39-J39 -> 0
B40: Install permanent pumping system | D40: each | F40: =NA() ->  | G40: =IF(ISNA(F40),0,INDEX(IF(RIGHT(F40,1)="A",unitcostaverage,IF(RIGHT(F40,1)="L",UnitCostLow, IF(RIGHT(F40,1)="H",UnitCostHigh,UnitCostSpecified))),MATCH(LEFT(F40,LEN(F40)-1),CostCode,0))) -> 0 | H40: =G40*E40 -> 0 | J40: 0 | K40: 0
B41: Other | F41: =NA() ->  | G41: =IF(ISNA(F41),0,INDEX(IF(RIGHT(F41,1)="A",unitcostaverage,IF(RIGHT(F41,1)="L",UnitCostLow, IF(RIGHT(F41,1)="H",UnitCostHigh,UnitCostSpecified))),MATCH(LEFT(F41,LEN(F41)-1),CostCode,0))) -> 0 | H41: =G41*E41 -> 0 | J41: 0 | K41: 0
G42: Total | H42: =SUM(H5:H41)+0.0001 -> 0.0001 | J42: =SUM(J5:J41) -> 0 | K42: =SUM(K5:K41) -> 0
G43: % of Total | J43: =J42/H42 -> 0 | K43: =K42/H42 -> 0

Sheet Tailings
A1: 1 | B1: Tailings Impoundment Name: | G1: Pond # | H1: 1
B3: ACTIVITY/MATERIAL | C3: Notes | D3: Units | E3: Quantity | F3: Cost Code | G3: Unit Cost | H3: Cost | I3: % Land | J3: Land Cost | K3: Water Cost
B4: CONTROL ACCESS
B5: Fence | D5: m | F5: =NA() ->  | G5: =IF(ISNA(F5),0,INDEX(IF(RIGHT(F5,1)="A",unitcostaverage,IF(RIGHT(F5,1)="L",UnitCostLow, IF(RIGHT(F5,1)="H",UnitCostHigh,UnitCostSpecified))),MATCH(LEFT(F5,LEN(F5)-1),CostCode,0))) -> 0 | H5: =G5*E5 -> 0 | J5: =H5*I5 -> 0 | K5: =H5-J5 -> 0
B6: Signs | D6: each | F6: =NA() ->  | G6: =IF(ISNA(F6),0,INDEX(IF(RIGHT(F6,1)="A",unitcostaverage,IF(RIGHT(F6,1)="L",UnitCostLow, IF(RIGHT(F6,1)="H",UnitCostHigh,UnitCostSpecified))),MATCH(LEFT(F6,LEN(F6)-1),CostCode,0))) -> 0 | H6: =G6*E6 -> 0 | J6: 0 | K6: 0
B7: Berm | D7: m3 | F7: =NA() ->  | G7: =IF(ISNA(F7),0,INDEX(IF(RIGHT(F7,1)="A",unitcostaverage,IF(RIGHT(F7,1)="L",UnitCostLow, IF(RIGHT(F7,1)="H",UnitCostHigh,UnitCostSpecified))),MATCH(LEFT(F7,LEN(F7)-1),CostCode,0))) -> 0 | H7: =G7*E7 -> 0 | J7: 0 | K7: 0
B8: Block roads | D8: m3 | F8: =NA() ->  | G8: =IF(ISNA(F8),0,INDEX(IF(RIGHT(F8,1)="A",unitcostaverage,IF(RIGHT(F8,1)="L",UnitCostLow, IF(RIGHT(F8,1)="H",UnitCostHigh,UnitCostSpecified))),MATCH(LEFT(F8,LEN(F8)-1),CostCode,0))) -> 0 | H8: =G8*E8 -> 0 | J8: 0 | K8: 0
B9: Other | F9: =NA() ->  | G9: =IF(ISNA(F9),0,INDEX(IF(RIGHT(F9,1)="A",unitcostaverage,IF(RIGHT(F9,1)="L",UnitCostLow, IF(RIGHT(F9,1)="H",UnitCostHigh,UnitCostSpecified))),MATCH(LEFT(F9,LEN(F9)-1),CostCode,0))) -> 0 | H9: =G9*E9 -> 0 | J9: 0 | K9: 0
B10: STABILIZE EMBANKMENT(S)
B11: Toe buttress, drainage layer | D11: m3 | F11: =NA() ->  | G11: =IF(ISNA(F11),0,INDEX(IF(RIGHT(F11,1)="A",unitcostaverage,IF(RIGHT(F11,1)="L",UnitCostLow, IF(RIGHT(F11,1)="H",UnitCostHigh,UnitCostSpecified))),MATCH(LEFT(F11,LEN(F11)-1),CostCode,0))) -> 0 | H11: =G11*E11 -> 0 | J11: =H11*I11 -> 0 | K11: =H11-J11 -> 0
B12: Toe buttress, bulk fill | D12: m3 | F12: =NA() ->  | G12: 0 | H12: 0 | J12: 0 | K12: 0
B13: Rip rap | D13: m3 | F13: =NA() ->  | G13: 0 | H13: 0 | J13: 0 | K13: 0
B14: Vegetate | D14: ha | F14: =NA() ->  | G14: 0 | H14: 0 | J14: 0 | K14: 0
B15: Raise crest | D15: m3 | F15: =NA() ->  | G15: 0 | H15: 0 | J15: 0 | K15: 0
B16: Flatten slopes | D16: m3 | F16: =NA() ->  | G16: 0 | H16: 0 | J16: 0 | K16: 0
B17: Other | F17: =NA() ->  | G17: 0 | H17: 0 | J17: 0 | K17: 0
B18: COVER TAILINGS
B19: Grade/shape tailings surface | D19: m3 | F19: =NA() ->  | G19: =IF(ISNA(F19),0,INDEX(IF(RIGHT(F19,1)="A",unitcostaverage,IF(RIGHT(F19,1)="L",UnitCostLow, IF(RIGHT(F19,1)="H",UnitCostHigh,UnitCostSpecified))),MATCH(LEFT(F19,LEN(F19)-1),CostCode,0))) -> 0 | H19: =G19*E19 -> 0 | J19: =H19*I19 -> 0 | K19: =H19-J19 -> 0
B20: Liner bedding | D20: m3 | F20: =NA() ->  | G20: 0 | H20: =G20*E20 -> 0 | J20: =H20*I20 -> 0 | K20: =H20-J20 -> 0
B21: Subgrade preparation - compact | D21: m2 | F21: =NA() ->  | G21: 0 | H21: =G21*E21 -> 0 | J21: 0 | K21: 0
B22: Supply geotextile/geosynthetic | D22: m2 | F22: =NA() ->  | G22: 0 | H22: 0 | J22: 0 | K22: 0
B23: Install geotextile/geosynthetic | D23: m2 | F23: =NA() ->  | G23: 0 | H23: =G23*E23 -> 0 | J23: 0 | K23: 0
B24: Soil cover | D24: m3 | F24: =NA() ->  | G24: 0 | H24: 0 | J24: 0 | K24: 0
B25: Rock cover | D25: m3 | F25: =NA() ->  | G25: 0 | H25: =G25*E25 -> 0 | J25: 0 | K25: 0
B26: Vegetate | D26: m2 | F26: =NA() ->  | G26: 0 | H26: 0 | J26: 0 | K26: 0
B27: Other | F27: =NA() ->  | G27: 0 | H27: =G27*E27 -> 0 | J27: 0 | K27: 0
B28: BURY PAG ROCK
B29: Relocate PAG rock | D29: m3 | F29: =NA() ->  | G29: =IF(ISNA(F29),0,INDEX(IF(RIGHT(F29,1)="A",unitcostaverage,IF(RIGHT(F29,1)="L",UnitCostLow, IF(RIGHT(F29,1)="H",UnitCostHigh,UnitCostSpecified))),MATCH(LEFT(F29,LEN(F29)-1),CostCode,0))) -> 0 | H29: =G29*E29 -> 0 | J29: =H29*I29 -> 0 | K29: =H29-J29 -> 0
B30: Place cover over PAG rock | D30: m3 | F30: =NA() ->  | G30: =IF(ISNA(F30),0,INDEX(IF(RIGHT(F30,1)="A",unitcostaverage,IF(RIGHT(F30,1)="L",UnitCostLow, IF(RIGHT(F30,1)="H",UnitCostHigh,UnitCostSpecified))),MATCH(LEFT(F30,LEN(F30)-1),CostCode,0))) -> 0 | H30: =G30*E30 -> 0 | J30: 0 | K30: 0
B31: Raise crest of dam | D31: m3 | F31: =NA() ->  | G31: =IF(ISNA(F31),0,INDEX(IF(RIGHT(F31,1)="A",unitcostaverage,IF(RIGHT(F31,1)="L",UnitCostLow, IF(RIGHT(F31,1)="H",UnitCostHigh,UnitCostSpecified))),MATCH(LEFT(F31,LEN(F31)-1),CostCode,0))) -> 0 | H31: =G31*E31 -> 0 | J31: 0 | K31: 0
B32: Other | F32: =NA() ->  | G32: =IF(ISNA(F32),0,INDEX(IF(RIGHT(F32,1)="A",unitcostaverage,IF(RIGHT(F32,1)="L",UnitCostLow, IF(RIGHT(F32,1)="H",UnitCostHigh,UnitCostSpecified))),MATCH(LEFT(F32,LEN(F32)-1),CostCode,0))) -> 0 | H32: =G32*E32 -> 0 | J32: 0 | K32: 0
B33: STABILIZE DECANT SYSTEM
B34: Excavate and replace | D34: m3 | F34: =NA() ->  | G34: =IF(ISNA(F34),0,INDEX(IF(RIGHT(F34,1)="A",unitcostaverage,IF(RIGHT(F34,1)="L",UnitCostLow, IF(RIGHT(F34,1)="H",UnitCostHigh,UnitCostSpecified))),MATCH(LEFT(F34,LEN(F34)-1),CostCode,0))) -> 0 | H34: =G34*E34 -> 0 | J34: =H34*I34 -> 0 | K34: =H34-J34 -> 0
B35: Plug/backfill with concrete or clay | D35: m3 | F35: =NA() ->  | G35: =IF(ISNA(F35),0,INDEX(IF(RIGHT(F35,1)="A",unitcostaverage,IF(RIGHT(F35,1)="L",UnitCostLow, IF(RIGHT(F35,1)="H",UnitCostHigh,UnitCostSpecified))),MATCH(LEFT(F35,LEN(F35)-1),CostCode,0))) -> 0 | H35: =G35*E35 -> 0 | J35: 0 | K35: 0
B36: Other | F36: =NA() ->  | G36: =IF(ISNA(F36),0,INDEX(IF(RIGHT(F36,1)="A",unitcostaverage,IF(RIGHT(F36,1)="L",UnitCostLow, IF(RIGHT(F36,1)="H",UnitCostHigh,UnitCostSpecified))),MATCH(LEFT(F36,LEN(F36)-1),CostCode,0))) -> 0 | H36: =G36*E36 -> 0 | J36: 0 | K36: 0
B37: REMOVE TAILINGS DISCHARGE
B38: Cyclones | D38: m3 | F38: =NA() ->  | G38: =IF(ISNA(F38),0,INDEX(IF(RIGHT(F38,1)="A",unitcostaverage,IF(RIGHT(F38,1)="L",UnitCostLow, IF(RIGHT(F38,1)="H",UnitCostHigh,UnitCostSpecified))),MATCH(LEFT(F38,LEN(F38)-1),CostCode,0))) -> 0 | H38: =G38*E38 -> 0 | J38: =H38*I38 -> 0 | K38: =H38-J38 -> 0
B39: Pipe | D39: m3 | F39: =NA() ->  | G39: =IF(ISNA(F39),0,INDEX(IF(RIGHT(F39,1)="A",unitcostaverage,IF(RIGHT(F39,1)="L",UnitCostLow, IF(RIGHT(F39,1)="H",UnitCostHigh,UnitCostSpecified))),MATCH(LEFT(F39,LEN(F39)-1),CostCode,0))) -> 0 | H39: =G39*E39 -> 0 | J39: 0 | K39: 0
B40: Remove reclaim barge | D40: allow | F40: =NA() ->  | G40: =IF(ISNA(F40),0,INDEX(IF(RIGHT(F40,1)="A",unitcostaverage,IF(RIGHT(F40,1)="L",UnitCostLow, IF(RIGHT(F40,1)="H",UnitCostHigh,UnitCostSpecified))),MATCH(LEFT(F40,LEN(F40)-1),CostCode,0))) -> 0 | H40: =G40*E40 -> 0 | J40: 0 | K40: 0
B41: CONSTRUCT DIVERSION DITCHES
B42: Excavate ditches -soil | D42: m3 | F42: =NA() ->  | G42: =IF(ISNA(F42),0,INDEX(IF(RIGHT(F42,1)="A",unitcostaverage,IF(RIGHT(F42,1)="L",UnitCostLow, IF(RIGHT(F42,1)="H",UnitCostHigh,UnitCostSpecified))),MATCH(LEFT(F42,LEN(F42)-1),CostCode,0))) -> 0 | H42: =G42*E42 -> 0 | J42: =H42*I42 -> 0 | K42: =H42-J42 -> 0
B43: Excavate ditches -rock | D43: m3 | F43: =NA() ->  | G43: =IF(ISNA(F43),0,INDEX(IF(RIGHT(F43,1)="A",unitcostaverage,IF(RIGHT(F43,1)="L",UnitCostLow, IF(RIGHT(F43,1)="H",UnitCostHigh,UnitCostSpecified))),MATCH(LEFT(F43,LEN(F43)-1),CostCode,0))) -> 0 | H43: =G43*E43 -> 0 | J43: 0 | K43: 0
B44: Rip rap in channel base | D44: m3 | F44: =NA() ->  | G44: =IF(ISNA(F44),0,INDEX(IF(RIGHT(F44,1)="A",unitcostaverage,IF(RIGHT(F44,1)="L",UnitCostLow, IF(RIGHT(F44,1)="H",UnitCostHigh,UnitCostSpecified))),MATCH(LEFT(F44,LEN(F44)-1),CostCode,0))) -> 0 | H44: =G44*E44 -> 0 | J44: 0 | K44: 0
B45: FLOOD TAILINGS
B46: Doze tailings to final contour | D46: m3 | F46: =NA() ->  | G46: =IF(ISNA(F46),0,INDEX(IF(RIGHT(F46,1)="A",unitcostaverage,IF(RIGHT(F46,1)="L",UnitCostLow, IF(RIGHT(F46,1)="H",UnitCostHigh,UnitCostSpecified))),MATCH(LEFT(F46,LEN(F46)-1),CostCode,0))) -> 0 | H46: =G46*E46 -> 0 | J46: =H46*I46 -> 0 | K46: =H46-J46 -> 0
B47: Raise crest of dam | D47: m3 | F47: =NA() ->  | G47: =IF(ISNA(F47),0,INDEX(IF(RIGHT(F47,1)="A",unitcostaverage,IF(RIGHT(F47,1)="L",UnitCostLow, IF(RIGHT(F47,1)="H",UnitCostHigh,UnitCostSpecified))),MATCH(LEFT(F47,LEN(F47)-1),CostCode,0))) -> 0 | H47: =G47*E47 -> 0 | J47: 0 | K47: 0
B48: Other | F48: =NA() ->  | G48: =IF(ISNA(F48),0,INDEX(IF(RIGHT(F48,1)="A",unitcostaverage,IF(RIGHT(F48,1)="L",UnitCostLow, IF(RIGHT(F48,1)="H",UnitCostHigh,UnitCostSpecified))),MATCH(LEFT(F48,LEN(F48)-1),CostCode,0))) -> 0 | H48: =G48*E48 -> 0 | J48: 0 | K48: 0
B49: UPGRADE SPILLWAY
B50: Excavate channel, rock | D50: m3 | F50: =NA() ->  | G50: =IF(ISNA(F50),0,INDEX(IF(RIGHT(F50,1)="A",unitcostaverage,IF(RIGHT(F50,1)="L",UnitCostLow, IF(RIGHT(F50,1)="H",UnitCostHigh,UnitCostSpecified))),MATCH(LEFT(F50,LEN(F50)-1),CostCode,0))) -> 0 | H50: =G50*E50 -> 0 | J50: =H50*I50 -> 0 | K50: =H50-J50 -> 0
B51: Excavate channel, soil | D51: m3 | F51: =NA() ->  | G51: =IF(ISNA(F51),0,INDEX(IF(RIGHT(F51,1)="A",unitcostaverage,IF(RIGHT(F51,1)="L",UnitCostLow, IF(RIGHT(F51,1)="H",UnitCostHigh,UnitCostSpecified))),MATCH(LEFT(F51,LEN(F51)-1),CostCode,0))) -> 0 | H51: =G51*E51 -> 0 | J51: 0 | K51: 0
B52: Concrete | D52: m3 | F52: =NA() ->  | G52: =IF(ISNA(F52),0,INDEX(IF(RIGHT(F52,1)="A",unitcostaverage,IF(RIGHT(F52,1)="L",UnitCostLow, IF(RIGHT(F52,1)="H",UnitCostHigh,UnitCostSpecified))),MATCH(LEFT(F52,LEN(F52)-1),CostCode,0))) -> 0 | H52: =G52*E52 -> 0 | J52: 0 | K52: 0
B53: Rip rap | D53: m3 | F53: =NA() ->  | G53: =IF(ISNA(F53),0,INDEX(IF(RIGHT(F53,1)="A",unitcostaverage,IF(RIGHT(F53,1)="L",UnitCostLow, IF(RIGHT(F53,1)="H",UnitCostHigh,UnitCostSpecified))),MATCH(LEFT(F53,LEN(F53)-1),CostCode,0))) -> 0 | H53: =G53*E53 -> 0 | J53: 0 | K53: 0
B54: Other | F54: =NA() ->  | G54: =IF(ISNA(F54),0,INDEX(IF(RIGHT(F54,1)="A",unitcostaverage,IF(RIGHT(F54,1)="L",UnitCostLow, IF(RIGHT(F54,1)="H",UnitCostHigh,UnitCostSpecified))),MATCH(LEFT(F54,LEN(F54)-1),CostCode,0))) -> 0 | H54: =G54*E54 -> 0 | J54: 0 | K54: 0
B55: CONSTRUCT SEEPAGE COLLECTION POND
B56: Excavate seepage collection pond | D56: m3 | F56: =NA() ->  | G56: =IF(ISNA(F56),0,INDEX(IF(RIGHT(F56,1)="A",unitcostaverage,IF(RIGHT(F56,1)="L",UnitCostLow, IF(RIGHT(F56,1)="H",UnitCostHigh,UnitCostSpecified))),MATCH(LEFT(F56,LEN(F56)-1),CostCode,0))) -> 0 | H56: =G56*E56 -> 0 | J56: =H56*I56 -> 0 | K56: =H56-J56 -> 0
B57: Doze & spread excavated material | D57: m3 | F57: =NA() ->  | G57: 0 | H57: 0 | J57: 0 | K57: 0
B58: Vegetate spread material | D58: ha | F58: =NA() ->  | G58: 0 | H58: 0 | J58: 0 | K58: 0
B59: Bedding layer | D59: m3 | F59: =NA() ->  | G59: 0 | H59: 0 | J59: 0 | K59: 0
B60: Supply geomembrane | D60: m2 | F60: =NA() ->  | G60: 0 | H60: 0 | J60: 0 | K60: 0
B61: Install geomembrane | D61: m2 | F61: =NA() ->  | G61: 0 | H61: 0 | J61: 0 | K61: 0
B62: Erosion protection layer | D62: m3 | F62: =NA() ->  | G62: 0 | H62: 0 | J62: 0 | K62: 0
B63: INSTALL GROUNDWATER COLLECTION SYSTEM
B64: Excavate/install sumps | D64: m3 | F64: =NA() ->  | G64: =IF(ISNA(F64),0,INDEX(IF(RIGHT(F64,1)="A",unitcostaverage,IF(RIGHT(F64,1)="L",UnitCostLow, IF(RIGHT(F64,1)="H",UnitCostHigh,UnitCostSpecified))),MATCH(LEFT(F64,LEN(F64)-1),CostCode,0))) -> 0 | H64: =G64*E64 -> 0 | J64: =H64*I64 -> 0 | K64: =H64-J64 -> 0
B65: Install pumping wells | D65: m3 | F65: =NA() ->  | G65: =IF(ISNA(F65),0,INDEX(IF(RIGHT(F65,1)="A",unitcostaverage,IF(RIGHT(F65,1)="L",UnitCostLow, IF(RIGHT(F65,1)="H",UnitCostHigh,UnitCostSpecified))),MATCH(LEFT(F65,LEN(F65)-1),CostCode,0))) -> 0 | H65: =G65*E65 -> 0 | J65: 0 | K65: 0
B66: Install pumps/pipelines/power supply | D66: LS | F66: =NA() ->  | G66: =IF(ISNA(F66),0,INDEX(IF(RIGHT(F66,1)="A",unitcostaverage,IF(RIGHT(F66,1)="L",UnitCostLow, IF(RIGHT(F66,1)="H",UnitCostHigh,UnitCostSpecified))),MATCH(LEFT(F66,LEN(F66)-1),CostCode,0))) -> 0 | H66: =G66*E66 -> 0 | J66: 0 | K66: 0
B67: SPECIALIZED ITEMS
B68: Install permanent instrumentation, supply & technician | D68: each | F68: =NA() ->  | G68: =IF(ISNA(F68),0,INDEX(IF(RIGHT(F68,1)="A",unitcostaverage,IF(RIGHT(F68,1)="L",UnitCostLow, IF(RIGHT(F68,1)="H",UnitCostHigh,UnitCostSpecified))),MATCH(LEFT(F68,LEN(F68)-1),CostCode,0))) -> 0 | H68: =G68*E68 -> 0 | J68: =H68*I68 -> 0 | K68: =H68-J68 -> 0
B69: Install permanent instrumentation, drilling | D69: each | F69: =NA() ->  | G69: =IF(ISNA(F69),0,INDEX(IF(RIGHT(F69,1)="A",unitcostaverage,IF(RIGHT(F69,1)="L",UnitCostLow, IF(RIGHT(F69,1)="H",UnitCostHigh,UnitCostSpecified))),MATCH(LEFT(F69,LEN(F69)-1),CostCode,0))) -> 0 | H69: =G69*E69 -> 0 | J69: 0 | K69: 0
B70: TREAT SEEPAGE - see "Water Management" *
B71: Total water treatment cost | G71: Total treatment costs | H71: ='Water Treatment'!P36 -> 0 | K71: =H71 -> 0
G72: Total | H72: =SUM(H5:H69)+H71+0.0001 -> 0.0001 | J72: =SUM(J5:J69)+J71 -> 0 | K72: =SUM(K5:K69)+K71 -> 0
G73: % of Total | J73: =J72/H72 -> 0 | K73: =K72/H72 -> 0
B75: * For construction of passive or temporary treatment system refer to "Water Management". ARD/ML seepage treatment becomes post-closure water treatment cost

Sheet Rock Pile
A1: 1 | B1: Rock Pile Name: | G1: Rock Pile # | H1: 1
B3: ACTIVITY/MATERIAL | C3: Notes | D3: Units | E3: Quantity | F3: Cost Code | G3: Unit Cost | H3: Cost | I3: % Land | J3: Land Cost | K3: Water Cost
B4: STABILIZE SLOPES
B5: Flatten slopes with dozer | D5: m3 | F5: =NA() ->  | G5: =IF(ISNA(F5),0,INDEX(IF(RIGHT(F5,1)="A",unitcostaverage,IF(RIGHT(F5,1)="L",UnitCostLow, IF(RIGHT(F5,1)="H",UnitCostHigh,UnitCostSpecified))),MATCH(LEFT(F5,LEN(F5)-1),CostCode,0))) -> 0 | H5: =G5*E5 -> 0 | J5: =H5*I5 -> 0 | K5: =+H5*(1-I5) -> 0
B6: Flatten "bubble dump" areas | D6: m3 | F6: =NA() ->  | G6: 0 | H6: 0 | J6: 0 | K6: 0
B7: Divert runon, ditch mat'l A | D7: m3 | F7: =NA() ->  | G7: 0 | H7: 0 | J7: 0 | K7: 0
B8: Divert runon, ditch mat'l B | D8: m3 | F8: =NA() ->  | G8: 0 | H8: 0 | J8: 0 | K8: 0
B9: Toe buttress, drain mat'l | D9: m3 | F9: =NA() ->  | G9: 0 | H9: 0 | J9: 0 | K9: 0
B10: Toe buttress, fill mat'l A | D10: m3 | F10: =NA() ->  | G10: 0 | H10: 0 | J10: 0 | K10: 0
B11: Toe buttress, fill mat'l B | D11: m3 | F11: =NA() ->  | G11: 0 | H11: 0 | J11: 0 | K11: 0
B12: Other | F12: =NA() ->  | G12: 0 | H12: 0 | J12: 0 | K12: 0
B13: COVER ROCK PILE
B14: Subgrade preparation - doze surface | D14: m3 | F14: =NA() ->  | G14: =IF(ISNA(F14),0,INDEX(IF(RIGHT(F14,1)="A",unitcostaverage,IF(RIGHT(F14,1)="L",UnitCostLow, IF(RIGHT(F14,1)="H",UnitCostHigh,UnitCostSpecified))),MATCH(LEFT(F14,LEN(F14)-1),CostCode,0))) -> 0 | H14: =G14*E14 -> 0 | J14: =H14*I14 -> 0 | K14: =+H14*(1-I14) -> 0
B15: Soil cover - excavate,haul,spread&compact | D15: m3 | F15: =NA() ->  | G15: 0 | H15: 0 | J15: 0 | K15: 0
B16: Rock cover - excavate,haul & spread | D16: m3 | F16: =NA() ->  | G16: 0 | H16: 0 | J16: 0 | K16: 0
B17: Excavate downslope drainage channel & chute | D17: m3 | F17: =NA() ->  | G17: 0 | H17: 0 | J17: 0 | K17: 0
B18: Rip rap drainage channel and chute | D18: m3 | F18: =NA() ->  | G18: 0 | H18: 0 | J18: 0 | K18: 0
B19: Vegetate | D19: ha | F19: =NA() ->  | G19: 0 | H19: 0 | J19: 0 | K19: 0
B20: Other | F20: =NA() ->  | G20: 0 | H20: 0 | J20: 0 | K20: 0
B21: VERY LOW PERMEABILITY COVER (in addition to above)
B22: Liner subgrade preparation - compact | D22: m3 | F22: =NA() ->  | G22: =IF(ISNA(F22),0,INDEX(IF(RIGHT(F22,1)="A",unitcostaverage,IF(RIGHT(F22,1)="L",UnitCostLow, IF(RIGHT(F22,1)="H",UnitCostHigh,UnitCostSpecified))),MATCH(LEFT(F22,LEN(F22)-1),CostCode,0))) -> 0 | H22: =G22*E22 -> 0 | J22: =H22*I22 -> 0 | K22: =+H22*(1-I22) -> 0
B23: Supply geomembrane | D23: m2 | F23: =NA() ->  | G23: 0 | H23: =G23*E23 -> 0 | J23: 0 | K23: 0
B24: Install geomembrane | D24: m2 | F24: =NA() ->  | G24: 0 | H24: =G24*E24 -> 0 | J24: 0 | K24: 0
B25: Protective cover - excavate,haul,spread&compact | D25: m3 | F25: =NA() ->  | G25: 0 | H25: 0 | J25: 0 | K25: 0
B26: Vegetate | D26: ha | F26: =NA() ->  | G26: 0 | H26: 0 | J26: 0 | K26: 0
B27: Install infiltration/seepage instrumentation | D27: allow | F27: =NA() ->  | G27: 0 | H27: 0 | J27: 0 | K27: 0
B28: CONSTRUCT DIVERSION DITCHES
B29: Excavate ditches -soil | D29: m3 | F29: =NA() ->  | G29: =IF(ISNA(F29),0,INDEX(IF(RIGHT(F29,1)="A",unitcostaverage,IF(RIGHT(F29,1)="L",UnitCostLow, IF(RIGHT(F29,1)="H",UnitCostHigh,UnitCostSpecified))),MATCH(LEFT(F29,LEN(F29)-1),CostCode,0))) -> 0 | H29: =G29*E29 -> 0 | J29: =H29*I29 -> 0 | K29: =+H29*(1-I29) -> 0
B30: Excavate ditches -rock | D30: m3 | F30: =NA() ->  | G30: =IF(ISNA(F30),0,INDEX(IF(RIGHT(F30,1)="A",unitcostaverage,IF(RIGHT(F30,1)="L",UnitCostLow, IF(RIGHT(F30,1)="H",UnitCostHigh,UnitCostSpecified))),MATCH(LEFT(F30,LEN(F30)-1),CostCode,0))) -> 0 | H30: =G30*E30 -> 0 | J30: =H30*I30 -> 0 | K30: =+H30*(1-I30) -> 0
B31: Rip rap in channel base | D31: m3 | F31: =NA() ->  | G31: =IF(ISNA(F31),0,INDEX(IF(RIGHT(F31,1)="A",unitcostaverage,IF(RIGHT(F31,1)="L",UnitCostLow, IF(RIGHT(F31,1)="H",UnitCostHigh,UnitCostSpecified))),MATCH(LEFT(F31,LEN(F31)-1),CostCode,0))) -> 0 | H31: =G31*E31 -> 0 | J31: =H31*I31 -> 0 | K31: =+H31*(1-I31) -> 0
B32: CONSTRUCT SEEPAGE COLLECTION POND
B33: Excavate seepage collection pond | D33: m3 | F33: =NA() ->  | G33: =IF(ISNA(F33),0,INDEX(IF(RIGHT(F33,1)="A",unitcostaverage,IF(RIGHT(F33,1)="L",UnitCostLow, IF(RIGHT(F33,1)="H",UnitCostHigh,UnitCostSpecified))),MATCH(LEFT(F33,LEN(F33)-1),CostCode,0))) -> 0 | H33: 0 | J33: =H33*I33 -> 0 | K33: =+H33*(1-I33) -> 0
B34: Doze & spread excavated material | D34: m3 | F34: =NA() ->  | G34: 0 | H34: 0 | J34: 0 | K34: 0
B35: Vegetate spread material | D35: ha | F35: =NA() ->  | G35: 0 | H35: 0 | J35: 0 | K35: 0
B36: Bedding layer | D36: m3 | F36: =NA() ->  | G36: 0 | H36: 0 | J36: 0 | K36: 0
B37: Supply geomembrane | D37: m2 | F37: =NA() ->  | G37: 0 | H37: 0 | J37: 0 | K37: 0
B38: Install geomembrane | D38: m2 | F38: =NA() ->  | G38: 0 | H38: 0 | J38: 0 | K38: 0
B39: Erosion protection layer | D39: m3 | F39: =NA() ->  | G39: 0 | H39: 0 | J39: 0 | K39: 0
B40: INSTALL GROUNDWATER COLLECTION SYSTEM
B41: Excavate/install sumps | D41: m3 | F41: =NA() ->  | G41: =IF(ISNA(F41),0,INDEX(IF(RIGHT(F41,1)="A",unitcostaverage,IF(RIGHT(F41,1)="L",UnitCostLow, IF(RIGHT(F41,1)="H",UnitCostHigh,UnitCostSpecified))),MATCH(LEFT(F41,LEN(F41)-1),CostCode,0))) -> 0 | H41: =G41*E41 -> 0 | J41: =H41*I41 -> 0 | K41: =+H41*(1-I41) -> 0
B42: Install pumping wells | D42: m3 | F42: =NA() ->  | G42: =IF(ISNA(F42),0,INDEX(IF(RIGHT(F42,1)="A",unitcostaverage,IF(RIGHT(F42,1)="L",UnitCostLow, IF(RIGHT(F42,1)="H",UnitCostHigh,UnitCostSpecified))),MATCH(LEFT(F42,LEN(F42)-1),CostCode,0))) -> 0 | H42: =G42*E42 -> 0 | J42: =H42*I42 -> 0 | K42: =+H42*(1-I42) -> 0
B43: Install pumps/pipelines/power supply | D43: allow | F43: =NA() ->  | G43: =IF(ISNA(F43),0,INDEX(IF(RIGHT(F43,1)="A",unitcostaverage,IF(RIGHT(F43,1)="L",UnitCostLow, IF(RIGHT(F43,1)="H",UnitCostHigh,UnitCostSpecified))),MATCH(LEFT(F43,LEN(F43)-1),CostCode,0))) -> 0 | H43: =G43*E43 -> 0 | J43: =H43*I43 -> 0 | K43: =+H43*(1-I43) -> 0
B44: RELOCATE DUMPS
B45: Load, haul, dump or doze | D45: m3 | F45: =NA() ->  | G45: =IF(ISNA(F45),0,INDEX(IF(RIGHT(F45,1)="A",unitcostaverage,IF(RIGHT(F45,1)="L",UnitCostLow, IF(RIGHT(F45,1)="H",UnitCostHigh,UnitCostSpecified))),MATCH(LEFT(F45,LEN(F45)-1),CostCode,0))) -> 0 | H45: =G45*E45 -> 0 | J45: =H45*I45 -> 0 | K45: =+H45*(1-I45) -> 0
B46: Add lime | D46: tonne | F46: =NA() ->  | G46: =IF(ISNA(F46),0,INDEX(IF(RIGHT(F46,1)="A",unitcostaverage,IF(RIGHT(F46,1)="L",UnitCostLow, IF(RIGHT(F46,1)="H",UnitCostHigh,UnitCostSpecified))),MATCH(LEFT(F46,LEN(F46)-1),CostCode,0))) -> 0 | H46: =G46*E46 -> 0 | J46: =H46*I46 -> 0 | K46: =+H46*(1-I46) -> 0
B47: Contour reclaimed area | D47: ha | F47: =NA() ->  | G47: =IF(ISNA(F47),0,INDEX(IF(RIGHT(F47,1)="A",unitcostaverage,IF(RIGHT(F47,1)="L",UnitCostLow, IF(RIGHT(F47,1)="H",UnitCostHigh,UnitCostSpecified))),MATCH(LEFT(F47,LEN(F47)-1),CostCode,0))) -> 0 | H47: =G47*E47 -> 0 | J47: =H47*I47 -> 0 | K47: =+H47*(1-I47) -> 0
B48: Other | F48: =NA() ->  | G48: =IF(ISNA(F48),0,INDEX(IF(RIGHT(F48,1)="A",unitcostaverage,IF(RIGHT(F48,1)="L",UnitCostLow, IF(RIGHT(F48,1)="H",UnitCostHigh,UnitCostSpecified))),MATCH(LEFT(F48,LEN(F48)-1),CostCode,0))) -> 0 | H48: =G48*E48 -> 0 | J48: =H48*I48 -> 0 | K48: =+H48*(1-I48) -> 0
B49: SPECIALIZED ITEMS
B50: Install permanent instrumentation | D50: each | F50: =NA() ->  | G50: =IF(ISNA(F50),0,INDEX(IF(RIGHT(F50,1)="A",unitcostaverage,IF(RIGHT(F50,1)="L",UnitCostLow, IF(RIGHT(F50,1)="H",UnitCostHigh,UnitCostSpecified))),MATCH(LEFT(F50,LEN(F50)-1),CostCode,0))) -> 0 | H50: =G50*E50 -> 0 | J50: =H50*I50 -> 0 | K50: =+H50*(1-I50) -> 0
B51: Install permanent instrumentation, drilling | D51: each | F51: =NA() ->  | G51: =IF(ISNA(F51),0,INDEX(IF(RIGHT(F51,1)="A",unitcostaverage,IF(RIGHT(F51,1)="L",UnitCostLow, IF(RIGHT(F51,1)="H",UnitCostHigh,UnitCostSpecified))),MATCH(LEFT(F51,LEN(F51)-1),CostCode,0))) -> 0 | H51: =G51*E51 -> 0 | J51: =H51*I51 -> 0 | K51: =+H51*(1-I51) -> 0
G52: Total | H52: =SUM(H5:H51)+0.0001 -> 0.0001 | J52: =SUM(J5:J51) -> 0 | K52: =SUM(K5:K51) -> 0
G53: % of Total | J53: =J52/H52 -> 0 | K53: =K52/H52 -> 0
B55: * For construction of passive treatment system refer to "Water Management". ARD/ML seepage treatment becomes post-closure water treatment cost

Sheet Bldgs & Equip
A1: 1 | B1: Building / Equip Name: | G1: Bldg / Equip #: | H1: 1
B3: ACTIVITY/MATERIAL | C3: Notes | D3: Units | E3: Quantity | F3: Cost Code | G3: Unit Cost | H3: Cost | I3: % Land | J3: Land Cost | K3: Water Cost
B4: DISPOSE MOBILE EQUIPMENT
B5: Decontaminate and ship off-site | D5: allow | F5: =NA() ->  | G5: =IF(ISNA(F5),0,INDEX(IF(RIGHT(F5,1)="A",unitcostaverage,IF(RIGHT(F5,1)="L",UnitCostLow, IF(RIGHT(F5,1)="H",UnitCostHigh,UnitCostSpecified))),MATCH(LEFT(F5,LEN(F5)-1),CostCode,0))) -> 0 | H5: =G5*E5 -> 0 | J5: =H5*I5 -> 0 | K5: =+H5*(1-I5) -> 0
B6: Decontaminate and dispose on-site | D6: allow | F6: =NA() ->  | G6: =IF(ISNA(F6),0,INDEX(IF(RIGHT(F6,1)="A",unitcostaverage,IF(RIGHT(F6,1)="L",UnitCostLow, IF(RIGHT(F6,1)="H",UnitCostHigh,UnitCostSpecified))),MATCH(LEFT(F6,LEN(F6)-1),CostCode,0))) -> 0 | H6: =G6*E6 -> 0 | J6: =H6*I6 -> 0 | K6: =+H6*(1-I6) -> 0
B7: Other | F7: =NA() ->  | G7: =IF(ISNA(F7),0,INDEX(IF(RIGHT(F7,1)="A",unitcostaverage,IF(RIGHT(F7,1)="L",UnitCostLow, IF(RIGHT(F7,1)="H",UnitCostHigh,UnitCostSpecified))),MATCH(LEFT(F7,LEN(F7)-1),CostCode,0))) -> 0 | H7: =G7*E7 -> 0 | J7: 0 | K7: 0
B8: REMOVE BUILDINGS - see note below
B9: Accommodation Complex | D9: m2 | F9: =NA() ->  | G9: =IF(ISNA(F9),0,INDEX(IF(RIGHT(F9,1)="A",unitcostaverage,IF(RIGHT(F9,1)="L",UnitCostLow, IF(RIGHT(F9,1)="H",UnitCostHigh,UnitCostSpecified))),MATCH(LEFT(F9,LEN(F9)-1),CostCode,0))) -> 0 | H9: =G9*E9 -> 0 | J9: 0 | K9: 0
B10: Process Facilities | D10: m2 | F10: =NA() ->  | G10: 0 | H10: 0 | J10: 0 | K10: 0
B11: Offices, Repair, Lab, Warehouse | D11: m2 | F11: =NA() ->  | G11: 0 | H11: 0 | J11: 0 | K11: 0
B12: Storage Facilities | D12: m2 | F12: =NA() ->  | G12: 0 | H12: 0 | J12: 0 | K12: 0
B13: Water and Wastewater Treatment Facilities | D13: m2 | F13: =NA() ->  | G13: 0 | H13: 0 | J13: 0 | K13: 0
B14: U/G Heating Plant | D14: m2 | F14: =NA() ->  | G14: 0 | H14: 0 | J14: 0 | K14: 0
B15: Emulsion Plant | D15: m2 | F15: =NA() ->  | G15: 0 | H15: 0 | J15: 0 | K15: 0
B16: AN Storage Facility | D16: m2 | F16: =NA() ->  | G16: 0 | H16: 0 | J16: =H16*I16 -> 0 | K16: =+H16*(1-I16) -> 0
B17: Warehouse, Shops and Other | D17: m2 | F17: =NA() ->  | G17: 0 | H17: 0 | J17: =H17*I17 -> 0 | K17: =+H17*(1-I17) -> 0
B18: Storage Facility at Laydown/Airstrip | D18: m2 | F18: =NA() ->  | G18: 0 | H18: 0 | J18: =H18*I18 -> 0 | K18: =+H18*(1-I18) -> 0
B19: Fuel tanks | D19: m2 | F19: =NA() ->  | G19: 0 | H19: 0 | J19: =H19*I19 -> 0 | K19: =+H19*(1-I19) -> 0
B20: Fuel Tanks | D20: m2 | F20: =NA() ->  | G20: 0 | H20: 0 | J20: =H20*I20 -> 0 | K20: =+H20*(1-I20) -> 0
B21: Freshwater intake | D21: m2 | F21: =NA() ->  | G21: 0 | H21: 0 | J21: 0 | K21: 0
B22: Reclaim pumps | D22: m2 | F22: =NA() ->  | G22: 0 | H22: 0 | J22: 0 | K22: 0
B23: Outfall & Diffuser | D23: m2 | F23: =NA() ->  | G23: 0 | H23: 0 | J23: 0 | K23: 0
B24: Airstrip lighting, navigation, electrician | D24: hr | F24: =NA() ->  | G24: 0 | H24: 0 | J24: 0 | K24: 0
B25: Airstrip lighting, navigation, mechanical | D25: hr | F25: =NA() ->  | G25: 0 | H25: 0 | J25: 0 | K25: 0
B26: Break foundation slabs | D26: m3 | F26: =NA() ->  | G26: 0 | H26: =G26*E26 -> 0 | J26: =H26*I26 -> 0 | K26: =+H26*(1-I26) -> 0
B27: Consolidate & dump boneyard debris | D27: m3 | F27: =NA() ->  | G27: 0 | H27: 0 | J27: 0 | K27: 0
B28: Other | F28: =NA() ->  | G28: 0 | H28: 0 | J28: 0 | K28: 0
B29: LANDFILL CONSTRUCTION
B30: Place rock cover | D30: m3 | F30: =NA() ->  | G30: =IF(ISNA(F30),0,INDEX(IF(RIGHT(F30,1)="A",unitcostaverage,IF(RIGHT(F30,1)="L",UnitCostLow, IF(RIGHT(F30,1)="H",UnitCostHigh,UnitCostSpecified))),MATCH(LEFT(F30,LEN(F30)-1),CostCode,0))) -> 0 | H30: =G30*E30 -> 0 | J30: =H30*I30 -> 0 | K30: =+H30*(1-I30) -> 0
B31: Place soil cover | D31: m3 | F31: =NA() ->  | G31: 0 | H31: =G31*E31 -> 0 | J31: 0 | K31: =+H31*(1-I31) -> 0
B32: Vegetate | D32: ha | F32: =NA() ->  | G32: 0 | H32: =G32*E32 -> 0 | J32: 0 | K32: 0
B33: Excavate soil | D33: m3 | F33: =NA() ->  | G33: 0 | H33: =G33*E33 -> 0 | J33: =H33*I33 -> 0 | K33: =+H33*(1-I33) -> 0
B34: Excavate rock | D34: m3 | F34: =NA() ->  | G34: 0 | H34: 0 | J34: 0 | K34: 0
B35: Install Bottom Liner | D35: ha | F35: =NA() ->  | G35: 0 | H35: 0 | J35: 0 | K35: 0
B36: Regrade | D36: ha | F36: =NA() ->  | G36: 0 | H36: 0 | J36: 0 | K36: 0
B37: Collection system | D37: m | F37: =NA() ->  | G37: 0 | H37: =G37*E37 -> 0 | J37: =H37*I37 -> 0 | K37: =+H37*(1-I37) -> 0
B38: Install Cover Liner | D38: ha | F38: =NA() ->  | G38: 0 | H38: 0 | J38: 0 | K38: 0
B39: Instrumentation | D39: each | F39: =NA() ->  | G39: 0 | H39: 0 | J39: 0 | K39: 0
B40: Other | F40: =NA() ->  | G40: 0 | H40: 0 | J40: 0 | K40: 0
B41: GRADE AND CONTOUR PADS
B42: Accommodation Complex | D42: m3 | F42: =NA() ->  | G42: =IF(ISNA(F42),0,INDEX(IF(RIGHT(F42,1)="A",unitcostaverage,IF(RIGHT(F42,1)="L",UnitCostLow, IF(RIGHT(F42,1)="H",UnitCostHigh,UnitCostSpecified))),MATCH(LEFT(F42,LEN(F42)-1),CostCode,0))) -> 0 | H42: =G42*E42 -> 0 | J42: 0 | K42: 0
B43: Process Facilities | D43: m3 | F43: =NA() ->  | G43: 0 | H43: 0 | J43: 0 | K43: 0
B44: Offices, Repair, Lab, Warehouse | D44: m3 | F44: =NA() ->  | G44: 0 | H44: 0 | J44: 0 | K44: 0
B45: Storage Facilities | D45: m3 | F45: =NA() ->  | G45: 0 | H45: 0 | J45: 0 | K45: 0
B46: Water and Wastewater Treatment Facilities | D46: m3 | F46: =NA() ->  | G46: 0 | H46: 0 | J46: 0 | K46: 0
B47: U/G Heating Plant | D47: m3 | F47: =NA() ->  | G47: 0 | H47: 0 | J47: 0 | K47: 0
B48: Emulsion Plant | D48: m3 | F48: =NA() ->  | G48: 0 | H48: 0 | J48: 0 | K48: 0
B49: Warehouse, Shops and Other | D49: m3 | F49: =NA() ->  | G49: 0 | H49: 0 | J49: 0 | K49: 0
B50: Place rock cover | D50: m3 | F50: =NA() ->  | G50: 0 | H50: 0 | J50: 0 | K50: 0
B51: Vegetate | D51: ha | F51: =NA() ->  | G51: 0 | H51: 0 | J51: 0 | K51: 0
B52: Other | F52: =NA() ->  | G52: 0 | H52: 0 | J52: 0 | K52: 0
B53: PUNCTURE LINED SUMPS
B54: Puncture liner and place soil cover | D54: m3 | F54: =NA() ->  | G54: =IF(ISNA(F54),0,INDEX(IF(RIGHT(F54,1)="A",unitcostaverage,IF(RIGHT(F54,1)="L",UnitCostLow, IF(RIGHT(F54,1)="H",UnitCostHigh,UnitCostSpecified))),MATCH(LEFT(F54,LEN(F54)-1),CostCode,0))) -> 0 | H54: =G54*E54 -> 0 | J54: =H54*I54 -> 0 | K54: =+H54*(1-I54) -> 0
B55: RECLAIM ROADS
B56: Remove culverts | D56: each | F56: =NA() ->  | G56: =IF(ISNA(F56),0,INDEX(IF(RIGHT(F56,1)="A",unitcostaverage,IF(RIGHT(F56,1)="L",UnitCostLow, IF(RIGHT(F56,1)="H",UnitCostHigh,UnitCostSpecified))),MATCH(LEFT(F56,LEN(F56)-1),CostCode,0))) -> 0 | H56: =G56*E56 -> 0 | J56: 0 | K56: 0
B57: Remove bridges | D57: each | F57: =NA() ->  | G57: 0 | H57: 0 | J57: 0 | K57: 0
B58: Scarify and install water breaks | D58: ha | F58: =NA() ->  | G58: 0 | H58: 0 | J58: 0 | K58: 0
B59: Scarify airstrip | D59: ha | F59: =NA() ->  | G59: 0 | H59: 0 | J59: 0 | K59: 0
B60: Scarify laydown areas | D60: ha | F60: =NA() ->  | G60: 0 | H60: 0 | J60: 0 | K60: 0
B61: Vegetate | D61: ha | F61: =NA() ->  | G61: 0 | H61: 0 | J61: =H61*I61 -> 0 | K61: 0
B62: Remove gates | D62: each | F62: =NA() ->  | G62: =IF(ISNA(F62),0,INDEX(IF(RIGHT(F62,1)="A",unitcostaverage,IF(RIGHT(F62,1)="L",UnitCostLow, IF(RIGHT(F62,1)="H",UnitCostHigh,UnitCostSpecified))),MATCH(LEFT(F62,LEN(F62)-1),CostCode,0))) -> 0 | H62: =G62*E62 -> 0 | J62: =H62*I62 -> 0 | K62: =+H62*(1-I62) -> 0
B63: Recontour road | D63: ha | F63: =NA() ->  | G63: 0 | H63: 0 | J63: 0 | K63: 0
B64: Other | F64: =NA() ->  | G64: 0 | H64: 0 | J64: =H64*I64 -> 0 | K64: 0
B65: SPECIALIZED ITEMS
B66: Dispose of misc. debris and laydown area refuse | F66: =NA() ->  | G66: =IF(ISNA(F66),0,INDEX(IF(RIGHT(F66,1)="A",unitcostaverage,IF(RIGHT(F66,1)="L",UnitCostLow, IF(RIGHT(F66,1)="H",UnitCostHigh,UnitCostSpecified))),MATCH(LEFT(F66,LEN(F66)-1),CostCode,0))) -> 0 | H66: =G66*E66 -> 0 | J66: =H66*I66 -> 0 | K66: 0
G67: Total | H67: =SUM(H5:H66)+0.0001 -> 0.0001 | J67: =SUM(J5:J66) -> 0 | K67: =SUM(K5:K66) -> 0
G68: % of Total | J68: =J67/H67 -> 0 | K68: =K67/H67 -> 0

Sheet Chemicals
A1: 1 | B1: Chemicals/Soil Area Name:
B3: Note: The procedures, equipment and packaging for clean up and removal of chemicals or contaminated soils are highly dependent on the nature of the chemicals and their existing state of containment. Government guidelines should be consulted on an individual chemical basis. Any estimate made here should be considered very rough unless specific evaluations have been conducted.
B4: ACTIVITY/MATERIAL | C4: Notes | D4: Units | E4: Quantity | F4: Cost Code | G4: Unit Cost | H4: Cost | I4: % Land | J4: Land Cost | K4: Water Cost
B5: HAZARDOUS MATERIALS AUDIT
B6: Hazardous materials audit | D6: hr | F6: =NA() ->  | G6: =IF(ISNA(F6),0,INDEX(IF(RIGHT(F6,1)="A",unitcostaverage,IF(RIGHT(F6,1)="L",UnitCostLow, IF(RIGHT(F6,1)="H",UnitCostHigh,UnitCostSpecified))),MATCH(LEFT(F6,LEN(F6)-1),CostCode,0))) -> 0 | H6: =G6*E6 -> 0 | J6: =H6*I6 -> 0 | K6: =+H6*(1-I6) -> 0
B7: BUILDING DECONTAMINATION & CONSOLIDATION OF HAZARDOUS MATERIALS
B8: Environmental technician/coordinator | D8: m2 | F8: =NA() ->  | G8: =IF(ISNA(F8),0,INDEX(IF(RIGHT(F8,1)="A",unitcostaverage,IF(RIGHT(F8,1)="L",UnitCostLow, IF(RIGHT(F8,1)="H",UnitCostHigh,UnitCostSpecified))),MATCH(LEFT(F8,LEN(F8)-1),CostCode,0))) -> 0 | H8: =G8*E8 -> 0 | J8: =H8*I8 -> 0 | K8: =+H8*(1-I8) -> 0
B9: Decontaminate: oil, fuel | D9: m2 | F9: =NA() ->  | G9: 0 | H9: 0 | J9: 0 | K9: 0
B10: Decontaminate maintenance shop | D10: m2 | F10: =NA() ->  | G10: 0 | H10: 0 | J10: 0 | K10: 0
B11: Decontaminate power plant | D11: m2 | F11: =NA() ->  | G11: 0 | H11: 0 | J11: 0 | K11: 0
B12: Decontaminate bulk fuel storage | D12: m2 | F12: =NA() ->  | G12: 0 | H12: 0 | J12: 0 | K12: 0
B13: Decontaminate ANFO plant | D13: m2 | F13: =NA() ->  | G13: 0 | H13: 0 | J13: 0 | K13: 0
B14: Decontaminate offices/warehouse/accom | D14: m2 | F14: =NA() ->  | G14: 0 | H14: 0 | J14: 0 | K14: 0
B15: Removal of asbestos siding on buildings | D15: m2 | F15: =NA() ->  | G15: 0 | H15: 0 | J15: 0 | K15: 0
B16: Removal of friable asbestos on equipment | D16: m2 | F16: =NA() ->  | G16: 0 | H16: 0 | J16: 0 | K16: 0
B17: Other | F17: =NA() ->  | G17: 0 | H17: 0 | J17: 0 | K17: 0
B18: HAZARDOUS MATERIALS REMOVAL
B19: Waste oils | D19: litre | F19: =NA() ->  | G19: =IF(ISNA(F19),0,INDEX(IF(RIGHT(F19,1)="A",unitcostaverage,IF(RIGHT(F19,1)="L",UnitCostLow, IF(RIGHT(F19,1)="H",UnitCostHigh,UnitCostSpecified))),MATCH(LEFT(F19,LEN(F19)-1),CostCode,0))) -> 0 | H19: =G19*E19 -> 0 | J19: =H19*I19 -> 0 | K19: =+H19*(1-I19) -> 0
B20: Waste fuel | D20: litre | F20: =NA() ->  | G20: 0 | H20: 0 | J20: 0 | K20: 0
B21: Waste batteries | D21: kg | F21: =NA() ->  | G21: 0 | H21: 0 | J21: 0 | K21: 0
B22: Assay & environmental lab reagents | D22: kg | F22: =NA() ->  | G22: 0 | H22: 0 | J22: 0 | K22: 0
B23: Machine shop paints, solvents etc. | D23: litre | F23: =NA() ->  | G23: 0 | H23: 0 | J23: 0 | K23: 0
B24: Glycol | D24: litre | F24: =NA() ->  | G24: 0 | H24: 0 | J24: 0 | K24: 0
B25: Process reagents | D25: kg | F25: =NA() ->  | G25: 0 | H25: =G25*E25 -> 0 | J25: 0 | K25: 0
B26: Nuclear sources | D26: allow | F26: =NA() ->  | G26: 0 | H26: 0 | J26: 0 | K26: 0
B27: Other hazardous materials | D27: allow | F27: =NA() ->  | G27: 0 | H27: =G27*E27 -> 0 | J27: 0 | K27: 0
B28: HAZARDOUS MATERIALS | F28: =NA() -> 
B29: Transportation to disposal facility | D29: allow | F29: =NA() ->  | G29: =IF(ISNA(F29),0,INDEX(IF(RIGHT(F29,1)="A",unitcostaverage,IF(RIGHT(F29,1)="L",UnitCostLow, IF(RIGHT(F29,1)="H",UnitCostHigh,UnitCostSpecified))),MATCH(LEFT(F29,LEN(F29)-1),CostCode,0))) -> 0 | H29: =G29*E29 -> 0 | J29: =H29*I29 -> 0 | K29: =+H29*(1-I29) -> 0
B30: Disposal fees | D30: allow | F30: =NA() ->  | G30: =IF(ISNA(F30),0,INDEX(IF(RIGHT(F30,1)="A",unitcostaverage,IF(RIGHT(F30,1)="L",UnitCostLow, IF(RIGHT(F30,1)="H",UnitCostHigh,UnitCostSpecified))),MATCH(LEFT(F30,LEN(F30)-1),CostCode,0))) -> 0 | H30: =G30*E30 -> 0 | J30: =H30*I30 -> 0 | K30: =+H30*(1-I30) -> 0
B31: Other | F31: =NA() ->  | G31: =IF(ISNA(F31),0,INDEX(IF(RIGHT(F31,1)="A",unitcostaverage,IF(RIGHT(F31,1)="L",UnitCostLow, IF(RIGHT(F31,1)="H",UnitCostHigh,UnitCostSpecified))),MATCH(LEFT(F31,LEN(F31)-1),CostCode,0))) -> 0 | H31: =G31*E31 -> 0 | J31: =H31*I31 -> 0 | K31: =+H31*(1-I31) -> 0
B32: CONTAMINATED SOILS | F32: =NA() -> 
B33: Contam. soil investigation - Phase 1 | D33: each | F33: =NA() ->  | G33: =IF(ISNA(F33),0,INDEX(IF(RIGHT(F33,1)="A",unitcostaverage,IF(RIGHT(F33,1)="L",UnitCostLow, IF(RIGHT(F33,1)="H",UnitCostHigh,UnitCostSpecified))),MATCH(LEFT(F33,LEN(F33)-1),CostCode,0))) -> 0 | H33: =G33*E33 -> 0 | J33: =H33*I33 -> 0 | K33: =+H33*(1-I33) -> 0
B34: Contam. soil investigation - Phase 2 | D34: each | F34: =NA() ->  | G34: =IF(ISNA(F34),0,INDEX(IF(RIGHT(F34,1)="A",unitcostaverage,IF(RIGHT(F34,1)="L",UnitCostLow, IF(RIGHT(F34,1)="H",UnitCostHigh,UnitCostSpecified))),MATCH(LEFT(F34,LEN(F34)-1),CostCode,0))) -> 0 | H34: 0 | J34: 0 | K34: 0
B35: CONTAMINATED SOIL REMOVAL | F35: =NA() -> 
B36: Excavate and transport to onsite facility | D36: m3 | F36: =NA() ->  | G36: =IF(ISNA(F36),0,INDEX(IF(RIGHT(F36,1)="A",unitcostaverage,IF(RIGHT(F36,1)="L",UnitCostLow, IF(RIGHT(F36,1)="H",UnitCostHigh,UnitCostSpecified))),MATCH(LEFT(F36,LEN(F36)-1),CostCode,0))) -> 0 | H36: =G36*E36 -> 0 | J36: =H36*I36 -> 0 | K36: =+H36*(1-I36) -> 0
B37: Manage hydrocarbon remediation at facility | D37: m3 | F37: =NA() ->  | G37: =IF(ISNA(F37),0,INDEX(IF(RIGHT(F37,1)="A",unitcostaverage,IF(RIGHT(F37,1)="L",UnitCostLow, IF(RIGHT(F37,1)="H",UnitCostHigh,UnitCostSpecified))),MATCH(LEFT(F37,LEN(F37)-1),CostCode,0))) -> 0 | H37: 0 | J37: 0 | K37: 0
B38: Reagents/stabilizing agent | D38: m2 | F38: =NA() ->  | G38: =IF(ISNA(F38),0,INDEX(IF(RIGHT(F38,1)="A",unitcostaverage,IF(RIGHT(F38,1)="L",UnitCostLow, IF(RIGHT(F38,1)="H",UnitCostHigh,UnitCostSpecified))),MATCH(LEFT(F38,LEN(F38)-1),CostCode,0))) -> 0 | H38: =G38*E38 -> 0 | J38: =H38*I38 -> 0 | K38: =+H38*(1-I38) -> 0
B39: Excavate and transport to offsite facility | D39: m3 | F39: =NA() ->  | G39: =IF(ISNA(F39),0,INDEX(IF(RIGHT(F39,1)="A",unitcostaverage,IF(RIGHT(F39,1)="L",UnitCostLow, IF(RIGHT(F39,1)="H",UnitCostHigh,UnitCostSpecified))),MATCH(LEFT(F39,LEN(F39)-1),CostCode,0))) -> 0 | H39: 0 | J39: 0 | K39: 0
B40: Contour decontaminated area | D40: m3 | F40: =NA() ->  | G40: =IF(ISNA(F40),0,INDEX(IF(RIGHT(F40,1)="A",unitcostaverage,IF(RIGHT(F40,1)="L",UnitCostLow, IF(RIGHT(F40,1)="H",UnitCostHigh,UnitCostSpecified))),MATCH(LEFT(F40,LEN(F40)-1),CostCode,0))) -> 0 | H40: 0 | J40: =H40*I40 -> 0 | K40: =+H40*(1-I40) -> 0
B41: CONTAMINATED SOIL VERY LOW PERMEABILITY COVER | F41: =NA() -> 
B42: Supply geomembrane, HDPE, ES3, GCL | D42: m2 | F42: =NA() ->  | G42: =IF(ISNA(F42),0,INDEX(IF(RIGHT(F42,1)="A",unitcostaverage,IF(RIGHT(F42,1)="L",UnitCostLow, IF(RIGHT(F42,1)="H",UnitCostHigh,UnitCostSpecified))),MATCH(LEFT(F42,LEN(F42)-1),CostCode,0))) -> 0 | H42: =G42*E42 -> 0 | J42: =H42*I42 -> 0 | K42: =+H42*(1-I42) -> 0
B43: Upper and lower bedding layers | D43: m3 | F43: =NA() ->  | G43: 0 | H43: 0 | J43: 0 | K43: 0
B44: Install geomembrane, HDPE, ES3, GCL | D44: m2 | F44: =NA() ->  | G44: 0 | H44: 0 | J44: 0 | K44: 0
B45: Erosion protection layer | D45: m3 | F45: =NA() ->  | G45: 0 | H45: 0 | J45: 0 | K45: 0
B46: Vegetate | D46: m2 | F46: =NA() ->  | G46: 0 | H46: 0 | J46: 0 | K46: 0
B47: Install infiltration/seepage instrumentation | D47: allow | F47: =NA() ->  | G47: 0 | H47: 0 | J47: 0 | K47: 0
B48: Other | F48: =NA() ->  | G48: 0 | H48: 0 | J48: 0 | K48: 0
B49: OTHER | F49: =NA() -> 
F50: =NA() ->  | G50: =IF(ISNA(F50),0,INDEX(IF(RIGHT(F50,1)="A",unitcostaverage,IF(RIGHT(F50,1)="L",UnitCostLow, IF(RIGHT(F50,1)="H",UnitCostHigh,UnitCostSpecified))),MATCH(LEFT(F50,LEN(F50)-1),CostCode,0))) -> 0 | H50: =G50*E50 -> 0 | J50: =H50*I50 -> 0 | K50: =+H50*(1-I50) -> 0
G51: Total | H51: =SUM(H6:H50)+0.0001 -> 0.0001 | J51: =SUM(J6:J50) -> 0 | K51: =SUM(K6:K50) -> 0
G52: % of Total | J52: =J51/H51 -> 0 | K52: =K51/H51 -> 0

Sheet Water Management
A1: 1 | B1: Capital Expenditures and Short Term Surface and Groundwater Treatment identified in 'Instructions' worksheet
B3: ACTIVITY/MATERIAL | C3: Notes | D3: Units | E3: Quantity | F3: Cost Code | G3: Unit Cost | H3: Cost
B4: BREACH DYKE EMBANKMENT
B5: Remove fill | D5: m3 | F5: =NA() ->  | G5: =IF(ISNA(F5),0,INDEX(IF(RIGHT(F5,1)="A",unitcostaverage,IF(RIGHT(F5,1)="L",UnitCostLow, IF(RIGHT(F5,1)="H",UnitCostHigh,UnitCostSpecified))),MATCH(LEFT(F5,LEN(F5)-1),CostCode,0))) -> 0 | H5: =G5*E5 -> 0
B6: Contour water intake area | D6: m3 | F6: =NA() ->  | G6: =IF(ISNA(F6),0,INDEX(IF(RIGHT(F6,1)="A",unitcostaverage,IF(RIGHT(F6,1)="L",UnitCostLow, IF(RIGHT(F6,1)="H",UnitCostHigh,UnitCostSpecified))),MATCH(LEFT(F6,LEN(F6)-1),CostCode,0))) -> 0 | H6: =G6*E6 -> 0
B7: STABILIZE SEDIMENT PONDS/WATER MANAGEMENT PONDS
B8: Place soil cover | D8: m3 | F8: =NA() ->  | G8: =IF(ISNA(F8),0,INDEX(IF(RIGHT(F8,1)="A",unitcostaverage,IF(RIGHT(F8,1)="L",UnitCostLow, IF(RIGHT(F8,1)="H",UnitCostHigh,UnitCostSpecified))),MATCH(LEFT(F8,LEN(F8)-1),CostCode,0))) -> 0 | H8: =G8*E8 -> 0
B9: Doze & spread excavated material | D9: m3 | F9: =NA() ->  | G9: =IF(ISNA(F9),0,INDEX(IF(RIGHT(F9,1)="A",unitcostaverage,IF(RIGHT(F9,1)="L",UnitCostLow, IF(RIGHT(F9,1)="H",UnitCostHigh,UnitCostSpecified))),MATCH(LEFT(F9,LEN(F9)-1),CostCode,0))) -> 0 | H9: =G9*E9 -> 0
B10: Vegetate spread material | D10: ha | F10: =NA() ->  | G10: =IF(ISNA(F10),0,INDEX(IF(RIGHT(F10,1)="A",unitcostaverage,IF(RIGHT(F10,1)="L",UnitCostLow, IF(RIGHT(F10,1)="H",UnitCostHigh,UnitCostSpecified))),MATCH(LEFT(F10,LEN(F10)-1),CostCode,0))) -> 0 | H10: =G10*E10 -> 0
B11: Rip rap in channel base | D11: each | F11: =NA() ->  | G11: =IF(ISNA(F11),0,INDEX(IF(RIGHT(F11,1)="A",unitcostaverage,IF(RIGHT(F11,1)="L",UnitCostLow, IF(RIGHT(F11,1)="H",UnitCostHigh,UnitCostSpecified))),MATCH(LEFT(F11,LEN(F11)-1),CostCode,0))) -> 0 | H11: =G11*E11 -> 0
B12: REDIRECT RUNOFF/CONSTRUCT DIVERSION DITCHES
B13: Excavate ditches -soil | D13: m3 | F13: =NA() ->  | G13: =IF(ISNA(F13),0,INDEX(IF(RIGHT(F13,1)="A",unitcostaverage,IF(RIGHT(F13,1)="L",UnitCostLow, IF(RIGHT(F13,1)="H",UnitCostHigh,UnitCostSpecified))),MATCH(LEFT(F13,LEN(F13)-1),CostCode,0))) -> 0 | H13: =G13*E13 -> 0
B14: Excavate ditches -rock | D14: m3 | F14: =NA() ->  | G14: =IF(ISNA(F14),0,INDEX(IF(RIGHT(F14,1)="A",unitcostaverage,IF(RIGHT(F14,1)="L",UnitCostLow, IF(RIGHT(F14,1)="H",UnitCostHigh,UnitCostSpecified))),MATCH(LEFT(F14,LEN(F14)-1),CostCode,0))) -> 0 | H14: =G14*E14 -> 0
B15: Stabilize side slopes | D15: m3 | F15: =NA() ->  | G15: =IF(ISNA(F15),0,INDEX(IF(RIGHT(F15,1)="A",unitcostaverage,IF(RIGHT(F15,1)="L",UnitCostLow, IF(RIGHT(F15,1)="H",UnitCostHigh,UnitCostSpecified))),MATCH(LEFT(F15,LEN(F15)-1),CostCode,0))) -> 0 | H15: =G15*E15 -> 0
B16: Rip rap in channel base | D16: m3 | F16: =NA() ->  | G16: =IF(ISNA(F16),0,INDEX(IF(RIGHT(F16,1)="A",unitcostaverage,IF(RIGHT(F16,1)="L",UnitCostLow, IF(RIGHT(F16,1)="H",UnitCostHigh,UnitCostSpecified))),MATCH(LEFT(F16,LEN(F16)-1),CostCode,0))) -> 0 | H16: =G16*E16 -> 0
B17: BREACH DITCHES
B18: Excavate breaches | D18: m3 | F18: =NA() ->  | G18: =IF(ISNA(F18),0,INDEX(IF(RIGHT(F18,1)="A",unitcostaverage,IF(RIGHT(F18,1)="L",UnitCostLow, IF(RIGHT(F18,1)="H",UnitCostHigh,UnitCostSpecified))),MATCH(LEFT(F18,LEN(F18)-1),CostCode,0))) -> 0 | H18: =G18*E18 -> 0
B19: Backfill/recontour | D19: m3 | F19: =NA() ->  | G19: =IF(ISNA(F19),0,INDEX(IF(RIGHT(F19,1)="A",unitcostaverage,IF(RIGHT(F19,1)="L",UnitCostLow, IF(RIGHT(F19,1)="H",UnitCostHigh,UnitCostSpecified))),MATCH(LEFT(F19,LEN(F19)-1),CostCode,0))) -> 0 | H19: =G19*E19 -> 0
B20: Install flow dissipation | D20: m3 | F20: =NA() ->  | G20: =IF(ISNA(F20),0,INDEX(IF(RIGHT(F20,1)="A",unitcostaverage,IF(RIGHT(F20,1)="L",UnitCostLow, IF(RIGHT(F20,1)="H",UnitCostHigh,UnitCostSpecified))),MATCH(LEFT(F20,LEN(F20)-1),CostCode,0))) -> 0 | H20: =G20*E20 -> 0
B21: Vegetate remainder of ditch | D21: m2 | F21: =NA() ->  | G21: =IF(ISNA(F21),0,INDEX(IF(RIGHT(F21,1)="A",unitcostaverage,IF(RIGHT(F21,1)="L",UnitCostLow, IF(RIGHT(F21,1)="H",UnitCostHigh,UnitCostSpecified))),MATCH(LEFT(F21,LEN(F21)-1),CostCode,0))) -> 0 | H21: =G21*E21 -> 0
B22: DECOMISSION FRESH WATER SUPPLY
B23: Breach embankment | D23: m | F23: =NA() ->  | G23: =IF(ISNA(F23),0,INDEX(IF(RIGHT(F23,1)="A",unitcostaverage,IF(RIGHT(F23,1)="L",UnitCostLow, IF(RIGHT(F23,1)="H",UnitCostHigh,UnitCostSpecified))),MATCH(LEFT(F23,LEN(F23)-1),CostCode,0))) -> 0 | H23: =G23*E23 -> 0
B24: Remove pump | D24: LS | F24: =NA() ->  | G24: =IF(ISNA(F24),0,INDEX(IF(RIGHT(F24,1)="A",unitcostaverage,IF(RIGHT(F24,1)="L",UnitCostLow, IF(RIGHT(F24,1)="H",UnitCostHigh,UnitCostSpecified))),MATCH(LEFT(F24,LEN(F24)-1),CostCode,0))) -> 0 | H24: =G24*E24 -> 0
B25: Remove pipeline | D25: m | F25: =NA() ->  | G25: =IF(ISNA(F25),0,INDEX(IF(RIGHT(F25,1)="A",unitcostaverage,IF(RIGHT(F25,1)="L",UnitCostLow, IF(RIGHT(F25,1)="H",UnitCostHigh,UnitCostSpecified))),MATCH(LEFT(F25,LEN(F25)-1),CostCode,0))) -> 0 | H25: =G25*E25 -> 0
B26: WATER CONTROL IN RECLAMATION QUARRY
B27: Install pumping system | D27: LS | F27: =NA() ->  | G27: =IF(ISNA(F27),0,INDEX(IF(RIGHT(F27,1)="A",unitcostaverage,IF(RIGHT(F27,1)="L",UnitCostLow, IF(RIGHT(F27,1)="H",UnitCostHigh,UnitCostSpecified))),MATCH(LEFT(F27,LEN(F27)-1),CostCode,0))) -> 0 | H27: =G27*E27 -> 0
B28: Remove pumping system | D28: LS | F28: =NA() ->  | G28: =IF(ISNA(F28),0,INDEX(IF(RIGHT(F28,1)="A",unitcostaverage,IF(RIGHT(F28,1)="L",UnitCostLow, IF(RIGHT(F28,1)="H",UnitCostHigh,UnitCostSpecified))),MATCH(LEFT(F28,LEN(F28)-1),CostCode,0))) -> 0 | H28: =G28*E28 -> 0
B29: REMOVE PIPELINES
B30: Remove pipes | D30: m | F30: =NA() ->  | G30: =IF(ISNA(F30),0,INDEX(IF(RIGHT(F30,1)="A",unitcostaverage,IF(RIGHT(F30,1)="L",UnitCostLow, IF(RIGHT(F30,1)="H",UnitCostHigh,UnitCostSpecified))),MATCH(LEFT(F30,LEN(F30)-1),CostCode,0))) -> 0 | H30: =G30*E30 -> 0
B31: Concrete plug deep pipes | D31: m3 | F31: =NA() ->  | G31: =IF(ISNA(F31),0,INDEX(IF(RIGHT(F31,1)="A",unitcostaverage,IF(RIGHT(F31,1)="L",UnitCostLow, IF(RIGHT(F31,1)="H",UnitCostHigh,UnitCostSpecified))),MATCH(LEFT(F31,LEN(F31)-1),CostCode,0))) -> 0 | H31: =G31*E31 -> 0
B32: Other | F32: =NA() ->  | G32: =IF(ISNA(F32),0,INDEX(IF(RIGHT(F32,1)="A",unitcostaverage,IF(RIGHT(F32,1)="L",UnitCostLow, IF(RIGHT(F32,1)="H",UnitCostHigh,UnitCostSpecified))),MATCH(LEFT(F32,LEN(F32)-1),CostCode,0))) -> 0 | H32: =G32*E32 -> 0
B33: GROUNDWATER COLLECTION SYSTEM
B34: Excavate/install sumps | D34: m3 | F34: =NA() ->  | G34: =IF(ISNA(F34),0,INDEX(IF(RIGHT(F34,1)="A",unitcostaverage,IF(RIGHT(F34,1)="L",UnitCostLow, IF(RIGHT(F34,1)="H",UnitCostHigh,UnitCostSpecified))),MATCH(LEFT(F34,LEN(F34)-1),CostCode,0))) -> 0 | H34: =G34*E34 -> 0
B35: Install pumping wells | D35: m3 | F35: =NA() ->  | G35: =IF(ISNA(F35),0,INDEX(IF(RIGHT(F35,1)="A",unitcostaverage,IF(RIGHT(F35,1)="L",UnitCostLow, IF(RIGHT(F35,1)="H",UnitCostHigh,UnitCostSpecified))),MATCH(LEFT(F35,LEN(F35)-1),CostCode,0))) -> 0 | H35: =G35*E35 -> 0
B36: Install pumps/pipelines/power supply | D36: LS | F36: =NA() ->  | G36: =IF(ISNA(F36),0,INDEX(IF(RIGHT(F36,1)="A",unitcostaverage,IF(RIGHT(F36,1)="L",UnitCostLow, IF(RIGHT(F36,1)="H",UnitCostHigh,UnitCostSpecified))),MATCH(LEFT(F36,LEN(F36)-1),CostCode,0))) -> 0 | H36: =G36*E36 -> 0
B37: CONSTRUCT CONTAMINATED WATER STORAGE POND
B38: Excavate pond | D38: m3 | F38: =NA() ->  | G38: =IF(ISNA(F38),0,INDEX(IF(RIGHT(F38,1)="A",unitcostaverage,IF(RIGHT(F38,1)="L",UnitCostLow, IF(RIGHT(F38,1)="H",UnitCostHigh,UnitCostSpecified))),MATCH(LEFT(F38,LEN(F38)-1),CostCode,0))) -> 0 | H38: =G38*E38 -> 0
B39: Doze & spread excavated material | D39: m3 | F39: =NA() ->  | G39: 0 | H39: 0
B40: Vegetate spread material | D40: ha | F40: =NA() ->  | G40: 0 | H40: 0
B41: Bedding layer | D41: m3 | F41: =NA() ->  | G41: 0 | H41: 0
B42: Supply geomembrane | D42: m2 | F42: =NA() ->  | G42: 0 | H42: 0
B43: Install geomembrane | D43: m2 | F43: =NA() ->  | G43: 0 | H43: 0
B44: Erosion protection layer | D44: m3 | F44: =NA() ->  | G44: 0 | H44: 0
B45: CONSTRUCT PASSIVE TREATMENT SYSTEM (e.g. Constructed Wetland, PRB, etc))
B46: Construct access roads | D46: km | F46: =NA() ->  | G46: =IF(ISNA(F46),0,INDEX(IF(RIGHT(F46,1)="A",unitcostaverage,IF(RIGHT(F46,1)="L",UnitCostLow, IF(RIGHT(F46,1)="H",UnitCostHigh,UnitCostSpecified))),MATCH(LEFT(F46,LEN(F46)-1),CostCode,0))) -> 0 | H46: =G46*E46 -> 0
B47: Install HDPE piping system | D47: m | F47: =NA() ->  | G47: 0 | H47: 0
B48: Inter-cell flow structures | D48: allow | F48: =NA() ->  | G48: 0 | H48: 0
B49: Install liners | D49: m2 | F49: =NA() ->  | G49: 0 | H49: 0
B50: Install growth media | D50: m3 | F50: =NA() ->  | G50: 0 | H50: 0
B51: Treatment Media | D51: m3 | F51: =NA() ->  | G51: =IF(ISNA(F51),0,INDEX(IF(RIGHT(F51,1)="A",unitcostaverage,IF(RIGHT(F51,1)="L",UnitCostLow, IF(RIGHT(F51,1)="H",UnitCostHigh,UnitCostSpecified))),MATCH(LEFT(F51,LEN(F51)-1),CostCode,0))) -> 0 | H51: =G51*E51 -> 0
B52: Excavate soil | D52: m3 | F52: =NA() ->  | G52: 0 | H52: 0
B53: Wetland vegetation | D53: ha | F53: =NA() ->  | G53: 0 | H53: 0
B54: Other
B55: CONSTRUCTION WATER TREATMENT*
B56: Total short term water treatment cost, from "Water Treatment" | H56: ='Water Treatment'!X36 -> 0
G57: Total | H57: =SUM(H4:H56)+0.00001 -> 1e-05
B58: *Note: include water treatment cost from "Water Treatment" worksheet if treatment is considered short term (i.e. temporary water treatment plan)
G91: Total | H91: =SUM(H5:H57,'Water Treatment'!X36)+'Water Treatment'!X5 -> 1e-05
B92: *Note: include water treatment cost if treatment is considered short term and is not included in a particular component worksheet.

Sheet Mobilization
A1: 1 | B1: Mobilization/Demobilization: | C1: ICM | J1: 2 | K1: Mobilization/Demobilization: | L1: Mobilization/Demobilization: | M1: Closure Activities | T1: 3 | U1: Mobilization/Demobilization: | V1: Mobilization/Demobilization: | W1: Post Closure
B3: ACTIVITY/MATERIAL | C3: Notes | D3: Units | E3: Quantity | F3: Cost Code | G3: Unit Cost | H3: Cost | K3: ACTIVITY/MATERIAL | L3: ACTIVITY/MATERIAL | M3: Notes | N3: Units | O3: Quantity | P3: Cost Code | Q3: Unit Cost | R3: Cost | U3: ACTIVITY/MATERIAL | V3: ACTIVITY/MATERIAL | W3: Notes | X3: Units | Y3: Quantity | Z3: Cost Code | AA3: Unit Cost | AB3: Cost
B4: MOBILIZE HEAVY EQUIPMENT | K4: MOBILIZE HEAVY EQUIPMENT | L4: MOBILIZE HEAVY EQUIPMENT | U4: MOBILIZE HEAVY EQUIPMENT | V4: MOBILIZE HEAVY EQUIPMENT
B5: Excavators | D5: each | F5: =NA() ->  | G5: =IF(ISNA(F5),0,INDEX(IF(RIGHT(F5,1)="A",unitcostaverage,IF(RIGHT(F5,1)="L",UnitCostLow, IF(RIGHT(F5,1)="H",UnitCostHigh,UnitCostSpecified))),MATCH(LEFT(F5,LEN(F5)-1),CostCode,0))) -> 0 | H5: =G5*E5 -> 0 | K5: Excavators | L5: Excavators | N5: each | P5: =NA() ->  | Q5: =IF(ISNA(P5),0,INDEX(IF(RIGHT(P5,1)="A",unitcostaverage,IF(RIGHT(P5,1)="L",UnitCostLow, IF(RIGHT(P5,1)="H",UnitCostHigh,UnitCostSpecified))),MATCH(LEFT(P5,LEN(P5)-1),CostCode,0))) -> 0 | R5: =Q5*O5 -> 0 | U5: Excavators | V5: Excavators | X5: each | Z5: =NA() ->  | AA5: =IF(ISNA(Z5),0,INDEX(IF(RIGHT(Z5,1)="A",unitcostaverage,IF(RIGHT(Z5,1)="L",UnitCostLow, IF(RIGHT(Z5,1)="H",UnitCostHigh,UnitCostSpecified))),MATCH(LEFT(Z5,LEN(Z5)-1),CostCode,0))) -> 0 | AB5: =AA5*Y5 -> 0
B6: Dump trucks | D6: each | F6: =NA() ->  | G6: 0 | H6: 0 | K6: Dump trucks | L6: Dump trucks | N6: each | P6: =NA() ->  | Q6: 0 | R6: 0 | U6: Dump trucks | V6: Dump trucks | X6: each | Z6: =NA() ->  | AA6: 0 | AB6: 0
B7: Dozers | D7: each | F7: =NA() ->  | G7: 0 | H7: 0 | K7: Dozers | L7: Dozers | N7: each | P7: =NA() ->  | Q7: 0 | R7: 0 | U7: Dozers | V7: Dozers | X7: each | Z7: =NA() ->  | AA7: 0 | AB7: 0
B8: Demolition shears | D8: each | F8: =NA() ->  | G8: 0 | H8: 0 | K8: Demolition shears | L8: Demolition shears | N8: each | P8: =NA() ->  | Q8: 0 | R8: 0 | U8: Demolition shears | V8: Demolition shears | X8: each | Z8: =NA() ->  | AA8: 0 | AB8: 0
B9: Crane | D9: each | F9: =NA() ->  | G9: 0 | H9: 0 | K9: Crane | L9: Crane | N9: each | P9: =NA() ->  | Q9: 0 | R9: 0 | U9: Crane | V9: Crane | X9: each | Z9: =NA() ->  | AA9: 0 | AB9: 0
B10: Loader | D10: each | F10: =NA() ->  | G10: 0 | H10: =G10*E10 -> 0 | K10: Loader | L10: Loader | N10: each | P10: =NA() ->  | Q10: 0 | R10: =Q10*O10 -> 0 | U10: Loader | V10: Loader | X10: each | Z10: =NA() ->  | AA10: 0 | AB10: =AA10*Y10 -> 0
B11: Compactor | D11: each | F11: =NA() ->  | G11: 0 | H11: =G11*E11 -> 0 | K11: Compactor | L11: Compactor | N11: each | P11: =NA() ->  | Q11: 0 | R11: =Q11*O11 -> 0 | U11: Compactor | V11: Compactor | X11: each | Z11: =NA() ->  | AA11: 0 | AB11: =AA11*Y11 -> 0
B12: Light duty vehicles | D12: each | F12: =NA() ->  | G12: 0 | H12: 0 | K12: Light duty vehicles | L12: Light duty vehicles | N12: each | P12: =NA() ->  | Q12: 0 | R12: =Q12*O12 -> 0 | U12: Light duty vehicles | V12: Light duty vehicles | X12: each | Z12: =NA() ->  | AA12: 0 | AB12: =AA12*Y12 -> 0
B13: MOBILIZE MISC. EQUIPMENT | K13: MOBILIZE MISC. EQUIPMENT | L13: MOBILIZE MISC. EQUIPMENT | U13: MOBILIZE MISC. EQUIPMENT | V13: MOBILIZE MISC. EQUIPMENT
B14: Pump shipping | D14: each | F14: =NA() ->  | G14: =IF(ISNA(F14),0,INDEX(IF(RIGHT(F14,1)="A",unitcostaverage,IF(RIGHT(F14,1)="L",UnitCostLow, IF(RIGHT(F14,1)="H",UnitCostHigh,UnitCostSpecified))),MATCH(LEFT(F14,LEN(F14)-1),CostCode,0))) -> 0 | H14: =G14*E14 -> 0 | K14: Pump shipping | L14: Pump shipping | N14: each | P14: =NA() ->  | Q14: =IF(ISNA(P14),0,INDEX(IF(RIGHT(P14,1)="A",unitcostaverage,IF(RIGHT(P14,1)="L",UnitCostLow, IF(RIGHT(P14,1)="H",UnitCostHigh,UnitCostSpecified))),MATCH(LEFT(P14,LEN(P14)-1),CostCode,0))) -> 0 | R14: =Q14*O14 -> 0 | U14: Pump shipping | V14: Pump shipping | X14: each | Z14: =NA() ->  | AA14: =IF(ISNA(Z14),0,INDEX(IF(RIGHT(Z14,1)="A",unitcostaverage,IF(RIGHT(Z14,1)="L",UnitCostLow, IF(RIGHT(Z14,1)="H",UnitCostHigh,UnitCostSpecified))),MATCH(LEFT(Z14,LEN(Z14)-1),CostCode,0))) -> 0 | AB14: =AA14*Y14 -> 0
B15: Pipe shipping | D15: m | F15: =NA() ->  | G15: =IF(ISNA(F15),0,INDEX(IF(RIGHT(F15,1)="A",unitcostaverage,IF(RIGHT(F15,1)="L",UnitCostLow, IF(RIGHT(F15,1)="H",UnitCostHigh,UnitCostSpecified))),MATCH(LEFT(F15,LEN(F15)-1),CostCode,0))) -> 0 | H15: =G15*E15 -> 0 | K15: Pipe shipping | L15: Pipe shipping | N15: m | P15: =NA() ->  | Q15: =IF(ISNA(P15),0,INDEX(IF(RIGHT(P15,1)="A",unitcostaverage,IF(RIGHT(P15,1)="L",UnitCostLow, IF(RIGHT(P15,1)="H",UnitCostHigh,UnitCostSpecified))),MATCH(LEFT(P15,LEN(P15)-1),CostCode,0))) -> 0 | R15: =Q15*O15 -> 0 | U15: Pipe shipping | V15: Pipe shipping | X15: m | Z15: =NA() ->  | AA15: =IF(ISNA(Z15),0,INDEX(IF(RIGHT(Z15,1)="A",unitcostaverage,IF(RIGHT(Z15,1)="L",UnitCostLow, IF(RIGHT(Z15,1)="H",UnitCostHigh,UnitCostSpecified))),MATCH(LEFT(Z15,LEN(Z15)-1),CostCode,0))) -> 0 | AB15: =AA15*Y15 -> 0
B16: Minor tools and equipment | D16: allow | F16: =NA() ->  | G16: =IF(ISNA(F16),0,INDEX(IF(RIGHT(F16,1)="A",unitcostaverage,IF(RIGHT(F16,1)="L",UnitCostLow, IF(RIGHT(F16,1)="H",UnitCostHigh,UnitCostSpecified))),MATCH(LEFT(F16,LEN(F16)-1),CostCode,0))) -> 0 | H16: =G16*E16 -> 0 | K16: Minor tools and equipment | L16: Minor tools and equipment | N16: allow | P16: =NA() ->  | Q16: =IF(ISNA(P16),0,INDEX(IF(RIGHT(P16,1)="A",unitcostaverage,IF(RIGHT(P16,1)="L",UnitCostLow, IF(RIGHT(P16,1)="H",UnitCostHigh,UnitCostSpecified))),MATCH(LEFT(P16,LEN(P16)-1),CostCode,0))) -> 0 | R16: =Q16*O16 -> 0 | U16: Minor tools and equipment | V16: Minor tools and equipment | X16: allow | Z16: =NA() ->  | AA16: =IF(ISNA(Z16),0,INDEX(IF(RIGHT(Z16,1)="A",unitcostaverage,IF(RIGHT(Z16,1)="L",UnitCostLow, IF(RIGHT(Z16,1)="H",UnitCostHigh,UnitCostSpecified))),MATCH(LEFT(Z16,LEN(Z16)-1),CostCode,0))) -> 0 | AB16: =AA16*Y16 -> 0
B17: Truck tires | D17: allow | F17: =NA() ->  | G17: =IF(ISNA(F17),0,INDEX(IF(RIGHT(F17,1)="A",unitcostaverage,IF(RIGHT(F17,1)="L",UnitCostLow, IF(RIGHT(F17,1)="H",UnitCostHigh,UnitCostSpecified))),MATCH(LEFT(F17,LEN(F17)-1),CostCode,0))) -> 0 | H17: =G17*E17 -> 0 | K17: Truck tires | L17: Truck tires | N17: allow | P17: =NA() ->  | Q17: =IF(ISNA(P17),0,INDEX(IF(RIGHT(P17,1)="A",unitcostaverage,IF(RIGHT(P17,1)="L",UnitCostLow, IF(RIGHT(P17,1)="H",UnitCostHigh,UnitCostSpecified))),MATCH(LEFT(P17,LEN(P17)-1),CostCode,0))) -> 0 | R17: =Q17*O17 -> 0 | U17: Truck tires | V17: Truck tires | X17: allow | Z17: =NA() ->  | AA17: =IF(ISNA(Z17),0,INDEX(IF(RIGHT(Z17,1)="A",unitcostaverage,IF(RIGHT(Z17,1)="L",UnitCostLow, IF(RIGHT(Z17,1)="H",UnitCostHigh,UnitCostSpecified))),MATCH(LEFT(Z17,LEN(Z17)-1),CostCode,0))) -> 0 | AB17: =AA17*Y17 -> 0
B18: Other (e.g. air shipment) | D18: allow | F18: =NA() ->  | G18: =IF(ISNA(F18),0,INDEX(IF(RIGHT(F18,1)="A",unitcostaverage,IF(RIGHT(F18,1)="L",UnitCostLow, IF(RIGHT(F18,1)="H",UnitCostHigh,UnitCostSpecified))),MATCH(LEFT(F18,LEN(F18)-1),CostCode,0))) -> 0 | H18: 0 | K18: Other | L18: Other (e.g. air shipment) | N18: allow | P18: =NA() ->  | Q18: =IF(ISNA(P18),0,INDEX(IF(RIGHT(P18,1)="A",unitcostaverage,IF(RIGHT(P18,1)="L",UnitCostLow, IF(RIGHT(P18,1)="H",UnitCostHigh,UnitCostSpecified))),MATCH(LEFT(P18,LEN(P18)-1),CostCode,0))) -> 0 | R18: =Q18*O18 -> 0 | U18: Other | V18: Other (e.g. air shipment) | X18: allow | Z18: =NA() ->  | AA18: =IF(ISNA(Z18),0,INDEX(IF(RIGHT(Z18,1)="A",unitcostaverage,IF(RIGHT(Z18,1)="L",UnitCostLow, IF(RIGHT(Z18,1)="H",UnitCostHigh,UnitCostSpecified))),MATCH(LEFT(Z18,LEN(Z18)-1),CostCode,0))) -> 0 | AB18: =AA18*Y18 -> 0
B19: MOBILIZE CAMP | K19: MOBILIZE CAMP | L19: MOBILIZE CAMP | U19: MOBILIZE CAMP | V19: MOBILIZE CAMP
B20: Reclamation activities | D20: allow | F20: =NA() ->  | G20: =IF(ISNA(F20),0,INDEX(IF(RIGHT(F20,1)="A",unitcostaverage,IF(RIGHT(F20,1)="L",UnitCostLow, IF(RIGHT(F20,1)="H",UnitCostHigh,UnitCostSpecified))),MATCH(LEFT(F20,LEN(F20)-1),CostCode,0))) -> 0 | H20: =G20*E20 -> 0 | K20: Reclamation activities | L20: Reclamation activities | N20: allow | P20: =NA() ->  | Q20: =IF(ISNA(P20),0,INDEX(IF(RIGHT(P20,1)="A",unitcostaverage,IF(RIGHT(P20,1)="L",UnitCostLow, IF(RIGHT(P20,1)="H",UnitCostHigh,UnitCostSpecified))),MATCH(LEFT(P20,LEN(P20)-1),CostCode,0))) -> 0 | R20: =Q20*O20 -> 0 | U20: Reclamation activities | V20: Reclamation activities | X20: allow | Z20: =NA() ->  | AA20: =IF(ISNA(Z20),0,INDEX(IF(RIGHT(Z20,1)="A",unitcostaverage,IF(RIGHT(Z20,1)="L",UnitCostLow, IF(RIGHT(Z20,1)="H",UnitCostHigh,UnitCostSpecified))),MATCH(LEFT(Z20,LEN(Z20)-1),CostCode,0))) -> 0 | AB20: =AA20*Y20 -> 0
B21: Long term reclamation activities (e.g. pump flooding) | D21: allow | F21: =NA() ->  | G21: =IF(ISNA(F21),0,INDEX(IF(RIGHT(F21,1)="A",unitcostaverage,IF(RIGHT(F21,1)="L",UnitCostLow, IF(RIGHT(F21,1)="H",UnitCostHigh,UnitCostSpecified))),MATCH(LEFT(F21,LEN(F21)-1),CostCode,0))) -> 0 | H21: =G21*E21 -> 0 | K21: Long term reclamation activities (eg pump flooding) | L21: Long term reclamation activities (e.g. pump flooding) | N21: allow | P21: =NA() ->  | Q21: =IF(ISNA(P21),0,INDEX(IF(RIGHT(P21,1)="A",unitcostaverage,IF(RIGHT(P21,1)="L",UnitCostLow, IF(RIGHT(P21,1)="H",UnitCostHigh,UnitCostSpecified))),MATCH(LEFT(P21,LEN(P21)-1),CostCode,0))) -> 0 | R21: =Q21*O21 -> 0 | U21: Long term reclamation activities (eg pump flooding) | V21: Long term reclamation activities (e.g. pump flooding) | X21: allow | Z21: =NA() ->  | AA21: =IF(ISNA(Z21),0,INDEX(IF(RIGHT(Z21,1)="A",unitcostaverage,IF(RIGHT(Z21,1)="L",UnitCostLow, IF(RIGHT(Z21,1)="H",UnitCostHigh,UnitCostSpecified))),MATCH(LEFT(Z21,LEN(Z21)-1),CostCode,0))) -> 0 | AB21: =AA21*Y21 -> 0
B22: MOBILIZE WORKERS | K22: MOBILIZE WORKERS | L22: MOBILIZE WORKERS | U22: MOBILIZE WORKERS | V22: MOBILIZE WORKERS
B23: Reclamation activities - transport | D23: each | F23: =NA() ->  | G23: =IF(ISNA(F23),0,INDEX(IF(RIGHT(F23,1)="A",unitcostaverage,IF(RIGHT(F23,1)="L",UnitCostLow, IF(RIGHT(F23,1)="H",UnitCostHigh,UnitCostSpecified))),MATCH(LEFT(F23,LEN(F23)-1),CostCode,0))) -> 0 | H23: =G23*E23 -> 0 | K23: Reclamation activities - transport | L23: Reclamation activities - transport | N23: each | P23: =NA() ->  | Q23: =IF(ISNA(P23),0,INDEX(IF(RIGHT(P23,1)="A",unitcostaverage,IF(RIGHT(P23,1)="L",UnitCostLow, IF(RIGHT(P23,1)="H",UnitCostHigh,UnitCostSpecified))),MATCH(LEFT(P23,LEN(P23)-1),CostCode,0))) -> 0 | R23: =Q23*O23 -> 0 | U23: Reclamation activities - transport | V23: Reclamation activities - transport | X23: each | Z23: =NA() ->  | AA23: =IF(ISNA(Z23),0,INDEX(IF(RIGHT(Z23,1)="A",unitcostaverage,IF(RIGHT(Z23,1)="L",UnitCostLow, IF(RIGHT(Z23,1)="H",UnitCostHigh,UnitCostSpecified))),MATCH(LEFT(Z23,LEN(Z23)-1),CostCode,0))) -> 0 | AB23: =AA23*Y23 -> 0
B24: Reclamation activities - travel time | D24: manhours | F24: =NA() ->  | G24: =IF(ISNA(F24),0,INDEX(IF(RIGHT(F24,1)="A",unitcostaverage,IF(RIGHT(F24,1)="L",UnitCostLow, IF(RIGHT(F24,1)="H",UnitCostHigh,UnitCostSpecified))),MATCH(LEFT(F24,LEN(F24)-1),CostCode,0))) -> 0 | H24: =G24*E24 -> 0 | K24: Reclamation activities - travel time | L24: Reclamation activities - travel time | N24: manhours | P24: =NA() ->  | Q24: =IF(ISNA(P24),0,INDEX(IF(RIGHT(P24,1)="A",unitcostaverage,IF(RIGHT(P24,1)="L",UnitCostLow, IF(RIGHT(P24,1)="H",UnitCostHigh,UnitCostSpecified))),MATCH(LEFT(P24,LEN(P24)-1),CostCode,0))) -> 0 | R24: =Q24*O24 -> 0 | U24: Reclamation activities - travel time | V24: Reclamation activities - travel time | X24: manhours | Z24: =NA() ->  | AA24: =IF(ISNA(Z24),0,INDEX(IF(RIGHT(Z24,1)="A",unitcostaverage,IF(RIGHT(Z24,1)="L",UnitCostLow, IF(RIGHT(Z24,1)="H",UnitCostHigh,UnitCostSpecified))),MATCH(LEFT(Z24,LEN(Z24)-1),CostCode,0))) -> 0 | AB24: =AA24*Y24 -> 0
B25: Long term reclamation activities (e.g. pump flooding) - transport | D25: each | F25: =NA() ->  | G25: =IF(ISNA(F25),0,INDEX(IF(RIGHT(F25,1)="A",unitcostaverage,IF(RIGHT(F25,1)="L",UnitCostLow, IF(RIGHT(F25,1)="H",UnitCostHigh,UnitCostSpecified))),MATCH(LEFT(F25,LEN(F25)-1),CostCode,0))) -> 0 | H25: =G25*E25 -> 0 | K25: Long term reclamation activities (eg pump flooding) - transport | L25: Long term reclamation activities (e.g. pump flooding) - transport | N25: each | P25: =NA() ->  | Q25: =IF(ISNA(P25),0,INDEX(IF(RIGHT(P25,1)="A",unitcostaverage,IF(RIGHT(P25,1)="L",UnitCostLow, IF(RIGHT(P25,1)="H",UnitCostHigh,UnitCostSpecified))),MATCH(LEFT(P25,LEN(P25)-1),CostCode,0))) -> 0 | R25: =Q25*O25 -> 0 | U25: Long term reclamation activities (eg pump flooding) - transport | V25: Long term reclamation activities (e.g. pump flooding) - transport | X25: each | Z25: =NA() ->  | AA25: =IF(ISNA(Z25),0,INDEX(IF(RIGHT(Z25,1)="A",unitcostaverage,IF(RIGHT(Z25,1)="L",UnitCostLow, IF(RIGHT(Z25,1)="H",UnitCostHigh,UnitCostSpecified))),MATCH(LEFT(Z25,LEN(Z25)-1),CostCode,0))) -> 0 | AB25: =AA25*Y25 -> 0
B26: Long term reclamation activities (e.g. pump flooding) - travel time | D26: each | F26: =NA() ->  | G26: =IF(ISNA(F26),0,INDEX(IF(RIGHT(F26,1)="A",unitcostaverage,IF(RIGHT(F26,1)="L",UnitCostLow, IF(RIGHT(F26,1)="H",UnitCostHigh,UnitCostSpecified))),MATCH(LEFT(F26,LEN(F26)-1),CostCode,0))) -> 0 | H26: =G26*E26 -> 0 | K26: Long term reclamation activities (eg pump flooding) - travel time | L26: Long term reclamation activities (e.g. pump flooding) - travel time | N26: each | P26: =NA() ->  | Q26: =IF(ISNA(P26),0,INDEX(IF(RIGHT(P26,1)="A",unitcostaverage,IF(RIGHT(P26,1)="L",UnitCostLow, IF(RIGHT(P26,1)="H",UnitCostHigh,UnitCostSpecified))),MATCH(LEFT(P26,LEN(P26)-1),CostCode,0))) -> 0 | R26: =Q26*O26 -> 0 | U26: Long term reclamation activities (eg pump flooding) - travel time | V26: Long term reclamation activities (e.g. pump flooding) - travel time | X26: each | Z26: =NA() ->  | AA26: =IF(ISNA(Z26),0,INDEX(IF(RIGHT(Z26,1)="A",unitcostaverage,IF(RIGHT(Z26,1)="L",UnitCostLow, IF(RIGHT(Z26,1)="H",UnitCostHigh,UnitCostSpecified))),MATCH(LEFT(Z26,LEN(Z26)-1),CostCode,0))) -> 0 | AB26: =AA26*Y26 -> 0
B27: Monitoring Airfare | D27: each | F27: =NA() ->  | G27: =IF(ISNA(F27),0,INDEX(IF(RIGHT(F27,1)="A",unitcostaverage,IF(RIGHT(F27,1)="L",UnitCostLow, IF(RIGHT(F27,1)="H",UnitCostHigh,UnitCostSpecified))),MATCH(LEFT(F27,LEN(F27)-1),CostCode,0))) -> 0 | H27: =G27*E27 -> 0 | K27: Monitoring Airfare | L27: Monitoring Airfare | N27: each | P27: =NA() ->  | Q27: =IF(ISNA(P27),0,INDEX(IF(RIGHT(P27,1)="A",unitcostaverage,IF(RIGHT(P27,1)="L",UnitCostLow, IF(RIGHT(P27,1)="H",UnitCostHigh,UnitCostSpecified))),MATCH(LEFT(P27,LEN(P27)-1),CostCode,0))) -> 0 | R27: =Q27*O27 -> 0 | U27: Monitoring Airfare | V27: Monitoring Airfare | X27: each | Z27: =NA() ->  | AA27: =IF(ISNA(Z27),0,INDEX(IF(RIGHT(Z27,1)="A",unitcostaverage,IF(RIGHT(Z27,1)="L",UnitCostLow, IF(RIGHT(Z27,1)="H",UnitCostHigh,UnitCostSpecified))),MATCH(LEFT(Z27,LEN(Z27)-1),CostCode,0))) -> 0 | AB27: =AA27*Y27 -> 0
B28: WORKER ACCOMODATIONS | K28: WORKER ACCOMODATIONS | L28: WORKER ACCOMODATIONS | U28: WORKER ACCOMODATIONS | V28: WORKER ACCOMODATIONS
B29: Reclamation activities | D29: manmonths | F29: =NA() ->  | G29: =IF(ISNA(F29),0,INDEX(IF(RIGHT(F29,1)="A",unitcostaverage,IF(RIGHT(F29,1)="L",UnitCostLow, IF(RIGHT(F29,1)="H",UnitCostHigh,UnitCostSpecified))),MATCH(LEFT(F29,LEN(F29)-1),CostCode,0))) -> 0 | H29: =G29*E29 -> 0 | K29: Reclamation activities | L29: Reclamation activities | N29: manmonths | P29: =NA() ->  | Q29: =IF(ISNA(P29),0,INDEX(IF(RIGHT(P29,1)="A",unitcostaverage,IF(RIGHT(P29,1)="L",UnitCostLow, IF(RIGHT(P29,1)="H",UnitCostHigh,UnitCostSpecified))),MATCH(LEFT(P29,LEN(P29)-1),CostCode,0))) -> 0 | R29: =Q29*O29 -> 0 | U29: Reclamation activities | V29: Reclamation activities | X29: manmonths | Z29: =NA() ->  | AA29: =IF(ISNA(Z29),0,INDEX(IF(RIGHT(Z29,1)="A",unitcostaverage,IF(RIGHT(Z29,1)="L",UnitCostLow, IF(RIGHT(Z29,1)="H",UnitCostHigh,UnitCostSpecified))),MATCH(LEFT(Z29,LEN(Z29)-1),CostCode,0))) -> 0 | AB29: =AA29*Y29 -> 0
B30: Long term reclamation activities (e.g. pump flooding) | D30: manmonths | F30: =NA() ->  | G30: =IF(ISNA(F30),0,INDEX(IF(RIGHT(F30,1)="A",unitcostaverage,IF(RIGHT(F30,1)="L",UnitCostLow, IF(RIGHT(F30,1)="H",UnitCostHigh,UnitCostSpecified))),MATCH(LEFT(F30,LEN(F30)-1),CostCode,0))) -> 0 | H30: =G30*E30 -> 0 | K30: Long term reclamation activities (eg pump flooding) | L30: Long term reclamation activities (e.g. pump flooding) | N30: manmonths | P30: =NA() ->  | Q30: =IF(ISNA(P30),0,INDEX(IF(RIGHT(P30,1)="A",unitcostaverage,IF(RIGHT(P30,1)="L",UnitCostLow, IF(RIGHT(P30,1)="H",UnitCostHigh,UnitCostSpecified))),MATCH(LEFT(P30,LEN(P30)-1),CostCode,0))) -> 0 | R30: =Q30*O30 -> 0 | U30: Long term reclamation activities (eg pump flooding) | V30: Long term reclamation activities (e.g. pump flooding) | X30: manmonths | Z30: =NA() ->  | AA30: =IF(ISNA(Z30),0,INDEX(IF(RIGHT(Z30,1)="A",unitcostaverage,IF(RIGHT(Z30,1)="L",UnitCostLow, IF(RIGHT(Z30,1)="H",UnitCostHigh,UnitCostSpecified))),MATCH(LEFT(Z30,LEN(Z30)-1),CostCode,0))) -> 0 | AB30: =AA30*Y30 -> 0
B31: MOBILIZE FUEL | K31: MOBILIZE FUEL | L31: MOBILIZE FUEL | U31: MOBILIZE FUEL | V31: MOBILIZE FUEL
B32: Fuel freight - reclamation activities | D32: litre | F32: =NA() ->  | G32: =IF(ISNA(F32),0,INDEX(IF(RIGHT(F32,1)="A",unitcostaverage,IF(RIGHT(F32,1)="L",UnitCostLow, IF(RIGHT(F32,1)="H",UnitCostHigh,UnitCostSpecified))),MATCH(LEFT(F32,LEN(F32)-1),CostCode,0))) -> 0 | H32: =G32*E32 -> 0 | K32: Fuel freight - reclamation activities | L32: Fuel freight - reclamation activities | N32: litre | P32: =NA() ->  | Q32: =IF(ISNA(P32),0,INDEX(IF(RIGHT(P32,1)="A",unitcostaverage,IF(RIGHT(P32,1)="L",UnitCostLow, IF(RIGHT(P32,1)="H",UnitCostHigh,UnitCostSpecified))),MATCH(LEFT(P32,LEN(P32)-1),CostCode,0))) -> 0 | R32: =Q32*O32 -> 0 | U32: Fuel freight - reclamation activities | V32: Fuel freight - reclamation activities | X32: litre | Z32: =NA() ->  | AA32: =IF(ISNA(Z32),0,INDEX(IF(RIGHT(Z32,1)="A",unitcostaverage,IF(RIGHT(Z32,1)="L",UnitCostLow, IF(RIGHT(Z32,1)="H",UnitCostHigh,UnitCostSpecified))),MATCH(LEFT(Z32,LEN(Z32)-1),CostCode,0))) -> 0 | AB32: =AA32*Y32 -> 0
B33: Fuel freight - long term reclamation activities | D33: litre | F33: =NA() ->  | G33: =IF(ISNA(F33),0,INDEX(IF(RIGHT(F33,1)="A",unitcostaverage,IF(RIGHT(F33,1)="L",UnitCostLow, IF(RIGHT(F33,1)="H",UnitCostHigh,UnitCostSpecified))),MATCH(LEFT(F33,LEN(F33)-1),CostCode,0))) -> 0 | H33: =G33*E33 -> 0 | K33: Fuel freight - long term reclamation activities | L33: Fuel freight - long term reclamation activities | N33: litre | P33: =NA() ->  | Q33: =IF(ISNA(P33),0,INDEX(IF(RIGHT(P33,1)="A",unitcostaverage,IF(RIGHT(P33,1)="L",UnitCostLow, IF(RIGHT(P33,1)="H",UnitCostHigh,UnitCostSpecified))),MATCH(LEFT(P33,LEN(P33)-1),CostCode,0))) -> 0 | R33: =Q33*O33 -> 0 | U33: Fuel freight - long term reclamation activities | V33: Fuel freight - long term reclamation activities | X33: litre | Z33: =NA() ->  | AA33: =IF(ISNA(Z33),0,INDEX(IF(RIGHT(Z33,1)="A",unitcostaverage,IF(RIGHT(Z33,1)="L",UnitCostLow, IF(RIGHT(Z33,1)="H",UnitCostHigh,UnitCostSpecified))),MATCH(LEFT(Z33,LEN(Z33)-1),CostCode,0))) -> 0 | AB33: =AA33*Y33 -> 0
B34: Fuel freight accommodations | D34: litre | F34: =NA() ->  | G34: =IF(ISNA(F34),0,INDEX(IF(RIGHT(F34,1)="A",unitcostaverage,IF(RIGHT(F34,1)="L",UnitCostLow, IF(RIGHT(F34,1)="H",UnitCostHigh,UnitCostSpecified))),MATCH(LEFT(F34,LEN(F34)-1),CostCode,0))) -> 0 | H34: =G34*E34 -> 0 | K34: Fuel freight accomodations | L34: Fuel freight accommodations | N34: litre | P34: =NA() ->  | Q34: =IF(ISNA(P34),0,INDEX(IF(RIGHT(P34,1)="A",unitcostaverage,IF(RIGHT(P34,1)="L",UnitCostLow, IF(RIGHT(P34,1)="H",UnitCostHigh,UnitCostSpecified))),MATCH(LEFT(P34,LEN(P34)-1),CostCode,0))) -> 0 | R34: =Q34*O34 -> 0 | U34: Fuel freight accomodations | V34: Fuel freight accommodations | X34: litre | Z34: =NA() ->  | AA34: =IF(ISNA(Z34),0,INDEX(IF(RIGHT(Z34,1)="A",unitcostaverage,IF(RIGHT(Z34,1)="L",UnitCostLow, IF(RIGHT(Z34,1)="H",UnitCostHigh,UnitCostSpecified))),MATCH(LEFT(Z34,LEN(Z34)-1),CostCode,0))) -> 0 | AB34: =AA34*Y34 -> 0
B35: WINTER ROAD FOR MOBILIZATION | K35: WINTER ROAD | L35: WINTER ROAD FOR MOBILIZATION | U35: WINTER ROAD | V35: WINTER ROAD FOR MOBILIZATION
B36: Construction and operation | D36: km | F36: =NA() ->  | G36: =IF(ISNA(F36),0,INDEX(IF(RIGHT(F36,1)="A",unitcostaverage,IF(RIGHT(F36,1)="L",UnitCostLow, IF(RIGHT(F36,1)="H",UnitCostHigh,UnitCostSpecified))),MATCH(LEFT(F36,LEN(F36)-1),CostCode,0))) -> 0 | H36: =G36*E36 -> 0 | K36: Construction and operation | L36: Construction and operation | N36: km | P36: =NA() ->  | Q36: =IF(ISNA(P36),0,INDEX(IF(RIGHT(P36,1)="A",unitcostaverage,IF(RIGHT(P36,1)="L",UnitCostLow, IF(RIGHT(P36,1)="H",UnitCostHigh,UnitCostSpecified))),MATCH(LEFT(P36,LEN(P36)-1),CostCode,0))) -> 0 | R36: =Q36*O36 -> 0 | U36: Construction and operation | V36: Construction and operation | X36: km | Z36: =NA() ->  | AA36: =IF(ISNA(Z36),0,INDEX(IF(RIGHT(Z36,1)="A",unitcostaverage,IF(RIGHT(Z36,1)="L",UnitCostLow, IF(RIGHT(Z36,1)="H",UnitCostHigh,UnitCostSpecified))),MATCH(LEFT(Z36,LEN(Z36)-1),CostCode,0))) -> 0 | AB36: =AA36*Y36 -> 0
B37: Limited winter use | D37: km | F37: =NA() ->  | G37: =IF(ISNA(F37),0,INDEX(IF(RIGHT(F37,1)="A",unitcostaverage,IF(RIGHT(F37,1)="L",UnitCostLow, IF(RIGHT(F37,1)="H",UnitCostHigh,UnitCostSpecified))),MATCH(LEFT(F37,LEN(F37)-1),CostCode,0))) -> 0 | H37: =G37*E37 -> 0 | K37: Limited winter use | L37: Limited winter use | N37: km | P37: =NA() ->  | Q37: =IF(ISNA(P37),0,INDEX(IF(RIGHT(P37,1)="A",unitcostaverage,IF(RIGHT(P37,1)="L",UnitCostLow, IF(RIGHT(P37,1)="H",UnitCostHigh,UnitCostSpecified))),MATCH(LEFT(P37,LEN(P37)-1),CostCode,0))) -> 0 | R37: =Q37*O37 -> 0 | U37: Limited winter use | V37: Limited winter use | X37: km | Z37: =NA() ->  | AA37: =IF(ISNA(Z37),0,INDEX(IF(RIGHT(Z37,1)="A",unitcostaverage,IF(RIGHT(Z37,1)="L",UnitCostLow, IF(RIGHT(Z37,1)="H",UnitCostHigh,UnitCostSpecified))),MATCH(LEFT(Z37,LEN(Z37)-1),CostCode,0))) -> 0 | AB37: =AA37*Y37 -> 0
B38: Winter road tariff | D38: km | F38: =NA() ->  | G38: =IF(ISNA(F38),0,INDEX(IF(RIGHT(F38,1)="A",unitcostaverage,IF(RIGHT(F38,1)="L",UnitCostLow, IF(RIGHT(F38,1)="H",UnitCostHigh,UnitCostSpecified))),MATCH(LEFT(F38,LEN(F38)-1),CostCode,0))) -> 0 | H38: =G38*E38 -> 0 | K38: Winter road tarriff | L38: Winter road tariff | N38: km | P38: =NA() ->  | Q38: =IF(ISNA(P38),0,INDEX(IF(RIGHT(P38,1)="A",unitcostaverage,IF(RIGHT(P38,1)="L",UnitCostLow, IF(RIGHT(P38,1)="H",UnitCostHigh,UnitCostSpecified))),MATCH(LEFT(P38,LEN(P38)-1),CostCode,0))) -> 0 | R38: =Q38*O38 -> 0 | U38: Winter road tarriff | V38: Winter road tariff | X38: km | Z38: =NA() ->  | AA38: =IF(ISNA(Z38),0,INDEX(IF(RIGHT(Z38,1)="A",unitcostaverage,IF(RIGHT(Z38,1)="L",UnitCostLow, IF(RIGHT(Z38,1)="H",UnitCostHigh,UnitCostSpecified))),MATCH(LEFT(Z38,LEN(Z38)-1),CostCode,0))) -> 0 | AB38: =AA38*Y38 -> 0
B39: DEMOBILIZE HEAVY EQUIPMENT | K39: DEMOBILIZE HEAVY EQUIPMENT | L39: DEMOBILIZE HEAVY EQUIPMENT | U39: DEMOBILIZE HEAVY EQUIPMENT | V39: DEMOBILIZE HEAVY EQUIPMENT
B40: Excavators | D40: kmtonne | F40: =NA() ->  | G40: =IF(ISNA(F40),0,INDEX(IF(RIGHT(F40,1)="A",unitcostaverage,IF(RIGHT(F40,1)="L",UnitCostLow, IF(RIGHT(F40,1)="H",UnitCostHigh,UnitCostSpecified))),MATCH(LEFT(F40,LEN(F40)-1),CostCode,0))) -> 0 | H40: =G40*E40 -> 0 | K40: Excavators | L40: Excavators | N40: kmtonne | P40: =NA() ->  | Q40: =IF(ISNA(P40),0,INDEX(IF(RIGHT(P40,1)="A",unitcostaverage,IF(RIGHT(P40,1)="L",UnitCostLow, IF(RIGHT(P40,1)="H",UnitCostHigh,UnitCostSpecified))),MATCH(LEFT(P40,LEN(P40)-1),CostCode,0))) -> 0 | R40: =Q40*O40 -> 0 | U40: Excavators | V40: Excavators | X40: kmtonne | Z40: =NA() ->  | AA40: =IF(ISNA(Z40),0,INDEX(IF(RIGHT(Z40,1)="A",unitcostaverage,IF(RIGHT(Z40,1)="L",UnitCostLow, IF(RIGHT(Z40,1)="H",UnitCostHigh,UnitCostSpecified))),MATCH(LEFT(Z40,LEN(Z40)-1),CostCode,0))) -> 0 | AB40: =AA40*Y40 -> 0
B41: Dump trucks | D41: kmtonne | F41: =NA() ->  | G41: 0 | H41: 0 | K41: Dump trucks | L41: Dump trucks | N41: kmtonne | P41: =NA() ->  | Q41: 0 | R41: 0 | U41: Dump trucks | V41: Dump trucks | X41: kmtonne | Z41: =NA() ->  | AA41: 0 | AB41: 0
B42: Dozers | D42: kmtonne | F42: =NA() ->  | G42: 0 | H42: 0 | K42: Dozers | L42: Dozers | N42: kmtonne | P42: =NA() ->  | Q42: 0 | R42: 0 | U42: Dozers | V42: Dozers | X42: kmtonne | Z42: =NA() ->  | AA42: 0 | AB42: 0
B43: Demolition shears | D43: kmtonne | F43: =NA() ->  | G43: 0 | H43: 0 | K43: Demolition shears | L43: Demolition shears | N43: kmtonne | P43: =NA() ->  | Q43: 0 | R43: 0 | U43: Demolition shears | V43: Demolition shears | X43: kmtonne | Z43: =NA() ->  | AA43: 0 | AB43: 0
B44: Crane | D44: kmtonne | F44: =NA() ->  | G44: 0 | H44: 0 | K44: Crane | L44: Crane | N44: kmtonne | P44: =NA() ->  | Q44: 0 | R44: 0 | U44: Crane | V44: Crane | X44: kmtonne | Z44: =NA() ->  | AA44: 0 | AB44: 0
B45: Loader | D45: kmtonne | F45: =NA() ->  | G45: 0 | H45: =G45*E45 -> 0 | K45: Loader | L45: Loader | N45: kmtonne | P45: =NA() ->  | Q45: 0 | R45: =Q45*O45 -> 0 | U45: Loader | V45: Loader | X45: kmtonne | Z45: =NA() ->  | AA45: 0 | AB45: =AA45*Y45 -> 0
B46: Compactor | D46: kmtonne | F46: =NA() ->  | G46: 0 | H46: =G46*E46 -> 0 | K46: Compactor | L46: Compactor | N46: kmtonne | P46: =NA() ->  | Q46: 0 | R46: =Q46*O46 -> 0 | U46: Compactor | V46: Compactor | X46: kmtonne | Z46: =NA() ->  | AA46: 0 | AB46: =AA46*Y46 -> 0
B47: Light duty vehicles | D47: kmtonne | F47: =NA() ->  | G47: 0 | H47: 0 | K47: Light duty vehicles | L47: Light duty vehicles | N47: kmtonne | P47: =NA() ->  | Q47: 0 | R47: =Q47*O47 -> 0 | U47: Light duty vehicles | V47: Light duty vehicles | X47: kmtonne | Z47: =NA() ->  | AA47: 0 | AB47: =AA47*Y47 -> 0
B48: Other | D48: kmtonne | F48: =NA() ->  | G48: 0 | H48: 0 | K48: Other | L48: Other | N48: kmtonne | P48: =NA() ->  | Q48: 0 | R48: 0 | U48: Other | V48: Other | X48: kmtonne | Z48: =NA() ->  | AA48: 0 | AB48: 0
B49: DEMOBILIZE CAMP | K49: DEMOBILIZE CAMP | L49: DEMOBILIZE CAMP | U49: DEMOBILIZE CAMP | V49: DEMOBILIZE CAMP
B50: Camp Demobilization | D50: allow | F50: =NA() ->  | G50: =IF(ISNA(F50),0,INDEX(IF(RIGHT(F50,1)="A",unitcostaverage,IF(RIGHT(F50,1)="L",UnitCostLow, IF(RIGHT(F50,1)="H",UnitCostHigh,UnitCostSpecified))),MATCH(LEFT(F50,LEN(F50)-1),CostCode,0))) -> 0 | H50: =G50*E50 -> 0 | K50: Camp Demobilization | L50: Camp Demobilization | N50: allow | P50: =NA() ->  | Q50: =IF(ISNA(P50),0,INDEX(IF(RIGHT(P50,1)="A",unitcostaverage,IF(RIGHT(P50,1)="L",UnitCostLow, IF(RIGHT(P50,1)="H",UnitCostHigh,UnitCostSpecified))),MATCH(LEFT(P50,LEN(P50)-1),CostCode,0))) -> 0 | R50: =Q50*O50 -> 0 | U50: Camp Demobilization | V50: Camp Demobilization | X50: allow | Z50: =NA() ->  | AA50: =IF(ISNA(Z50),0,INDEX(IF(RIGHT(Z50,1)="A",unitcostaverage,IF(RIGHT(Z50,1)="L",UnitCostLow, IF(RIGHT(Z50,1)="H",UnitCostHigh,UnitCostSpecified))),MATCH(LEFT(Z50,LEN(Z50)-1),CostCode,0))) -> 0 | AB50: =AA50*Y50 -> 0
B51: DEMOBILIZE WORKERS | K51: DEMOBILIZE WORKERS | L51: DEMOBILIZE WORKERS | U51: DEMOBILIZE WORKERS | V51: DEMOBILIZE WORKERS
B52: crew travel time | D52: mandays | F52: =NA() ->  | G52: =IF(ISNA(F52),0,INDEX(IF(RIGHT(F52,1)="A",unitcostaverage,IF(RIGHT(F52,1)="L",UnitCostLow, IF(RIGHT(F52,1)="H",UnitCostHigh,UnitCostSpecified))),MATCH(LEFT(F52,LEN(F52)-1),CostCode,0))) -> 0 | H52: =G52*E52 -> 0 | K52: crew travel time | L52: crew travel time | N52: mandays | P52: =NA() ->  | Q52: =IF(ISNA(P52),0,INDEX(IF(RIGHT(P52,1)="A",unitcostaverage,IF(RIGHT(P52,1)="L",UnitCostLow, IF(RIGHT(P52,1)="H",UnitCostHigh,UnitCostSpecified))),MATCH(LEFT(P52,LEN(P52)-1),CostCode,0))) -> 0 | R52: =Q52*O52 -> 0 | U52: crew travel time | V52: crew travel time | X52: mandays | Z52: =NA() ->  | AA52: =IF(ISNA(Z52),0,INDEX(IF(RIGHT(Z52,1)="A",unitcostaverage,IF(RIGHT(Z52,1)="L",UnitCostLow, IF(RIGHT(Z52,1)="H",UnitCostHigh,UnitCostSpecified))),MATCH(LEFT(Z52,LEN(Z52)-1),CostCode,0))) -> 0 | AB52: =AA52*Y52 -> 0
B53: crew transportation | D53: each | F53: =NA() ->  | G53: =IF(ISNA(F53),0,INDEX(IF(RIGHT(F53,1)="A",unitcostaverage,IF(RIGHT(F53,1)="L",UnitCostLow, IF(RIGHT(F53,1)="H",UnitCostHigh,UnitCostSpecified))),MATCH(LEFT(F53,LEN(F53)-1),CostCode,0))) -> 0 | H53: =G53*E53 -> 0 | K53: crew transportation | L53: crew transportation | N53: each | P53: =NA() ->  | Q53: =IF(ISNA(P53),0,INDEX(IF(RIGHT(P53,1)="A",unitcostaverage,IF(RIGHT(P53,1)="L",UnitCostLow, IF(RIGHT(P53,1)="H",UnitCostHigh,UnitCostSpecified))),MATCH(LEFT(P53,LEN(P53)-1),CostCode,0))) -> 0 | R53: =Q53*O53 -> 0 | U53: crew transportation | V53: crew transportation | X53: each | Z53: =NA() ->  | AA53: =IF(ISNA(Z53),0,INDEX(IF(RIGHT(Z53,1)="A",unitcostaverage,IF(RIGHT(Z53,1)="L",UnitCostLow, IF(RIGHT(Z53,1)="H",UnitCostHigh,UnitCostSpecified))),MATCH(LEFT(Z53,LEN(Z53)-1),CostCode,0))) -> 0 | AB53: =AA53*Y53 -> 0
B54: WINTER ROAD FOR DEMOBILIZATION | K54: WINTER ROAD | L54: WINTER ROAD FOR DEMOBILIZATION | U54: WINTER ROAD | V54: WINTER ROAD FOR DEMOBILIZATION
B55: Construction and operation | D55: km | F55: =NA() ->  | G55: =IF(ISNA(F55),0,INDEX(IF(RIGHT(F55,1)="A",unitcostaverage,IF(RIGHT(F55,1)="L",UnitCostLow, IF(RIGHT(F55,1)="H",UnitCostHigh,UnitCostSpecified))),MATCH(LEFT(F55,LEN(F55)-1),CostCode,0))) -> 0 | H55: =G55*E55 -> 0 | K55: Construction and operation | L55: Construction and operation | N55: km | P55: =NA() ->  | Q55: =IF(ISNA(P55),0,INDEX(IF(RIGHT(P55,1)="A",unitcostaverage,IF(RIGHT(P55,1)="L",UnitCostLow, IF(RIGHT(P55,1)="H",UnitCostHigh,UnitCostSpecified))),MATCH(LEFT(P55,LEN(P55)-1),CostCode,0))) -> 0 | R55: =Q55*O55 -> 0 | U55: Construction and operation | V55: Construction and operation | X55: km | Z55: =NA() ->  | AA55: =IF(ISNA(Z55),0,INDEX(IF(RIGHT(Z55,1)="A",unitcostaverage,IF(RIGHT(Z55,1)="L",UnitCostLow, IF(RIGHT(Z55,1)="H",UnitCostHigh,UnitCostSpecified))),MATCH(LEFT(Z55,LEN(Z55)-1),CostCode,0))) -> 0 | AB55: =AA55*Y55 -> 0
B56: Limited winter use | D56: km | F56: =NA() ->  | G56: =IF(ISNA(F56),0,INDEX(IF(RIGHT(F56,1)="A",unitcostaverage,IF(RIGHT(F56,1)="L",UnitCostLow, IF(RIGHT(F56,1)="H",UnitCostHigh,UnitCostSpecified))),MATCH(LEFT(F56,LEN(F56)-1),CostCode,0))) -> 0 | H56: =G56*E56 -> 0 | K56: Limited winter use | L56: Limited winter use | N56: km | P56: =NA() ->  | Q56: =IF(ISNA(P56),0,INDEX(IF(RIGHT(P56,1)="A",unitcostaverage,IF(RIGHT(P56,1)="L",UnitCostLow, IF(RIGHT(P56,1)="H",UnitCostHigh,UnitCostSpecified))),MATCH(LEFT(P56,LEN(P56)-1),CostCode,0))) -> 0 | R56: =Q56*O56 -> 0 | U56: Limited winter use | V56: Limited winter use | X56: km | Z56: =NA() ->  | AA56: =IF(ISNA(Z56),0,INDEX(IF(RIGHT(Z56,1)="A",unitcostaverage,IF(RIGHT(Z56,1)="L",UnitCostLow, IF(RIGHT(Z56,1)="H",UnitCostHigh,UnitCostSpecified))),MATCH(LEFT(Z56,LEN(Z56)-1),CostCode,0))) -> 0 | AB56: =AA56*Y56 -> 0
B57: Winter road tariff | D57: km | F57: =NA() ->  | G57: =IF(ISNA(F57),0,INDEX(IF(RIGHT(F57,1)="A",unitcostaverage,IF(RIGHT(F57,1)="L",UnitCostLow, IF(RIGHT(F57,1)="H",UnitCostHigh,UnitCostSpecified))),MATCH(LEFT(F57,LEN(F57)-1),CostCode,0))) -> 0 | H57: =G57*E57 -> 0 | K57: Winter road tarriff | L57: Winter road tariff | N57: km | P57: =NA() ->  | Q57: =IF(ISNA(P57),0,INDEX(IF(RIGHT(P57,1)="A",unitcostaverage,IF(RIGHT(P57,1)="L",UnitCostLow, IF(RIGHT(P57,1)="H",UnitCostHigh,UnitCostSpecified))),MATCH(LEFT(P57,LEN(P57)-1),CostCode,0))) -> 0 | R57: =Q57*O57 -> 0 | U57: Winter road tarriff | V57: Winter road tariff | X57: km | Z57: =NA() ->  | AA57: =IF(ISNA(Z57),0,INDEX(IF(RIGHT(Z57,1)="A",unitcostaverage,IF(RIGHT(Z57,1)="L",UnitCostLow, IF(RIGHT(Z57,1)="H",UnitCostHigh,UnitCostSpecified))),MATCH(LEFT(Z57,LEN(Z57)-1),CostCode,0))) -> 0 | AB57: =AA57*Y57 -> 0
G58: Total | H58: =SUM(H5:H57)+0.0001 -> 0.0001 | Q58: Total | R58: =SUM(R5:R57)+0.0001 -> 0.0001 | AA58: Total | AB58: =SUM(AB5:AB57)+0.0001 -> 0.0001

Sheet PostClosure
A1: 1 | B1: Post-Closure Monitoring & Maintenance:
B3: ACTIVITY/MATERIAL | C3: Notes | D3: Units | E3: Quantity | F3: Cost Code | G3: Unit Cost | H3: Cost
B4: MONITORING, INSPECTIONS & REPORTING
B5: Geotechnical inspection | D5: each | F5: =NA() ->  | G5: =IF(ISNA(F5),0,INDEX(IF(RIGHT(F5,1)="A",unitcostaverage,IF(RIGHT(F5,1)="L",UnitCostLow, IF(RIGHT(F5,1)="H",UnitCostHigh,UnitCostSpecified))),MATCH(LEFT(F5,LEN(F5)-1),CostCode,0))) -> 0 | H5: =G5*E5 -> 0
B6: Survey inspection | D6: each | F6: =NA() ->  | G6: 0 | H6: 0
B7: Site water monitoring (AEMP and SNP) | D7: each | F7: =NA() ->  | G7: =IF(ISNA(F7),0,INDEX(IF(RIGHT(F7,1)="A",unitcostaverage,IF(RIGHT(F7,1)="L",UnitCostLow, IF(RIGHT(F7,1)="H",UnitCostHigh,UnitCostSpecified))),MATCH(LEFT(F7,LEN(F7)-1),CostCode,0))) -> 0 | H7: 0
B8: - Active closure and flooding | D8: each | F8: =NA() ->  | G8: 0 | H8: 0
B9: - Post pit flooding | D9: each | F9: =NA() ->  | G9: 0 | H9: 0
B10: Air Quality Monitoring Program (AQMP) | D10: each | F10: =NA() ->  | G10: 0 | H10: 0
B11: Wildlife Effects Monitoring Program (WEMP) | D11: each | F11: =NA() ->  | G11: 0 | H11: 0
B12: Vegetation Monitoring | D12: each | F12: =NA() ->  | G12: 0 | H12: 0
B13: Other | D13: each | F13: =NA() ->  | G13: 0 | H13: =G13*E13 -> 0
B14: COVER MAINTENANCE & REPORTING
B15: Repair erosion - infill gullies | D15: allow | F15: =NA() ->  | G15: =IF(ISNA(F15),0,INDEX(IF(RIGHT(F15,1)="A",unitcostaverage,IF(RIGHT(F15,1)="L",UnitCostLow, IF(RIGHT(F15,1)="H",UnitCostHigh,UnitCostSpecified))),MATCH(LEFT(F15,LEN(F15)-1),CostCode,0))) -> 0 | H15: =G15*E15 -> 0
B16: Repair erosion - upgrade diversion ditches | D16: allow | F16: =NA() ->  | G16: 0 | H16: 0
B17: Remove problem vegetation | D17: allow | F17: =NA() ->  | G17: 0 | H17: 0
B18: Repair animal damage | D18: allow | F18: =NA() ->  | G18: 0 | H18: 0
B19: Repair/upgrade access controls | D19: allow | F19: =NA() ->  | G19: 0 | H19: 0
B20: Other | D20: allow | F20: =NA() ->  | G20: 0 | H20: 0
B21: SPILLWAY, DAM AND TAILINGS MAINTENANCE
B22: Repair erosion | D22: m3 | F22: =NA() ->  | G22: =IF(ISNA(F22),0,INDEX(IF(RIGHT(F22,1)="A",unitcostaverage,IF(RIGHT(F22,1)="L",UnitCostLow, IF(RIGHT(F22,1)="H",UnitCostHigh,UnitCostSpecified))),MATCH(LEFT(F22,LEN(F22)-1),CostCode,0))) -> 0 | H22: =G22*E22 -> 0
B23: Clear spillway | D23: each | F23: =NA() ->  | G23: =IF(ISNA(F23),0,INDEX(IF(RIGHT(F23,1)="A",unitcostaverage,IF(RIGHT(F23,1)="L",UnitCostLow, IF(RIGHT(F23,1)="H",UnitCostHigh,UnitCostSpecified))),MATCH(LEFT(F23,LEN(F23)-1),CostCode,0))) -> 0 | H23: =G23*E23 -> 0
B24: Dam Repairs | D24: m3 | F24: =NA() ->  | G24: =IF(ISNA(F24),0,INDEX(IF(RIGHT(F24,1)="A",unitcostaverage,IF(RIGHT(F24,1)="L",UnitCostLow, IF(RIGHT(F24,1)="H",UnitCostHigh,UnitCostSpecified))),MATCH(LEFT(F24,LEN(F24)-1),CostCode,0))) -> 0 | H24: =G24*E24 -> 0
B25: Revegetstion Maintenance | D25: ha | F25: =NA() ->  | G25: =IF(ISNA(F25),0,INDEX(IF(RIGHT(F25,1)="A",unitcostaverage,IF(RIGHT(F25,1)="L",UnitCostLow, IF(RIGHT(F25,1)="H",UnitCostHigh,UnitCostSpecified))),MATCH(LEFT(F25,LEN(F25)-1),CostCode,0))) -> 0 | H25: =G25*E25 -> 0
B26: Other | F26: =NA() ->  | G26: =IF(ISNA(F26),0,INDEX(IF(RIGHT(F26,1)="A",unitcostaverage,IF(RIGHT(F26,1)="L",UnitCostLow, IF(RIGHT(F26,1)="H",UnitCostHigh,UnitCostSpecified))),MATCH(LEFT(F26,LEN(F26)-1),CostCode,0))) -> 0 | H26: =G26*E26 -> 0
B27: GENERAL SITE MAINTENANCE
B28: Maintain Airstrip | D28: ha | F28: =NA() ->  | G28: =IF(ISNA(F28),0,INDEX(IF(RIGHT(F28,1)="A",unitcostaverage,IF(RIGHT(F28,1)="L",UnitCostLow, IF(RIGHT(F28,1)="H",UnitCostHigh,UnitCostSpecified))),MATCH(LEFT(F28,LEN(F28)-1),CostCode,0))) -> 0 | H28: =G28*E28 -> 0
B29: Maintain Roadways | D29: ha | F29: =NA() ->  | G29: =IF(ISNA(F29),0,INDEX(IF(RIGHT(F29,1)="A",unitcostaverage,IF(RIGHT(F29,1)="L",UnitCostLow, IF(RIGHT(F29,1)="H",UnitCostHigh,UnitCostSpecified))),MATCH(LEFT(F29,LEN(F29)-1),CostCode,0))) -> 0 | H29: =G29*E29 -> 0
B30: Other | F30: =NA() ->  | G30: =IF(ISNA(F30),0,INDEX(IF(RIGHT(F30,1)="A",unitcostaverage,IF(RIGHT(F30,1)="L",UnitCostLow, IF(RIGHT(F30,1)="H",UnitCostHigh,UnitCostSpecified))),MATCH(LEFT(F30,LEN(F30)-1),CostCode,0))) -> 0 | H30: =G30*E30 -> 0
B31: PASSIVE TREATMENT SYSTEM MAINTENANCE
B32: Media replacement | D32: m3 | F32: =NA() ->  | G32: =IF(ISNA(F32),0,INDEX(IF(RIGHT(F32,1)="A",unitcostaverage,IF(RIGHT(F32,1)="L",UnitCostLow, IF(RIGHT(F32,1)="H",UnitCostHigh,UnitCostSpecified))),MATCH(LEFT(F32,LEN(F32)-1),CostCode,0))) -> 0 | H32: =G32*E32 -> 0
B33: Excavation of old media | D33: m3 | F33: =NA() ->  | G33: =IF(ISNA(F33),0,INDEX(IF(RIGHT(F33,1)="A",unitcostaverage,IF(RIGHT(F33,1)="L",UnitCostLow, IF(RIGHT(F33,1)="H",UnitCostHigh,UnitCostSpecified))),MATCH(LEFT(F33,LEN(F33)-1),CostCode,0))) -> 0 | H33: 0
B34: Maintain flow, restore vegetation | D34: allow | F34: =NA() ->  | G34: =IF(ISNA(F34),0,INDEX(IF(RIGHT(F34,1)="A",unitcostaverage,IF(RIGHT(F34,1)="L",UnitCostLow, IF(RIGHT(F34,1)="H",UnitCostHigh,UnitCostSpecified))),MATCH(LEFT(F34,LEN(F34)-1),CostCode,0))) -> 0 | H34: 0
B35: Other | F35: =NA() ->  | G35: =IF(ISNA(F35),0,INDEX(IF(RIGHT(F35,1)="A",unitcostaverage,IF(RIGHT(F35,1)="L",UnitCostLow, IF(RIGHT(F35,1)="H",UnitCostHigh,UnitCostSpecified))),MATCH(LEFT(F35,LEN(F35)-1),CostCode,0))) -> 0 | H35: 0
B36: Subtotal, Annual post-closure costs | H36: =SUM('Water Treatment'!AF34,H5:H34) -> 0.0001
B37: Number of years of post closure activities | D37: years
B38: Long Term Water Treatment* | C38: See water treatment tab | H38: ='Water Treatment'!AF36 -> 0
B39: Total | H39: =PCAnnualTotal*E37+H38+0.0000001 -> 1e-07
B41: *Include water treatment cost if treatment is considered long term, such as ARD/ML.

Sheet Water Treatment
A1: 1 | B1: Mine Contract Water Treatment Costs from ICM to Closure
B3: ICM WATER TREATMENT | J3: CONSTRUCTION WATER TREATMENT - TAILINGS | R3: CONSTRUCTION WATER TREATMENT - WATER MANAGEMENT | Z3: POST-CLOSURE WATER TREATMENT (long term)
B4: Treatment Plant - Construction | J4: Treatment Plant - Construction | R4: Treatment Plant - Construction | Z4: Treatment Plant - Construction
B5: Construction of Treatment Plant | D5: lump sum | F5: =NA() ->  | G5: =IF(ISNA(F5),0,INDEX(IF(RIGHT(F5,1)="A",unitcostaverage,IF(RIGHT(F5,1)="L",UnitCostLow, IF(RIGHT(F5,1)="H",UnitCostHigh,UnitCostSpecified))),MATCH(LEFT(F5,LEN(F5)-1),CostCode,0))) -> 0 | H5: =G5*E5 -> 0 | J5: Construction of Treatment Plant | L5: lump sum | N5: =NA() ->  | O5: =IF(ISNA(N5),0,INDEX(IF(RIGHT(N5,1)="A",unitcostaverage,IF(RIGHT(N5,1)="L",UnitCostLow, IF(RIGHT(N5,1)="H",UnitCostHigh,UnitCostSpecified))),MATCH(LEFT(N5,LEN(N5)-1),CostCode,0))) -> 0 | P5: =O5*M5 -> 0 | R5: Construction of Treatment Plant | T5: lump sum | V5: =NA() ->  | W5: =IF(ISNA(V5),0,INDEX(IF(RIGHT(V5,1)="A",unitcostaverage,IF(RIGHT(V5,1)="L",UnitCostLow, IF(RIGHT(V5,1)="H",UnitCostHigh,UnitCostSpecified))),MATCH(LEFT(V5,LEN(V5)-1),CostCode,0))) -> 0 | X5: =W5*U5 -> 0 | Z5: Construction of Treatment Plant | AB5: lump sum | AD5: =NA() ->  | AE5: =IF(ISNA(AD5),0,INDEX(IF(RIGHT(AD5,1)="A",unitcostaverage,IF(RIGHT(AD5,1)="L",UnitCostLow, IF(RIGHT(AD5,1)="H",UnitCostHigh,UnitCostSpecified))),MATCH(LEFT(AD5,LEN(AD5)-1),CostCode,0))) -> 0 | AF5: =AE5*AC5 -> 0
B6: Annual Operational Cost | D6: m3 | F6: =NA() ->  | G6: =IF(ISNA(F6),0,INDEX(IF(RIGHT(F6,1)="A",unitcostaverage,IF(RIGHT(F6,1)="L",UnitCostLow, IF(RIGHT(F6,1)="H",UnitCostHigh,UnitCostSpecified))),MATCH(LEFT(F6,LEN(F6)-1),CostCode,0))) -> 0 | H6: =G6*E6 -> 0 | J6: Annual Operational Cost | L6: m3 | N6: =NA() ->  | O6: =IF(ISNA(N6),0,INDEX(IF(RIGHT(N6,1)="A",unitcostaverage,IF(RIGHT(N6,1)="L",UnitCostLow, IF(RIGHT(N6,1)="H",UnitCostHigh,UnitCostSpecified))),MATCH(LEFT(N6,LEN(N6)-1),CostCode,0))) -> 0 | P6: =O6*M6 -> 0 | R6: Annual Operational Cost | T6: m3 | V6: =NA() ->  | W6: =IF(ISNA(V6),0,INDEX(IF(RIGHT(V6,1)="A",unitcostaverage,IF(RIGHT(V6,1)="L",UnitCostLow, IF(RIGHT(V6,1)="H",UnitCostHigh,UnitCostSpecified))),MATCH(LEFT(V6,LEN(V6)-1),CostCode,0))) -> 0 | X6: =W6*U6 -> 0 | Z6: Annual Operational Cost | AB6: m3 | AD6: =NA() ->  | AE6: =IF(ISNA(AD6),0,INDEX(IF(RIGHT(AD6,1)="A",unitcostaverage,IF(RIGHT(AD6,1)="L",UnitCostLow, IF(RIGHT(AD6,1)="H",UnitCostHigh,UnitCostSpecified))),MATCH(LEFT(AD6,LEN(AD6)-1),CostCode,0))) -> 0 | AF6: =AE6*AC6 -> 0
B7: ADDITION OF REAGENTS | J7: ADDITION OF REAGENTS | R7: ADDITION OF REAGENTS | Z7: ADDITION OF REAGENTS
B8: H2O2 | D8: kg | F8: =NA() ->  | G8: =IF(ISNA(F8),0,INDEX(IF(RIGHT(F8,1)="A",unitcostaverage,IF(RIGHT(F8,1)="L",UnitCostLow, IF(RIGHT(F8,1)="H",UnitCostHigh,UnitCostSpecified))),MATCH(LEFT(F8,LEN(F8)-1),CostCode,0))) -> 0 | H8: =G8*E8 -> 0 | J8: H2O2 | L8: kg | N8: =NA() ->  | O8: =IF(ISNA(N8),0,INDEX(IF(RIGHT(N8,1)="A",unitcostaverage,IF(RIGHT(N8,1)="L",UnitCostLow, IF(RIGHT(N8,1)="H",UnitCostHigh,UnitCostSpecified))),MATCH(LEFT(N8,LEN(N8)-1),CostCode,0))) -> 0 | P8: =O8*M8 -> 0 | R8: H2O2 | T8: kg | V8: =NA() ->  | W8: =IF(ISNA(V8),0,INDEX(IF(RIGHT(V8,1)="A",unitcostaverage,IF(RIGHT(V8,1)="L",UnitCostLow, IF(RIGHT(V8,1)="H",UnitCostHigh,UnitCostSpecified))),MATCH(LEFT(V8,LEN(V8)-1),CostCode,0))) -> 0 | X8: =W8*U8 -> 0 | Z8: H2O2 | AB8: kg | AD8: =NA() ->  | AE8: =IF(ISNA(AD8),0,INDEX(IF(RIGHT(AD8,1)="A",unitcostaverage,IF(RIGHT(AD8,1)="L",UnitCostLow, IF(RIGHT(AD8,1)="H",UnitCostHigh,UnitCostSpecified))),MATCH(LEFT(AD8,LEN(AD8)-1),CostCode,0))) -> 0 | AF8: =AE8*AC8 -> 0
B9: lime | D9: kg | F9: =NA() ->  | G9: 0 | H9: 0 | J9: lime | L9: kg | N9: =NA() ->  | O9: 0 | P9: 0 | R9: lime | T9: kg | V9: =NA() ->  | W9: 0 | X9: 0 | Z9: lime | AB9: kg | AD9: =NA() ->  | AE9: 0 | AF9: 0
B10: ferric sulphate | D10: kg | F10: =NA() ->  | G10: 0 | H10: 0 | J10: ferric sulphate | L10: kg | N10: =NA() ->  | O10: 0 | P10: 0 | R10: ferric sulphate | T10: kg | V10: =NA() ->  | W10: 0 | X10: 0 | Z10: ferric sulphate | AB10: kg | AD10: =NA() ->  | AE10: 0 | AF10: 0
B11: ferrous sulphate | D11: kg | F11: =NA() ->  | G11: 0 | H11: 0 | J11: ferrous sulphate | L11: kg | N11: =NA() ->  | O11: 0 | P11: 0 | R11: ferrous sulphate | T11: kg | V11: =NA() ->  | W11: 0 | X11: 0 | Z11: ferrous sulphate | AB11: kg | AD11: =NA() ->  | AE11: 0 | AF11: 0
B12: flocculents | D12: kg | F12: =NA() ->  | G12: 0 | H12: 0 | J12: flocculants | L12: kg | N12: =NA() ->  | O12: 0 | P12: 0 | R12: flocculants | T12: kg | V12: =NA() ->  | W12: 0 | X12: 0 | Z12: flocculants | AB12: kg | AD12: =NA() ->  | AE12: 0 | AF12: 0
B13: Other | F13: =NA() ->  | G13: 0 | H13: 0 | J13: Other | N13: =NA() ->  | O13: 0 | P13: 0 | R13: Other | V13: =NA() ->  | W13: 0 | X13: 0 | Z13: Other | AD13: =NA() ->  | AE13: 0 | AF13: 0
B14: LABOUR AND SUPPLIES | J14: LABOUR AND SUPPLIES | R14: LABOUR AND SUPPLIES | Z14: LABOUR AND SUPPLIES
B15: Annual fuel | D15: litres | F15: =NA() ->  | G15: =IF(ISNA(F15),0,INDEX(IF(RIGHT(F15,1)="A",unitcostaverage,IF(RIGHT(F15,1)="L",UnitCostLow, IF(RIGHT(F15,1)="H",UnitCostHigh,UnitCostSpecified))),MATCH(LEFT(F15,LEN(F15)-1),CostCode,0))) -> 0 | H15: =G15*E15 -> 0 | J15: Annual fuel | L15: litres | N15: =NA() ->  | O15: =IF(ISNA(N15),0,INDEX(IF(RIGHT(N15,1)="A",unitcostaverage,IF(RIGHT(N15,1)="L",UnitCostLow, IF(RIGHT(N15,1)="H",UnitCostHigh,UnitCostSpecified))),MATCH(LEFT(N15,LEN(N15)-1),CostCode,0))) -> 0 | P15: =O15*M15 -> 0 | R15: Annual fuel | T15: litres | V15: =NA() ->  | W15: =IF(ISNA(V15),0,INDEX(IF(RIGHT(V15,1)="A",unitcostaverage,IF(RIGHT(V15,1)="L",UnitCostLow, IF(RIGHT(V15,1)="H",UnitCostHigh,UnitCostSpecified))),MATCH(LEFT(V15,LEN(V15)-1),CostCode,0))) -> 0 | X15: =W15*U15 -> 0 | Z15: Annual fuel | AB15: litres | AD15: =NA() ->  | AE15: =IF(ISNA(AD15),0,INDEX(IF(RIGHT(AD15,1)="A",unitcostaverage,IF(RIGHT(AD15,1)="L",UnitCostLow, IF(RIGHT(AD15,1)="H",UnitCostHigh,UnitCostSpecified))),MATCH(LEFT(AD15,LEN(AD15)-1),CostCode,0))) -> 0 | AF15: =AE15*AC15 -> 0
B16: Annual power | D16: kW-h | F16: =NA() ->  | G16: 0 | H16: 0 | J16: Annual power | L16: kW-h | N16: =NA() ->  | O16: 0 | P16: 0 | R16: Annual power | T16: kW-h | V16: =NA() ->  | W16: 0 | X16: 0 | Z16: Annual power | AB16: kW-h | AD16: =NA() ->  | AE16: 0 | AF16: 0
B17: Electrician/mechanic to maintain treatment plant | D17: allow | F17: =NA() ->  | G17: 0 | H17: 0 | J17: Electrician/mechanic to maintain treatment plant | L17: allow | N17: =NA() ->  | O17: 0 | P17: 0 | R17: Electrician/mechanic to maintain treatment plant | T17: allow | V17: =NA() ->  | W17: 0 | X17: 0 | Z17: Electrician/mechanic to maintain treatment plant | AB17: allow | AD17: =NA() ->  | AE17: 0 | AF17: 0
B18: Equipment maintenance and parts | D18: allow | F18: =NA() ->  | G18: 0 | H18: 0 | J18: Equipment maintenance and parts | L18: allow | N18: =NA() ->  | O18: 0 | P18: 0 | R18: Equipment maintenance and parts | T18: allow | V18: =NA() ->  | W18: 0 | X18: 0 | Z18: Equipment maintenance and parts | AB18: allow | AD18: =NA() ->  | AE18: 0 | AF18: 0
B19: Misc. supplies, hoses, tools | D19: allow | F19: =NA() ->  | G19: 0 | H19: 0 | J19: Misc. supplies, hoses, tools | L19: allow | N19: =NA() ->  | O19: 0 | P19: 0 | R19: Misc. supplies, hoses, tools | T19: allow | V19: =NA() ->  | W19: 0 | X19: 0 | Z19: Misc. supplies, hoses, tools | AB19: allow | AD19: =NA() ->  | AE19: 0 | AF19: 0
B20: Communications | D20: allow | F20: =NA() ->  | G20: 0 | H20: 0 | J20: Communications | L20: allow | N20: =NA() ->  | O20: 0 | P20: 0 | R20: Communications | T20: allow | V20: =NA() ->  | W20: 0 | X20: 0 | Z20: Communications | AB20: allow | AD20: =NA() ->  | AE20: 0 | AF20: 0
B21: Other | F21: =NA() ->  | G21: 0 | H21: 0 | J21: Other | N21: =NA() ->  | O21: 0 | P21: 0 | R21: Other | V21: =NA() ->  | W21: 0 | X21: 0 | Z21: Other | AD21: =NA() ->  | AE21: 0 | AF21: 0
B22: WATER SAMPLING AND ANALYSES | J22: WATER SAMPLING AND ANALYSES | R22: WATER SAMPLING AND ANALYSES | Z22: WATER SAMPLING AND ANALYSES
B23: Sampling equipment | D23: allow | F23: =NA() ->  | G23: =IF(ISNA(F23),0,INDEX(IF(RIGHT(F23,1)="A",unitcostaverage,IF(RIGHT(F23,1)="L",UnitCostLow, IF(RIGHT(F23,1)="H",UnitCostHigh,UnitCostSpecified))),MATCH(LEFT(F23,LEN(F23)-1),CostCode,0))) -> 0 | H23: =G23*E23 -> 0 | J23: Sampling equipment | L23: allow | N23: =NA() ->  | O23: =IF(ISNA(N23),0,INDEX(IF(RIGHT(N23,1)="A",unitcostaverage,IF(RIGHT(N23,1)="L",UnitCostLow, IF(RIGHT(N23,1)="H",UnitCostHigh,UnitCostSpecified))),MATCH(LEFT(N23,LEN(N23)-1),CostCode,0))) -> 0 | P23: =O23*M23 -> 0 | R23: Sampling equipment | T23: allow | V23: =NA() ->  | W23: =IF(ISNA(V23),0,INDEX(IF(RIGHT(V23,1)="A",unitcostaverage,IF(RIGHT(V23,1)="L",UnitCostLow, IF(RIGHT(V23,1)="H",UnitCostHigh,UnitCostSpecified))),MATCH(LEFT(V23,LEN(V23)-1),CostCode,0))) -> 0 | X23: =W23*U23 -> 0 | Z23: Sampling equipment | AB23: allow | AD23: =NA() ->  | AE23: =IF(ISNA(AD23),0,INDEX(IF(RIGHT(AD23,1)="A",unitcostaverage,IF(RIGHT(AD23,1)="L",UnitCostLow, IF(RIGHT(AD23,1)="H",UnitCostHigh,UnitCostSpecified))),MATCH(LEFT(AD23,LEN(AD23)-1),CostCode,0))) -> 0 | AF23: =AE23*AC23 -> 0
B24: Analyses | D24: allow | F24: =NA() ->  | G24: =IF(ISNA(F24),0,INDEX(IF(RIGHT(F24,1)="A",unitcostaverage,IF(RIGHT(F24,1)="L",UnitCostLow, IF(RIGHT(F24,1)="H",UnitCostHigh,UnitCostSpecified))),MATCH(LEFT(F24,LEN(F24)-1),CostCode,0))) -> 0 | H24: =G24*E24 -> 0 | J24: Analyses | L24: allow | N24: =NA() ->  | O24: =IF(ISNA(N24),0,INDEX(IF(RIGHT(N24,1)="A",unitcostaverage,IF(RIGHT(N24,1)="L",UnitCostLow, IF(RIGHT(N24,1)="H",UnitCostHigh,UnitCostSpecified))),MATCH(LEFT(N24,LEN(N24)-1),CostCode,0))) -> 0 | P24: =O24*M24 -> 0 | R24: Analyses | T24: allow | V24: =NA() ->  | W24: =IF(ISNA(V24),0,INDEX(IF(RIGHT(V24,1)="A",unitcostaverage,IF(RIGHT(V24,1)="L",UnitCostLow, IF(RIGHT(V24,1)="H",UnitCostHigh,UnitCostSpecified))),MATCH(LEFT(V24,LEN(V24)-1),CostCode,0))) -> 0 | X24: =W24*U24 -> 0 | Z24: Analyses | AB24: allow | AD24: =NA() ->  | AE24: =IF(ISNA(AD24),0,INDEX(IF(RIGHT(AD24,1)="A",unitcostaverage,IF(RIGHT(AD24,1)="L",UnitCostLow, IF(RIGHT(AD24,1)="H",UnitCostHigh,UnitCostSpecified))),MATCH(LEFT(AD24,LEN(AD24)-1),CostCode,0))) -> 0 | AF24: =AE24*AC24 -> 0
B25: Shipping to laboratory | D25: allow | F25: =NA() ->  | G25: =IF(ISNA(F25),0,INDEX(IF(RIGHT(F25,1)="A",unitcostaverage,IF(RIGHT(F25,1)="L",UnitCostLow, IF(RIGHT(F25,1)="H",UnitCostHigh,UnitCostSpecified))),MATCH(LEFT(F25,LEN(F25)-1),CostCode,0))) -> 0 | H25: =G25*E25 -> 0 | J25: Shipping to laboratory | L25: allow | N25: =NA() ->  | O25: =IF(ISNA(N25),0,INDEX(IF(RIGHT(N25,1)="A",unitcostaverage,IF(RIGHT(N25,1)="L",UnitCostLow, IF(RIGHT(N25,1)="H",UnitCostHigh,UnitCostSpecified))),MATCH(LEFT(N25,LEN(N25)-1),CostCode,0))) -> 0 | P25: =O25*M25 -> 0 | R25: Shipping to laboratory | T25: allow | V25: =NA() ->  | W25: =IF(ISNA(V25),0,INDEX(IF(RIGHT(V25,1)="A",unitcostaverage,IF(RIGHT(V25,1)="L",UnitCostLow, IF(RIGHT(V25,1)="H",UnitCostHigh,UnitCostSpecified))),MATCH(LEFT(V25,LEN(V25)-1),CostCode,0))) -> 0 | X25: =W25*U25 -> 0 | Z25: Shipping to laboratory | AB25: allow | AD25: =NA() ->  | AE25: =IF(ISNA(AD25),0,INDEX(IF(RIGHT(AD25,1)="A",unitcostaverage,IF(RIGHT(AD25,1)="L",UnitCostLow, IF(RIGHT(AD25,1)="H",UnitCostHigh,UnitCostSpecified))),MATCH(LEFT(AD25,LEN(AD25)-1),CostCode,0))) -> 0 | AF25: =AE25*AC25 -> 0
B26: Reporting | D26: allow | F26: =NA() ->  | G26: =IF(ISNA(F26),0,INDEX(IF(RIGHT(F26,1)="A",unitcostaverage,IF(RIGHT(F26,1)="L",UnitCostLow, IF(RIGHT(F26,1)="H",UnitCostHigh,UnitCostSpecified))),MATCH(LEFT(F26,LEN(F26)-1),CostCode,0))) -> 0 | H26: =G26*E26 -> 0 | J26: Reporting | L26: allow | N26: =NA() ->  | O26: =IF(ISNA(N26),0,INDEX(IF(RIGHT(N26,1)="A",unitcostaverage,IF(RIGHT(N26,1)="L",UnitCostLow, IF(RIGHT(N26,1)="H",UnitCostHigh,UnitCostSpecified))),MATCH(LEFT(N26,LEN(N26)-1),CostCode,0))) -> 0 | P26: =O26*M26 -> 0 | R26: Reporting | T26: allow | V26: =NA() ->  | W26: =IF(ISNA(V26),0,INDEX(IF(RIGHT(V26,1)="A",unitcostaverage,IF(RIGHT(V26,1)="L",UnitCostLow, IF(RIGHT(V26,1)="H",UnitCostHigh,UnitCostSpecified))),MATCH(LEFT(V26,LEN(V26)-1),CostCode,0))) -> 0 | X26: =W26*U26 -> 0 | Z26: Reporting | AB26: allow | AD26: =NA() ->  | AE26: =IF(ISNA(AD26),0,INDEX(IF(RIGHT(AD26,1)="A",unitcostaverage,IF(RIGHT(AD26,1)="L",UnitCostLow, IF(RIGHT(AD26,1)="H",UnitCostHigh,UnitCostSpecified))),MATCH(LEFT(AD26,LEN(AD26)-1),CostCode,0))) -> 0 | AF26: =AE26*AC26 -> 0
B27: Other | F27: =NA() ->  | G27: =IF(ISNA(F27),0,INDEX(IF(RIGHT(F27,1)="A",unitcostaverage,IF(RIGHT(F27,1)="L",UnitCostLow, IF(RIGHT(F27,1)="H",UnitCostHigh,UnitCostSpecified))),MATCH(LEFT(F27,LEN(F27)-1),CostCode,0))) -> 0 | H27: =G27*E27 -> 0 | J27: Other | N27: =NA() ->  | O27: =IF(ISNA(N27),0,INDEX(IF(RIGHT(N27,1)="A",unitcostaverage,IF(RIGHT(N27,1)="L",UnitCostLow, IF(RIGHT(N27,1)="H",UnitCostHigh,UnitCostSpecified))),MATCH(LEFT(N27,LEN(N27)-1),CostCode,0))) -> 0 | P27: =O27*M27 -> 0 | R27: Other | V27: =NA() ->  | W27: =IF(ISNA(V27),0,INDEX(IF(RIGHT(V27,1)="A",unitcostaverage,IF(RIGHT(V27,1)="L",UnitCostLow, IF(RIGHT(V27,1)="H",UnitCostHigh,UnitCostSpecified))),MATCH(LEFT(V27,LEN(V27)-1),CostCode,0))) -> 0 | X27: =W27*U27 -> 0 | Z27: Other | AD27: =NA() ->  | AE27: =IF(ISNA(AD27),0,INDEX(IF(RIGHT(AD27,1)="A",unitcostaverage,IF(RIGHT(AD27,1)="L",UnitCostLow, IF(RIGHT(AD27,1)="H",UnitCostHigh,UnitCostSpecified))),MATCH(LEFT(AD27,LEN(AD27)-1),CostCode,0))) -> 0 | AF27: =AE27*AC27 -> 0
B28: SITE ACCESS | J28: SITE ACCESS | R28: SITE ACCESS | Z28: SITE ACCESS
B29: Road maintenance (incl. snow removal) | D29: allow | F29: =NA() ->  | G29: =IF(ISNA(F29),0,INDEX(IF(RIGHT(F29,1)="A",unitcostaverage,IF(RIGHT(F29,1)="L",UnitCostLow, IF(RIGHT(F29,1)="H",UnitCostHigh,UnitCostSpecified))),MATCH(LEFT(F29,LEN(F29)-1),CostCode,0))) -> 0 | H29: =G29*E29 -> 0 | J29: Road maintenance (incl. snow removal) | L29: allow | N29: =NA() ->  | O29: =IF(ISNA(N29),0,INDEX(IF(RIGHT(N29,1)="A",unitcostaverage,IF(RIGHT(N29,1)="L",UnitCostLow, IF(RIGHT(N29,1)="H",UnitCostHigh,UnitCostSpecified))),MATCH(LEFT(N29,LEN(N29)-1),CostCode,0))) -> 0 | P29: =O29*M29 -> 0 | R29: Road maintenance (incl. snow removal) | T29: allow | V29: =NA() ->  | W29: =IF(ISNA(V29),0,INDEX(IF(RIGHT(V29,1)="A",unitcostaverage,IF(RIGHT(V29,1)="L",UnitCostLow, IF(RIGHT(V29,1)="H",UnitCostHigh,UnitCostSpecified))),MATCH(LEFT(V29,LEN(V29)-1),CostCode,0))) -> 0 | X29: =W29*U29 -> 0 | Z29: Road maintenance (incl. snow removal) | AB29: allow | AD29: =NA() ->  | AE29: =IF(ISNA(AD29),0,INDEX(IF(RIGHT(AD29,1)="A",unitcostaverage,IF(RIGHT(AD29,1)="L",UnitCostLow, IF(RIGHT(AD29,1)="H",UnitCostHigh,UnitCostSpecified))),MATCH(LEFT(AD29,LEN(AD29)-1),CostCode,0))) -> 0 | AF29: =AE29*AC29 -> 0
B30: Winter road tariff | D30: allow | F30: =NA() ->  | G30: =IF(ISNA(F30),0,INDEX(IF(RIGHT(F30,1)="A",unitcostaverage,IF(RIGHT(F30,1)="L",UnitCostLow, IF(RIGHT(F30,1)="H",UnitCostHigh,UnitCostSpecified))),MATCH(LEFT(F30,LEN(F30)-1),CostCode,0))) -> 0 | H30: =G30*E30 -> 0 | J30: Winter road tariff | L30: allow | N30: =NA() ->  | O30: =IF(ISNA(N30),0,INDEX(IF(RIGHT(N30,1)="A",unitcostaverage,IF(RIGHT(N30,1)="L",UnitCostLow, IF(RIGHT(N30,1)="H",UnitCostHigh,UnitCostSpecified))),MATCH(LEFT(N30,LEN(N30)-1),CostCode,0))) -> 0 | P30: =O30*M30 -> 0 | R30: Winter road tariff | T30: allow | V30: =NA() ->  | W30: =IF(ISNA(V30),0,INDEX(IF(RIGHT(V30,1)="A",unitcostaverage,IF(RIGHT(V30,1)="L",UnitCostLow, IF(RIGHT(V30,1)="H",UnitCostHigh,UnitCostSpecified))),MATCH(LEFT(V30,LEN(V30)-1),CostCode,0))) -> 0 | X30: =W30*U30 -> 0 | Z30: Winter road tariff | AB30: allow | AD30: =NA() ->  | AE30: =IF(ISNA(AD30),0,INDEX(IF(RIGHT(AD30,1)="A",unitcostaverage,IF(RIGHT(AD30,1)="L",UnitCostLow, IF(RIGHT(AD30,1)="H",UnitCostHigh,UnitCostSpecified))),MATCH(LEFT(AD30,LEN(AD30)-1),CostCode,0))) -> 0 | AF30: =AE30*AC30 -> 0
B31: Truck rental | D31: allow | F31: =NA() ->  | G31: =IF(ISNA(F31),0,INDEX(IF(RIGHT(F31,1)="A",unitcostaverage,IF(RIGHT(F31,1)="L",UnitCostLow, IF(RIGHT(F31,1)="H",UnitCostHigh,UnitCostSpecified))),MATCH(LEFT(F31,LEN(F31)-1),CostCode,0))) -> 0 | H31: =G31*E31 -> 0 | J31: Truck rental | L31: allow | N31: =NA() ->  | O31: =IF(ISNA(N31),0,INDEX(IF(RIGHT(N31,1)="A",unitcostaverage,IF(RIGHT(N31,1)="L",UnitCostLow, IF(RIGHT(N31,1)="H",UnitCostHigh,UnitCostSpecified))),MATCH(LEFT(N31,LEN(N31)-1),CostCode,0))) -> 0 | P31: =O31*M31 -> 0 | R31: Truck rental | T31: allow | V31: =NA() ->  | W31: =IF(ISNA(V31),0,INDEX(IF(RIGHT(V31,1)="A",unitcostaverage,IF(RIGHT(V31,1)="L",UnitCostLow, IF(RIGHT(V31,1)="H",UnitCostHigh,UnitCostSpecified))),MATCH(LEFT(V31,LEN(V31)-1),CostCode,0))) -> 0 | X31: =W31*U31 -> 0 | Z31: Truck rental | AB31: allow | AD31: =NA() ->  | AE31: =IF(ISNA(AD31),0,INDEX(IF(RIGHT(AD31,1)="A",unitcostaverage,IF(RIGHT(AD31,1)="L",UnitCostLow, IF(RIGHT(AD31,1)="H",UnitCostHigh,UnitCostSpecified))),MATCH(LEFT(AD31,LEN(AD31)-1),CostCode,0))) -> 0 | AF31: =AE31*AC31 -> 0
B32: Air support | D32: allow | F32: =NA() ->  | G32: =IF(ISNA(F32),0,INDEX(IF(RIGHT(F32,1)="A",unitcostaverage,IF(RIGHT(F32,1)="L",UnitCostLow, IF(RIGHT(F32,1)="H",UnitCostHigh,UnitCostSpecified))),MATCH(LEFT(F32,LEN(F32)-1),CostCode,0))) -> 0 | H32: =G32*E32 -> 0 | J32: Air support | L32: allow | N32: =NA() ->  | O32: =IF(ISNA(N32),0,INDEX(IF(RIGHT(N32,1)="A",unitcostaverage,IF(RIGHT(N32,1)="L",UnitCostLow, IF(RIGHT(N32,1)="H",UnitCostHigh,UnitCostSpecified))),MATCH(LEFT(N32,LEN(N32)-1),CostCode,0))) -> 0 | P32: =O32*M32 -> 0 | R32: Air support | T32: allow | V32: =NA() ->  | W32: =IF(ISNA(V32),0,INDEX(IF(RIGHT(V32,1)="A",unitcostaverage,IF(RIGHT(V32,1)="L",UnitCostLow, IF(RIGHT(V32,1)="H",UnitCostHigh,UnitCostSpecified))),MATCH(LEFT(V32,LEN(V32)-1),CostCode,0))) -> 0 | X32: =W32*U32 -> 0 | Z32: Air support | AB32: allow | AD32: =NA() ->  | AE32: =IF(ISNA(AD32),0,INDEX(IF(RIGHT(AD32,1)="A",unitcostaverage,IF(RIGHT(AD32,1)="L",UnitCostLow, IF(RIGHT(AD32,1)="H",UnitCostHigh,UnitCostSpecified))),MATCH(LEFT(AD32,LEN(AD32)-1),CostCode,0))) -> 0 | AF32: =AE32*AC32 -> 0
G34: Annual water treatment costs | H34: =SUM(H6:H33)+0.0001 -> 0.0001 | O34: Annual water treatment costs | P34: =SUM(P6:P33)+0.0001 -> 0.0001 | W34: Annual water treatment costs | X34: =SUM(X6:X33)+0.0001 -> 0.0001 | AE34: Annual water treatment costs | AF34: =SUM(AF6:AF33)+0.0001 -> 0.0001
B35: Number of years of water treatment | D35: years | J35: Number of years of water treatment | L35: years | R35: Number of years of water treatment | T35: years | Z35: Number of years of water treatment | AB35: years
G36: Total | H36: =H34*E35+H5 -> 0 | O36: Total | P36: =P34*M35+P5 -> 0 | W36: Total | X36: =X34*U35+X5 -> 0 | AE36: Total | AF36: =AF34*AC35+AF5 -> 0
B38: Note: This post-closure cost is linked back to the ICM Worksheet | J38: Note: This operational cost is linked back to the Tailings Worksheet | R38: Note: This operational cost is linked back to the Water Management Worksheet | Z38: Note: This post-closure cost is linked back to the Post Closure Worksheet

Sheet Unit_Costs
A1: Unit Cost Table (for refining unit costs see "Estimator" worksheet) | N1: Unit Cost Table (for refining unit costs see "Estimator" worksheet)
B2: Year For Rate Escalation (from 2024) Based on Annual Average CPI (obtained from Statistics Canada)* | J2: Select Location | Q2: Filter by unit
B3: 2024 | D3: If year is highlighted yellow, no CPI data is currently available | J3: Nunavut
B4: *Excludes labour and equipment rental rates which have a 4% annual increase applied from 2024
A5: ITEM | B5: Detail | D5: COST CODE | E5: UNITS | F5: LOW $ | G5: HIGH $ | H5: SPECIFIED $ | N5: ITEM | O5: Detail | Q5: COST CODE | R5: UNITS | S5: LOW $ | T5: HIGH $ | U5: SPECIFIED $
A7: Accommodation | N7: Accommodation
D8: ACCM | E8: manday | F8: =IF(ISBLANK(S8)=TRUE,"",IF($B$3=2024,S8,IF(SheetName="Other (enter value below)",S8*(1+$J$4),IF($B$3>_xlfn.AGGREGATE(4,6,INDIRECT("CPI"&SheetName&"!$A:$A"))+1,S8*VLOOKUP($B$3-2,INDIRECT("CPI"&SheetName&"!$A:$C"),3,FALSE),S8*VLOOKUP($B$3-1,INDIRECT("CPI"&SheetName&"!$A:$C"),3,FALSE))))) -> 163 | G8: =IF(ISBLANK(T8)=TRUE,"",IF($B$3=2024,T8,IF(SheetName="Other (enter value below)",T8*(1+$J$4),IF($B$3>_xlfn.AGGREGATE(4,6,INDIRECT("CPI"&SheetName&"!$A:$A"))+1,T8*VLOOKUP($B$3-2,INDIRECT("CPI"&SheetName&"!$A:$C"),3,FALSE),T8*VLOOKUP($B$3-1,INDIRECT("CPI"&SheetName&"!$A:$C"),3,FALSE))))) -> 267 | K8: Low (road access) High (remote access) | Q8: ACCM | R8: manday | S8: 163 | T8: 267
A9: Buildings - Decontaminate | N9: Buildings - Decontaminate
B10: Asbestos | D10: BDA | E10: m2 | F10: =IF(ISBLANK(S10)=TRUE,"",IF($B$3=2024,S10,IF(SheetName="Other (enter value below)",S10*(1+$J$4),IF($B$3>_xlfn.AGGREGATE(4,6,INDIRECT("CPI"&SheetName&"!$A:$A"))+1,S10*VLOOKUP($B$3-2,INDIRECT("CPI"&SheetName&"!$A:$C"),3,FALSE),S10*VLOOKUP($B$3-1,INDIRECT("CPI"&SheetName&"!$A:$C"),3,FALSE))))) -> 527 | G10: =IF(ISBLANK(T10)=TRUE,"",IF($B$3=2024,T10,IF(SheetName="Other (enter value below)",T10*(1+$J$4),IF($B$3>_xlfn.AGGREGATE(4,6,INDIRECT("CPI"&SheetName&"!$A:$A"))+1,T10*VLOOKUP($B$3-2,INDIRECT("CPI"&SheetName&"!$A:$C"),3,FALSE),T10*VLOOKUP($B$3-1,INDIRECT("CPI"&SheetName&"!$A:$C"),3,FALSE))))) -> 834 | K10: Low (non friable) High (fiable) | O10: Asbestos | Q10: BDA | R10: m2 | S10: 527 | T10: 834
A11: Buildings - Remove | N11: Buildings - Remove
B12: Wood | D12: BRW | E12: m3 | F12: =IF(ISBLANK(S12)=TRUE,"",IF($B$3=2024,S12,IF(SheetName="Other (enter value below)",S12*(1+$J$4),IF($B$3>_xlfn.AGGREGATE(4,6,INDIRECT("CPI"&SheetName&"!$A:$A"))+1,S12*VLOOKUP($B$3-2,INDIRECT("CPI"&SheetName&"!$A:$C"),3,FALSE),S12*VLOOKUP($B$3-1,INDIRECT("CPI"&SheetName&"!$A:$C"),3,FALSE))))) -> 83 | G12: =IF(ISBLANK(T12)=TRUE,"",IF($B$3=2024,T12,IF(SheetName="Other (enter value below)",T12*(1+$J$4),IF($B$3>_xlfn.AGGREGATE(4,6,INDIRECT("CPI"&SheetName&"!$A:$A"))+1,T12*VLOOKUP($B$3-2,INDIRECT("CPI"&SheetName&"!$A:$C"),3,FALSE),T12*VLOOKUP($B$3-1,INDIRECT("CPI"&SheetName&"!$A:$C"),3,FALSE))))) ->  | O12: Wood | Q12: BRW | R12: m3 | S12: 83
B13: Concrete | D13: BRC | E13: m3 | F13: =IF(ISBLANK(S13)=TRUE,"",IF($B$3=2024,S13,IF(SheetName="Other (enter value below)",S13*(1+$J$4),IF($B$3>_xlfn.AGGREGATE(4,6,INDIRECT("CPI"&SheetName&"!$A:$A"))+1,S13*VLOOKUP($B$3-2,INDIRECT("CPI"&SheetName&"!$A:$C"),3,FALSE),S13*VLOOKUP($B$3-1,INDIRECT("CPI"&SheetName&"!$A:$C"),3,FALSE))))) -> 93 | G13: =IF(ISBLANK(T13)=TRUE,"",IF($B$3=2024,T13,IF(SheetName="Other (enter value below)",T13*(1+$J$4),IF($B$3>_xlfn.AGGREGATE(4,6,INDIRECT("CPI"&SheetName&"!$A:$A"))+1,T13*VLOOKUP($B$3-2,INDIRECT("CPI"&SheetName&"!$A:$C"),3,FALSE),T13*VLOOKUP($B$3-1,INDIRECT("CPI"&SheetName&"!$A:$C"),3,FALSE))))) ->  | O13: Concrete | Q13: BRC | R13: m3 | S13: 93
B14: Steel - teardown | D14: BRS1 | E14: m3 | F14: =IF(ISBLANK(S14)=TRUE,"",IF($B$3=2024,S14,IF(SheetName="Other (enter value below)",S14*(1+$J$4),IF($B$3>_xlfn.AGGREGATE(4,6,INDIRECT("CPI"&SheetName&"!$A:$A"))+1,S14*VLOOKUP($B$3-2,INDIRECT("CPI"&SheetName&"!$A:$C"),3,FALSE),S14*VLOOKUP($B$3-1,INDIRECT("CPI"&SheetName&"!$A:$C"),3,FALSE))))) -> 81 | G14: =IF(ISBLANK(T14)=TRUE,"",IF($B$3=2024,T14,IF(SheetName="Other (enter value below)",T14*(1+$J$4),IF($B$3>_xlfn.AGGREGATE(4,6,INDIRECT("CPI"&SheetName&"!$A:$A"))+1,T14*VLOOKUP($B$3-2,INDIRECT("CPI"&SheetName&"!$A:$C"),3,FALSE),T14*VLOOKUP($B$3-1,INDIRECT("CPI"&SheetName&"!$A:$C"),3,FALSE))))) ->  | O14: Steel - teardown | Q14: BRS1 | R14: m3 | S14: 81
B15: Steel - for salvage | D15: BRS2 | E15: mt | F15: =IF(ISBLANK(S15)=TRUE,"",IF($B$3=2024,S15,IF(SheetName="Other (enter value below)",S15*(1+$J$4),IF($B$3>_xlfn.AGGREGATE(4,6,INDIRECT("CPI"&SheetName&"!$A:$A"))+1,S15*VLOOKUP($B$3-2,INDIRECT("CPI"&SheetName&"!$A:$C"),3,FALSE),S15*VLOOKUP($B$3-1,INDIRECT("CPI"&SheetName&"!$A:$C"),3,FALSE))))) -> 250 | G15: =IF(ISBLANK(T15)=TRUE,"",IF($B$3=2024,T15,IF(SheetName="Other (enter value below)",T15*(1+$J$4),IF($B$3>_xlfn.AGGREGATE(4,6,INDIRECT("CPI"&SheetName&"!$A:$A"))+1,T15*VLOOKUP($B$3-2,INDIRECT("CPI"&SheetName&"!$A:$C"),3,FALSE),T15*VLOOKUP($B$3-1,INDIRECT("CPI"&SheetName&"!$A:$C"),3,FALSE))))) ->  | O15: Steel - for salvage | Q15: BRS2 | R15: mt | S15: 250
A16: Concrete work | N16: Concrete work
B17: Footing | D17: CFT | E17: m3 | F17: =IF(ISBLANK(S17)=TRUE,"",IF($B$3=2024,S17,IF(SheetName="Other (enter value below)",S17*(1+$J$4),IF($B$3>_xlfn.AGGREGATE(4,6,INDIRECT("CPI"&SheetName&"!$A:$A"))+1,S17*VLOOKUP($B$3-2,INDIRECT("CPI"&SheetName&"!$A:$C"),3,FALSE),S17*VLOOKUP($B$3-1,INDIRECT("CPI"&SheetName&"!$A:$C"),3,FALSE))))) -> 920 | G17: =IF(ISBLANK(T17)=TRUE,"",IF($B$3=2024,T17,IF(SheetName="Other (enter value below)",T17*(1+$J$4),IF($B$3>_xlfn.AGGREGATE(4,6,INDIRECT("CPI"&SheetName&"!$A:$A"))+1,T17*VLOOKUP($B$3-2,INDIRECT("CPI"&SheetName&"!$A:$C"),3,FALSE),T17*VLOOKUP($B$3-1,INDIRECT("CPI"&SheetName&"!$A:$C"),3,FALSE))))) ->  | O17: Footing | Q17: CFT | R17: m3 | S17: 920
B18: Foundation | D18: CFD | E18: m3 | F18: =IF(ISBLANK(S18)=TRUE,"",IF($B$3=2024,S18,IF(SheetName="Other (enter value below)",S18*(1+$J$4),IF($B$3>_xlfn.AGGREGATE(4,6,INDIRECT("CPI"&SheetName&"!$A:$A"))+1,S18*VLOOKUP($B$3-2,INDIRECT("CPI"&SheetName&"!$A:$C"),3,FALSE),S18*VLOOKUP($B$3-1,INDIRECT("CPI"&SheetName&"!$A:$C"),3,FALSE))))) -> 1620 | G18: =IF(ISBLANK(T18)=TRUE,"",IF($B$3=2024,T18,IF(SheetName="Other (enter value below)",T18*(1+$J$4),IF($B$3>_xlfn.AGGREGATE(4,6,INDIRECT("CPI"&SheetName&"!$A:$A"))+1,T18*VLOOKUP($B$3-2,INDIRECT("CPI"&SheetName&"!$A:$C"),3,FALSE),T18*VLOOKUP($B$3-1,INDIRECT("CPI"&SheetName&"!$A:$C"),3,FALSE))))) ->  | O18: Foundation | Q18: CFD | R18: m3 | S18: 1620
B19: Grade beam | D19: CGB | E19: m3 | F19: =IF(ISBLANK(S19)=TRUE,"",IF($B$3=2024,S19,IF(SheetName="Other (enter value below)",S19*(1+$J$4),IF($B$3>_xlfn.AGGREGATE(4,6,INDIRECT("CPI"&SheetName&"!$A:$A"))+1,S19*VLOOKUP($B$3-2,INDIRECT("CPI"&SheetName&"!$A:$C"),3,FALSE),S19*VLOOKUP($B$3-1,INDIRECT("CPI"&SheetName&"!$A:$C"),3,FALSE))))) -> 5380 | G19: =IF(ISBLANK(T19)=TRUE,"",IF($B$3=2024,T19,IF(SheetName="Other (enter value below)",T19*(1+$J$4),IF($B$3>_xlfn.AGGREGATE(4,6,INDIRECT("CPI"&SheetName&"!$A:$A"))+1,T19*VLOOKUP($B$3-2,INDIRECT("CPI"&SheetName&"!$A:$C"),3,FALSE),T19*VLOOKUP($B$3-1,INDIRECT("CPI"&SheetName&"!$A:$C"),3,FALSE))))) ->  | O19: Grade beam | Q19: CGB | R19: m3 | S19: 5380
B20: Piers | D20: CPS | E20: m3 | F20: =IF(ISBLANK(S20)=TRUE,"",IF($B$3=2024,S20,IF(SheetName="Other (enter value below)",S20*(1+$J$4),IF($B$3>_xlfn.AGGREGATE(4,6,INDIRECT("CPI"&SheetName&"!$A:$A"))+1,S20*VLOOKUP($B$3-2,INDIRECT("CPI"&SheetName&"!$A:$C"),3,FALSE),S20*VLOOKUP($B$3-1,INDIRECT("CPI"&SheetName&"!$A:$C"),3,FALSE))))) -> 3260 | G20: =IF(ISBLANK(T20)=TRUE,"",IF($B$3=2024,T20,IF(SheetName="Other (enter value below)",T20*(1+$J$4),IF($B$3>_xlfn.AGGREGATE(4,6,INDIRECT("CPI"&SheetName&"!$A:$A"))+1,T20*VLOOKUP($B$3-2,INDIRECT("CPI"&SheetName&"!$A:$C"),3,FALSE),T20*VLOOKUP($B$3-1,INDIRECT("CPI"&SheetName&"!$A:$C"),3,FALSE))))) ->  | O20: Piers | Q20: CPS | R20: m3 | S20: 3260
B21: Pile cap | D21: CPC | E21: m3 | F21: =IF(ISBLANK(S21)=TRUE,"",IF($B$3=2024,S21,IF(SheetName="Other (enter value below)",S21*(1+$J$4),IF($B$3>_xlfn.AGGREGATE(4,6,INDIRECT("CPI"&SheetName&"!$A:$A"))+1,S21*VLOOKUP($B$3-2,INDIRECT("CPI"&SheetName&"!$A:$C"),3,FALSE),S21*VLOOKUP($B$3-1,INDIRECT("CPI"&SheetName&"!$A:$C"),3,FALSE))))) -> 1920 | G21: =IF(ISBLANK(T21)=TRUE,"",IF($B$3=2024,T21,IF(SheetName="Other (enter value below)",T21*(1+$J$4),IF($B$3>_xlfn.AGGREGATE(4,6,INDIRECT("CPI"&SheetName&"!$A:$A"))+1,T21*VLOOKUP($B$3-2,INDIRECT("CPI"&SheetName&"!$A:$C"),3,FALSE),T21*VLOOKUP($B$3-1,INDIRECT("CPI"&SheetName&"!$A:$C"),3,FALSE))))) ->  | O21: Pile cap | Q21: CPC | R21: m3 | S21: 1920
B22: Slab on Grade | D22: CSG | E22: m3 | F22: =IF(ISBLANK(S22)=TRUE,"",IF($B$3=2024,S22,IF(SheetName="Other (enter value below)",S22*(1+$J$4),IF($B$3>_xlfn.AGGREGATE(4,6,INDIRECT("CPI"&SheetName&"!$A:$A"))+1,S22*VLOOKUP($B$3-2,INDIRECT("CPI"&SheetName&"!$A:$C"),3,FALSE),S22*VLOOKUP($B$3-1,INDIRECT("CPI"&SheetName&"!$A:$C"),3,FALSE))))) -> 900 | G22: =IF(ISBLANK(T22)=TRUE,"",IF($B$3=2024,T22,IF(SheetName="Other (enter value below)",T22*(1+$J$4),IF($B$3>_xlfn.AGGREGATE(4,6,INDIRECT("CPI"&SheetName&"!$A:$A"))+1,T22*VLOOKUP($B$3-2,INDIRECT("CPI"&SheetName&"!$A:$C"),3,FALSE),T22*VLOOKUP($B$3-1,INDIRECT("CPI"&SheetName&"!$A:$C"),3,FALSE))))) ->  | O22: Slab on Grade | Q22: CSG | R22: m3 | S22: 900
B23: Rebar | D23: CRB | E23: kg | F23: =IF(ISBLANK(S23)=TRUE,"",IF($B$3=2024,S23,IF(SheetName="Other (enter value below)",S23*(1+$J$4),IF($B$3>_xlfn.AGGREGATE(4,6,INDIRECT("CPI"&SheetName&"!$A:$A"))+1,S23*VLOOKUP($B$3-2,INDIRECT("CPI"&SheetName&"!$A:$C"),3,FALSE),S23*VLOOKUP($B$3-1,INDIRECT("CPI"&SheetName&"!$A:$C"),3,FALSE))))) -> 3.73 | G23: =IF(ISBLANK(T23)=TRUE,"",IF($B$3=2024,T23,IF(SheetName="Other (enter value below)",T23*(1+$J$4),IF($B$3>_xlfn.AGGREGATE(4,6,INDIRECT("CPI"&SheetName&"!$A:$A"))+1,T23*VLOOKUP($B$3-2,INDIRECT("CPI"&SheetName&"!$A:$C"),3,FALSE),T23*VLOOKUP($B$3-1,INDIRECT("CPI"&SheetName&"!$A:$C"),3,FALSE))))) ->  | O23: Rebar | Q23: CRB | R23: kg | S23: 3.73
A24: Contaminated Soils | N24: Contaminated Soils
B25: ESA Phase 1 | D25: CS1 | E25: each | F25: =IF(ISBLANK(S25)=TRUE,"",IF($B$3=2024,S25,IF(SheetName="Other (enter value below)",S25*(1+$J$4),IF($B$3>_xlfn.AGGREGATE(4,6,INDIRECT("CPI"&SheetName&"!$A:$A"))+1,S25*VLOOKUP($B$3-2,INDIRECT("CPI"&SheetName&"!$A:$C"),3,FALSE),S25*VLOOKUP($B$3-1,INDIRECT("CPI"&SheetName&"!$A:$C"),3,FALSE))))) -> 50000 | G25: =IF(ISBLANK(T25)=TRUE,"",IF($B$3=2024,T25,IF(SheetName="Other (enter value below)",T25*(1+$J$4),IF($B$3>_xlfn.AGGREGATE(4,6,INDIRECT("CPI"&SheetName&"!$A:$A"))+1,T25*VLOOKUP($B$3-2,INDIRECT("CPI"&SheetName&"!$A:$C"),3,FALSE),T25*VLOOKUP($B$3-1,INDIRECT("CPI"&SheetName&"!$A:$C"),3,FALSE))))) ->  | K25: See user manual for details | O25: ESA Phase 1 | Q25: CS1 | R25: each | S25: 50000
B26: ESA Phase 2/3 | D26: CS2 | E26: each | F26: =IF(ISBLANK(S26)=TRUE,"",IF($B$3=2024,S26,IF(SheetName="Other (enter value below)",S26*(1+$J$4),IF($B$3>_xlfn.AGGREGATE(4,6,INDIRECT("CPI"&SheetName&"!$A:$A"))+1,S26*VLOOKUP($B$3-2,INDIRECT("CPI"&SheetName&"!$A:$C"),3,FALSE),S26*VLOOKUP($B$3-1,INDIRECT("CPI"&SheetName&"!$A:$C"),3,FALSE))))) -> 300000 | G26: =IF(ISBLANK(T26)=TRUE,"",IF($B$3=2024,T26,IF(SheetName="Other (enter value below)",T26*(1+$J$4),IF($B$3>_xlfn.AGGREGATE(4,6,INDIRECT("CPI"&SheetName&"!$A:$A"))+1,T26*VLOOKUP($B$3-2,INDIRECT("CPI"&SheetName&"!$A:$C"),3,FALSE),T26*VLOOKUP($B$3-1,INDIRECT("CPI"&SheetName&"!$A:$C"),3,FALSE))))) ->  | O26: ESA Phase 2 | Q26: CS2 | R26: each | S26: 300000
B27: Remediate on site | D27: CSR | E27: m3 | F27: =IF(ISBLANK(S27)=TRUE,"",IF($B$3=2024,S27,IF(SheetName="Other (enter value below)",S27*(1+$J$4),IF($B$3>_xlfn.AGGREGATE(4,6,INDIRECT("CPI"&SheetName&"!$A:$A"))+1,S27*VLOOKUP($B$3-2,INDIRECT("CPI"&SheetName&"!$A:$C"),3,FALSE),S27*VLOOKUP($B$3-1,INDIRECT("CPI"&SheetName&"!$A:$C"),3,FALSE))))) -> 177 | G27: =IF(ISBLANK(T27)=TRUE,"",IF($B$3=2024,T27,IF(SheetName="Other (enter value below)",T27*(1+$J$4),IF($B$3>_xlfn.AGGREGATE(4,6,INDIRECT("CPI"&SheetName&"!$A:$A"))+1,T27*VLOOKUP($B$3-2,INDIRECT("CPI"&SheetName&"!$A:$C"),3,FALSE),T27*VLOOKUP($B$3-1,INDIRECT("CPI"&SheetName&"!$A:$C"),3,FALSE))))) -> 400 | K27: Low (bioremediate) High (engineered landfill) | O27: Remediate on site | Q27: CSR | R27: m3 | S27: 177 | T27: 400
A28: Dozing | N28: Dozing
B29: doze rock piles | D29: DR | E29: m3 | F29: =IF(ISBLANK(S29)=TRUE,"",IF($B$3=2024,S29,IF(SheetName="Other (enter value below)",S29*(1+$J$4),IF($B$3>_xlfn.AGGREGATE(4,6,INDIRECT("CPI"&SheetName&"!$A:$A"))+1,S29*VLOOKUP($B$3-2,INDIRECT("CPI"&SheetName&"!$A:$C"),3,FALSE),S29*VLOOKUP($B$3-1,INDIRECT("CPI"&SheetName&"!$A:$C"),3,FALSE))))) -> 1.68 | G29: =IF(ISBLANK(T29)=TRUE,"",IF($B$3=2024,T29,IF(SheetName="Other (enter value below)",T29*(1+$J$4),IF($B$3>_xlfn.AGGREGATE(4,6,INDIRECT("CPI"&SheetName&"!$A:$A"))+1,T29*VLOOKUP($B$3-2,INDIRECT("CPI"&SheetName&"!$A:$C"),3,FALSE),T29*VLOOKUP($B$3-1,INDIRECT("CPI"&SheetName&"!$A:$C"),3,FALSE))))) -> 3.84 | O29: doze rock piles | Q29: DR | R29: m3 | S29: 1.68 | T29: 3.84
B30: doze overburden/soil piles | D30: DS | E30: m3 | F30: =IF(ISBLANK(S30)=TRUE,"",IF($B$3=2024,S30,IF(SheetName="Other (enter value below)",S30*(1+$J$4),IF($B$3>_xlfn.AGGREGATE(4,6,INDIRECT("CPI"&SheetName&"!$A:$A"))+1,S30*VLOOKUP($B$3-2,INDIRECT("CPI"&SheetName&"!$A:$C"),3,FALSE),S30*VLOOKUP($B$3-1,INDIRECT("CPI"&SheetName&"!$A:$C"),3,FALSE))))) -> 1.52 | G30: =IF(ISBLANK(T30)=TRUE,"",IF($B$3=2024,T30,IF(SheetName="Other (enter value below)",T30*(1+$J$4),IF($B$3>_xlfn.AGGREGATE(4,6,INDIRECT("CPI"&SheetName&"!$A:$A"))+1,T30*VLOOKUP($B$3-2,INDIRECT("CPI"&SheetName&"!$A:$C"),3,FALSE),T30*VLOOKUP($B$3-1,INDIRECT("CPI"&SheetName&"!$A:$C"),3,FALSE))))) -> 6.08 | O30: doze overburden/soil piles | Q30: DS | R30: m3 | S30: 1.52 | T30: 6.08
A31: Drilling & Blasting, Crushing and Screening, Clearing and Grubbing | N31: Drilling & Blasting, Crushing and Screening, Clearing and Grubbing
B32: Drilling and Blasting | D32: DAB | E32: m3 | F32: =IF(ISBLANK(S32)=TRUE,"",IF($B$3=2024,S32,IF(SheetName="Other (enter value below)",S32*(1+$J$4),IF($B$3>_xlfn.AGGREGATE(4,6,INDIRECT("CPI"&SheetName&"!$A:$A"))+1,S32*VLOOKUP($B$3-2,INDIRECT("CPI"&SheetName&"!$A:$C"),3,FALSE),S32*VLOOKUP($B$3-1,INDIRECT("CPI"&SheetName&"!$A:$C"),3,FALSE))))) -> 6.21 | G32: =IF(ISBLANK(T32)=TRUE,"",IF($B$3=2024,T32,IF(SheetName="Other (enter value below)",T32*(1+$J$4),IF($B$3>_xlfn.AGGREGATE(4,6,INDIRECT("CPI"&SheetName&"!$A:$A"))+1,T32*VLOOKUP($B$3-2,INDIRECT("CPI"&SheetName&"!$A:$C"),3,FALSE),T32*VLOOKUP($B$3-1,INDIRECT("CPI"&SheetName&"!$A:$C"),3,FALSE))))) ->  | O32: Drilling and Blasting | Q32: DAB | R32: m3 | S32: 6.21
B33: Crushing and Screening | D33: CAS | E33: m3 | F33: =IF(ISBLANK(S33)=TRUE,"",IF($B$3=2024,S33,IF(SheetName="Other (enter value below)",S33*(1+$J$4),IF($B$3>_xlfn.AGGREGATE(4,6,INDIRECT("CPI"&SheetName&"!$A:$A"))+1,S33*VLOOKUP($B$3-2,INDIRECT("CPI"&SheetName&"!$A:$C"),3,FALSE),S33*VLOOKUP($B$3-1,INDIRECT("CPI"&SheetName&"!$A:$C"),3,FALSE))))) -> 25.82 | G33: =IF(ISBLANK(T33)=TRUE,"",IF($B$3=2024,T33,IF(SheetName="Other (enter value below)",T33*(1+$J$4),IF($B$3>_xlfn.AGGREGATE(4,6,INDIRECT("CPI"&SheetName&"!$A:$A"))+1,T33*VLOOKUP($B$3-2,INDIRECT("CPI"&SheetName&"!$A:$C"),3,FALSE),T33*VLOOKUP($B$3-1,INDIRECT("CPI"&SheetName&"!$A:$C"),3,FALSE))))) ->  | O33: Crushing and Screening | Q33: CAS | R33: m3 | S33: 25.82
B34: Clearing and Grubbing | D34: SBC | E34: m2 | F34: =IF(ISBLANK(S34)=TRUE,"",IF($B$3=2024,S34,IF(SheetName="Other (enter value below)",S34*(1+$J$4),IF($B$3>_xlfn.AGGREGATE(4,6,INDIRECT("CPI"&SheetName&"!$A:$A"))+1,S34*VLOOKUP($B$3-2,INDIRECT("CPI"&SheetName&"!$A:$C"),3,FALSE),S34*VLOOKUP($B$3-1,INDIRECT("CPI"&SheetName&"!$A:$C"),3,FALSE))))) -> 1.7556875 | G34: =IF(ISBLANK(T34)=TRUE,"",IF($B$3=2024,T34,IF(SheetName="Other (enter value below)",T34*(1+$J$4),IF($B$3>_xlfn.AGGREGATE(4,6,INDIRECT("CPI"&SheetName&"!$A:$A"))+1,T34*VLOOKUP($B$3-2,INDIRECT("CPI"&SheetName&"!$A:$C"),3,FALSE),T34*VLOOKUP($B$3-1,INDIRECT("CPI"&SheetName&"!$A:$C"),3,FALSE))))) -> 5.839375 | K34: Low (cut & chip trees to 6 inch) High (cut and chip trees to 12 inch) | O34: Clearing and Grubbing | Q34: SBC | R34: m2 | S34: 1.7556875 | T34: 5.839375
A35: Excavate Rock - Low Spec (e.g. Stockpile Source, Bulk Fill) | K35: Low (1KM haul) High (5 KM haul), specify in longer haul distances | N35: Excavate Rock - Low Spec (Stockpile Source)
B36: load/haul/place | D36: RB1 | E36: m3 | F36: =IF(ISBLANK(S36)=TRUE,"",IF($B$3=2024,S36,IF(SheetName="Other (enter value below)",S36*(1+$J$4),IF($B$3>_xlfn.AGGREGATE(4,6,INDIRECT("CPI"&SheetName&"!$A:$A"))+1,S36*VLOOKUP($B$3-2,INDIRECT("CPI"&SheetName&"!$A:$C"),3,FALSE),S36*VLOOKUP($B$3-1,INDIRECT("CPI"&SheetName&"!$A:$C"),3,FALSE))))) -> 15.93 | G36: =IF(ISBLANK(T36)=TRUE,"",IF($B$3=2024,T36,IF(SheetName="Other (enter value below)",T36*(1+$J$4),IF($B$3>_xlfn.AGGREGATE(4,6,INDIRECT("CPI"&SheetName&"!$A:$A"))+1,T36*VLOOKUP($B$3-2,INDIRECT("CPI"&SheetName&"!$A:$C"),3,FALSE),T36*VLOOKUP($B$3-1,INDIRECT("CPI"&SheetName&"!$A:$C"),3,FALSE))))) -> 30.81 | K36: Add drilling and blasting if the source of rock is bedrock | O36: drill/blast/load/short haul | Q36: SP1 | R36: m3 | S36: 15.93 | T36: 30.81
B37: RB1 + spread and compact | D37: RB2 | E37: m3 | F37: =IF(ISBLANK(S37)=TRUE,"",IF($B$3=2024,S37,IF(SheetName="Other (enter value below)",S37*(1+$J$4),IF($B$3>_xlfn.AGGREGATE(4,6,INDIRECT("CPI"&SheetName&"!$A:$A"))+1,S37*VLOOKUP($B$3-2,INDIRECT("CPI"&SheetName&"!$A:$C"),3,FALSE),S37*VLOOKUP($B$3-1,INDIRECT("CPI"&SheetName&"!$A:$C"),3,FALSE))))) -> 16.63 | G37: =IF(ISBLANK(T37)=TRUE,"",IF($B$3=2024,T37,IF(SheetName="Other (enter value below)",T37*(1+$J$4),IF($B$3>_xlfn.AGGREGATE(4,6,INDIRECT("CPI"&SheetName&"!$A:$A"))+1,T37*VLOOKUP($B$3-2,INDIRECT("CPI"&SheetName&"!$A:$C"),3,FALSE),T37*VLOOKUP($B$3-1,INDIRECT("CPI"&SheetName&"!$A:$C"),3,FALSE))))) -> 32.1 | O37: RB1 + spread and compact | Q37: SP3 | R37: m3 | S37: 16.63 | T37: 32.1
B38: Specified activity | D38: RBS | E38: m3 | F38: =IF(ISBLANK(S38)=TRUE,"",IF($B$3=2024,S38,IF(SheetName="Other (enter value below)",S38*(1+K34),IF($B$3>_xlfn.AGGREGATE(4,6,INDIRECT("CPI"&SheetName&"!$A:$A"))+1,S38*VLOOKUP($B$3-2,INDIRECT("CPI"&SheetName&"!$A:$C"),3,FALSE),S38*VLOOKUP($B$3-1,INDIRECT("CPI"&SheetName&"!$A:$C"),3,FALSE))))) ->  | O38: Specified activity | Q38: SPS | R38: m3
A39: Excavate Rock - High Spec (i.e. Rip Rap, Screened) | K39: Low (1KM haul) High (5 KM haul), specify in longer haul distances | N39: Excavate Rock - High Spec (i.e. Rip Rap, Screened)
B40: drill/blast/load/haul/place | D40: RC1 | E40: m3 | F40: =IF(ISBLANK(S40)=TRUE,"",IF($B$3=2024,S40,IF(SheetName="Other (enter value below)",S40*(1+$J$4),IF($B$3>_xlfn.AGGREGATE(4,6,INDIRECT("CPI"&SheetName&"!$A:$A"))+1,S40*VLOOKUP($B$3-2,INDIRECT("CPI"&SheetName&"!$A:$C"),3,FALSE),S40*VLOOKUP($B$3-1,INDIRECT("CPI"&SheetName&"!$A:$C"),3,FALSE))))) -> 22.14 | G40: =IF(ISBLANK(T40)=TRUE,"",IF($B$3=2024,T40,IF(SheetName="Other (enter value below)",T40*(1+$J$4),IF($B$3>_xlfn.AGGREGATE(4,6,INDIRECT("CPI"&SheetName&"!$A:$A"))+1,T40*VLOOKUP($B$3-2,INDIRECT("CPI"&SheetName&"!$A:$C"),3,FALSE),T40*VLOOKUP($B$3-1,INDIRECT("CPI"&SheetName&"!$A:$C"),3,FALSE))))) -> 37.02 | O40: drill/blast/load/short haul | Q40: RC1 | R40: m3 | S40: 22.14 | T40: 37.02
B41: RC1 + spread and compact | D41: RC2 | E41: m3 | F41: =IF(ISBLANK(S41)=TRUE,"",IF($B$3=2024,S41,IF(SheetName="Other (enter value below)",S41*(1+$J$4),IF($B$3>_xlfn.AGGREGATE(4,6,INDIRECT("CPI"&SheetName&"!$A:$A"))+1,S41*VLOOKUP($B$3-2,INDIRECT("CPI"&SheetName&"!$A:$C"),3,FALSE),S41*VLOOKUP($B$3-1,INDIRECT("CPI"&SheetName&"!$A:$C"),3,FALSE))))) -> 22.84 | G41: =IF(ISBLANK(T41)=TRUE,"",IF($B$3=2024,T41,IF(SheetName="Other (enter value below)",T41*(1+$J$4),IF($B$3>_xlfn.AGGREGATE(4,6,INDIRECT("CPI"&SheetName&"!$A:$A"))+1,T41*VLOOKUP($B$3-2,INDIRECT("CPI"&SheetName&"!$A:$C"),3,FALSE),T41*VLOOKUP($B$3-1,INDIRECT("CPI"&SheetName&"!$A:$C"),3,FALSE))))) -> 38.31 | O41: RC1 + spread and compact | Q41: RC3 | R41: m3 | S41: 22.84 | T41: 38.31
B42: Specified activity | D42: RCS | E42: m3 | F42: =IF(ISBLANK(S42)=TRUE,"",IF($B$3=2024,S42,IF(SheetName="Other (enter value below)",S42*(1+K38),IF($B$3>_xlfn.AGGREGATE(4,6,INDIRECT("CPI"&SheetName&"!$A:$A"))+1,S42*VLOOKUP($B$3-2,INDIRECT("CPI"&SheetName&"!$A:$C"),3,FALSE),S42*VLOOKUP($B$3-1,INDIRECT("CPI"&SheetName&"!$A:$C"),3,FALSE))))) ->  | G42: =IF(ISBLANK(T42)=TRUE,"",IF($B$3=2024,T42,IF(SheetName="Other (enter value below)",T42*(1+L38),IF($B$3>_xlfn.AGGREGATE(4,6,INDIRECT("CPI"&SheetName&"!$A:$A"))+1,T42*VLOOKUP($B$3-2,INDIRECT("CPI"&SheetName&"!$A:$C"),3,FALSE),T42*VLOOKUP($B$3-1,INDIRECT("CPI"&SheetName&"!$A:$C"),3,FALSE))))) ->  | H42: =IF(ISBLANK(U42)=TRUE,"",IF($B$3=2024,U42,IF(SheetName="Other (enter value below)",U42*(1+M38),IF($B$3>_xlfn.AGGREGATE(4,6,INDIRECT("CPI"&SheetName&"!$A:$A"))+1,U42*VLOOKUP($B$3-2,INDIRECT("CPI"&SheetName&"!$A:$C"),3,FALSE),U42*VLOOKUP($B$3-1,INDIRECT("CPI"&SheetName&"!$A:$C"),3,FALSE))))) ->  | O42: Specified activity | Q42: RCS | R42: m3
A43: Excavate Soil - Low Spec (i.e. bulk fill and excavation) | K43: Low (1KM haul) High (5 KM haul), specify in longer haul distances | N43: Excavate Soil - Low Spec
B44: excavate/load/haul/place | D44: SB1 | E44: m3 | F44: =IF(ISBLANK(S44)=TRUE,"",IF($B$3=2024,S44,IF(SheetName="Other (enter value below)",S44*(1+$J$4),IF($B$3>_xlfn.AGGREGATE(4,6,INDIRECT("CPI"&SheetName&"!$A:$A"))+1,S44*VLOOKUP($B$3-2,INDIRECT("CPI"&SheetName&"!$A:$C"),3,FALSE),S44*VLOOKUP($B$3-1,INDIRECT("CPI"&SheetName&"!$A:$C"),3,FALSE))))) -> 14.97 | G44: =IF(ISBLANK(T44)=TRUE,"",IF($B$3=2024,T44,IF(SheetName="Other (enter value below)",T44*(1+$J$4),IF($B$3>_xlfn.AGGREGATE(4,6,INDIRECT("CPI"&SheetName&"!$A:$A"))+1,T44*VLOOKUP($B$3-2,INDIRECT("CPI"&SheetName&"!$A:$C"),3,FALSE),T44*VLOOKUP($B$3-1,INDIRECT("CPI"&SheetName&"!$A:$C"),3,FALSE))))) -> 30.81 | O44: excavate/load/short haul | Q44: SB1 | R44: m3 | S44: 14.97 | T44: 30.81
B45: SB1 + spread and compact | D45: SB2 | E45: m3 | F45: =IF(ISBLANK(S45)=TRUE,"",IF($B$3=2024,S45,IF(SheetName="Other (enter value below)",S45*(1+$J$4),IF($B$3>_xlfn.AGGREGATE(4,6,INDIRECT("CPI"&SheetName&"!$A:$A"))+1,S45*VLOOKUP($B$3-2,INDIRECT("CPI"&SheetName&"!$A:$C"),3,FALSE),S45*VLOOKUP($B$3-1,INDIRECT("CPI"&SheetName&"!$A:$C"),3,FALSE))))) -> 15.85 | G45: =IF(ISBLANK(T45)=TRUE,"",IF($B$3=2024,T45,IF(SheetName="Other (enter value below)",T45*(1+$J$4),IF($B$3>_xlfn.AGGREGATE(4,6,INDIRECT("CPI"&SheetName&"!$A:$A"))+1,T45*VLOOKUP($B$3-2,INDIRECT("CPI"&SheetName&"!$A:$C"),3,FALSE),T45*VLOOKUP($B$3-1,INDIRECT("CPI"&SheetName&"!$A:$C"),3,FALSE))))) -> 29.75 | O45: SB1 + spread and compact | Q45: SB3 | R45: m3 | S45: 15.85 | T45: 29.75
B46: Tailings | D46: SBT | E46: m3 | F46: =IF(ISBLANK(S46)=TRUE,"",IF($B$3=2024,S46,IF(SheetName="Other (enter value below)",S46*(1+$J$4),IF($B$3>_xlfn.AGGREGATE(4,6,INDIRECT("CPI"&SheetName&"!$A:$A"))+1,S46*VLOOKUP($B$3-2,INDIRECT("CPI"&SheetName&"!$A:$C"),3,FALSE),S46*VLOOKUP($B$3-1,INDIRECT("CPI"&SheetName&"!$A:$C"),3,FALSE))))) -> 28 | O46: Tailings | Q46: SBT | R46: m3 | S46: 28
B47: Specified activity | D47: SBS | E47: m3 | F47: =IF(ISBLANK(S47)=TRUE,"",IF($B$3=2024,S47,IF(SheetName="Other (enter value below)",S47*(1+K44),IF($B$3>_xlfn.AGGREGATE(4,6,INDIRECT("CPI"&SheetName&"!$A:$A"))+1,S47*VLOOKUP($B$3-2,INDIRECT("CPI"&SheetName&"!$A:$C"),3,FALSE),S47*VLOOKUP($B$3-1,INDIRECT("CPI"&SheetName&"!$A:$C"),3,FALSE))))) ->  | G47: =IF(ISBLANK(T47)=TRUE,"",IF($B$3=2024,T47,IF(SheetName="Other (enter value below)",T47*(1+L44),IF($B$3>_xlfn.AGGREGATE(4,6,INDIRECT("CPI"&SheetName&"!$A:$A"))+1,T47*VLOOKUP($B$3-2,INDIRECT("CPI"&SheetName&"!$A:$C"),3,FALSE),T47*VLOOKUP($B$3-1,INDIRECT("CPI"&SheetName&"!$A:$C"),3,FALSE))))) ->  | O47: Specified activity | Q47: SBS | R47: m3
A48: Excavate Soil - High Spec (i.e. Engineered Covers, Spillway Clearing, etc.) | K48: Low (1KM haul) High (5 KM haul), specify in longer haul distances | N48: Excavate Soil - High Spec
B49: excavate/load/haul/place/crush and screen | D49: SC1 | E49: m3 | F49: =IF(ISBLANK(S49)=TRUE,"",IF($B$3=2024,S49,IF(SheetName="Other (enter value below)",S49*(1+$J$4),IF($B$3>_xlfn.AGGREGATE(4,6,INDIRECT("CPI"&SheetName&"!$A:$A"))+1,S49*VLOOKUP($B$3-2,INDIRECT("CPI"&SheetName&"!$A:$C"),3,FALSE),S49*VLOOKUP($B$3-1,INDIRECT("CPI"&SheetName&"!$A:$C"),3,FALSE))))) -> 34.42 | G49: =IF(ISBLANK(T49)=TRUE,"",IF($B$3=2024,T49,IF(SheetName="Other (enter value below)",T49*(1+$J$4),IF($B$3>_xlfn.AGGREGATE(4,6,INDIRECT("CPI"&SheetName&"!$A:$A"))+1,T49*VLOOKUP($B$3-2,INDIRECT("CPI"&SheetName&"!$A:$C"),3,FALSE),T49*VLOOKUP($B$3-1,INDIRECT("CPI"&SheetName&"!$A:$C"),3,FALSE))))) -> 47.46 | O49: excavate/load/short haul | Q49: SC1 | R49: m3 | S49: 34.42 | T49: 47.46
B50: SC1 + spread and compact | D50: SC2 | E50: m3 | F50: =IF(ISBLANK(S50)=TRUE,"",IF($B$3=2024,S50,IF(SheetName="Other (enter value below)",S50*(1+$J$4),IF($B$3>_xlfn.AGGREGATE(4,6,INDIRECT("CPI"&SheetName&"!$A:$A"))+1,S50*VLOOKUP($B$3-2,INDIRECT("CPI"&SheetName&"!$A:$C"),3,FALSE),S50*VLOOKUP($B$3-1,INDIRECT("CPI"&SheetName&"!$A:$C"),3,FALSE))))) -> 35.3 | G50: =IF(ISBLANK(T50)=TRUE,"",IF($B$3=2024,T50,IF(SheetName="Other (enter value below)",T50*(1+$J$4),IF($B$3>_xlfn.AGGREGATE(4,6,INDIRECT("CPI"&SheetName&"!$A:$A"))+1,T50*VLOOKUP($B$3-2,INDIRECT("CPI"&SheetName&"!$A:$C"),3,FALSE),T50*VLOOKUP($B$3-1,INDIRECT("CPI"&SheetName&"!$A:$C"),3,FALSE))))) -> 49.2 | O50: SC1 + spread and compact | Q50: SC3 | R50: m3 | S50: 35.3 | T50: 49.2
B51: Specified activity | D51: SCS | E51: m3 | F51: =IF(ISBLANK(S51)=TRUE,"",IF($B$3=2024,S51,IF(SheetName="Other (enter value below)",S51*(1+K48),IF($B$3>_xlfn.AGGREGATE(4,6,INDIRECT("CPI"&SheetName&"!$A:$A"))+1,S51*VLOOKUP($B$3-2,INDIRECT("CPI"&SheetName&"!$A:$C"),3,FALSE),S51*VLOOKUP($B$3-1,INDIRECT("CPI"&SheetName&"!$A:$C"),3,FALSE))))) ->  | O51: Specified activity | Q51: SCS | R51: m3
A52: Fence | N52: Fence
D53: FNC | E53: m | F53: =IF(ISBLANK(S53)=TRUE,"",IF($B$3=2024,S53,IF(SheetName="Other (enter value below)",S53*(1+$J$4),IF($B$3>_xlfn.AGGREGATE(4,6,INDIRECT("CPI"&SheetName&"!$A:$A"))+1,S53*VLOOKUP($B$3-2,INDIRECT("CPI"&SheetName&"!$A:$C"),3,FALSE),S53*VLOOKUP($B$3-1,INDIRECT("CPI"&SheetName&"!$A:$C"),3,FALSE))))) -> 190.8632 | G53: =IF(ISBLANK(T53)=TRUE,"",IF($B$3=2024,T53,IF(SheetName="Other (enter value below)",T53*(1+$J$4),IF($B$3>_xlfn.AGGREGATE(4,6,INDIRECT("CPI"&SheetName&"!$A:$A"))+1,T53*VLOOKUP($B$3-2,INDIRECT("CPI"&SheetName&"!$A:$C"),3,FALSE),T53*VLOOKUP($B$3-1,INDIRECT("CPI"&SheetName&"!$A:$C"),3,FALSE))))) -> 313.0104 | K53: Low (6 ft fence) High (8 ft fence) | Q53: FNC | R53: m | S53: 190.8632 | T53: 313.0104
A54: Fuel and Electricity | N54: Fuel and Electricity
B55: Fuel cost - gas | D55: FCG | E55: litre | F55: =IF(ISBLANK(S55)=TRUE,"",IF($B$3=2024,S55,IF(SheetName="Other (enter value below)",S55*(1+$J$4),IF($B$3>_xlfn.AGGREGATE(4,6,INDIRECT("CPI"&SheetName&"!$A:$A"))+1,S55*VLOOKUP($B$3-2,INDIRECT("CPI"&SheetName&"!$A:$C"),3,FALSE),S55*VLOOKUP($B$3-1,INDIRECT("CPI"&SheetName&"!$A:$C"),3,FALSE))))) -> 1.57 | G55: =IF(ISBLANK(T55)=TRUE,"",IF($B$3=2024,T55,IF(SheetName="Other (enter value below)",T55*(1+$J$4),IF($B$3>_xlfn.AGGREGATE(4,6,INDIRECT("CPI"&SheetName&"!$A:$A"))+1,T55*VLOOKUP($B$3-2,INDIRECT("CPI"&SheetName&"!$A:$C"),3,FALSE),T55*VLOOKUP($B$3-1,INDIRECT("CPI"&SheetName&"!$A:$C"),3,FALSE))))) -> 1.646 | O55: Fuel cost - gas | Q55: FCG | R55: litre | S55: 1.57 | T55: 1.646
B56: Fuel cost - diesel | D56: FCD | E56: litre | F56: =IF(ISBLANK(S56)=TRUE,"",IF($B$3=2024,S56,IF(SheetName="Other (enter value below)",S56*(1+$J$4),IF($B$3>_xlfn.AGGREGATE(4,6,INDIRECT("CPI"&SheetName&"!$A:$A"))+1,S56*VLOOKUP($B$3-2,INDIRECT("CPI"&SheetName&"!$A:$C"),3,FALSE),S56*VLOOKUP($B$3-1,INDIRECT("CPI"&SheetName&"!$A:$C"),3,FALSE))))) -> 1.789 | G56: =IF(ISBLANK(T56)=TRUE,"",IF($B$3=2024,T56,IF(SheetName="Other (enter value below)",T56*(1+$J$4),IF($B$3>_xlfn.AGGREGATE(4,6,INDIRECT("CPI"&SheetName&"!$A:$A"))+1,T56*VLOOKUP($B$3-2,INDIRECT("CPI"&SheetName&"!$A:$C"),3,FALSE),T56*VLOOKUP($B$3-1,INDIRECT("CPI"&SheetName&"!$A:$C"),3,FALSE))))) -> 1.857 | O56: Fuel cost - diesel | Q56: FCD | R56: litre | S56: 1.789 | T56: 1.857
B57: Fuel cost - Jet A | D57: FCJA | E57: litre | F57: =IF(ISBLANK(S57)=TRUE,"",IF($B$3=2024,S57,IF(SheetName="Other (enter value below)",S57*(1+$J$4),IF($B$3>_xlfn.AGGREGATE(4,6,INDIRECT("CPI"&SheetName&"!$A:$A"))+1,S57*VLOOKUP($B$3-2,INDIRECT("CPI"&SheetName&"!$A:$C"),3,FALSE),S57*VLOOKUP($B$3-1,INDIRECT("CPI"&SheetName&"!$A:$C"),3,FALSE))))) -> 2.4 | G57: =IF(ISBLANK(T57)=TRUE,"",IF($B$3=2024,T57,IF(SheetName="Other (enter value below)",T57*(1+$J$4),IF($B$3>_xlfn.AGGREGATE(4,6,INDIRECT("CPI"&SheetName&"!$A:$A"))+1,T57*VLOOKUP($B$3-2,INDIRECT("CPI"&SheetName&"!$A:$C"),3,FALSE),T57*VLOOKUP($B$3-1,INDIRECT("CPI"&SheetName&"!$A:$C"),3,FALSE))))) -> 2.7 | O57: Fuel cost - Jet A | S57: 2.4 | T57: 2.7
B58: Fuel cost - Jet b | D58: FCJB | E58: litre | F58: =IF(ISBLANK(S58)=TRUE,"",IF($B$3=2024,S58,IF(SheetName="Other (enter value below)",S58*(1+$J$4),IF($B$3>_xlfn.AGGREGATE(4,6,INDIRECT("CPI"&SheetName&"!$A:$A"))+1,S58*VLOOKUP($B$3-2,INDIRECT("CPI"&SheetName&"!$A:$C"),3,FALSE),S58*VLOOKUP($B$3-1,INDIRECT("CPI"&SheetName&"!$A:$C"),3,FALSE))))) -> 2.7 | G58: =IF(ISBLANK(T58)=TRUE,"",IF($B$3=2024,T58,IF(SheetName="Other (enter value below)",T58*(1+$J$4),IF($B$3>_xlfn.AGGREGATE(4,6,INDIRECT("CPI"&SheetName&"!$A:$A"))+1,T58*VLOOKUP($B$3-2,INDIRECT("CPI"&SheetName&"!$A:$C"),3,FALSE),T58*VLOOKUP($B$3-1,INDIRECT("CPI"&SheetName&"!$A:$C"),3,FALSE))))) -> 3.2 | O58: Fuel cost - Jet b | S58: 2.7 | T58: 3.2
B59: Fuel cost - Avgas | D59: FCAV | E59: litre | F59: =IF(ISBLANK(S59)=TRUE,"",IF($B$3=2024,S59,IF(SheetName="Other (enter value below)",S59*(1+$J$4),IF($B$3>_xlfn.AGGREGATE(4,6,INDIRECT("CPI"&SheetName&"!$A:$A"))+1,S59*VLOOKUP($B$3-2,INDIRECT("CPI"&SheetName&"!$A:$C"),3,FALSE),S59*VLOOKUP($B$3-1,INDIRECT("CPI"&SheetName&"!$A:$C"),3,FALSE))))) -> 1.45 | G59: =IF(ISBLANK(T59)=TRUE,"",IF($B$3=2024,T59,IF(SheetName="Other (enter value below)",T59*(1+$J$4),IF($B$3>_xlfn.AGGREGATE(4,6,INDIRECT("CPI"&SheetName&"!$A:$A"))+1,T59*VLOOKUP($B$3-2,INDIRECT("CPI"&SheetName&"!$A:$C"),3,FALSE),T59*VLOOKUP($B$3-1,INDIRECT("CPI"&SheetName&"!$A:$C"),3,FALSE))))) -> 1.6 | O59: Fuel cost - Avgas | S59: 1.45 | T59: 1.6
B60: Fuel mobilization | D60: FCM | E60: $/litre | F60: =IF(ISBLANK(S60)=TRUE,"",IF($B$3=2024,S60,IF(SheetName="Other (enter value below)",S60*(1+$J$4),IF($B$3>_xlfn.AGGREGATE(4,6,INDIRECT("CPI"&SheetName&"!$A:$A"))+1,S60*VLOOKUP($B$3-2,INDIRECT("CPI"&SheetName&"!$A:$C"),3,FALSE),S60*VLOOKUP($B$3-1,INDIRECT("CPI"&SheetName&"!$A:$C"),3,FALSE))))) -> 80 | G60: =IF(ISBLANK(T60)=TRUE,"",IF($B$3=2024,T60,IF(SheetName="Other (enter value below)",T60*(1+$J$4),IF($B$3>_xlfn.AGGREGATE(4,6,INDIRECT("CPI"&SheetName&"!$A:$A"))+1,T60*VLOOKUP($B$3-2,INDIRECT("CPI"&SheetName&"!$A:$C"),3,FALSE),T60*VLOOKUP($B$3-1,INDIRECT("CPI"&SheetName&"!$A:$C"),3,FALSE))))) -> 0.6 | O60: Fuel mobilization | Q60: FCM | R60: $/litre | S60: 80 | T60: 0.6
B61: Electricity | D61: FCE | E61: kW-h | F61: =IF(ISBLANK(S61)=TRUE,"",IF($B$3=2024,S61,IF(SheetName="Other (enter value below)",S61*(1+$J$4),IF($B$3>_xlfn.AGGREGATE(4,6,INDIRECT("CPI"&SheetName&"!$A:$A"))+1,S61*VLOOKUP($B$3-2,INDIRECT("CPI"&SheetName&"!$A:$C"),3,FALSE),S61*VLOOKUP($B$3-1,INDIRECT("CPI"&SheetName&"!$A:$C"),3,FALSE))))) -> 0.95 | O61: Electricity | Q61: FCE | R61: kW-h | S61: 0.95
A62: Geo-Synthetics | N62: Geo-Synthetics
B63: geotextile | D63: GST | E63: m2 | F63: =IF(ISBLANK(S63)=TRUE,"",IF($B$3=2024,S63,IF(SheetName="Other (enter value below)",S63*(1+$J$4),IF($B$3>_xlfn.AGGREGATE(4,6,INDIRECT("CPI"&SheetName&"!$A:$A"))+1,S63*VLOOKUP($B$3-2,INDIRECT("CPI"&SheetName&"!$A:$C"),3,FALSE),S63*VLOOKUP($B$3-1,INDIRECT("CPI"&SheetName&"!$A:$C"),3,FALSE))))) -> 1.6 | O63: geotextile | Q63: GST | R63: m2 | S63: 1.6
B64: geogrid | D64: GSG | E64: m2 | F64: =IF(ISBLANK(S64)=TRUE,"",IF($B$3=2024,S64,IF(SheetName="Other (enter value below)",S64*(1+$J$4),IF($B$3>_xlfn.AGGREGATE(4,6,INDIRECT("CPI"&SheetName&"!$A:$A"))+1,S64*VLOOKUP($B$3-2,INDIRECT("CPI"&SheetName&"!$A:$C"),3,FALSE),S64*VLOOKUP($B$3-1,INDIRECT("CPI"&SheetName&"!$A:$C"),3,FALSE))))) -> 3.17 | O64: geogrid | Q64: GSG | R64: m2 | S64: 3.17
B65: liner, HDPE | D65: GSHDPE | E65: m2 | F65: =IF(ISBLANK(S65)=TRUE,"",IF($B$3=2024,S65,IF(SheetName="Other (enter value below)",S65*(1+$J$4),IF($B$3>_xlfn.AGGREGATE(4,6,INDIRECT("CPI"&SheetName&"!$A:$A"))+1,S65*VLOOKUP($B$3-2,INDIRECT("CPI"&SheetName&"!$A:$C"),3,FALSE),S65*VLOOKUP($B$3-1,INDIRECT("CPI"&SheetName&"!$A:$C"),3,FALSE))))) -> 5.233199706 | O65: liner, HDPE | Q65: GSHDPE | R65: m2 | S65: 5.233199706
B66: liner, ES3 | D66: GSES3 | E66: m2 | F66: =IF(ISBLANK(S66)=TRUE,"",IF($B$3=2024,S66,IF(SheetName="Other (enter value below)",S66*(1+$J$4),IF($B$3>_xlfn.AGGREGATE(4,6,INDIRECT("CPI"&SheetName&"!$A:$A"))+1,S66*VLOOKUP($B$3-2,INDIRECT("CPI"&SheetName&"!$A:$C"),3,FALSE),S66*VLOOKUP($B$3-1,INDIRECT("CPI"&SheetName&"!$A:$C"),3,FALSE))))) -> 23.23 | O66: liner, ES3 | Q66: GSES3 | R66: m2 | S66: 23.23
B67: geotextile installation | D67: GTI | E67: m2 | F67: =IF(ISBLANK(S67)=TRUE,"",IF($B$3=2024,S67,IF(SheetName="Other (enter value below)",S67*(1+$J$4),IF($B$3>_xlfn.AGGREGATE(4,6,INDIRECT("CPI"&SheetName&"!$A:$A"))+1,S67*VLOOKUP($B$3-2,INDIRECT("CPI"&SheetName&"!$A:$C"),3,FALSE),S67*VLOOKUP($B$3-1,INDIRECT("CPI"&SheetName&"!$A:$C"),3,FALSE))))) -> 6.8864 | O67: geotextile installation | Q67: GTI | R67: m2 | S67: 6.8864
B68: geosynthetic installation | D68: GSI | E68: m2 | F68: =IF(ISBLANK(S68)=TRUE,"",IF($B$3=2024,S68,IF(SheetName="Other (enter value below)",S68*(1+$J$4),IF($B$3>_xlfn.AGGREGATE(4,6,INDIRECT("CPI"&SheetName&"!$A:$A"))+1,S68*VLOOKUP($B$3-2,INDIRECT("CPI"&SheetName&"!$A:$C"),3,FALSE),S68*VLOOKUP($B$3-1,INDIRECT("CPI"&SheetName&"!$A:$C"),3,FALSE))))) -> 6.8864 | O68: geosynthetic installation | Q68: GSI | S68: 6.8864
B69: bentonite soil amendment | D69: GSBA | E69: tonne | F69: =IF(ISBLANK(S69)=TRUE,"",IF($B$3=2024,S69,IF(SheetName="Other (enter value below)",S69*(1+$J$4),IF($B$3>_xlfn.AGGREGATE(4,6,INDIRECT("CPI"&SheetName&"!$A:$A"))+1,S69*VLOOKUP($B$3-2,INDIRECT("CPI"&SheetName&"!$A:$C"),3,FALSE),S69*VLOOKUP($B$3-1,INDIRECT("CPI"&SheetName&"!$A:$C"),3,FALSE))))) -> 380 | O69: bentonite soil amendment | Q69: GSBA | R69: tonne | S69: 380
A70: Grouting (/m3 of rock grouted) | N70: Grouting (/m3 of rock grouted)
D71: grout | E71: m3 | F71: =IF(ISBLANK(S71)=TRUE,"",IF($B$3=2024,S71,IF(SheetName="Other (enter value below)",S71*(1+$J$4),IF($B$3>_xlfn.AGGREGATE(4,6,INDIRECT("CPI"&SheetName&"!$A:$A"))+1,S71*VLOOKUP($B$3-2,INDIRECT("CPI"&SheetName&"!$A:$C"),3,FALSE),S71*VLOOKUP($B$3-1,INDIRECT("CPI"&SheetName&"!$A:$C"),3,FALSE))))) -> 503.88 | H71: =IF(ISBLANK(U71)=TRUE,"",IF($B$3=2024,U71,IF(SheetName="Other (enter value below)",U71*(1+M68),IF($B$3>_xlfn.AGGREGATE(4,6,INDIRECT("CPI"&SheetName&"!$A:$A"))+1,U71*VLOOKUP($B$3-2,INDIRECT("CPI"&SheetName&"!$A:$C"),3,FALSE),U71*VLOOKUP($B$3-1,INDIRECT("CPI"&SheetName&"!$A:$C"),3,FALSE))))) ->  | Q71: grout | R71: m3 | S71: 503.88
A72: Labour & Equipment Rates | N72: Labour & Equipment Rates
B73: Site manager | D73: sman | E73: $/hr | F73: =IF(ISBLANK(S73)=TRUE,"",IF($B$3=2024,S73,IF(SheetName="Other (enter value below)",S73*(1+$J$4),IF($B$3>_xlfn.AGGREGATE(4,6,INDIRECT("CPI"&SheetName&"!$A:$A"))+1,S73*VLOOKUP($B$3-2,INDIRECT("CPI"&SheetName&"!$A:$C"),3,FALSE),S73*VLOOKUP($B$3-1,INDIRECT("CPI"&SheetName&"!$A:$C"),3,FALSE))))) -> 170 | O73: Site manager | Q73: sman | R73: $/hr | S73: 170
B74: Supervisor | D74: super | E74: $/hr | F74: =IF(ISBLANK(S74)=TRUE,"",IF($B$3=2024,S74,IF(SheetName="Other (enter value below)",S74*(1+$J$4),IF($B$3>_xlfn.AGGREGATE(4,6,INDIRECT("CPI"&SheetName&"!$A:$A"))+1,S74*VLOOKUP($B$3-2,INDIRECT("CPI"&SheetName&"!$A:$C"),3,FALSE),S74*VLOOKUP($B$3-1,INDIRECT("CPI"&SheetName&"!$A:$C"),3,FALSE))))) -> 100 | O74: Supervisor | Q74: super | R74: $/hr | S74: 100
B75: Registered engineer | D75: eng | E75: $/hr | F75: =IF(ISBLANK(S75)=TRUE,"",IF($B$3=2024,S75,IF(SheetName="Other (enter value below)",S75*(1+$J$4),IF($B$3>_xlfn.AGGREGATE(4,6,INDIRECT("CPI"&SheetName&"!$A:$A"))+1,S75*VLOOKUP($B$3-2,INDIRECT("CPI"&SheetName&"!$A:$C"),3,FALSE),S75*VLOOKUP($B$3-1,INDIRECT("CPI"&SheetName&"!$A:$C"),3,FALSE))))) -> 185 | O75: Registered engineer | Q75: eng | R75: $/hr | S75: 185
B76: Environmental coordinator | D76: envco | E76: $/hr | F76: =IF(ISBLANK(S76)=TRUE,"",IF($B$3=2024,S76,IF(SheetName="Other (enter value below)",S76*(1+$J$4),IF($B$3>_xlfn.AGGREGATE(4,6,INDIRECT("CPI"&SheetName&"!$A:$A"))+1,S76*VLOOKUP($B$3-2,INDIRECT("CPI"&SheetName&"!$A:$C"),3,FALSE),S76*VLOOKUP($B$3-1,INDIRECT("CPI"&SheetName&"!$A:$C"),3,FALSE))))) -> 150 | O76: Environmental coordinator | Q76: envco | R76: $/hr | S76: 150
B77: Environmental technologist | D77: envtech | E77: $/hr | F77: =IF(ISBLANK(S77)=TRUE,"",IF($B$3=2024,S77,IF(SheetName="Other (enter value below)",S77*(1+$J$4),IF($B$3>_xlfn.AGGREGATE(4,6,INDIRECT("CPI"&SheetName&"!$A:$A"))+1,S77*VLOOKUP($B$3-2,INDIRECT("CPI"&SheetName&"!$A:$C"),3,FALSE),S77*VLOOKUP($B$3-1,INDIRECT("CPI"&SheetName&"!$A:$C"),3,FALSE))))) -> 100 | O77: Environmental technologist | Q77: envtech | R77: $/hr | S77: 100
B78: Electrician | D78: elec | E78: $/hr | F78: =IF(ISBLANK(S78)=TRUE,"",IF($B$3=2024,S78,IF(SheetName="Other (enter value below)",S78*(1+$J$4),IF($B$3>_xlfn.AGGREGATE(4,6,INDIRECT("CPI"&SheetName&"!$A:$A"))+1,S78*VLOOKUP($B$3-2,INDIRECT("CPI"&SheetName&"!$A:$C"),3,FALSE),S78*VLOOKUP($B$3-1,INDIRECT("CPI"&SheetName&"!$A:$C"),3,FALSE))))) -> 90 | O78: Electrician | Q78: elec | R78: $/hr | S78: 90
B79: Journeyman - various | D79: journey | E79: $/hr | F79: =IF(ISBLANK(S79)=TRUE,"",IF($B$3=2024,S79,IF(SheetName="Other (enter value below)",S79*(1+$J$4),IF($B$3>_xlfn.AGGREGATE(4,6,INDIRECT("CPI"&SheetName&"!$A:$A"))+1,S79*VLOOKUP($B$3-2,INDIRECT("CPI"&SheetName&"!$A:$C"),3,FALSE),S79*VLOOKUP($B$3-1,INDIRECT("CPI"&SheetName&"!$A:$C"),3,FALSE))))) -> 100 | O79: Journeyman - various | Q79: journey | R79: $/hr | S79: 100
B80: Labour - skilled | D80: lab-s | E80: $/hr | F80: =IF(ISBLANK(S80)=TRUE,"",IF($B$3=2024,S80,IF(SheetName="Other (enter value below)",S80*(1+$J$4),IF($B$3>_xlfn.AGGREGATE(4,6,INDIRECT("CPI"&SheetName&"!$A:$A"))+1,S80*VLOOKUP($B$3-2,INDIRECT("CPI"&SheetName&"!$A:$C"),3,FALSE),S80*VLOOKUP($B$3-1,INDIRECT("CPI"&SheetName&"!$A:$C"),3,FALSE))))) -> 80 | O80: Labour - skilled | Q80: lab-s | R80: $/hr | S80: 80
B81: Labour - unskilled | D81: lab-us | E81: $/hr | F81: =IF(ISBLANK(S81)=TRUE,"",IF($B$3=2024,S81,IF(SheetName="Other (enter value below)",S81*(1+$J$4),IF($B$3>_xlfn.AGGREGATE(4,6,INDIRECT("CPI"&SheetName&"!$A:$A"))+1,S81*VLOOKUP($B$3-2,INDIRECT("CPI"&SheetName&"!$A:$C"),3,FALSE),S81*VLOOKUP($B$3-1,INDIRECT("CPI"&SheetName&"!$A:$C"),3,FALSE))))) -> 70 | O81: Labour - unskilled | Q81: lab-us | R81: $/hr | S81: 70
B82: Equipment operator | D82: oper | E82: $/hr | F82: =IF(ISBLANK(S82)=TRUE,"",IF($B$3=2024,S82,IF(SheetName="Other (enter value below)",S82*(1+$J$4),IF($B$3>_xlfn.AGGREGATE(4,6,INDIRECT("CPI"&SheetName&"!$A:$A"))+1,S82*VLOOKUP($B$3-2,INDIRECT("CPI"&SheetName&"!$A:$C"),3,FALSE),S82*VLOOKUP($B$3-1,INDIRECT("CPI"&SheetName&"!$A:$C"),3,FALSE))))) -> 90 | O82: Equipment operator | Q82: oper | R82: $/hr | S82: 90
B83: Heavy duty mechanic | D83: mech | E83: $/hr | F83: =IF(ISBLANK(S83)=TRUE,"",IF($B$3=2024,S83,IF(SheetName="Other (enter value below)",S83*(1+$J$4),IF($B$3>_xlfn.AGGREGATE(4,6,INDIRECT("CPI"&SheetName&"!$A:$A"))+1,S83*VLOOKUP($B$3-2,INDIRECT("CPI"&SheetName&"!$A:$C"),3,FALSE),S83*VLOOKUP($B$3-1,INDIRECT("CPI"&SheetName&"!$A:$C"),3,FALSE))))) -> 110 | O83: Heavy duty mechanic | Q83: mech | R83: $/hr | S83: 110
B84: Water treatment plant operator | D84: oper-wt | E84: $/hr | F84: =IF(ISBLANK(S84)=TRUE,"",IF($B$3=2024,S84,IF(SheetName="Other (enter value below)",S84*(1+$J$4),IF($B$3>_xlfn.AGGREGATE(4,6,INDIRECT("CPI"&SheetName&"!$A:$A"))+1,S84*VLOOKUP($B$3-2,INDIRECT("CPI"&SheetName&"!$A:$C"),3,FALSE),S84*VLOOKUP($B$3-1,INDIRECT("CPI"&SheetName&"!$A:$C"),3,FALSE))))) -> 80 | O84: Water treatment plant operator | Q84: oper-wt | R84: $/hr | S84: 80
B85: Security / first aid | D85: safety | E85: $/hr | F85: =IF(ISBLANK(S85)=TRUE,"",IF($B$3=2024,S85,IF(SheetName="Other (enter value below)",S85*(1+$J$4),IF($B$3>_xlfn.AGGREGATE(4,6,INDIRECT("CPI"&SheetName&"!$A:$A"))+1,S85*VLOOKUP($B$3-2,INDIRECT("CPI"&SheetName&"!$A:$C"),3,FALSE),S85*VLOOKUP($B$3-1,INDIRECT("CPI"&SheetName&"!$A:$C"),3,FALSE))))) -> 100 | O85: Security / first aid | Q85: safety | R85: $/hr | S85: 100
B86: Administrative staff | D86: admin | E86: $/hr | F86: =IF(ISBLANK(S86)=TRUE,"",IF($B$3=2024,S86,IF(SheetName="Other (enter value below)",S86*(1+$J$4),IF($B$3>_xlfn.AGGREGATE(4,6,INDIRECT("CPI"&SheetName&"!$A:$A"))+1,S86*VLOOKUP($B$3-2,INDIRECT("CPI"&SheetName&"!$A:$C"),3,FALSE),S86*VLOOKUP($B$3-1,INDIRECT("CPI"&SheetName&"!$A:$C"),3,FALSE))))) -> 100 | O86: Administrative staff | Q86: admin | R86: $/hr | S86: 100
B88: Loader - 4 cu.yd (3.06m3) | D88: load-s | E88: $/hr | F88: =IF(ISBLANK(S88)=TRUE,"",IF($B$3=2024,S88,IF(SheetName="Other (enter value below)",S88*(1+$J$4),IF($B$3>_xlfn.AGGREGATE(4,6,INDIRECT("CPI"&SheetName&"!$A:$A"))+1,S88*VLOOKUP($B$3-2,INDIRECT("CPI"&SheetName&"!$A:$C"),3,FALSE),S88*VLOOKUP($B$3-1,INDIRECT("CPI"&SheetName&"!$A:$C"),3,FALSE))))) -> 223 | O88: Loader - 4 cu.yd (3.06m3) | Q88: load-s | R88: $/hr | S88: 223
B89: Loader - 7 cu.yd (5.35m3) | D89: load-l | E89: $/hr | F89: =IF(ISBLANK(S89)=TRUE,"",IF($B$3=2024,S89,IF(SheetName="Other (enter value below)",S89*(1+$J$4),IF($B$3>_xlfn.AGGREGATE(4,6,INDIRECT("CPI"&SheetName&"!$A:$A"))+1,S89*VLOOKUP($B$3-2,INDIRECT("CPI"&SheetName&"!$A:$C"),3,FALSE),S89*VLOOKUP($B$3-1,INDIRECT("CPI"&SheetName&"!$A:$C"),3,FALSE))))) -> 326 | O89: Loader - 7 cu.yd (5.35m3) | Q89: load-l | R89: $/hr | S89: 326
B90: Excavator - 26.76-30.84 tonnes | D90: exc-s | E90: $/hr | F90: =IF(ISBLANK(S90)=TRUE,"",IF($B$3=2024,S90,IF(SheetName="Other (enter value below)",S90*(1+$J$4),IF($B$3>_xlfn.AGGREGATE(4,6,INDIRECT("CPI"&SheetName&"!$A:$A"))+1,S90*VLOOKUP($B$3-2,INDIRECT("CPI"&SheetName&"!$A:$C"),3,FALSE),S90*VLOOKUP($B$3-1,INDIRECT("CPI"&SheetName&"!$A:$C"),3,FALSE))))) -> 227 | O90: Excavator - 26.76-30.84 tonnes | Q90: exc-s | R90: $/hr | S90: 227
B91: Excavator - 68.95+tonnes | D91: exc-l | E91: $/hr | F91: =IF(ISBLANK(S91)=TRUE,"",IF($B$3=2024,S91,IF(SheetName="Other (enter value below)",S91*(1+$J$4),IF($B$3>_xlfn.AGGREGATE(4,6,INDIRECT("CPI"&SheetName&"!$A:$A"))+1,S91*VLOOKUP($B$3-2,INDIRECT("CPI"&SheetName&"!$A:$C"),3,FALSE),S91*VLOOKUP($B$3-1,INDIRECT("CPI"&SheetName&"!$A:$C"),3,FALSE))))) -> 459 | O91: Excavator - 68.95+tonnes | Q91: exc-l | R91: $/hr | S91: 459
B92: Grader | D92: grad | E92: $/hr | F92: =IF(ISBLANK(S92)=TRUE,"",IF($B$3=2024,S92,IF(SheetName="Other (enter value below)",S92*(1+$J$4),IF($B$3>_xlfn.AGGREGATE(4,6,INDIRECT("CPI"&SheetName&"!$A:$A"))+1,S92*VLOOKUP($B$3-2,INDIRECT("CPI"&SheetName&"!$A:$C"),3,FALSE),S92*VLOOKUP($B$3-1,INDIRECT("CPI"&SheetName&"!$A:$C"),3,FALSE))))) -> 195 | O92: Grader | Q92: grad | R92: $/hr | S92: 195
B93: Dump truck off hwy 30-50 tonnes | D93: truck-s | E93: $/hr | F93: =IF(ISBLANK(S93)=TRUE,"",IF($B$3=2024,S93,IF(SheetName="Other (enter value below)",S93*(1+$J$4),IF($B$3>_xlfn.AGGREGATE(4,6,INDIRECT("CPI"&SheetName&"!$A:$A"))+1,S93*VLOOKUP($B$3-2,INDIRECT("CPI"&SheetName&"!$A:$C"),3,FALSE),S93*VLOOKUP($B$3-1,INDIRECT("CPI"&SheetName&"!$A:$C"),3,FALSE))))) -> 314 | O93: Dump truck off hwy 30-50 tonnes | Q93: truck-s | R93: $/hr | S93: 314
B94: Dump truck off hwy 55-75 tonnes | D94: truck-l | E94: $/hr | F94: =IF(ISBLANK(S94)=TRUE,"",IF($B$3=2024,S94,IF(SheetName="Other (enter value below)",S94*(1+$J$4),IF($B$3>_xlfn.AGGREGATE(4,6,INDIRECT("CPI"&SheetName&"!$A:$A"))+1,S94*VLOOKUP($B$3-2,INDIRECT("CPI"&SheetName&"!$A:$C"),3,FALSE),S94*VLOOKUP($B$3-1,INDIRECT("CPI"&SheetName&"!$A:$C"),3,FALSE))))) -> 325 | O94: Dump truck off hwy 55-75 tonnes | Q94: truck-l | R94: $/hr | S94: 325
B95: dozer, small | D95: dozers | E95: $/hr | F95: =IF(ISBLANK(S95)=TRUE,"",IF($B$3=2024,S95,IF(SheetName="Other (enter value below)",S95*(1+$J$4),IF($B$3>_xlfn.AGGREGATE(4,6,INDIRECT("CPI"&SheetName&"!$A:$A"))+1,S95*VLOOKUP($B$3-2,INDIRECT("CPI"&SheetName&"!$A:$C"),3,FALSE),S95*VLOOKUP($B$3-1,INDIRECT("CPI"&SheetName&"!$A:$C"),3,FALSE))))) -> 317 | O95: dozer, small | Q95: dozers | R95: $/hr | S95: 317
B96: dozer, large | D96: dozerl | E96: $/hr | F96: =IF(ISBLANK(S96)=TRUE,"",IF($B$3=2024,S96,IF(SheetName="Other (enter value below)",S96*(1+$J$4),IF($B$3>_xlfn.AGGREGATE(4,6,INDIRECT("CPI"&SheetName&"!$A:$A"))+1,S96*VLOOKUP($B$3-2,INDIRECT("CPI"&SheetName&"!$A:$C"),3,FALSE),S96*VLOOKUP($B$3-1,INDIRECT("CPI"&SheetName&"!$A:$C"),3,FALSE))))) -> 607 | O96: dozer, large | Q96: dozerl | R96: $/hr | S96: 607
B97: smooth drum compactor | D97: comp | E97: $/hr | F97: =IF(ISBLANK(S97)=TRUE,"",IF($B$3=2024,S97,IF(SheetName="Other (enter value below)",S97*(1+$J$4),IF($B$3>_xlfn.AGGREGATE(4,6,INDIRECT("CPI"&SheetName&"!$A:$A"))+1,S97*VLOOKUP($B$3-2,INDIRECT("CPI"&SheetName&"!$A:$C"),3,FALSE),S97*VLOOKUP($B$3-1,INDIRECT("CPI"&SheetName&"!$A:$C"),3,FALSE))))) -> 153 | O97: smooth drum compactor | Q97: comp | R97: $/hr | S97: 153
B98: Crawler front end loader 3.75 yd3 (and over) bucket | D98: scoop | E98: $/hr | F98: =IF(ISBLANK(S98)=TRUE,"",IF($B$3=2024,S98,IF(SheetName="Other (enter value below)",S98*(1+$J$4),IF($B$3>_xlfn.AGGREGATE(4,6,INDIRECT("CPI"&SheetName&"!$A:$A"))+1,S98*VLOOKUP($B$3-2,INDIRECT("CPI"&SheetName&"!$A:$C"),3,FALSE),S98*VLOOKUP($B$3-1,INDIRECT("CPI"&SheetName&"!$A:$C"),3,FALSE))))) -> 298 | O98: Crawler front end loader 3.75 yd3 (and over) bucket | Q98: scoop | R98: $/hr | S98: 298
B99: flat bed truck with hiab | D99: hiab | E99: $/hr | F99: =IF(ISBLANK(S99)=TRUE,"",IF($B$3=2024,S99,IF(SheetName="Other (enter value below)",S99*(1+$J$4),IF($B$3>_xlfn.AGGREGATE(4,6,INDIRECT("CPI"&SheetName&"!$A:$A"))+1,S99*VLOOKUP($B$3-2,INDIRECT("CPI"&SheetName&"!$A:$C"),3,FALSE),S99*VLOOKUP($B$3-1,INDIRECT("CPI"&SheetName&"!$A:$C"),3,FALSE))))) -> 182 | O99: flat bed truck with hiab | Q99: hiab | R99: $/hr | S99: 182
B100: fuel truck | D100: ftruck | E100: $/hr | F100: =IF(ISBLANK(S100)=TRUE,"",IF($B$3=2024,S100,IF(SheetName="Other (enter value below)",S100*(1+$J$4),IF($B$3>_xlfn.AGGREGATE(4,6,INDIRECT("CPI"&SheetName&"!$A:$A"))+1,S100*VLOOKUP($B$3-2,INDIRECT("CPI"&SheetName&"!$A:$C"),3,FALSE),S100*VLOOKUP($B$3-1,INDIRECT("CPI"&SheetName&"!$A:$C"),3,FALSE))))) -> 225 | O100: fuel truck | Q100: ftruck | R100: $/hr | S100: 225
B101: water truck | D101: wtruck | E101: $/hr | F101: =IF(ISBLANK(S101)=TRUE,"",IF($B$3=2024,S101,IF(SheetName="Other (enter value below)",S101*(1+$J$4),IF($B$3>_xlfn.AGGREGATE(4,6,INDIRECT("CPI"&SheetName&"!$A:$A"))+1,S101*VLOOKUP($B$3-2,INDIRECT("CPI"&SheetName&"!$A:$C"),3,FALSE),S101*VLOOKUP($B$3-1,INDIRECT("CPI"&SheetName&"!$A:$C"),3,FALSE))))) -> 138 | O101: water truck | Q101: wtruck | R101: $/hr | S101: 138
A102: Mobilize Heavy Equipment | N102: Mobilize Heavy Equipment
B103: Road access | D103: MHER | E103: kmtonne | F103: =IF(ISBLANK(S103)=TRUE,"",IF($B$3=2024,S103,IF(SheetName="Other (enter value below)",S103*(1+$J$4),IF($B$3>_xlfn.AGGREGATE(4,6,INDIRECT("CPI"&SheetName&"!$A:$A"))+1,S103*VLOOKUP($B$3-2,INDIRECT("CPI"&SheetName&"!$A:$C"),3,FALSE),S103*VLOOKUP($B$3-1,INDIRECT("CPI"&SheetName&"!$A:$C"),3,FALSE))))) -> 0.4 | O103: Road access | Q103: MHER | R103: kmtonne | S103: 0.4
B104: Sealift | D104: MHES | E104: kmtonne | F104: =IF(ISBLANK(S104)=TRUE,"",IF($B$3=2024,S104,IF(SheetName="Other (enter value below)",S104*(1+$J$4),IF($B$3>_xlfn.AGGREGATE(4,6,INDIRECT("CPI"&SheetName&"!$A:$A"))+1,S104*VLOOKUP($B$3-2,INDIRECT("CPI"&SheetName&"!$A:$C"),3,FALSE),S104*VLOOKUP($B$3-1,INDIRECT("CPI"&SheetName&"!$A:$C"),3,FALSE))))) -> 0.12 | O104: Sealift | Q104: MHEA | R104: kmtonne | S104: 0.12
B105: Barge | D105: MHEB | E105: tonne | F105: =IF(ISBLANK(S105)=TRUE,"",IF($B$3=2024,S105,IF(SheetName="Other (enter value below)",S105*(1+$J$4),IF($B$3>_xlfn.AGGREGATE(4,6,INDIRECT("CPI"&SheetName&"!$A:$A"))+1,S105*VLOOKUP($B$3-2,INDIRECT("CPI"&SheetName&"!$A:$C"),3,FALSE),S105*VLOOKUP($B$3-1,INDIRECT("CPI"&SheetName&"!$A:$C"),3,FALSE))))) -> 6000 | G105: =IF(ISBLANK(T105)=TRUE,"",IF($B$3=2024,T105,IF(SheetName="Other (enter value below)",T105*(1+$J$4),IF($B$3>_xlfn.AGGREGATE(4,6,INDIRECT("CPI"&SheetName&"!$A:$A"))+1,T105*VLOOKUP($B$3-2,INDIRECT("CPI"&SheetName&"!$A:$C"),3,FALSE),T105*VLOOKUP($B$3-1,INDIRECT("CPI"&SheetName&"!$A:$C"),3,FALSE))))) -> 10000 | K105: Low and High are based on distance from port | O105: Barge | Q105: MHEB | R105: tonne | S105: 6000 | T105: 10000
B106: Other (e.g. airlift) | D106: MHEA | E106: kmtonne | F106: =IF(ISBLANK(S106)=TRUE,"",IF($B$3=2024,S106,IF(SheetName="Other (enter value below)",S106*(1+K103),IF($B$3>_xlfn.AGGREGATE(4,6,INDIRECT("CPI"&SheetName&"!$A:$A"))+1,S106*VLOOKUP($B$3-2,INDIRECT("CPI"&SheetName&"!$A:$C"),3,FALSE),S106*VLOOKUP($B$3-1,INDIRECT("CPI"&SheetName&"!$A:$C"),3,FALSE))))) ->  | O106: Other
A107: Mobilize Camp | N107: Mobilize Camp
B108: Road access | D108: MCR | E108: each | F108: =IF(ISBLANK(S108)=TRUE,"",IF($B$3=2024,S108,IF(SheetName="Other (enter value below)",S108*(1+$J$4),IF($B$3>_xlfn.AGGREGATE(4,6,INDIRECT("CPI"&SheetName&"!$A:$A"))+1,S108*VLOOKUP($B$3-2,INDIRECT("CPI"&SheetName&"!$A:$C"),3,FALSE),S108*VLOOKUP($B$3-1,INDIRECT("CPI"&SheetName&"!$A:$C"),3,FALSE))))) -> 100000 | G108: =IF(ISBLANK(T108)=TRUE,"",IF($B$3=2024,T108,IF(SheetName="Other (enter value below)",T108*(1+$J$4),IF($B$3>_xlfn.AGGREGATE(4,6,INDIRECT("CPI"&SheetName&"!$A:$A"))+1,T108*VLOOKUP($B$3-2,INDIRECT("CPI"&SheetName&"!$A:$C"),3,FALSE),T108*VLOOKUP($B$3-1,INDIRECT("CPI"&SheetName&"!$A:$C"),3,FALSE))))) -> 1000000 | K108: 50 person camp, road access (low) remote access (high) | O108: Road access | Q108: MCR | R108: each | S108: 100000 | T108: 1000000
A109: Mobilize Workers (round trip) | N109: Mobilize Workers
B110: flight (charter 20 person) | D110: MWC | E110: km | F110: =IF(ISBLANK(S110)=TRUE,"",IF($B$3=2024,S110,IF(SheetName="Other (enter value below)",S110*(1+$J$4),IF($B$3>_xlfn.AGGREGATE(4,6,INDIRECT("CPI"&SheetName&"!$A:$A"))+1,S110*VLOOKUP($B$3-2,INDIRECT("CPI"&SheetName&"!$A:$C"),3,FALSE),S110*VLOOKUP($B$3-1,INDIRECT("CPI"&SheetName&"!$A:$C"),3,FALSE))))) -> 12 | K110: Low (short flight < 500 km) High (long flight >500 km) | O110: flight (charter to Site) | Q110: MWC | R110: each | S110: 12
B111: flight (charter 50 person) | D111: MWC1 | E111: km | F111: =IF(ISBLANK(S111)=TRUE,"",IF($B$3=2024,S111,IF(SheetName="Other (enter value below)",S111*(1+$J$4),IF($B$3>_xlfn.AGGREGATE(4,6,INDIRECT("CPI"&SheetName&"!$A:$A"))+1,S111*VLOOKUP($B$3-2,INDIRECT("CPI"&SheetName&"!$A:$C"),3,FALSE),S111*VLOOKUP($B$3-1,INDIRECT("CPI"&SheetName&"!$A:$C"),3,FALSE))))) -> 20 | S111: 20
B112: flight (commercial south to north) | D112: MWA | E112: per person | F112: =IF(ISBLANK(S112)=TRUE,"",IF($B$3=2024,S112,IF(SheetName="Other (enter value below)",S112*(1+$J$4),IF($B$3>_xlfn.AGGREGATE(4,6,INDIRECT("CPI"&SheetName&"!$A:$A"))+1,S112*VLOOKUP($B$3-2,INDIRECT("CPI"&SheetName&"!$A:$C"),3,FALSE),S112*VLOOKUP($B$3-1,INDIRECT("CPI"&SheetName&"!$A:$C"),3,FALSE))))) -> 1000 | G112: =IF(ISBLANK(T112)=TRUE,"",IF($B$3=2024,T112,IF(SheetName="Other (enter value below)",T112*(1+$J$4),IF($B$3>_xlfn.AGGREGATE(4,6,INDIRECT("CPI"&SheetName&"!$A:$A"))+1,T112*VLOOKUP($B$3-2,INDIRECT("CPI"&SheetName&"!$A:$C"),3,FALSE),T112*VLOOKUP($B$3-1,INDIRECT("CPI"&SheetName&"!$A:$C"),3,FALSE))))) -> 3000 | K112: Low (short flight < 1000 km ) High (>1000 km) | O112: flight (commercial south to north) | Q112: MWA | R112: each | S112: 1000 | T112: 3000
B113: Helicopter - Small (e.g. Bell 206) | D113: MHL | E113: per hour | F113: =IF(ISBLANK(S113)=TRUE,"",IF($B$3=2024,S113,IF(SheetName="Other (enter value below)",S113*(1+$J$4),IF($B$3>_xlfn.AGGREGATE(4,6,INDIRECT("CPI"&SheetName&"!$A:$A"))+1,S113*VLOOKUP($B$3-2,INDIRECT("CPI"&SheetName&"!$A:$C"),3,FALSE),S113*VLOOKUP($B$3-1,INDIRECT("CPI"&SheetName&"!$A:$C"),3,FALSE))))) -> 1500 | O113: Helicopter - Small (e.g. Bell 206) | Q113: MHL | R113: per hour | S113: 1500
B114: Helicopter - Medium (e.g. Sikorsky S-76) | D114: MHM | E114: per hour | F114: =IF(ISBLANK(S114)=TRUE,"",IF($B$3=2024,S114,IF(SheetName="Other (enter value below)",S114*(1+$J$4),IF($B$3>_xlfn.AGGREGATE(4,6,INDIRECT("CPI"&SheetName&"!$A:$A"))+1,S114*VLOOKUP($B$3-2,INDIRECT("CPI"&SheetName&"!$A:$C"),3,FALSE),S114*VLOOKUP($B$3-1,INDIRECT("CPI"&SheetName&"!$A:$C"),3,FALSE))))) -> 3000 | O114: Helicopter - Medium (e.g. Sikorsky S-76) | Q114: MHM | R114: per hour | S114: 3000
B115: Helicopter - Heavy (e.g. CH-47 Chinook) | D115: MHH | E115: per hour | F115: =IF(ISBLANK(S115)=TRUE,"",IF($B$3=2024,S115,IF(SheetName="Other (enter value below)",S115*(1+$J$4),IF($B$3>_xlfn.AGGREGATE(4,6,INDIRECT("CPI"&SheetName&"!$A:$A"))+1,S115*VLOOKUP($B$3-2,INDIRECT("CPI"&SheetName&"!$A:$C"),3,FALSE),S115*VLOOKUP($B$3-1,INDIRECT("CPI"&SheetName&"!$A:$C"),3,FALSE))))) -> 7000 | O115: Helicopter - Heavy (e.g. CH-47 Chinook) | Q115: MHH | R115: per hour | S115: 7000
A116: Oil Removal | N116: Oil Removal
B117: oil removal | D117: OR | E117: litre | F117: =IF(ISBLANK(S117)=TRUE,"",IF($B$3=2024,S117,IF(SheetName="Other (enter value below)",S117*(1+$J$4),IF($B$3>_xlfn.AGGREGATE(4,6,INDIRECT("CPI"&SheetName&"!$A:$A"))+1,S117*VLOOKUP($B$3-2,INDIRECT("CPI"&SheetName&"!$A:$C"),3,FALSE),S117*VLOOKUP($B$3-1,INDIRECT("CPI"&SheetName&"!$A:$C"),3,FALSE))))) -> 0.94 | O117: oil removal | Q117: OR | R117: litre | S117: 0.94
A118: PCB Removal | N118: PCB Removal
B119: Remove from site | D119: PCBR | E119: litre | F119: =IF(ISBLANK(S119)=TRUE,"",IF($B$3=2024,S119,IF(SheetName="Other (enter value below)",S119*(1+$J$4),IF($B$3>_xlfn.AGGREGATE(4,6,INDIRECT("CPI"&SheetName&"!$A:$A"))+1,S119*VLOOKUP($B$3-2,INDIRECT("CPI"&SheetName&"!$A:$C"),3,FALSE),S119*VLOOKUP($B$3-1,INDIRECT("CPI"&SheetName&"!$A:$C"),3,FALSE))))) -> 50 | O119: Remove from site | Q119: PCBR | R119: litre | S119: 50
A120: Pipes, small (<6in dia.) | N120: Pipes, small (<6in dia.)
B121: remove/dispose on site | D121: PSR | E121: m | F121: =IF(ISBLANK(S121)=TRUE,"",IF($B$3=2024,S121,IF(SheetName="Other (enter value below)",S121*(1+$J$4),IF($B$3>_xlfn.AGGREGATE(4,6,INDIRECT("CPI"&SheetName&"!$A:$A"))+1,S121*VLOOKUP($B$3-2,INDIRECT("CPI"&SheetName&"!$A:$C"),3,FALSE),S121*VLOOKUP($B$3-1,INDIRECT("CPI"&SheetName&"!$A:$C"),3,FALSE))))) -> 62 | G121: =IF(ISBLANK(T121)=TRUE,"",IF($B$3=2024,T121,IF(SheetName="Other (enter value below)",T121*(1+$J$4),IF($B$3>_xlfn.AGGREGATE(4,6,INDIRECT("CPI"&SheetName&"!$A:$A"))+1,T121*VLOOKUP($B$3-2,INDIRECT("CPI"&SheetName&"!$A:$C"),3,FALSE),T121*VLOOKUP($B$3-1,INDIRECT("CPI"&SheetName&"!$A:$C"),3,FALSE))))) ->  | O121: remove/dispose on site | Q121: PSR | R121: m | S121: 62
B122: supply (4") | D122: PSS4 | E122: m | F122: =IF(ISBLANK(S122)=TRUE,"",IF($B$3=2024,S122,IF(SheetName="Other (enter value below)",S122*(1+$J$4),IF($B$3>_xlfn.AGGREGATE(4,6,INDIRECT("CPI"&SheetName&"!$A:$A"))+1,S122*VLOOKUP($B$3-2,INDIRECT("CPI"&SheetName&"!$A:$C"),3,FALSE),S122*VLOOKUP($B$3-1,INDIRECT("CPI"&SheetName&"!$A:$C"),3,FALSE))))) -> 15 | G122: =IF(ISBLANK(T122)=TRUE,"",IF($B$3=2024,T122,IF(SheetName="Other (enter value below)",T122*(1+$J$4),IF($B$3>_xlfn.AGGREGATE(4,6,INDIRECT("CPI"&SheetName&"!$A:$A"))+1,T122*VLOOKUP($B$3-2,INDIRECT("CPI"&SheetName&"!$A:$C"),3,FALSE),T122*VLOOKUP($B$3-1,INDIRECT("CPI"&SheetName&"!$A:$C"),3,FALSE))))) -> 87 | O122: supply (4") | Q122: PSS4 | R122: m | S122: 15 | T122: 87
B123: install (4") | D123: PSI4 | E123: m | F123: =IF(ISBLANK(S123)=TRUE,"",IF($B$3=2024,S123,IF(SheetName="Other (enter value below)",S123*(1+$J$4),IF($B$3>_xlfn.AGGREGATE(4,6,INDIRECT("CPI"&SheetName&"!$A:$A"))+1,S123*VLOOKUP($B$3-2,INDIRECT("CPI"&SheetName&"!$A:$C"),3,FALSE),S123*VLOOKUP($B$3-1,INDIRECT("CPI"&SheetName&"!$A:$C"),3,FALSE))))) -> 248 | G123: =IF(ISBLANK(T123)=TRUE,"",IF($B$3=2024,T123,IF(SheetName="Other (enter value below)",T123*(1+$J$4),IF($B$3>_xlfn.AGGREGATE(4,6,INDIRECT("CPI"&SheetName&"!$A:$A"))+1,T123*VLOOKUP($B$3-2,INDIRECT("CPI"&SheetName&"!$A:$C"),3,FALSE),T123*VLOOKUP($B$3-1,INDIRECT("CPI"&SheetName&"!$A:$C"),3,FALSE))))) -> 294 | O123: install (4") | Q123: PSI4 | R123: m | S123: 248 | T123: 294
B124: supply (6") | D124: PSS6 | E124: m | F124: =IF(ISBLANK(S124)=TRUE,"",IF($B$3=2024,S124,IF(SheetName="Other (enter value below)",S124*(1+$J$4),IF($B$3>_xlfn.AGGREGATE(4,6,INDIRECT("CPI"&SheetName&"!$A:$A"))+1,S124*VLOOKUP($B$3-2,INDIRECT("CPI"&SheetName&"!$A:$C"),3,FALSE),S124*VLOOKUP($B$3-1,INDIRECT("CPI"&SheetName&"!$A:$C"),3,FALSE))))) -> 32 | G124: =IF(ISBLANK(T124)=TRUE,"",IF($B$3=2024,T124,IF(SheetName="Other (enter value below)",T124*(1+$J$4),IF($B$3>_xlfn.AGGREGATE(4,6,INDIRECT("CPI"&SheetName&"!$A:$A"))+1,T124*VLOOKUP($B$3-2,INDIRECT("CPI"&SheetName&"!$A:$C"),3,FALSE),T124*VLOOKUP($B$3-1,INDIRECT("CPI"&SheetName&"!$A:$C"),3,FALSE))))) -> 115 | O124: supply (6") | Q124: PSS6 | R124: m | S124: 32 | T124: 115
B125: install (6") | D125: PSI6 | E125: m | F125: =IF(ISBLANK(S125)=TRUE,"",IF($B$3=2024,S125,IF(SheetName="Other (enter value below)",S125*(1+$J$4),IF($B$3>_xlfn.AGGREGATE(4,6,INDIRECT("CPI"&SheetName&"!$A:$A"))+1,S125*VLOOKUP($B$3-2,INDIRECT("CPI"&SheetName&"!$A:$C"),3,FALSE),S125*VLOOKUP($B$3-1,INDIRECT("CPI"&SheetName&"!$A:$C"),3,FALSE))))) -> 299 | G125: =IF(ISBLANK(T125)=TRUE,"",IF($B$3=2024,T125,IF(SheetName="Other (enter value below)",T125*(1+$J$4),IF($B$3>_xlfn.AGGREGATE(4,6,INDIRECT("CPI"&SheetName&"!$A:$A"))+1,T125*VLOOKUP($B$3-2,INDIRECT("CPI"&SheetName&"!$A:$C"),3,FALSE),T125*VLOOKUP($B$3-1,INDIRECT("CPI"&SheetName&"!$A:$C"),3,FALSE))))) -> 333 | O125: install (6") | Q125: PSI6 | R125: m | S125: 299 | T125: 333
A126: Pipes, large (>6in dia.) | N126: Pipes, large (>6in dia.)
B127: remove/dispose on site (6"-8") | D127: PLR1 | E127: m | F127: =IF(ISBLANK(S127)=TRUE,"",IF($B$3=2024,S127,IF(SheetName="Other (enter value below)",S127*(1+$J$4),IF($B$3>_xlfn.AGGREGATE(4,6,INDIRECT("CPI"&SheetName&"!$A:$A"))+1,S127*VLOOKUP($B$3-2,INDIRECT("CPI"&SheetName&"!$A:$C"),3,FALSE),S127*VLOOKUP($B$3-1,INDIRECT("CPI"&SheetName&"!$A:$C"),3,FALSE))))) -> 71 | G127: =IF(ISBLANK(T127)=TRUE,"",IF($B$3=2024,T127,IF(SheetName="Other (enter value below)",T127*(1+$J$4),IF($B$3>_xlfn.AGGREGATE(4,6,INDIRECT("CPI"&SheetName&"!$A:$A"))+1,T127*VLOOKUP($B$3-2,INDIRECT("CPI"&SheetName&"!$A:$C"),3,FALSE),T127*VLOOKUP($B$3-1,INDIRECT("CPI"&SheetName&"!$A:$C"),3,FALSE))))) ->  | O127: remove/dispose on site (6"-8") | Q127: PLR1 | R127: m | S127: 71
B128: remove/dispose on site (10"-12") | D128: PLR2 | E128: m | F128: =IF(ISBLANK(S128)=TRUE,"",IF($B$3=2024,S128,IF(SheetName="Other (enter value below)",S128*(1+$J$4),IF($B$3>_xlfn.AGGREGATE(4,6,INDIRECT("CPI"&SheetName&"!$A:$A"))+1,S128*VLOOKUP($B$3-2,INDIRECT("CPI"&SheetName&"!$A:$C"),3,FALSE),S128*VLOOKUP($B$3-1,INDIRECT("CPI"&SheetName&"!$A:$C"),3,FALSE))))) -> 90 | G128: =IF(ISBLANK(T128)=TRUE,"",IF($B$3=2024,T128,IF(SheetName="Other (enter value below)",T128*(1+$J$4),IF($B$3>_xlfn.AGGREGATE(4,6,INDIRECT("CPI"&SheetName&"!$A:$A"))+1,T128*VLOOKUP($B$3-2,INDIRECT("CPI"&SheetName&"!$A:$C"),3,FALSE),T128*VLOOKUP($B$3-1,INDIRECT("CPI"&SheetName&"!$A:$C"),3,FALSE))))) ->  | O128: remove/dispose on site (10"-12") | Q128: PLR2 | R128: m | S128: 90
B129: supply (8") | D129: PLS8 | E129: m | F129: =IF(ISBLANK(S129)=TRUE,"",IF($B$3=2024,S129,IF(SheetName="Other (enter value below)",S129*(1+$J$4),IF($B$3>_xlfn.AGGREGATE(4,6,INDIRECT("CPI"&SheetName&"!$A:$A"))+1,S129*VLOOKUP($B$3-2,INDIRECT("CPI"&SheetName&"!$A:$C"),3,FALSE),S129*VLOOKUP($B$3-1,INDIRECT("CPI"&SheetName&"!$A:$C"),3,FALSE))))) -> 59 | G129: =IF(ISBLANK(T129)=TRUE,"",IF($B$3=2024,T129,IF(SheetName="Other (enter value below)",T129*(1+$J$4),IF($B$3>_xlfn.AGGREGATE(4,6,INDIRECT("CPI"&SheetName&"!$A:$A"))+1,T129*VLOOKUP($B$3-2,INDIRECT("CPI"&SheetName&"!$A:$C"),3,FALSE),T129*VLOOKUP($B$3-1,INDIRECT("CPI"&SheetName&"!$A:$C"),3,FALSE))))) -> 222 | O129: supply (8") | Q129: PLS8 | R129: m | S129: 59 | T129: 222
B130: install (8") | D130: PLI8 | E130: m | F130: =IF(ISBLANK(S130)=TRUE,"",IF($B$3=2024,S130,IF(SheetName="Other (enter value below)",S130*(1+$J$4),IF($B$3>_xlfn.AGGREGATE(4,6,INDIRECT("CPI"&SheetName&"!$A:$A"))+1,S130*VLOOKUP($B$3-2,INDIRECT("CPI"&SheetName&"!$A:$C"),3,FALSE),S130*VLOOKUP($B$3-1,INDIRECT("CPI"&SheetName&"!$A:$C"),3,FALSE))))) -> 340 | G130: =IF(ISBLANK(T130)=TRUE,"",IF($B$3=2024,T130,IF(SheetName="Other (enter value below)",T130*(1+$J$4),IF($B$3>_xlfn.AGGREGATE(4,6,INDIRECT("CPI"&SheetName&"!$A:$A"))+1,T130*VLOOKUP($B$3-2,INDIRECT("CPI"&SheetName&"!$A:$C"),3,FALSE),T130*VLOOKUP($B$3-1,INDIRECT("CPI"&SheetName&"!$A:$C"),3,FALSE))))) -> 376 | O130: install (8") | Q130: PLI8 | R130: m | S130: 340 | T130: 376
B131: supply (10") | D131: PLS10 | E131: m | F131: =IF(ISBLANK(S131)=TRUE,"",IF($B$3=2024,S131,IF(SheetName="Other (enter value below)",S131*(1+$J$4),IF($B$3>_xlfn.AGGREGATE(4,6,INDIRECT("CPI"&SheetName&"!$A:$A"))+1,S131*VLOOKUP($B$3-2,INDIRECT("CPI"&SheetName&"!$A:$C"),3,FALSE),S131*VLOOKUP($B$3-1,INDIRECT("CPI"&SheetName&"!$A:$C"),3,FALSE))))) -> 101 | G131: =IF(ISBLANK(T131)=TRUE,"",IF($B$3=2024,T131,IF(SheetName="Other (enter value below)",T131*(1+$J$4),IF($B$3>_xlfn.AGGREGATE(4,6,INDIRECT("CPI"&SheetName&"!$A:$A"))+1,T131*VLOOKUP($B$3-2,INDIRECT("CPI"&SheetName&"!$A:$C"),3,FALSE),T131*VLOOKUP($B$3-1,INDIRECT("CPI"&SheetName&"!$A:$C"),3,FALSE))))) -> 291 | O131: supply (10") | Q131: PLS10 | R131: m | S131: 101 | T131: 291
B132: install (10") | D132: PLI10 | E132: m | F132: =IF(ISBLANK(S132)=TRUE,"",IF($B$3=2024,S132,IF(SheetName="Other (enter value below)",S132*(1+$J$4),IF($B$3>_xlfn.AGGREGATE(4,6,INDIRECT("CPI"&SheetName&"!$A:$A"))+1,S132*VLOOKUP($B$3-2,INDIRECT("CPI"&SheetName&"!$A:$C"),3,FALSE),S132*VLOOKUP($B$3-1,INDIRECT("CPI"&SheetName&"!$A:$C"),3,FALSE))))) -> 350 | G132: =IF(ISBLANK(T132)=TRUE,"",IF($B$3=2024,T132,IF(SheetName="Other (enter value below)",T132*(1+$J$4),IF($B$3>_xlfn.AGGREGATE(4,6,INDIRECT("CPI"&SheetName&"!$A:$A"))+1,T132*VLOOKUP($B$3-2,INDIRECT("CPI"&SheetName&"!$A:$C"),3,FALSE),T132*VLOOKUP($B$3-1,INDIRECT("CPI"&SheetName&"!$A:$C"),3,FALSE))))) -> 445 | O132: install (10") | Q132: PLI10 | R132: m | S132: 350 | T132: 445
B133: supply (12") | D133: PLS12 | E133: m | F133: =IF(ISBLANK(S133)=TRUE,"",IF($B$3=2024,S133,IF(SheetName="Other (enter value below)",S133*(1+$J$4),IF($B$3>_xlfn.AGGREGATE(4,6,INDIRECT("CPI"&SheetName&"!$A:$A"))+1,S133*VLOOKUP($B$3-2,INDIRECT("CPI"&SheetName&"!$A:$C"),3,FALSE),S133*VLOOKUP($B$3-1,INDIRECT("CPI"&SheetName&"!$A:$C"),3,FALSE))))) -> 140 | G133: =IF(ISBLANK(T133)=TRUE,"",IF($B$3=2024,T133,IF(SheetName="Other (enter value below)",T133*(1+$J$4),IF($B$3>_xlfn.AGGREGATE(4,6,INDIRECT("CPI"&SheetName&"!$A:$A"))+1,T133*VLOOKUP($B$3-2,INDIRECT("CPI"&SheetName&"!$A:$C"),3,FALSE),T133*VLOOKUP($B$3-1,INDIRECT("CPI"&SheetName&"!$A:$C"),3,FALSE))))) -> 348 | O133: supply (12") | Q133: PLS12 | R133: m | S133: 140 | T133: 348
B134: install (12") | D134: PLI12 | E134: m | F134: =IF(ISBLANK(S134)=TRUE,"",IF($B$3=2024,S134,IF(SheetName="Other (enter value below)",S134*(1+$J$4),IF($B$3>_xlfn.AGGREGATE(4,6,INDIRECT("CPI"&SheetName&"!$A:$A"))+1,S134*VLOOKUP($B$3-2,INDIRECT("CPI"&SheetName&"!$A:$C"),3,FALSE),S134*VLOOKUP($B$3-1,INDIRECT("CPI"&SheetName&"!$A:$C"),3,FALSE))))) -> 442 | G134: =IF(ISBLANK(T134)=TRUE,"",IF($B$3=2024,T134,IF(SheetName="Other (enter value below)",T134*(1+$J$4),IF($B$3>_xlfn.AGGREGATE(4,6,INDIRECT("CPI"&SheetName&"!$A:$A"))+1,T134*VLOOKUP($B$3-2,INDIRECT("CPI"&SheetName&"!$A:$C"),3,FALSE),T134*VLOOKUP($B$3-1,INDIRECT("CPI"&SheetName&"!$A:$C"),3,FALSE))))) -> 507 | O134: install (12") | Q134: PLI12 | R134: m | S134: 442 | T134: 507
A135: Power Lines | N135: Power Lines
B136: remove/dispose on site | D136: POWR | E136: m | F136: =IF(ISBLANK(S136)=TRUE,"",IF($B$3=2024,S136,IF(SheetName="Other (enter value below)",S136*(1+$J$4),IF($B$3>_xlfn.AGGREGATE(4,6,INDIRECT("CPI"&SheetName&"!$A:$A"))+1,S136*VLOOKUP($B$3-2,INDIRECT("CPI"&SheetName&"!$A:$C"),3,FALSE),S136*VLOOKUP($B$3-1,INDIRECT("CPI"&SheetName&"!$A:$C"),3,FALSE))))) -> 40 | G136: =IF(ISBLANK(T136)=TRUE,"",IF($B$3=2024,T136,IF(SheetName="Other (enter value below)",T136*(1+$J$4),IF($B$3>_xlfn.AGGREGATE(4,6,INDIRECT("CPI"&SheetName&"!$A:$A"))+1,T136*VLOOKUP($B$3-2,INDIRECT("CPI"&SheetName&"!$A:$C"),3,FALSE),T136*VLOOKUP($B$3-1,INDIRECT("CPI"&SheetName&"!$A:$C"),3,FALSE))))) ->  | O136: remove/dispose on site | Q136: POWR | R136: m | S136: 40
A137: Process Chemicals | N137: Process Chemicals
B138: Remove from site | D138: PCR | E138: kg | F138: =IF(ISBLANK(S138)=TRUE,"",IF($B$3=2024,S138,IF(SheetName="Other (enter value below)",S138*(1+$J$4),IF($B$3>_xlfn.AGGREGATE(4,6,INDIRECT("CPI"&SheetName&"!$A:$A"))+1,S138*VLOOKUP($B$3-2,INDIRECT("CPI"&SheetName&"!$A:$C"),3,FALSE),S138*VLOOKUP($B$3-1,INDIRECT("CPI"&SheetName&"!$A:$C"),3,FALSE))))) -> 1.7 | G138: =IF(ISBLANK(T138)=TRUE,"",IF($B$3=2024,T138,IF(SheetName="Other (enter value below)",T138*(1+$J$4),IF($B$3>_xlfn.AGGREGATE(4,6,INDIRECT("CPI"&SheetName&"!$A:$A"))+1,T138*VLOOKUP($B$3-2,INDIRECT("CPI"&SheetName&"!$A:$C"),3,FALSE),T138*VLOOKUP($B$3-1,INDIRECT("CPI"&SheetName&"!$A:$C"),3,FALSE))))) ->  | O138: Remove from site | Q138: PCR | R138: kg | S138: 1.7
A139: Pumps | N139: Pumps
B140: Centrifugal Pumps, Single stage, vertical split case, 3550RPM, Specific gravity 1.0, from 50gpm to 900gpm | D140: PC1 | E140: each | F140: =IF(ISBLANK(S140)=TRUE,"",IF($B$3=2024,S140,IF(SheetName="Other (enter value below)",S140*(1+$J$4),IF($B$3>_xlfn.AGGREGATE(4,6,INDIRECT("CPI"&SheetName&"!$A:$A"))+1,S140*VLOOKUP($B$3-2,INDIRECT("CPI"&SheetName&"!$A:$C"),3,FALSE),S140*VLOOKUP($B$3-1,INDIRECT("CPI"&SheetName&"!$A:$C"),3,FALSE))))) -> 32700 | G140: =IF(ISBLANK(T140)=TRUE,"",IF($B$3=2024,T140,IF(SheetName="Other (enter value below)",T140*(1+$J$4),IF($B$3>_xlfn.AGGREGATE(4,6,INDIRECT("CPI"&SheetName&"!$A:$A"))+1,T140*VLOOKUP($B$3-2,INDIRECT("CPI"&SheetName&"!$A:$C"),3,FALSE),T140*VLOOKUP($B$3-1,INDIRECT("CPI"&SheetName&"!$A:$C"),3,FALSE))))) -> 64000 | O140: Centrifugal Pumps, Single stage, vertical split case, 3550RPM, Specific gravity 1.0, from 50gpm to 900gpm | Q140: PC1 | R140: each | S140: 32700 | T140: 64000
B141: Centrifugal Pumps, Single stage, vertical split case, 1750RPM, Specific gravity 1.0, from 50gpm to 3500gpm | D141: PC2 | E141: each | F141: =IF(ISBLANK(S141)=TRUE,"",IF($B$3=2024,S141,IF(SheetName="Other (enter value below)",S141*(1+$J$4),IF($B$3>_xlfn.AGGREGATE(4,6,INDIRECT("CPI"&SheetName&"!$A:$A"))+1,S141*VLOOKUP($B$3-2,INDIRECT("CPI"&SheetName&"!$A:$C"),3,FALSE),S141*VLOOKUP($B$3-1,INDIRECT("CPI"&SheetName&"!$A:$C"),3,FALSE))))) -> 25000 | G141: =IF(ISBLANK(T141)=TRUE,"",IF($B$3=2024,T141,IF(SheetName="Other (enter value below)",T141*(1+$J$4),IF($B$3>_xlfn.AGGREGATE(4,6,INDIRECT("CPI"&SheetName&"!$A:$A"))+1,T141*VLOOKUP($B$3-2,INDIRECT("CPI"&SheetName&"!$A:$C"),3,FALSE),T141*VLOOKUP($B$3-1,INDIRECT("CPI"&SheetName&"!$A:$C"),3,FALSE))))) -> 131000 | O141: Centrifugal Pumps, Single stage, vertical split case, 1750RPM, Specific gravity 1.0, from 50gpm to 3500gpm | Q141: PC2 | R141: each | S141: 25000 | T141: 131000
B142: Centrifugal Pumps, Single stage, horizontal split case, 3550RPM, Specific gravity 1.0, 1000gpm to 3500ggpm | D142: PC3 | E142: each | F142: =IF(ISBLANK(S142)=TRUE,"",IF($B$3=2024,S142,IF(SheetName="Other (enter value below)",S142*(1+$J$4),IF($B$3>_xlfn.AGGREGATE(4,6,INDIRECT("CPI"&SheetName&"!$A:$A"))+1,S142*VLOOKUP($B$3-2,INDIRECT("CPI"&SheetName&"!$A:$C"),3,FALSE),S142*VLOOKUP($B$3-1,INDIRECT("CPI"&SheetName&"!$A:$C"),3,FALSE))))) -> 82000 | G142: =IF(ISBLANK(T142)=TRUE,"",IF($B$3=2024,T142,IF(SheetName="Other (enter value below)",T142*(1+$J$4),IF($B$3>_xlfn.AGGREGATE(4,6,INDIRECT("CPI"&SheetName&"!$A:$A"))+1,T142*VLOOKUP($B$3-2,INDIRECT("CPI"&SheetName&"!$A:$C"),3,FALSE),T142*VLOOKUP($B$3-1,INDIRECT("CPI"&SheetName&"!$A:$C"),3,FALSE))))) -> 138000 | O142: Centrifugal Pumps, Single stage, horizontal split case, 3550RPM, Specific gravity 1.0, 1000gpm to 3500ggpm | Q142: PC3 | R142: each | S142: 82000 | T142: 138000
B143: Centrifugal Pumps, Single stage, horizontal split case, 1750RPM, Specific gravity 1.0, 1000gpm to 5000gpm | D143: PC4 | E143: each | F143: =IF(ISBLANK(S143)=TRUE,"",IF($B$3=2024,S143,IF(SheetName="Other (enter value below)",S143*(1+$J$4),IF($B$3>_xlfn.AGGREGATE(4,6,INDIRECT("CPI"&SheetName&"!$A:$A"))+1,S143*VLOOKUP($B$3-2,INDIRECT("CPI"&SheetName&"!$A:$C"),3,FALSE),S143*VLOOKUP($B$3-1,INDIRECT("CPI"&SheetName&"!$A:$C"),3,FALSE))))) -> 99000 | G143: =IF(ISBLANK(T143)=TRUE,"",IF($B$3=2024,T143,IF(SheetName="Other (enter value below)",T143*(1+$J$4),IF($B$3>_xlfn.AGGREGATE(4,6,INDIRECT("CPI"&SheetName&"!$A:$A"))+1,T143*VLOOKUP($B$3-2,INDIRECT("CPI"&SheetName&"!$A:$C"),3,FALSE),T143*VLOOKUP($B$3-1,INDIRECT("CPI"&SheetName&"!$A:$C"),3,FALSE))))) -> 263000 | O143: Centrifugal Pumps, Single stage, horizontal split case, 1750RPM, Specific gravity 1.0, 1000gpm to 5000gpm | Q143: PC4 | R143: each | S143: 99000 | T143: 263000
B144: Centrifugal Pumps, multi stage, radially split case, 3550RPM, Specific gravity 1.0, 100gpm to 700gpm | D144: PC5 | E144: each | F144: =IF(ISBLANK(S144)=TRUE,"",IF($B$3=2024,S144,IF(SheetName="Other (enter value below)",S144*(1+$J$4),IF($B$3>_xlfn.AGGREGATE(4,6,INDIRECT("CPI"&SheetName&"!$A:$A"))+1,S144*VLOOKUP($B$3-2,INDIRECT("CPI"&SheetName&"!$A:$C"),3,FALSE),S144*VLOOKUP($B$3-1,INDIRECT("CPI"&SheetName&"!$A:$C"),3,FALSE))))) -> 158700 | G144: =IF(ISBLANK(T144)=TRUE,"",IF($B$3=2024,T144,IF(SheetName="Other (enter value below)",T144*(1+$J$4),IF($B$3>_xlfn.AGGREGATE(4,6,INDIRECT("CPI"&SheetName&"!$A:$A"))+1,T144*VLOOKUP($B$3-2,INDIRECT("CPI"&SheetName&"!$A:$C"),3,FALSE),T144*VLOOKUP($B$3-1,INDIRECT("CPI"&SheetName&"!$A:$C"),3,FALSE))))) -> 366000 | O144: Centrifugal Pumps, multi stage, radially split case, 3550RPM, Specific gravity 1.0, 100gpm to 700gpm | Q144: PC5 | R144: each | S144: 158700 | T144: 366000
B145: Turbine pumps, vertical, single an multi stage, 3550 rmp, gravity 1, 100gpm to 6000gpm | D145: PC6 | E145: each | F145: =IF(ISBLANK(S145)=TRUE,"",IF($B$3=2024,S145,IF(SheetName="Other (enter value below)",S145*(1+$J$4),IF($B$3>_xlfn.AGGREGATE(4,6,INDIRECT("CPI"&SheetName&"!$A:$A"))+1,S145*VLOOKUP($B$3-2,INDIRECT("CPI"&SheetName&"!$A:$C"),3,FALSE),S145*VLOOKUP($B$3-1,INDIRECT("CPI"&SheetName&"!$A:$C"),3,FALSE))))) -> 59000 | G145: =IF(ISBLANK(T145)=TRUE,"",IF($B$3=2024,T145,IF(SheetName="Other (enter value below)",T145*(1+$J$4),IF($B$3>_xlfn.AGGREGATE(4,6,INDIRECT("CPI"&SheetName&"!$A:$A"))+1,T145*VLOOKUP($B$3-2,INDIRECT("CPI"&SheetName&"!$A:$C"),3,FALSE),T145*VLOOKUP($B$3-1,INDIRECT("CPI"&SheetName&"!$A:$C"),3,FALSE))))) -> 224000 | O145: Turbine pumps, vertical, single an multi stage, 3550 rmp, gravity 1, 100gpm to 6000gpm | Q145: PC6 | R145: each | S145: 59000 | T145: 224000
B146: Turbine pumps, vertical, single an multi stage, 1170rmp, gravity 1, 2000gpm to 10000gpm | D146: PC7 | E146: each | F146: =IF(ISBLANK(S146)=TRUE,"",IF($B$3=2024,S146,IF(SheetName="Other (enter value below)",S146*(1+$J$4),IF($B$3>_xlfn.AGGREGATE(4,6,INDIRECT("CPI"&SheetName&"!$A:$A"))+1,S146*VLOOKUP($B$3-2,INDIRECT("CPI"&SheetName&"!$A:$C"),3,FALSE),S146*VLOOKUP($B$3-1,INDIRECT("CPI"&SheetName&"!$A:$C"),3,FALSE))))) -> 182000 | G146: =IF(ISBLANK(T146)=TRUE,"",IF($B$3=2024,T146,IF(SheetName="Other (enter value below)",T146*(1+$J$4),IF($B$3>_xlfn.AGGREGATE(4,6,INDIRECT("CPI"&SheetName&"!$A:$A"))+1,T146*VLOOKUP($B$3-2,INDIRECT("CPI"&SheetName&"!$A:$C"),3,FALSE),T146*VLOOKUP($B$3-1,INDIRECT("CPI"&SheetName&"!$A:$C"),3,FALSE))))) -> 341000 | O146: Turbine pumps, vertical, single an multi stage, 1170rmp, gravity 1, 2000gpm to 10000gpm | Q146: PC7 | R146: each | S146: 182000 | T146: 341000
B147: Pump shipping | D147: PS | E147: % | F147: =IF(ISBLANK(S147)=TRUE,"",IF($B$3=2024,S147,IF(SheetName="Other (enter value below)",S147*(1+$J$4),IF($B$3>_xlfn.AGGREGATE(4,6,INDIRECT("CPI"&SheetName&"!$A:$A"))+1,S147*VLOOKUP($B$3-2,INDIRECT("CPI"&SheetName&"!$A:$C"),3,FALSE),S147*VLOOKUP($B$3-1,INDIRECT("CPI"&SheetName&"!$A:$C"),3,FALSE))))) -> 0.09 | G147: =IF(ISBLANK(T147)=TRUE,"",IF($B$3=2024,T147,IF(SheetName="Other (enter value below)",T147*(1+$J$4),IF($B$3>_xlfn.AGGREGATE(4,6,INDIRECT("CPI"&SheetName&"!$A:$A"))+1,T147*VLOOKUP($B$3-2,INDIRECT("CPI"&SheetName&"!$A:$C"),3,FALSE),T147*VLOOKUP($B$3-1,INDIRECT("CPI"&SheetName&"!$A:$C"),3,FALSE))))) -> 0.13 | O147: Pump shipping | Q147: PS | R147: % | S147: 0.09 | T147: 0.13
B148: Pump operating cost | D148: POC | E148: kw-h | F148: =IF(ISBLANK(S148)=TRUE,"",IF($B$3=2024,S148,IF(SheetName="Other (enter value below)",S148*(1+$J$4),IF($B$3>_xlfn.AGGREGATE(4,6,INDIRECT("CPI"&SheetName&"!$A:$A"))+1,S148*VLOOKUP($B$3-2,INDIRECT("CPI"&SheetName&"!$A:$C"),3,FALSE),S148*VLOOKUP($B$3-1,INDIRECT("CPI"&SheetName&"!$A:$C"),3,FALSE))))) -> 0.95 | G148: =IF(ISBLANK(T148)=TRUE,"",IF($B$3=2024,T148,IF(SheetName="Other (enter value below)",T148*(1+$J$4),IF($B$3>_xlfn.AGGREGATE(4,6,INDIRECT("CPI"&SheetName&"!$A:$A"))+1,T148*VLOOKUP($B$3-2,INDIRECT("CPI"&SheetName&"!$A:$C"),3,FALSE),T148*VLOOKUP($B$3-1,INDIRECT("CPI"&SheetName&"!$A:$C"),3,FALSE))))) ->  | O148: Pump operating cost | Q148: POC | R148: kw-h | S148: 0.95
B149: Pump maintenance | D149: PM | E149: allow | F149: =IF(ISBLANK(S149)=TRUE,"",IF($B$3=2024,S149,IF(SheetName="Other (enter value below)",S149*(1+$J$4),IF($B$3>_xlfn.AGGREGATE(4,6,INDIRECT("CPI"&SheetName&"!$A:$A"))+1,S149*VLOOKUP($B$3-2,INDIRECT("CPI"&SheetName&"!$A:$C"),3,FALSE),S149*VLOOKUP($B$3-1,INDIRECT("CPI"&SheetName&"!$A:$C"),3,FALSE))))) -> 25000 | G149: =IF(ISBLANK(T149)=TRUE,"",IF($B$3=2024,T149,IF(SheetName="Other (enter value below)",T149*(1+$J$4),IF($B$3>_xlfn.AGGREGATE(4,6,INDIRECT("CPI"&SheetName&"!$A:$A"))+1,T149*VLOOKUP($B$3-2,INDIRECT("CPI"&SheetName&"!$A:$C"),3,FALSE),T149*VLOOKUP($B$3-1,INDIRECT("CPI"&SheetName&"!$A:$C"),3,FALSE))))) ->  | O149: Pump maintenance | Q149: PM | R149: allow | S149: 25000
A150: Pump sand Backfill | N150: Pump sand Backfill
D151: PBF | E151: m3 | F151: =IF(ISBLANK(S151)=TRUE,"",IF($B$3=2024,S151,IF(SheetName="Other (enter value below)",S151*(1+$J$4),IF($B$3>_xlfn.AGGREGATE(4,6,INDIRECT("CPI"&SheetName&"!$A:$A"))+1,S151*VLOOKUP($B$3-2,INDIRECT("CPI"&SheetName&"!$A:$C"),3,FALSE),S151*VLOOKUP($B$3-1,INDIRECT("CPI"&SheetName&"!$A:$C"),3,FALSE))))) -> 120 | G151: =IF(ISBLANK(T151)=TRUE,"",IF($B$3=2024,T151,IF(SheetName="Other (enter value below)",T151*(1+$J$4),IF($B$3>_xlfn.AGGREGATE(4,6,INDIRECT("CPI"&SheetName&"!$A:$A"))+1,T151*VLOOKUP($B$3-2,INDIRECT("CPI"&SheetName&"!$A:$C"),3,FALSE),T151*VLOOKUP($B$3-1,INDIRECT("CPI"&SheetName&"!$A:$C"),3,FALSE))))) ->  | Q151: PBF | R151: m3 | S151: 120
A152: Scarify - road/mine site | N152: Scarify - road/mine site
D153: SCFY | E153: ha | F153: =IF(ISBLANK(S153)=TRUE,"",IF($B$3=2024,S153,IF(SheetName="Other (enter value below)",S153*(1+$J$4),IF($B$3>_xlfn.AGGREGATE(4,6,INDIRECT("CPI"&SheetName&"!$A:$A"))+1,S153*VLOOKUP($B$3-2,INDIRECT("CPI"&SheetName&"!$A:$C"),3,FALSE),S153*VLOOKUP($B$3-1,INDIRECT("CPI"&SheetName&"!$A:$C"),3,FALSE))))) -> 7000 | G153: =IF(ISBLANK(T153)=TRUE,"",IF($B$3=2024,T153,IF(SheetName="Other (enter value below)",T153*(1+$J$4),IF($B$3>_xlfn.AGGREGATE(4,6,INDIRECT("CPI"&SheetName&"!$A:$A"))+1,T153*VLOOKUP($B$3-2,INDIRECT("CPI"&SheetName&"!$A:$C"),3,FALSE),T153*VLOOKUP($B$3-1,INDIRECT("CPI"&SheetName&"!$A:$C"),3,FALSE))))) ->  | Q153: SCFY | R153: ha | S153: 7000
A154: Shaft, Raise & Portal Closures | N154: Shaft, Raise & Portal Closures
B155: Shaft & Raises | D155: SR | E155: m2 | F155: =IF(ISBLANK(S155)=TRUE,"",IF($B$3=2024,S155,IF(SheetName="Other (enter value below)",S155*(1+$J$4),IF($B$3>_xlfn.AGGREGATE(4,6,INDIRECT("CPI"&SheetName&"!$A:$A"))+1,S155*VLOOKUP($B$3-2,INDIRECT("CPI"&SheetName&"!$A:$C"),3,FALSE),S155*VLOOKUP($B$3-1,INDIRECT("CPI"&SheetName&"!$A:$C"),3,FALSE))))) -> 2000 | G155: =IF(ISBLANK(T155)=TRUE,"",IF($B$3=2024,T155,IF(SheetName="Other (enter value below)",T155*(1+$J$4),IF($B$3>_xlfn.AGGREGATE(4,6,INDIRECT("CPI"&SheetName&"!$A:$A"))+1,T155*VLOOKUP($B$3-2,INDIRECT("CPI"&SheetName&"!$A:$C"),3,FALSE),T155*VLOOKUP($B$3-1,INDIRECT("CPI"&SheetName&"!$A:$C"),3,FALSE))))) -> 5000 | K155: Low ( <16 m2) High ( >16 m2) | O155: Shaft & Raises | Q155: SR | R155: m2 | S155: 2000 | T155: 5000
B156: Portals | D156: POR | E156: m3 | F156: =IF(ISBLANK(S156)=TRUE,"",IF($B$3=2024,S156,IF(SheetName="Other (enter value below)",S156*(1+$J$4),IF($B$3>_xlfn.AGGREGATE(4,6,INDIRECT("CPI"&SheetName&"!$A:$A"))+1,S156*VLOOKUP($B$3-2,INDIRECT("CPI"&SheetName&"!$A:$C"),3,FALSE),S156*VLOOKUP($B$3-1,INDIRECT("CPI"&SheetName&"!$A:$C"),3,FALSE))))) -> 37 | G156: =IF(ISBLANK(T156)=TRUE,"",IF($B$3=2024,T156,IF(SheetName="Other (enter value below)",T156*(1+$J$4),IF($B$3>_xlfn.AGGREGATE(4,6,INDIRECT("CPI"&SheetName&"!$A:$A"))+1,T156*VLOOKUP($B$3-2,INDIRECT("CPI"&SheetName&"!$A:$C"),3,FALSE),T156*VLOOKUP($B$3-1,INDIRECT("CPI"&SheetName&"!$A:$C"),3,FALSE))))) -> 52 | H156: =IF(ISBLANK(U156)=TRUE,"",IF($B$3=2024,U156,IF(SheetName="Other (enter value below)",U156*(1+$J$4),IF($B$3>_xlfn.AGGREGATE(4,6,INDIRECT("CPI"&SheetName&"!$A:$A"))+1,U156*VLOOKUP($B$3-2,INDIRECT("CPI"&SheetName&"!$A:$C"),3,FALSE),U156*VLOOKUP($B$3-1,INDIRECT("CPI"&SheetName&"!$A:$C"),3,FALSE))))) -> 1500 | K156: Low: unit cost code SC2; High: excavate & backfill collapsed portal; Spec: installed pressure plug | O156: Portals | Q156: POR | R156: m3 | S156: 37 | T156: 52 | U156: 1500
A157: Site Inspection Report | N157: Site Inspection Report
D158: RPT | E158: each | F158: =IF(ISBLANK(S158)=TRUE,"",IF($B$3=2024,S158,IF(SheetName="Other (enter value below)",S158*(1+$J$4),IF($B$3>_xlfn.AGGREGATE(4,6,INDIRECT("CPI"&SheetName&"!$A:$A"))+1,S158*VLOOKUP($B$3-2,INDIRECT("CPI"&SheetName&"!$A:$C"),3,FALSE),S158*VLOOKUP($B$3-1,INDIRECT("CPI"&SheetName&"!$A:$C"),3,FALSE))))) -> 24000 | G158: =IF(ISBLANK(T158)=TRUE,"",IF($B$3=2024,T158,IF(SheetName="Other (enter value below)",T158*(1+$J$4),IF($B$3>_xlfn.AGGREGATE(4,6,INDIRECT("CPI"&SheetName&"!$A:$A"))+1,T158*VLOOKUP($B$3-2,INDIRECT("CPI"&SheetName&"!$A:$C"),3,FALSE),T158*VLOOKUP($B$3-1,INDIRECT("CPI"&SheetName&"!$A:$C"),3,FALSE))))) ->  | H158: =IF(ISBLANK(U158)=TRUE,"",IF($B$3=2024,U158,IF(SheetName="Other (enter value below)",U158*(1+$J$4),IF($B$3>_xlfn.AGGREGATE(4,6,INDIRECT("CPI"&SheetName&"!$A:$A"))+1,U158*VLOOKUP($B$3-2,INDIRECT("CPI"&SheetName&"!$A:$C"),3,FALSE),U158*VLOOKUP($B$3-1,INDIRECT("CPI"&SheetName&"!$A:$C"),3,FALSE))))) ->  | K158: See user manual | Q158: RPT | R158: each | S158: 24000
A159: Survey/Instrumentation | N159: Survey/Instrumentation
D160: SI | E160: each | F160: =IF(ISBLANK(S160)=TRUE,"",IF($B$3=2024,S160,IF(SheetName="Other (enter value below)",S160*(1+$J$4),IF($B$3>_xlfn.AGGREGATE(4,6,INDIRECT("CPI"&SheetName&"!$A:$A"))+1,S160*VLOOKUP($B$3-2,INDIRECT("CPI"&SheetName&"!$A:$C"),3,FALSE),S160*VLOOKUP($B$3-1,INDIRECT("CPI"&SheetName&"!$A:$C"),3,FALSE))))) -> 6000 | G160: =IF(ISBLANK(T160)=TRUE,"",IF($B$3=2024,T160,IF(SheetName="Other (enter value below)",T160*(1+$J$4),IF($B$3>_xlfn.AGGREGATE(4,6,INDIRECT("CPI"&SheetName&"!$A:$A"))+1,T160*VLOOKUP($B$3-2,INDIRECT("CPI"&SheetName&"!$A:$C"),3,FALSE),T160*VLOOKUP($B$3-1,INDIRECT("CPI"&SheetName&"!$A:$C"),3,FALSE))))) ->  | H160: =IF(ISBLANK(U160)=TRUE,"",IF($B$3=2024,U160,IF(SheetName="Other (enter value below)",U160*(1+$J$4),IF($B$3>_xlfn.AGGREGATE(4,6,INDIRECT("CPI"&SheetName&"!$A:$A"))+1,U160*VLOOKUP($B$3-2,INDIRECT("CPI"&SheetName&"!$A:$C"),3,FALSE),U160*VLOOKUP($B$3-1,INDIRECT("CPI"&SheetName&"!$A:$C"),3,FALSE))))) ->  | K160: Est 2 days effort | Q160: SI | R160: each | S160: 6000
A161: Treatment Plant - Construct | N161: Treatment Plant - Construct
B162: Small (< 1000 m3/d) | D162: TPS | E162: lump sum | F162: =IF(ISBLANK(S162)=TRUE,"",IF($B$3=2024,S162,IF(SheetName="Other (enter value below)",S162*(1+$J$4),IF($B$3>_xlfn.AGGREGATE(4,6,INDIRECT("CPI"&SheetName&"!$A:$A"))+1,S162*VLOOKUP($B$3-2,INDIRECT("CPI"&SheetName&"!$A:$C"),3,FALSE),S162*VLOOKUP($B$3-1,INDIRECT("CPI"&SheetName&"!$A:$C"),3,FALSE))))) -> 1400000 | G162: =IF(ISBLANK(T162)=TRUE,"",IF($B$3=2024,T162,IF(SheetName="Other (enter value below)",T162*(1+$J$4),IF($B$3>_xlfn.AGGREGATE(4,6,INDIRECT("CPI"&SheetName&"!$A:$A"))+1,T162*VLOOKUP($B$3-2,INDIRECT("CPI"&SheetName&"!$A:$C"),3,FALSE),T162*VLOOKUP($B$3-1,INDIRECT("CPI"&SheetName&"!$A:$C"),3,FALSE))))) -> 4000000 | H162: =IF(ISBLANK(U162)=TRUE,"",IF($B$3=2024,U162,IF(SheetName="Other (enter value below)",U162*(1+$J$4),IF($B$3>_xlfn.AGGREGATE(4,6,INDIRECT("CPI"&SheetName&"!$A:$A"))+1,U162*VLOOKUP($B$3-2,INDIRECT("CPI"&SheetName&"!$A:$C"),3,FALSE),U162*VLOOKUP($B$3-1,INDIRECT("CPI"&SheetName&"!$A:$C"),3,FALSE))))) ->  | O162: Small (< 1000 m3/d) | Q162: TPS | R162: lump sum | S162: 1400000 | T162: 4000000
B163: Large (> 1000 m3/d) | D163: TPL | E163: lump sum | F163: =IF(ISBLANK(S163)=TRUE,"",IF($B$3=2024,S163,IF(SheetName="Other (enter value below)",S163*(1+$J$4),IF($B$3>_xlfn.AGGREGATE(4,6,INDIRECT("CPI"&SheetName&"!$A:$A"))+1,S163*VLOOKUP($B$3-2,INDIRECT("CPI"&SheetName&"!$A:$C"),3,FALSE),S163*VLOOKUP($B$3-1,INDIRECT("CPI"&SheetName&"!$A:$C"),3,FALSE))))) -> 4500000 | G163: =IF(ISBLANK(T163)=TRUE,"",IF($B$3=2024,T163,IF(SheetName="Other (enter value below)",T163*(1+$J$4),IF($B$3>_xlfn.AGGREGATE(4,6,INDIRECT("CPI"&SheetName&"!$A:$A"))+1,T163*VLOOKUP($B$3-2,INDIRECT("CPI"&SheetName&"!$A:$C"),3,FALSE),T163*VLOOKUP($B$3-1,INDIRECT("CPI"&SheetName&"!$A:$C"),3,FALSE))))) -> 11300000 | H163: =IF(ISBLANK(U163)=TRUE,"",IF($B$3=2024,U163,IF(SheetName="Other (enter value below)",U163*(1+$J$4),IF($B$3>_xlfn.AGGREGATE(4,6,INDIRECT("CPI"&SheetName&"!$A:$A"))+1,U163*VLOOKUP($B$3-2,INDIRECT("CPI"&SheetName&"!$A:$C"),3,FALSE),U163*VLOOKUP($B$3-1,INDIRECT("CPI"&SheetName&"!$A:$C"),3,FALSE))))) ->  | O163: Large (> 1000 m3/d) | Q163: TPL | R163: lump sum | S163: 4500000 | T163: 11300000
B164: Constructed Wetland | D164: CWTS | E164: ha | F164: See note | G164: =IF(ISBLANK(T164)=TRUE,"",IF($B$3=2024,T164,IF(SheetName="Other (enter value below)",T164*(1+L160),IF($B$3>_xlfn.AGGREGATE(4,6,INDIRECT("CPI"&SheetName&"!$A:$A"))+1,T164*VLOOKUP($B$3-2,INDIRECT("CPI"&SheetName&"!$A:$C"),3,FALSE),T164*VLOOKUP($B$3-1,INDIRECT("CPI"&SheetName&"!$A:$C"),3,FALSE))))) ->  | K164: site specific costs to be developed if required | O164: Constructed Wetland | Q164: CWTS | R164: ha | S164: TBD
A165: Treatment Plant - Operate | N165: Treatment Plant - Operate
D166: TPO | E166: m3 | F166: =IF(ISBLANK(S166)=TRUE,"",IF($B$3=2024,S166,IF(SheetName="Other (enter value below)",S166*(1+$J$4),IF($B$3>_xlfn.AGGREGATE(4,6,INDIRECT("CPI"&SheetName&"!$A:$A"))+1,S166*VLOOKUP($B$3-2,INDIRECT("CPI"&SheetName&"!$A:$C"),3,FALSE),S166*VLOOKUP($B$3-1,INDIRECT("CPI"&SheetName&"!$A:$C"),3,FALSE))))) -> 1 | G166: =IF(ISBLANK(T166)=TRUE,"",IF($B$3=2024,T166,IF(SheetName="Other (enter value below)",T166*(1+$J$4),IF($B$3>_xlfn.AGGREGATE(4,6,INDIRECT("CPI"&SheetName&"!$A:$A"))+1,T166*VLOOKUP($B$3-2,INDIRECT("CPI"&SheetName&"!$A:$C"),3,FALSE),T166*VLOOKUP($B$3-1,INDIRECT("CPI"&SheetName&"!$A:$C"),3,FALSE))))) -> 4 | H166: =IF(ISBLANK(U166)=TRUE,"",IF($B$3=2024,U166,IF(SheetName="Other (enter value below)",U166*(1+$J$4),IF($B$3>_xlfn.AGGREGATE(4,6,INDIRECT("CPI"&SheetName&"!$A:$A"))+1,U166*VLOOKUP($B$3-2,INDIRECT("CPI"&SheetName&"!$A:$C"),3,FALSE),U166*VLOOKUP($B$3-1,INDIRECT("CPI"&SheetName&"!$A:$C"),3,FALSE))))) ->  | K166: Low (TSS removal) High (Complex) | Q166: TPO | R166: m3 | S166: 1 | T166: 4
A167: Treatment Chemicals | N167: Treatment Chemicals
B168: ferric sulphate | D168: ferric | E168: kg | F168: =IF(ISBLANK(S168)=TRUE,"",IF($B$3=2024,S168,IF(SheetName="Other (enter value below)",S168*(1+$J$4),IF($B$3>_xlfn.AGGREGATE(4,6,INDIRECT("CPI"&SheetName&"!$A:$A"))+1,S168*VLOOKUP($B$3-2,INDIRECT("CPI"&SheetName&"!$A:$C"),3,FALSE),S168*VLOOKUP($B$3-1,INDIRECT("CPI"&SheetName&"!$A:$C"),3,FALSE))))) -> 1.37 | G168: =IF(ISBLANK(T168)=TRUE,"",IF($B$3=2024,T168,IF(SheetName="Other (enter value below)",T168*(1+$J$4),IF($B$3>_xlfn.AGGREGATE(4,6,INDIRECT("CPI"&SheetName&"!$A:$A"))+1,T168*VLOOKUP($B$3-2,INDIRECT("CPI"&SheetName&"!$A:$C"),3,FALSE),T168*VLOOKUP($B$3-1,INDIRECT("CPI"&SheetName&"!$A:$C"),3,FALSE))))) ->  | H168: =IF(ISBLANK(U168)=TRUE,"",IF($B$3=2024,U168,IF(SheetName="Other (enter value below)",U168*(1+$J$4),IF($B$3>_xlfn.AGGREGATE(4,6,INDIRECT("CPI"&SheetName&"!$A:$A"))+1,U168*VLOOKUP($B$3-2,INDIRECT("CPI"&SheetName&"!$A:$C"),3,FALSE),U168*VLOOKUP($B$3-1,INDIRECT("CPI"&SheetName&"!$A:$C"),3,FALSE))))) ->  | O168: ferric sulphate | Q168: ferric | R168: kg | S168: 1.37
B169: ferrous sulphate | D169: ferrous | E169: kg | F169: =IF(ISBLANK(S169)=TRUE,"",IF($B$3=2024,S169,IF(SheetName="Other (enter value below)",S169*(1+$J$4),IF($B$3>_xlfn.AGGREGATE(4,6,INDIRECT("CPI"&SheetName&"!$A:$A"))+1,S169*VLOOKUP($B$3-2,INDIRECT("CPI"&SheetName&"!$A:$C"),3,FALSE),S169*VLOOKUP($B$3-1,INDIRECT("CPI"&SheetName&"!$A:$C"),3,FALSE))))) -> 1.52 | G169: =IF(ISBLANK(T169)=TRUE,"",IF($B$3=2024,T169,IF(SheetName="Other (enter value below)",T169*(1+$J$4),IF($B$3>_xlfn.AGGREGATE(4,6,INDIRECT("CPI"&SheetName&"!$A:$A"))+1,T169*VLOOKUP($B$3-2,INDIRECT("CPI"&SheetName&"!$A:$C"),3,FALSE),T169*VLOOKUP($B$3-1,INDIRECT("CPI"&SheetName&"!$A:$C"),3,FALSE))))) ->  | H169: =IF(ISBLANK(U169)=TRUE,"",IF($B$3=2024,U169,IF(SheetName="Other (enter value below)",U169*(1+$J$4),IF($B$3>_xlfn.AGGREGATE(4,6,INDIRECT("CPI"&SheetName&"!$A:$A"))+1,U169*VLOOKUP($B$3-2,INDIRECT("CPI"&SheetName&"!$A:$C"),3,FALSE),U169*VLOOKUP($B$3-1,INDIRECT("CPI"&SheetName&"!$A:$C"),3,FALSE))))) ->  | O169: ferrous sulphate | Q169: ferrous | R169: kg | S169: 1.52
B170: lime | D170: lime | E170: kg | F170: =IF(ISBLANK(S170)=TRUE,"",IF($B$3=2024,S170,IF(SheetName="Other (enter value below)",S170*(1+$J$4),IF($B$3>_xlfn.AGGREGATE(4,6,INDIRECT("CPI"&SheetName&"!$A:$A"))+1,S170*VLOOKUP($B$3-2,INDIRECT("CPI"&SheetName&"!$A:$C"),3,FALSE),S170*VLOOKUP($B$3-1,INDIRECT("CPI"&SheetName&"!$A:$C"),3,FALSE))))) -> 0.296044 | G170: =IF(ISBLANK(T170)=TRUE,"",IF($B$3=2024,T170,IF(SheetName="Other (enter value below)",T170*(1+$J$4),IF($B$3>_xlfn.AGGREGATE(4,6,INDIRECT("CPI"&SheetName&"!$A:$A"))+1,T170*VLOOKUP($B$3-2,INDIRECT("CPI"&SheetName&"!$A:$C"),3,FALSE),T170*VLOOKUP($B$3-1,INDIRECT("CPI"&SheetName&"!$A:$C"),3,FALSE))))) ->  | H170: =IF(ISBLANK(U170)=TRUE,"",IF($B$3=2024,U170,IF(SheetName="Other (enter value below)",U170*(1+$J$4),IF($B$3>_xlfn.AGGREGATE(4,6,INDIRECT("CPI"&SheetName&"!$A:$A"))+1,U170*VLOOKUP($B$3-2,INDIRECT("CPI"&SheetName&"!$A:$C"),3,FALSE),U170*VLOOKUP($B$3-1,INDIRECT("CPI"&SheetName&"!$A:$C"),3,FALSE))))) ->  | O170: lime | Q170: lime | R170: kg | S170: 0.296044
B171: hydrogen peroxide, 35% | D171: hperox | E171: kg | F171: =IF(ISBLANK(S171)=TRUE,"",IF($B$3=2024,S171,IF(SheetName="Other (enter value below)",S171*(1+$J$4),IF($B$3>_xlfn.AGGREGATE(4,6,INDIRECT("CPI"&SheetName&"!$A:$A"))+1,S171*VLOOKUP($B$3-2,INDIRECT("CPI"&SheetName&"!$A:$C"),3,FALSE),S171*VLOOKUP($B$3-1,INDIRECT("CPI"&SheetName&"!$A:$C"),3,FALSE))))) -> 1.05924 | G171: =IF(ISBLANK(T171)=TRUE,"",IF($B$3=2024,T171,IF(SheetName="Other (enter value below)",T171*(1+$J$4),IF($B$3>_xlfn.AGGREGATE(4,6,INDIRECT("CPI"&SheetName&"!$A:$A"))+1,T171*VLOOKUP($B$3-2,INDIRECT("CPI"&SheetName&"!$A:$C"),3,FALSE),T171*VLOOKUP($B$3-1,INDIRECT("CPI"&SheetName&"!$A:$C"),3,FALSE))))) ->  | H171: =IF(ISBLANK(U171)=TRUE,"",IF($B$3=2024,U171,IF(SheetName="Other (enter value below)",U171*(1+$J$4),IF($B$3>_xlfn.AGGREGATE(4,6,INDIRECT("CPI"&SheetName&"!$A:$A"))+1,U171*VLOOKUP($B$3-2,INDIRECT("CPI"&SheetName&"!$A:$C"),3,FALSE),U171*VLOOKUP($B$3-1,INDIRECT("CPI"&SheetName&"!$A:$C"),3,FALSE))))) ->  | O171: hydrogen peroxide, 35% | Q171: hperox | R171: kg | S171: 1.05924
B172: Sodium Metabisulfate | D172: Nametab | E172: kg | F172: =IF(ISBLANK(S172)=TRUE,"",IF($B$3=2024,S172,IF(SheetName="Other (enter value below)",S172*(1+$J$4),IF($B$3>_xlfn.AGGREGATE(4,6,INDIRECT("CPI"&SheetName&"!$A:$A"))+1,S172*VLOOKUP($B$3-2,INDIRECT("CPI"&SheetName&"!$A:$C"),3,FALSE),S172*VLOOKUP($B$3-1,INDIRECT("CPI"&SheetName&"!$A:$C"),3,FALSE))))) -> 1.36 | G172: =IF(ISBLANK(T172)=TRUE,"",IF($B$3=2024,T172,IF(SheetName="Other (enter value below)",T172*(1+$J$4),IF($B$3>_xlfn.AGGREGATE(4,6,INDIRECT("CPI"&SheetName&"!$A:$A"))+1,T172*VLOOKUP($B$3-2,INDIRECT("CPI"&SheetName&"!$A:$C"),3,FALSE),T172*VLOOKUP($B$3-1,INDIRECT("CPI"&SheetName&"!$A:$C"),3,FALSE))))) ->  | H172: =IF(ISBLANK(U172)=TRUE,"",IF($B$3=2024,U172,IF(SheetName="Other (enter value below)",U172*(1+$J$4),IF($B$3>_xlfn.AGGREGATE(4,6,INDIRECT("CPI"&SheetName&"!$A:$A"))+1,U172*VLOOKUP($B$3-2,INDIRECT("CPI"&SheetName&"!$A:$C"),3,FALSE),U172*VLOOKUP($B$3-1,INDIRECT("CPI"&SheetName&"!$A:$C"),3,FALSE))))) ->  | O172: Sodium Metabisulfate | Q172: Nametab | R172: kg | S172: 1.36
B173: Caustic soda, 50% | D173: caustic | E173: kg | F173: =IF(ISBLANK(S173)=TRUE,"",IF($B$3=2024,S173,IF(SheetName="Other (enter value below)",S173*(1+$J$4),IF($B$3>_xlfn.AGGREGATE(4,6,INDIRECT("CPI"&SheetName&"!$A:$A"))+1,S173*VLOOKUP($B$3-2,INDIRECT("CPI"&SheetName&"!$A:$C"),3,FALSE),S173*VLOOKUP($B$3-1,INDIRECT("CPI"&SheetName&"!$A:$C"),3,FALSE))))) -> 0.491596 | G173: =IF(ISBLANK(T173)=TRUE,"",IF($B$3=2024,T173,IF(SheetName="Other (enter value below)",T173*(1+$J$4),IF($B$3>_xlfn.AGGREGATE(4,6,INDIRECT("CPI"&SheetName&"!$A:$A"))+1,T173*VLOOKUP($B$3-2,INDIRECT("CPI"&SheetName&"!$A:$C"),3,FALSE),T173*VLOOKUP($B$3-1,INDIRECT("CPI"&SheetName&"!$A:$C"),3,FALSE))))) ->  | H173: =IF(ISBLANK(U173)=TRUE,"",IF($B$3=2024,U173,IF(SheetName="Other (enter value below)",U173*(1+$J$4),IF($B$3>_xlfn.AGGREGATE(4,6,INDIRECT("CPI"&SheetName&"!$A:$A"))+1,U173*VLOOKUP($B$3-2,INDIRECT("CPI"&SheetName&"!$A:$C"),3,FALSE),U173*VLOOKUP($B$3-1,INDIRECT("CPI"&SheetName&"!$A:$C"),3,FALSE))))) ->  | O173: Caustic soda, 50% | Q173: caustic | R173: kg | S173: 0.491596
B174: Sulfuric acid, 93% | D174: sulfuric | E174: kg | F174: =IF(ISBLANK(S174)=TRUE,"",IF($B$3=2024,S174,IF(SheetName="Other (enter value below)",S174*(1+$J$4),IF($B$3>_xlfn.AGGREGATE(4,6,INDIRECT("CPI"&SheetName&"!$A:$A"))+1,S174*VLOOKUP($B$3-2,INDIRECT("CPI"&SheetName&"!$A:$C"),3,FALSE),S174*VLOOKUP($B$3-1,INDIRECT("CPI"&SheetName&"!$A:$C"),3,FALSE))))) -> 0.363528 | G174: =IF(ISBLANK(T174)=TRUE,"",IF($B$3=2024,T174,IF(SheetName="Other (enter value below)",T174*(1+$J$4),IF($B$3>_xlfn.AGGREGATE(4,6,INDIRECT("CPI"&SheetName&"!$A:$A"))+1,T174*VLOOKUP($B$3-2,INDIRECT("CPI"&SheetName&"!$A:$C"),3,FALSE),T174*VLOOKUP($B$3-1,INDIRECT("CPI"&SheetName&"!$A:$C"),3,FALSE))))) ->  | H174: =IF(ISBLANK(U174)=TRUE,"",IF($B$3=2024,U174,IF(SheetName="Other (enter value below)",U174*(1+$J$4),IF($B$3>_xlfn.AGGREGATE(4,6,INDIRECT("CPI"&SheetName&"!$A:$A"))+1,U174*VLOOKUP($B$3-2,INDIRECT("CPI"&SheetName&"!$A:$C"),3,FALSE),U174*VLOOKUP($B$3-1,INDIRECT("CPI"&SheetName&"!$A:$C"),3,FALSE))))) ->  | O174: Sulfuric acid, 93% | Q174: sulfuric | R174: kg | S174: 0.363528
B175: flocculant | D175: flocc | E175: kg | F175: =IF(ISBLANK(S175)=TRUE,"",IF($B$3=2024,S175,IF(SheetName="Other (enter value below)",S175*(1+$J$4),IF($B$3>_xlfn.AGGREGATE(4,6,INDIRECT("CPI"&SheetName&"!$A:$A"))+1,S175*VLOOKUP($B$3-2,INDIRECT("CPI"&SheetName&"!$A:$C"),3,FALSE),S175*VLOOKUP($B$3-1,INDIRECT("CPI"&SheetName&"!$A:$C"),3,FALSE))))) -> 6.9 | G175: =IF(ISBLANK(T175)=TRUE,"",IF($B$3=2024,T175,IF(SheetName="Other (enter value below)",T175*(1+$J$4),IF($B$3>_xlfn.AGGREGATE(4,6,INDIRECT("CPI"&SheetName&"!$A:$A"))+1,T175*VLOOKUP($B$3-2,INDIRECT("CPI"&SheetName&"!$A:$C"),3,FALSE),T175*VLOOKUP($B$3-1,INDIRECT("CPI"&SheetName&"!$A:$C"),3,FALSE))))) ->  | H175: =IF(ISBLANK(U175)=TRUE,"",IF($B$3=2024,U175,IF(SheetName="Other (enter value below)",U175*(1+$J$4),IF($B$3>_xlfn.AGGREGATE(4,6,INDIRECT("CPI"&SheetName&"!$A:$A"))+1,U175*VLOOKUP($B$3-2,INDIRECT("CPI"&SheetName&"!$A:$C"),3,FALSE),U175*VLOOKUP($B$3-1,INDIRECT("CPI"&SheetName&"!$A:$C"),3,FALSE))))) ->  | O175: flocculant | Q175: flocc | R175: kg | S175: 6.9
B176: copper sulphate | D176: copper | E176: kg | F176: =IF(ISBLANK(S176)=TRUE,"",IF($B$3=2024,S176,IF(SheetName="Other (enter value below)",S176*(1+$J$4),IF($B$3>_xlfn.AGGREGATE(4,6,INDIRECT("CPI"&SheetName&"!$A:$A"))+1,S176*VLOOKUP($B$3-2,INDIRECT("CPI"&SheetName&"!$A:$C"),3,FALSE),S176*VLOOKUP($B$3-1,INDIRECT("CPI"&SheetName&"!$A:$C"),3,FALSE))))) -> 3.30673 | G176: =IF(ISBLANK(T176)=TRUE,"",IF($B$3=2024,T176,IF(SheetName="Other (enter value below)",T176*(1+$J$4),IF($B$3>_xlfn.AGGREGATE(4,6,INDIRECT("CPI"&SheetName&"!$A:$A"))+1,T176*VLOOKUP($B$3-2,INDIRECT("CPI"&SheetName&"!$A:$C"),3,FALSE),T176*VLOOKUP($B$3-1,INDIRECT("CPI"&SheetName&"!$A:$C"),3,FALSE))))) ->  | H176: =IF(ISBLANK(U176)=TRUE,"",IF($B$3=2024,U176,IF(SheetName="Other (enter value below)",U176*(1+$J$4),IF($B$3>_xlfn.AGGREGATE(4,6,INDIRECT("CPI"&SheetName&"!$A:$A"))+1,U176*VLOOKUP($B$3-2,INDIRECT("CPI"&SheetName&"!$A:$C"),3,FALSE),U176*VLOOKUP($B$3-1,INDIRECT("CPI"&SheetName&"!$A:$C"),3,FALSE))))) ->  | O176: copper sulphate | Q176: copper | R176: kg | S176: 3.30673
B177: shipping | D177: shipping | E177: kg | F177: =IF(ISBLANK(S177)=TRUE,"",IF($B$3=2024,S177,IF(SheetName="Other (enter value below)",S177*(1+$J$4),IF($B$3>_xlfn.AGGREGATE(4,6,INDIRECT("CPI"&SheetName&"!$A:$A"))+1,S177*VLOOKUP($B$3-2,INDIRECT("CPI"&SheetName&"!$A:$C"),3,FALSE),S177*VLOOKUP($B$3-1,INDIRECT("CPI"&SheetName&"!$A:$C"),3,FALSE))))) -> 0.23 | G177: =IF(ISBLANK(T177)=TRUE,"",IF($B$3=2024,T177,IF(SheetName="Other (enter value below)",T177*(1+$J$4),IF($B$3>_xlfn.AGGREGATE(4,6,INDIRECT("CPI"&SheetName&"!$A:$A"))+1,T177*VLOOKUP($B$3-2,INDIRECT("CPI"&SheetName&"!$A:$C"),3,FALSE),T177*VLOOKUP($B$3-1,INDIRECT("CPI"&SheetName&"!$A:$C"),3,FALSE))))) ->  | H177: =IF(ISBLANK(U177)=TRUE,"",IF($B$3=2024,U177,IF(SheetName="Other (enter value below)",U177*(1+$J$4),IF($B$3>_xlfn.AGGREGATE(4,6,INDIRECT("CPI"&SheetName&"!$A:$A"))+1,U177*VLOOKUP($B$3-2,INDIRECT("CPI"&SheetName&"!$A:$C"),3,FALSE),U177*VLOOKUP($B$3-1,INDIRECT("CPI"&SheetName&"!$A:$C"),3,FALSE))))) ->  | O177: shipping | Q177: shipping | R177: kg | S177: 0.23
A178: Vegetation | N178: Vegetation
B179: Hydroseed, Flat | D179: VHF | E179: ha | F179: =IF(ISBLANK(S179)=TRUE,"",IF($B$3=2024,S179,IF(SheetName="Other (enter value below)",S179*(1+$J$4),IF($B$3>_xlfn.AGGREGATE(4,6,INDIRECT("CPI"&SheetName&"!$A:$A"))+1,S179*VLOOKUP($B$3-2,INDIRECT("CPI"&SheetName&"!$A:$C"),3,FALSE),S179*VLOOKUP($B$3-1,INDIRECT("CPI"&SheetName&"!$A:$C"),3,FALSE))))) -> 3200 | G179: =IF(ISBLANK(T179)=TRUE,"",IF($B$3=2024,T179,IF(SheetName="Other (enter value below)",T179*(1+$J$4),IF($B$3>_xlfn.AGGREGATE(4,6,INDIRECT("CPI"&SheetName&"!$A:$A"))+1,T179*VLOOKUP($B$3-2,INDIRECT("CPI"&SheetName&"!$A:$C"),3,FALSE),T179*VLOOKUP($B$3-1,INDIRECT("CPI"&SheetName&"!$A:$C"),3,FALSE))))) ->  | H179: =IF(ISBLANK(U179)=TRUE,"",IF($B$3=2024,U179,IF(SheetName="Other (enter value below)",U179*(1+$J$4),IF($B$3>_xlfn.AGGREGATE(4,6,INDIRECT("CPI"&SheetName&"!$A:$A"))+1,U179*VLOOKUP($B$3-2,INDIRECT("CPI"&SheetName&"!$A:$C"),3,FALSE),U179*VLOOKUP($B$3-1,INDIRECT("CPI"&SheetName&"!$A:$C"),3,FALSE))))) ->  | O179: Hydroseed, Flat | Q179: VHF | R179: ha | S179: 3200
B180: Hydroseed, Sloped | D180: VHS | E180: ha | F180: =IF(ISBLANK(S180)=TRUE,"",IF($B$3=2024,S180,IF(SheetName="Other (enter value below)",S180*(1+$J$4),IF($B$3>_xlfn.AGGREGATE(4,6,INDIRECT("CPI"&SheetName&"!$A:$A"))+1,S180*VLOOKUP($B$3-2,INDIRECT("CPI"&SheetName&"!$A:$C"),3,FALSE),S180*VLOOKUP($B$3-1,INDIRECT("CPI"&SheetName&"!$A:$C"),3,FALSE))))) -> 4800 | G180: =IF(ISBLANK(T180)=TRUE,"",IF($B$3=2024,T180,IF(SheetName="Other (enter value below)",T180*(1+$J$4),IF($B$3>_xlfn.AGGREGATE(4,6,INDIRECT("CPI"&SheetName&"!$A:$A"))+1,T180*VLOOKUP($B$3-2,INDIRECT("CPI"&SheetName&"!$A:$C"),3,FALSE),T180*VLOOKUP($B$3-1,INDIRECT("CPI"&SheetName&"!$A:$C"),3,FALSE))))) ->  | H180: =IF(ISBLANK(U180)=TRUE,"",IF($B$3=2024,U180,IF(SheetName="Other (enter value below)",U180*(1+$J$4),IF($B$3>_xlfn.AGGREGATE(4,6,INDIRECT("CPI"&SheetName&"!$A:$A"))+1,U180*VLOOKUP($B$3-2,INDIRECT("CPI"&SheetName&"!$A:$C"),3,FALSE),U180*VLOOKUP($B$3-1,INDIRECT("CPI"&SheetName&"!$A:$C"),3,FALSE))))) ->  | O180: Hydroseed, Sloped | Q180: VHS | R180: ha | S180: 4800
B181: Veg. blanket/erosion mat | D181: VB | E181: ha | F181: =IF(ISBLANK(S181)=TRUE,"",IF($B$3=2024,S181,IF(SheetName="Other (enter value below)",S181*(1+$J$4),IF($B$3>_xlfn.AGGREGATE(4,6,INDIRECT("CPI"&SheetName&"!$A:$A"))+1,S181*VLOOKUP($B$3-2,INDIRECT("CPI"&SheetName&"!$A:$C"),3,FALSE),S181*VLOOKUP($B$3-1,INDIRECT("CPI"&SheetName&"!$A:$C"),3,FALSE))))) -> 24960 | G181: =IF(ISBLANK(T181)=TRUE,"",IF($B$3=2024,T181,IF(SheetName="Other (enter value below)",T181*(1+$J$4),IF($B$3>_xlfn.AGGREGATE(4,6,INDIRECT("CPI"&SheetName&"!$A:$A"))+1,T181*VLOOKUP($B$3-2,INDIRECT("CPI"&SheetName&"!$A:$C"),3,FALSE),T181*VLOOKUP($B$3-1,INDIRECT("CPI"&SheetName&"!$A:$C"),3,FALSE))))) ->  | H181: =IF(ISBLANK(U181)=TRUE,"",IF($B$3=2024,U181,IF(SheetName="Other (enter value below)",U181*(1+$J$4),IF($B$3>_xlfn.AGGREGATE(4,6,INDIRECT("CPI"&SheetName&"!$A:$A"))+1,U181*VLOOKUP($B$3-2,INDIRECT("CPI"&SheetName&"!$A:$C"),3,FALSE),U181*VLOOKUP($B$3-1,INDIRECT("CPI"&SheetName&"!$A:$C"),3,FALSE))))) ->  | O181: Veg. blanket/erosion mat | Q181: VB | R181: ha | S181: 24960
B182: Tree planting (light soil) | D182: VT1 | E182: ha | F182: =IF(ISBLANK(S182)=TRUE,"",IF($B$3=2024,S182,IF(SheetName="Other (enter value below)",S182*(1+$J$4),IF($B$3>_xlfn.AGGREGATE(4,6,INDIRECT("CPI"&SheetName&"!$A:$A"))+1,S182*VLOOKUP($B$3-2,INDIRECT("CPI"&SheetName&"!$A:$C"),3,FALSE),S182*VLOOKUP($B$3-1,INDIRECT("CPI"&SheetName&"!$A:$C"),3,FALSE))))) -> 8140 | G182: =IF(ISBLANK(T182)=TRUE,"",IF($B$3=2024,T182,IF(SheetName="Other (enter value below)",T182*(1+$J$4),IF($B$3>_xlfn.AGGREGATE(4,6,INDIRECT("CPI"&SheetName&"!$A:$A"))+1,T182*VLOOKUP($B$3-2,INDIRECT("CPI"&SheetName&"!$A:$C"),3,FALSE),T182*VLOOKUP($B$3-1,INDIRECT("CPI"&SheetName&"!$A:$C"),3,FALSE))))) ->  | H182: =IF(ISBLANK(U182)=TRUE,"",IF($B$3=2024,U182,IF(SheetName="Other (enter value below)",U182*(1+$J$4),IF($B$3>_xlfn.AGGREGATE(4,6,INDIRECT("CPI"&SheetName&"!$A:$A"))+1,U182*VLOOKUP($B$3-2,INDIRECT("CPI"&SheetName&"!$A:$C"),3,FALSE),U182*VLOOKUP($B$3-1,INDIRECT("CPI"&SheetName&"!$A:$C"),3,FALSE))))) ->  | O182: Tree planting (light soil) | Q182: VT1 | R182: ha | S182: 8140
B183: Tree planting (medium soil) | D183: VT2 | E183: ha | F183: =IF(ISBLANK(S183)=TRUE,"",IF($B$3=2024,S183,IF(SheetName="Other (enter value below)",S183*(1+$J$4),IF($B$3>_xlfn.AGGREGATE(4,6,INDIRECT("CPI"&SheetName&"!$A:$A"))+1,S183*VLOOKUP($B$3-2,INDIRECT("CPI"&SheetName&"!$A:$C"),3,FALSE),S183*VLOOKUP($B$3-1,INDIRECT("CPI"&SheetName&"!$A:$C"),3,FALSE))))) -> 9955 | G183: =IF(ISBLANK(T183)=TRUE,"",IF($B$3=2024,T183,IF(SheetName="Other (enter value below)",T183*(1+$J$4),IF($B$3>_xlfn.AGGREGATE(4,6,INDIRECT("CPI"&SheetName&"!$A:$A"))+1,T183*VLOOKUP($B$3-2,INDIRECT("CPI"&SheetName&"!$A:$C"),3,FALSE),T183*VLOOKUP($B$3-1,INDIRECT("CPI"&SheetName&"!$A:$C"),3,FALSE))))) ->  | H183: =IF(ISBLANK(U183)=TRUE,"",IF($B$3=2024,U183,IF(SheetName="Other (enter value below)",U183*(1+$J$4),IF($B$3>_xlfn.AGGREGATE(4,6,INDIRECT("CPI"&SheetName&"!$A:$A"))+1,U183*VLOOKUP($B$3-2,INDIRECT("CPI"&SheetName&"!$A:$C"),3,FALSE),U183*VLOOKUP($B$3-1,INDIRECT("CPI"&SheetName&"!$A:$C"),3,FALSE))))) ->  | O183: Tree planting (medium soil) | Q183: VT2 | R183: ha | S183: 9955
B184: Tree planting (heavy soil) | D184: VT3 | E184: ha | F184: =IF(ISBLANK(S184)=TRUE,"",IF($B$3=2024,S184,IF(SheetName="Other (enter value below)",S184*(1+$J$4),IF($B$3>_xlfn.AGGREGATE(4,6,INDIRECT("CPI"&SheetName&"!$A:$A"))+1,S184*VLOOKUP($B$3-2,INDIRECT("CPI"&SheetName&"!$A:$C"),3,FALSE),S184*VLOOKUP($B$3-1,INDIRECT("CPI"&SheetName&"!$A:$C"),3,FALSE))))) -> 16500 | G184: =IF(ISBLANK(T184)=TRUE,"",IF($B$3=2024,T184,IF(SheetName="Other (enter value below)",T184*(1+$J$4),IF($B$3>_xlfn.AGGREGATE(4,6,INDIRECT("CPI"&SheetName&"!$A:$A"))+1,T184*VLOOKUP($B$3-2,INDIRECT("CPI"&SheetName&"!$A:$C"),3,FALSE),T184*VLOOKUP($B$3-1,INDIRECT("CPI"&SheetName&"!$A:$C"),3,FALSE))))) ->  | H184: =IF(ISBLANK(U184)=TRUE,"",IF($B$3=2024,U184,IF(SheetName="Other (enter value below)",U184*(1+$J$4),IF($B$3>_xlfn.AGGREGATE(4,6,INDIRECT("CPI"&SheetName&"!$A:$A"))+1,U184*VLOOKUP($B$3-2,INDIRECT("CPI"&SheetName&"!$A:$C"),3,FALSE),U184*VLOOKUP($B$3-1,INDIRECT("CPI"&SheetName&"!$A:$C"),3,FALSE))))) ->  | O184: Tree planting (heavy soil) | Q184: VT3 | R184: ha | S184: 16500
B185: Wetland species | D185: VW | E185: ha | F185: =IF(ISBLANK(S185)=TRUE,"",IF($B$3=2024,S185,IF(SheetName="Other (enter value below)",S185*(1+K182),IF($B$3>_xlfn.AGGREGATE(4,6,INDIRECT("CPI"&SheetName&"!$A:$A"))+1,S185*VLOOKUP($B$3-2,INDIRECT("CPI"&SheetName&"!$A:$C"),3,FALSE),S185*VLOOKUP($B$3-1,INDIRECT("CPI"&SheetName&"!$A:$C"),3,FALSE))))) ->  | O185: Wetland species | Q185: VW | R185: ha
A186: Waste Disposal | N186: Waste Disposal
B187: Hazardous Waste Tipping Fee | D187: WTH | E187: tonne | F187: =IF(ISBLANK(S187)=TRUE,"",IF($B$3=2024,S187,IF(SheetName="Other (enter value below)",S187*(1+$J$4),IF($B$3>_xlfn.AGGREGATE(4,6,INDIRECT("CPI"&SheetName&"!$A:$A"))+1,S187*VLOOKUP($B$3-2,INDIRECT("CPI"&SheetName&"!$A:$C"),3,FALSE),S187*VLOOKUP($B$3-1,INDIRECT("CPI"&SheetName&"!$A:$C"),3,FALSE))))) -> 3000 | G187: =IF(ISBLANK(T187)=TRUE,"",IF($B$3=2024,T187,IF(SheetName="Other (enter value below)",T187*(1+$J$4),IF($B$3>_xlfn.AGGREGATE(4,6,INDIRECT("CPI"&SheetName&"!$A:$A"))+1,T187*VLOOKUP($B$3-2,INDIRECT("CPI"&SheetName&"!$A:$C"),3,FALSE),T187*VLOOKUP($B$3-1,INDIRECT("CPI"&SheetName&"!$A:$C"),3,FALSE))))) ->  | H187: =IF(ISBLANK(U187)=TRUE,"",IF($B$3=2024,U187,IF(SheetName="Other (enter value below)",U187*(1+$J$4),IF($B$3>_xlfn.AGGREGATE(4,6,INDIRECT("CPI"&SheetName&"!$A:$A"))+1,U187*VLOOKUP($B$3-2,INDIRECT("CPI"&SheetName&"!$A:$C"),3,FALSE),U187*VLOOKUP($B$3-1,INDIRECT("CPI"&SheetName&"!$A:$C"),3,FALSE))))) ->  | K187: Includes transport | O187: Hazardous Waste Tipping Fee | Q187: WTH | R187: tonne | S187: 3000
B188: Non-Hazardous Waste Tipping Fee | D188: WTNH | E188: tonne | F188: =IF(ISBLANK(S188)=TRUE,"",IF($B$3=2024,S188,IF(SheetName="Other (enter value below)",S188*(1+$J$4),IF($B$3>_xlfn.AGGREGATE(4,6,INDIRECT("CPI"&SheetName&"!$A:$A"))+1,S188*VLOOKUP($B$3-2,INDIRECT("CPI"&SheetName&"!$A:$C"),3,FALSE),S188*VLOOKUP($B$3-1,INDIRECT("CPI"&SheetName&"!$A:$C"),3,FALSE))))) -> 800 | G188: =IF(ISBLANK(T188)=TRUE,"",IF($B$3=2024,T188,IF(SheetName="Other (enter value below)",T188*(1+$J$4),IF($B$3>_xlfn.AGGREGATE(4,6,INDIRECT("CPI"&SheetName&"!$A:$A"))+1,T188*VLOOKUP($B$3-2,INDIRECT("CPI"&SheetName&"!$A:$C"),3,FALSE),T188*VLOOKUP($B$3-1,INDIRECT("CPI"&SheetName&"!$A:$C"),3,FALSE))))) ->  | H188: =IF(ISBLANK(U188)=TRUE,"",IF($B$3=2024,U188,IF(SheetName="Other (enter value below)",U188*(1+$J$4),IF($B$3>_xlfn.AGGREGATE(4,6,INDIRECT("CPI"&SheetName&"!$A:$A"))+1,U188*VLOOKUP($B$3-2,INDIRECT("CPI"&SheetName&"!$A:$C"),3,FALSE),U188*VLOOKUP($B$3-1,INDIRECT("CPI"&SheetName&"!$A:$C"),3,FALSE))))) ->  | O188: Non-Hazardous Waste Tipping Fee | Q188: WTNH | R188: tonne | S188: 800
A189: Water Sampling/Analysis/Reporting | N189: Water Sampling/Analysis/Reporting
D190: WS | E190: each | F190: =IF(ISBLANK(S190)=TRUE,"",IF($B$3=2024,S190,IF(SheetName="Other (enter value below)",S190*(1+$J$4),IF($B$3>_xlfn.AGGREGATE(4,6,INDIRECT("CPI"&SheetName&"!$A:$A"))+1,S190*VLOOKUP($B$3-2,INDIRECT("CPI"&SheetName&"!$A:$C"),3,FALSE),S190*VLOOKUP($B$3-1,INDIRECT("CPI"&SheetName&"!$A:$C"),3,FALSE))))) -> 80000 | G190: =IF(ISBLANK(T190)=TRUE,"",IF($B$3=2024,T190,IF(SheetName="Other (enter value below)",T190*(1+$J$4),IF($B$3>_xlfn.AGGREGATE(4,6,INDIRECT("CPI"&SheetName&"!$A:$A"))+1,T190*VLOOKUP($B$3-2,INDIRECT("CPI"&SheetName&"!$A:$C"),3,FALSE),T190*VLOOKUP($B$3-1,INDIRECT("CPI"&SheetName&"!$A:$C"),3,FALSE))))) ->  | H190: =IF(ISBLANK(U190)=TRUE,"",IF($B$3=2024,U190,IF(SheetName="Other (enter value below)",U190*(1+$J$4),IF($B$3>_xlfn.AGGREGATE(4,6,INDIRECT("CPI"&SheetName&"!$A:$A"))+1,U190*VLOOKUP($B$3-2,INDIRECT("CPI"&SheetName&"!$A:$C"),3,FALSE),U190*VLOOKUP($B$3-1,INDIRECT("CPI"&SheetName&"!$A:$C"),3,FALSE))))) ->  | K190: See User Manual | Q190: WS | R190: each | S190: 80000
A191: Winter Trail | N191: Winter Trail
B192: =O192 -> Snow | D192: =Q192 -> WT | E192: =R192 -> km | F192: =IF(ISBLANK(S192)=TRUE,"",IF($B$3=2024,S192,IF(SheetName="Other (enter value below)",S192*(1+$J$4),IF($B$3>_xlfn.AGGREGATE(4,6,INDIRECT("CPI"&SheetName&"!$A:$A"))+1,S192*VLOOKUP($B$3-2,INDIRECT("CPI"&SheetName&"!$A:$C"),3,FALSE),S192*VLOOKUP($B$3-1,INDIRECT("CPI"&SheetName&"!$A:$C"),3,FALSE))))) -> 2000 | G192: =IF(ISBLANK(T192)=TRUE,"",IF($B$3=2024,T192,IF(SheetName="Other (enter value below)",T192*(1+$J$4),IF($B$3>_xlfn.AGGREGATE(4,6,INDIRECT("CPI"&SheetName&"!$A:$A"))+1,T192*VLOOKUP($B$3-2,INDIRECT("CPI"&SheetName&"!$A:$C"),3,FALSE),T192*VLOOKUP($B$3-1,INDIRECT("CPI"&SheetName&"!$A:$C"),3,FALSE))))) -> 10000 | H192: =IF(ISBLANK(U192)=TRUE,"",IF($B$3=2024,U192,IF(SheetName="Other (enter value below)",U192*(1+$J$4),IF($B$3>_xlfn.AGGREGATE(4,6,INDIRECT("CPI"&SheetName&"!$A:$A"))+1,U192*VLOOKUP($B$3-2,INDIRECT("CPI"&SheetName&"!$A:$C"),3,FALSE),U192*VLOOKUP($B$3-1,INDIRECT("CPI"&SheetName&"!$A:$C"),3,FALSE))))) ->  | O192: Snow | Q192: WT | R192: km | S192: 2000 | T192: 10000
B193: =O193 -> Soil | D193: =Q193 -> WT1 | E193: km | F193: =IF(ISBLANK(S193)=TRUE,"",IF($B$3=2024,S193,IF(SheetName="Other (enter value below)",S193*(1+$J$4),IF($B$3>_xlfn.AGGREGATE(4,6,INDIRECT("CPI"&SheetName&"!$A:$A"))+1,S193*VLOOKUP($B$3-2,INDIRECT("CPI"&SheetName&"!$A:$C"),3,FALSE),S193*VLOOKUP($B$3-1,INDIRECT("CPI"&SheetName&"!$A:$C"),3,FALSE))))) -> 1000 | G193: =IF(ISBLANK(T193)=TRUE,"",IF($B$3=2024,T193,IF(SheetName="Other (enter value below)",T193*(1+$J$4),IF($B$3>_xlfn.AGGREGATE(4,6,INDIRECT("CPI"&SheetName&"!$A:$A"))+1,T193*VLOOKUP($B$3-2,INDIRECT("CPI"&SheetName&"!$A:$C"),3,FALSE),T193*VLOOKUP($B$3-1,INDIRECT("CPI"&SheetName&"!$A:$C"),3,FALSE))))) -> 3000 | H193: =IF(ISBLANK(U193)=TRUE,"",IF($B$3=2024,U193,IF(SheetName="Other (enter value below)",U193*(1+$J$4),IF($B$3>_xlfn.AGGREGATE(4,6,INDIRECT("CPI"&SheetName&"!$A:$A"))+1,U193*VLOOKUP($B$3-2,INDIRECT("CPI"&SheetName&"!$A:$C"),3,FALSE),U193*VLOOKUP($B$3-1,INDIRECT("CPI"&SheetName&"!$A:$C"),3,FALSE))))) ->  | O193: Soil | Q193: WT1 | R193: km | S193: 1000 | T193: 3000
A194: Winter Road | N194: Winter Road
B195: =O195 -> Bridge | D195: =Q195 -> WRB | E195: =R195 -> each | F195: =IF(ISBLANK(S195)=TRUE,"",IF($B$3=2024,S195,IF(SheetName="Other (enter value below)",S195*(1+$J$4),IF($B$3>_xlfn.AGGREGATE(4,6,INDIRECT("CPI"&SheetName&"!$A:$A"))+1,S195*VLOOKUP($B$3-2,INDIRECT("CPI"&SheetName&"!$A:$C"),3,FALSE),S195*VLOOKUP($B$3-1,INDIRECT("CPI"&SheetName&"!$A:$C"),3,FALSE))))) -> 25000 | G195: =IF(ISBLANK(T195)=TRUE,"",IF($B$3=2024,T195,IF(SheetName="Other (enter value below)",T195*(1+$J$4),IF($B$3>_xlfn.AGGREGATE(4,6,INDIRECT("CPI"&SheetName&"!$A:$A"))+1,T195*VLOOKUP($B$3-2,INDIRECT("CPI"&SheetName&"!$A:$C"),3,FALSE),T195*VLOOKUP($B$3-1,INDIRECT("CPI"&SheetName&"!$A:$C"),3,FALSE))))) -> 50000 | H195: =IF(ISBLANK(U195)=TRUE,"",IF($B$3=2024,U195,IF(SheetName="Other (enter value below)",U195*(1+$J$4),IF($B$3>_xlfn.AGGREGATE(4,6,INDIRECT("CPI"&SheetName&"!$A:$A"))+1,U195*VLOOKUP($B$3-2,INDIRECT("CPI"&SheetName&"!$A:$C"),3,FALSE),U195*VLOOKUP($B$3-1,INDIRECT("CPI"&SheetName&"!$A:$C"),3,FALSE))))) ->  | K195: Low (simple wooden or ice) High (complex steel frame or modular) | O195: Bridge | Q195: WRB | R195: each | S195: 25000 | T195: 50000
B196: Construction and Maintenance | D196: WRC | E196: km | F196: =IF(ISBLANK(S196)=TRUE,"",IF($B$3=2024,S196,IF(SheetName="Other (enter value below)",S196*(1+$J$4),IF($B$3>_xlfn.AGGREGATE(4,6,INDIRECT("CPI"&SheetName&"!$A:$A"))+1,S196*VLOOKUP($B$3-2,INDIRECT("CPI"&SheetName&"!$A:$C"),3,FALSE),S196*VLOOKUP($B$3-1,INDIRECT("CPI"&SheetName&"!$A:$C"),3,FALSE))))) -> 25000 | G196: =IF(ISBLANK(T196)=TRUE,"",IF($B$3=2024,T196,IF(SheetName="Other (enter value below)",T196*(1+$J$4),IF($B$3>_xlfn.AGGREGATE(4,6,INDIRECT("CPI"&SheetName&"!$A:$A"))+1,T196*VLOOKUP($B$3-2,INDIRECT("CPI"&SheetName&"!$A:$C"),3,FALSE),T196*VLOOKUP($B$3-1,INDIRECT("CPI"&SheetName&"!$A:$C"),3,FALSE))))) ->  | H196: =IF(ISBLANK(U196)=TRUE,"",IF($B$3=2024,U196,IF(SheetName="Other (enter value below)",U196*(1+$J$4),IF($B$3>_xlfn.AGGREGATE(4,6,INDIRECT("CPI"&SheetName&"!$A:$A"))+1,U196*VLOOKUP($B$3-2,INDIRECT("CPI"&SheetName&"!$A:$C"),3,FALSE),U196*VLOOKUP($B$3-1,INDIRECT("CPI"&SheetName&"!$A:$C"),3,FALSE))))) ->  | O196: Construction | Q196: WRC | R196: km | S196: 25000
B197: Usage | D197: WRU | E197: kmtonne | F197: =IF(ISBLANK(S197)=TRUE,"",IF($B$3=2024,S197,IF(SheetName="Other (enter value below)",S197*(1+$J$4),IF($B$3>_xlfn.AGGREGATE(4,6,INDIRECT("CPI"&SheetName&"!$A:$A"))+1,S197*VLOOKUP($B$3-2,INDIRECT("CPI"&SheetName&"!$A:$C"),3,FALSE),S197*VLOOKUP($B$3-1,INDIRECT("CPI"&SheetName&"!$A:$C"),3,FALSE))))) -> 0.5 | G197: =IF(ISBLANK(T197)=TRUE,"",IF($B$3=2024,T197,IF(SheetName="Other (enter value below)",T197*(1+$J$4),IF($B$3>_xlfn.AGGREGATE(4,6,INDIRECT("CPI"&SheetName&"!$A:$A"))+1,T197*VLOOKUP($B$3-2,INDIRECT("CPI"&SheetName&"!$A:$C"),3,FALSE),T197*VLOOKUP($B$3-1,INDIRECT("CPI"&SheetName&"!$A:$C"),3,FALSE))))) ->  | H197: =IF(ISBLANK(U197)=TRUE,"",IF($B$3=2024,U197,IF(SheetName="Other (enter value below)",U197*(1+$J$4),IF($B$3>_xlfn.AGGREGATE(4,6,INDIRECT("CPI"&SheetName&"!$A:$A"))+1,U197*VLOOKUP($B$3-2,INDIRECT("CPI"&SheetName&"!$A:$C"),3,FALSE),U197*VLOOKUP($B$3-1,INDIRECT("CPI"&SheetName&"!$A:$C"),3,FALSE))))) ->  | O197: Usage | Q197: WRU | R197: kmtonne | S197: 0.5

Sheet Estimator
B1: Unit Cost Estimator | D1: 1 | E1: Equipment Productivity Figures and Graphs have been reproduced from Caterpillar Performance Handbook - Edition 42
B2: EXCAVATION | G2: HAUL AND DUMPING | L2: SPREADING/DOZING
B3: Productivity | G3: Productivity | L3: Productivity
B4: Machine | C4: Cat 336EL | G4: Machine | H4: Cat 770 | L4: Machine | M4: Cat D8
B5: bucket capacity | D5: 3.16 | E5: m3 | G5: truck capacity | I5: 25.1 | J5: m3 | L5: Estimate production using example curves provided or | N5: 600 | O5: m3/hr
B6: fill factor | D6: 0.75 | E6: % | G6: fill factor | I6: 0.8 | J6: % | L6: equivalent from other supplier
B7: cycle time | D7: 45 | E7: seconds | L7: Correction factors (see table provided)
B8: operator skill | D8: 0.8 | E8: % | G8: load time | I8: 6 | J8: min. | L8: operator skill | N8: 0.75
B9: machine availability | D9: 0.83 | E9: % | G9: haul distance | I9: 1.5 | J9: km | L9: material type, see table | N9: 0.8
B10: altitude adjustment | D10: 1 | E10: % | G10: average velocity | I10: 20 | J10: km/hr | L10: slot dozing | N10: 1
B11: Hourly productivity | D11: =D5*D6*(60*60/D7)*D8*D9*D10 -> 125.8944 | E11: m3/hr | G11: haul time + return time | I11: =+I9/I10*60*2 -> 9 | J11: min. | L11: side by side dozing | N11: 1
G12: wait time | I12: 0.5 | J12: min. | L12: visibility | N12: 1
G13: dump time | I13: 1 | J13: min. | L13: job efficiency | N13: 0.83
G14: cycle time | I14: =I8+SUM(I11:I13) -> 16.5 | J14: min. | L14: altitude adjustment | N14: 1
G15: machine availability | I15: 0.83 | J15: % | L15: slope adjustment | N15: 1
G16: altitude adjustment | I16: 1 | J16: % | L16: Hourly productivity | N16: =+N5*N8*N9*N10*N11*N12*N13*N14*N15 -> 298.8 | O16: m3/hr
I17: =I14*I15*I16 -> 13.695 | J17: ave. min/cycle
G18: Hourly productivity | I18: =I5*I6*60/I17 -> 87.97371303 | J18: m3/hr
B19: Operating Costs | G19: Operating Costs | L19: Operating Costs
B20: - Contractor | G20: - Contractor | L20: - Contractor
B21: Contractor hourly rate | D21: 180 | E21: $/hr | G21: Contractor hourly rate | I21: 225 | J21: $/hr | L21: Hourly rate - contractor supplied | N21: 260 | O21: $/hr
B22: Excavation cost - contractor rate | D22: =D21/D11 -> 1.429769712 | E22: $/m3 | G22: Haul and Dump - contractor rate | I22: =I21/I18 -> 2.557582171 | J22: $/m3 | L22: Dozing - contractor rate | N22: =N21/N16 -> 0.8701472557 | O22: $/m3
B24: - Owner | G24: - Owner | L24: - Owner
B25: ownership, daily | E25: $/day | G25: ownership, daily | J25: $/day | L25: ownership, daily | O25: $/day
B26: maintenance | E26: $/hr | G26: maintenance | J26: $/hr | L26: maintenance | O26: $/hr
B27: fuel | E27: $/hr | G27: fuel | J27: $/hr | L27: fuel | O27: $/hr
B28: consumables (cutters, tires) | E28: $/hr | G28: consumables (cutters, tires) | J28: $/hr | L28: consumables (cutters, tires) | O28: $/hr
B29: operator | E29: $/hr | G29: operator | J29: $/hr | L29: operator | O29: $/hr
B30: Owner hourly rate | D30: =D25/10+SUM(D26:D29) -> 0 | E30: $/hr | G30: Owner hourly rate | I30: =I25/10+SUM(I26:I29) -> 0 | J30: $/hr | L30: Owner hourly rate | N30: =N25/10+SUM(N26:N29) -> 0
B31: Excavation cost - owner rate | D31: =D30/D11 -> 0 | E31: $/m3 | G31: Haul/Dumping Cost - owner rate | I31: =I30/I18 -> 0 | J31: $/m3 | L31: Spreading/Dozing Cost - owner rate | N31: =N30/N16 -> 0 | O31: $/hr
B32: Excavation cost - select contractor or owner rate (D22 or D31) | E32: $/m3 | G32: Haul/Dumping Cost - select contractor or owner rate (I22 or I31 | J32: $/m3 | L32: Spreading/Dozing Cost - select contractor or owner rate (N22 or N31) | O32: $/m3
B36: Excavator | G36: Trucking | L36: Dozing
C37: Cat 320 | D37: Cat 325B | E37: Cat 375 | H37: Cat 771 D | I37: Cat 777D | J37: Cat 789C
B38: heaped bucket capacity, m3 | C38: 1.5 | D38: 2.2 | E38: 5.4 | G38: Truck capacity - heaped, m3 | H38: 27.5 | I38: 60.5 | J38: 137
D39: Typical Cycle Times (seconds)
B40: easy digging, shallow digging, small swing angle | C40: 16 | D40: 18 | E40: 20
B41: med. to hard digging, rocky soil, swing angle to 90 deg. | C41: 23 | D41: 23 | E41: 25
B42: tough digging, sandstone, caliche, at max. machine depth, swing angle > 120 deg. | C42: 27 | D42: 29 | E42: 35
B44: Material | C44: Fill Factor (% of heaped bucket capacity
B45: Moist loam or sandy clay | D45: 100 - 110
B46: sand and gravel (not till) | D46: 95 - 110
B47: hard tough clay | D47: 80 - 90
B48: rock - will blasted | D48: 60 - 75
B49: rock - poorly blasted | D49: 40 -60
B51: Operator Skill | C51: poor | D51: average | E51: good
B52: Correction factor | C52: 0.6 | D52: 0.75 | E52: 1
B54: Machine availability | C54: poor | D54: average | E54: good
B55: Correction factor | C55: 0.9 | D55: 0.95 | E55: 1

Sheet CPINunavut (hidden)
A1: Year | B1: Annual CPI (2002 Base Period) | C1: Cumulative CPI Change from 2024 | D1: REF_DATE | E1: GEO | F1: DGUID | G1: Products and product groups | H1: UOM | I1: UOM_ID | J1: SCALAR_FACTOR | K1: SCALAR_ID | L1: VECTOR | M1: COORDINATE | N1: VALUE | O1: STATUS | P1: SYMBOL | Q1: TERMINATED | R1: DECIMALS
A2: =IFERROR(VALUE(dtl_downloadDbLoadingData[[#This Row],[REF_DATE]]),"") -> 2019 | B2: =IFERROR(VALUE(dtl_downloadDbLoadingData[[#This Row],[VALUE]]),"") -> 131.4 | D2: 2019 | E2: Iqaluit, Nunavut | F2: 2011A00056204003 | G2: All-items | H2: 2002=100 | I2: 17 | J2: units | K2: 0 | L2: v41713462 | M2: 31.2 | N2: 131.4 | R2: 1
A3: =IFERROR(VALUE(dtl_downloadDbLoadingData[[#This Row],[REF_DATE]]),"") -> 2020 | B3: =IFERROR(VALUE(dtl_downloadDbLoadingData[[#This Row],[VALUE]]),"") -> 131.4 | D3: 2020 | E3: Iqaluit, Nunavut | F3: 2011A00056204003 | G3: All-items | H3: 2002=100 | I3: 17 | J3: units | K3: 0 | L3: v41713462 | M3: 31.2 | N3: 131.4 | R3: 1
A4: =IFERROR(VALUE(dtl_downloadDbLoadingData[[#This Row],[REF_DATE]]),"") -> 2021 | B4: =IFERROR(VALUE(dtl_downloadDbLoadingData[[#This Row],[VALUE]]),"") -> 133.2 | D4: 2021 | E4: Iqaluit, Nunavut | F4: 2011A00056204003 | G4: All-items | H4: 2002=100 | I4: 17 | J4: units | K4: 0 | L4: v41713462 | M4: 31.2 | N4: 133.2 | R4: 1
A5: =IFERROR(VALUE(dtl_downloadDbLoadingData[[#This Row],[REF_DATE]]),"") -> 2022 | B5: =IFERROR(VALUE(dtl_downloadDbLoadingData[[#This Row],[VALUE]]),"") -> 138.4 | D5: 2022 | E5: Iqaluit, Nunavut | F5: 2011A00056204003 | G5: All-items | H5: 2002=100 | I5: 17 | J5: units | K5: 0 | L5: v41713462 | M5: 31.2 | N5: 138.4 | R5: 1
A6: =IFERROR(VALUE(dtl_downloadDbLoadingData[[#This Row],[REF_DATE]]),"") -> 2023 | B6: =IFERROR(VALUE(dtl_downloadDbLoadingData[[#This Row],[VALUE]]),"") -> 141.9 | D6: 2023 | E6: Iqaluit, Nunavut | F6: 2011A00056204003 | G6: All-items | H6: 2002=100 | I6: 17 | J6: units | K6: 0 | L6: v41713462 | M6: 31.2 | N6: 141.9 | R6: 1
A7: =IFERROR(VALUE(dtl_downloadDbLoadingData[[#This Row],[REF_DATE]]),"") -> 0 | B7: =IFERROR(VALUE(dtl_downloadDbLoadingData[[#This Row],[VALUE]]),"") -> 0 | C7: 1
A8: =IFERROR(VALUE(dtl_downloadDbLoadingData[[#This Row],[REF_DATE]]),"") -> 0 | B8: =IFERROR(VALUE(dtl_downloadDbLoadingData[[#This Row],[VALUE]]),"") -> 0 | C8: =IFERROR(C7+((B8/B7)-1),"") -> 
A9: =IFERROR(VALUE(dtl_downloadDbLoadingData[[#This Row],[REF_DATE]]),"") ->  | B9: =IFERROR(VALUE(dtl_downloadDbLoadingData[[#This Row],[VALUE]]),"") -> 
A10: =IFERROR(VALUE(dtl_downloadDbLoadingData[[#This Row],[REF_DATE]]),"") ->  | B10: =IFERROR(VALUE(dtl_downloadDbLoadingData[[#This Row],[VALUE]]),"") -> 
A11: =IFERROR(VALUE(dtl_downloadDbLoadingData[[#This Row],[REF_DATE]]),"") ->  | B11: =IFERROR(VALUE(dtl_downloadDbLoadingData[[#This Row],[VALUE]]),"") -> 
A12: =IFERROR(VALUE(dtl_downloadDbLoadingData[[#This Row],[REF_DATE]]),"") ->  | B12: =IFERROR(VALUE(dtl_downloadDbLoadingData[[#This Row],[VALUE]]),"") -> 
A13: =IFERROR(VALUE(dtl_downloadDbLoadingData[[#This Row],[REF_DATE]]),"") ->  | B13: =IFERROR(VALUE(dtl_downloadDbLoadingData[[#This Row],[VALUE]]),"") -> 
A14: =IFERROR(VALUE(dtl_downloadDbLoadingData[[#This Row],[REF_DATE]]),"") ->  | B14: =IFERROR(VALUE(dtl_downloadDbLoadingData[[#This Row],[VALUE]]),"") -> 
A15: =IFERROR(VALUE(dtl_downloadDbLoadingData[[#This Row],[REF_DATE]]),"") ->  | B15: =IFERROR(VALUE(dtl_downloadDbLoadingData[[#This Row],[VALUE]]),"") -> 
A16: =IFERROR(VALUE(dtl_downloadDbLoadingData[[#This Row],[REF_DATE]]),"") ->  | B16: =IFERROR(VALUE(dtl_downloadDbLoadingData[[#This Row],[VALUE]]),"") -> 
A17: =IFERROR(VALUE(dtl_downloadDbLoadingData[[#This Row],[REF_DATE]]),"") ->  | B17: =IFERROR(VALUE(dtl_downloadDbLoadingData[[#This Row],[VALUE]]),"") -> 
A18: =IFERROR(VALUE(dtl_downloadDbLoadingData[[#This Row],[REF_DATE]]),"") ->  | B18: =IFERROR(VALUE(dtl_downloadDbLoadingData[[#This Row],[VALUE]]),"") -> 
A19: =IFERROR(VALUE(dtl_downloadDbLoadingData[[#This Row],[REF_DATE]]),"") ->  | B19: =IFERROR(VALUE(dtl_downloadDbLoadingData[[#This Row],[VALUE]]),"") -> 
A20: =IFERROR(VALUE(dtl_downloadDbLoadingData[[#This Row],[REF_DATE]]),"") ->  | B20: =IFERROR(VALUE(dtl_downloadDbLoadingData[[#This Row],[VALUE]]),"") -> 
A21: =IFERROR(VALUE(dtl_downloadDbLoadingData[[#This Row],[REF_DATE]]),"") ->  | B21: =IFERROR(VALUE(dtl_downloadDbLoadingData[[#This Row],[VALUE]]),"") -> 
A22: =IFERROR(VALUE(dtl_downloadDbLoadingData[[#This Row],[REF_DATE]]),"") ->  | B22: =IFERROR(VALUE(dtl_downloadDbLoadingData[[#This Row],[VALUE]]),"") -> 
A23: =IFERROR(VALUE(dtl_downloadDbLoadingData[[#This Row],[REF_DATE]]),"") ->  | B23: =IFERROR(VALUE(dtl_downloadDbLoadingData[[#This Row],[VALUE]]),"") -> 
A24: =IFERROR(VALUE(dtl_downloadDbLoadingData[[#This Row],[REF_DATE]]),"") ->  | B24: =IFERROR(VALUE(dtl_downloadDbLoadingData[[#This Row],[VALUE]]),"") -> 
A25: =IFERROR(VALUE(dtl_downloadDbLoadingData[[#This Row],[REF_DATE]]),"") ->  | B25: =IFERROR(VALUE(dtl_downloadDbLoadingData[[#This Row],[VALUE]]),"") -> 
A26: =IFERROR(VALUE(dtl_downloadDbLoadingData[[#This Row],[REF_DATE]]),"") ->  | B26: =IFERROR(VALUE(dtl_downloadDbLoadingData[[#This Row],[VALUE]]),"") -> 
A27: =IFERROR(VALUE(dtl_downloadDbLoadingData[[#This Row],[REF_DATE]]),"") ->  | B27: =IFERROR(VALUE(dtl_downloadDbLoadingData[[#This Row],[VALUE]]),"") -> 
A28: =IFERROR(VALUE(dtl_downloadDbLoadingData[[#This Row],[REF_DATE]]),"") ->  | B28: =IFERROR(VALUE(dtl_downloadDbLoadingData[[#This Row],[VALUE]]),"") -> 
A29: =IFERROR(VALUE(dtl_downloadDbLoadingData[[#This Row],[REF_DATE]]),"") ->  | B29: =IFERROR(VALUE(dtl_downloadDbLoadingData[[#This Row],[VALUE]]),"") -> 
A30: =IFERROR(VALUE(dtl_downloadDbLoadingData[[#This Row],[REF_DATE]]),"") ->  | B30: =IFERROR(VALUE(dtl_downloadDbLoadingData[[#This Row],[VALUE]]),"") -> 
A31: =IFERROR(VALUE(dtl_downloadDbLoadingData[[#This Row],[REF_DATE]]),"") ->  | B31: =IFERROR(VALUE(dtl_downloadDbLoadingData[[#This Row],[VALUE]]),"") -> 
A32: =IFERROR(VALUE(dtl_downloadDbLoadingData[[#This Row],[REF_DATE]]),"") ->  | B32: =IFERROR(VALUE(dtl_downloadDbLoadingData[[#This Row],[VALUE]]),"") -> 
A33: =IFERROR(VALUE(dtl_downloadDbLoadingData[[#This Row],[REF_DATE]]),"") ->  | B33: =IFERROR(VALUE(dtl_downloadDbLoadingData[[#This Row],[VALUE]]),"") -> 
A34: =IFERROR(VALUE(dtl_downloadDbLoadingData[[#This Row],[REF_DATE]]),"") ->  | B34: =IFERROR(VALUE(dtl_downloadDbLoadingData[[#This Row],[VALUE]]),"") -> 
A35: =IFERROR(VALUE(dtl_downloadDbLoadingData[[#This Row],[REF_DATE]]),"") ->  | B35: =IFERROR(VALUE(dtl_downloadDbLoadingData[[#This Row],[VALUE]]),"") -> 
A36: =IFERROR(VALUE(dtl_downloadDbLoadingData[[#This Row],[REF_DATE]]),"") ->  | B36: =IFERROR(VALUE(dtl_downloadDbLoadingData[[#This Row],[VALUE]]),"") -> 
A37: =IFERROR(VALUE(dtl_downloadDbLoadingData[[#This Row],[REF_DATE]]),"") ->  | B37: =IFERROR(VALUE(dtl_downloadDbLoadingData[[#This Row],[VALUE]]),"") -> 
A38: =IFERROR(VALUE(dtl_downloadDbLoadingData[[#This Row],[REF_DATE]]),"") ->  | B38: =IFERROR(VALUE(dtl_downloadDbLoadingData[[#This Row],[VALUE]]),"") -> 
A39: =IFERROR(VALUE(dtl_downloadDbLoadingData[[#This Row],[REF_DATE]]),"") ->  | B39: =IFERROR(VALUE(dtl_downloadDbLoadingData[[#This Row],[VALUE]]),"") -> 
A40: =IFERROR(VALUE(dtl_downloadDbLoadingData[[#This Row],[REF_DATE]]),"") ->  | B40: =IFERROR(VALUE(dtl_downloadDbLoadingData[[#This Row],[VALUE]]),"") -> 
A41: =IFERROR(VALUE(dtl_downloadDbLoadingData[[#This Row],[REF_DATE]]),"") ->  | B41: =IFERROR(VALUE(dtl_downloadDbLoadingData[[#This Row],[VALUE]]),"") -> 
A42: =IFERROR(VALUE(dtl_downloadDbLoadingData[[#This Row],[REF_DATE]]),"") ->  | B42: =IFERROR(VALUE(dtl_downloadDbLoadingData[[#This Row],[VALUE]]),"") -> 
A43: =IFERROR(VALUE(dtl_downloadDbLoadingData[[#This Row],[REF_DATE]]),"") ->  | B43: =IFERROR(VALUE(dtl_downloadDbLoadingData[[#This Row],[VALUE]]),"") -> 
A44: =IFERROR(VALUE(dtl_downloadDbLoadingData[[#This Row],[REF_DATE]]),"") ->  | B44: =IFERROR(VALUE(dtl_downloadDbLoadingData[[#This Row],[VALUE]]),"") -> 
A45: =IFERROR(VALUE(dtl_downloadDbLoadingData[[#This Row],[REF_DATE]]),"") ->  | B45: =IFERROR(VALUE(dtl_downloadDbLoadingData[[#This Row],[VALUE]]),"") -> 
A46: =IFERROR(VALUE(dtl_downloadDbLoadingData[[#This Row],[REF_DATE]]),"") ->  | B46: =IFERROR(VALUE(dtl_downloadDbLoadingData[[#This Row],[VALUE]]),"") -> 
A47: =IFERROR(VALUE(dtl_downloadDbLoadingData[[#This Row],[REF_DATE]]),"") ->  | B47: =IFERROR(VALUE(dtl_downloadDbLoadingData[[#This Row],[VALUE]]),"") -> 
A48: =IFERROR(VALUE(dtl_downloadDbLoadingData[[#This Row],[REF_DATE]]),"") ->  | B48: =IFERROR(VALUE(dtl_downloadDbLoadingData[[#This Row],[VALUE]]),"") -> 
A49: =IFERROR(VALUE(dtl_downloadDbLoadingData[[#This Row],[REF_DATE]]),"") ->  | B49: =IFERROR(VALUE(dtl_downloadDbLoadingData[[#This Row],[VALUE]]),"") -> 
A50: =IFERROR(VALUE(dtl_downloadDbLoadingData[[#This Row],[REF_DATE]]),"") ->  | B50: =IFERROR(VALUE(dtl_downloadDbLoadingData[[#This Row],[VALUE]]),"") -> 
A51: =IFERROR(VALUE(dtl_downloadDbLoadingData[[#This Row],[REF_DATE]]),"") ->  | B51: =IFERROR(VALUE(dtl_downloadDbLoadingData[[#This Row],[VALUE]]),"") -> 
A52: =IFERROR(VALUE(dtl_downloadDbLoadingData[[#This Row],[REF_DATE]]),"") ->  | B52: =IFERROR(VALUE(dtl_downloadDbLoadingData[[#This Row],[VALUE]]),"") -> 
A53: =IFERROR(VALUE(dtl_downloadDbLoadingData[[#This Row],[REF_DATE]]),"") ->  | B53: =IFERROR(VALUE(dtl_downloadDbLoadingData[[#This Row],[VALUE]]),"") -> 
A54: =IFERROR(VALUE(dtl_downloadDbLoadingData[[#This Row],[REF_DATE]]),"") ->  | B54: =IFERROR(VALUE(dtl_downloadDbLoadingData[[#This Row],[VALUE]]),"") -> 
A55: =IFERROR(VALUE(dtl_downloadDbLoadingData[[#This Row],[REF_DATE]]),"") ->  | B55: =IFERROR(VALUE(dtl_downloadDbLoadingData[[#This Row],[VALUE]]),"") -> 
A56: =IFERROR(VALUE(dtl_downloadDbLoadingData[[#This Row],[REF_DATE]]),"") ->  | B56: =IFERROR(VALUE(dtl_downloadDbLoadingData[[#This Row],[VALUE]]),"") -> 
A57: =IFERROR(VALUE(dtl_downloadDbLoadingData[[#This Row],[REF_DATE]]),"") ->  | B57: =IFERROR(VALUE(dtl_downloadDbLoadingData[[#This Row],[VALUE]]),"") -> 
A58: =IFERROR(VALUE(dtl_downloadDbLoadingData[[#This Row],[REF_DATE]]),"") ->  | B58: =IFERROR(VALUE(dtl_downloadDbLoadingData[[#This Row],[VALUE]]),"") -> 
A59: =IFERROR(VALUE(dtl_downloadDbLoadingData[[#This Row],[REF_DATE]]),"") ->  | B59: =IFERROR(VALUE(dtl_downloadDbLoadingData[[#This Row],[VALUE]]),"") -> 
A60: =IFERROR(VALUE(dtl_downloadDbLoadingData[[#This Row],[REF_DATE]]),"") ->  | B60: =IFERROR(VALUE(dtl_downloadDbLoadingData[[#This Row],[VALUE]]),"") -> 
A61: =IFERROR(VALUE(dtl_downloadDbLoadingData[[#This Row],[REF_DATE]]),"") ->  | B61: =IFERROR(VALUE(dtl_downloadDbLoadingData[[#This Row],[VALUE]]),"") -> 
A62: =IFERROR(VALUE(dtl_downloadDbLoadingData[[#This Row],[REF_DATE]]),"") ->  | B62: =IFERROR(VALUE(dtl_downloadDbLoadingData[[#This Row],[VALUE]]),"") -> 
A63: =IFERROR(VALUE(dtl_downloadDbLoadingData[[#This Row],[REF_DATE]]),"") ->  | B63: =IFERROR(VALUE(dtl_downloadDbLoadingData[[#This Row],[VALUE]]),"") -> 
A64: =IFERROR(VALUE(dtl_downloadDbLoadingData[[#This Row],[REF_DATE]]),"") ->  | B64: =IFERROR(VALUE(dtl_downloadDbLoadingData[[#This Row],[VALUE]]),"") -> 
A65: =IFERROR(VALUE(dtl_downloadDbLoadingData[[#This Row],[REF_DATE]]),"") ->  | B65: =IFERROR(VALUE(dtl_downloadDbLoadingData[[#This Row],[VALUE]]),"") -> 
A66: =IFERROR(VALUE(dtl_downloadDbLoadingData[[#This Row],[REF_DATE]]),"") ->  | B66: =IFERROR(VALUE(dtl_downloadDbLoadingData[[#This Row],[VALUE]]),"") -> 
A67: =IFERROR(VALUE(dtl_downloadDbLoadingData[[#This Row],[REF_DATE]]),"") ->  | B67: =IFERROR(VALUE(dtl_downloadDbLoadingData[[#This Row],[VALUE]]),"") -> 
A68: =IFERROR(VALUE(dtl_downloadDbLoadingData[[#This Row],[REF_DATE]]),"") ->  | B68: =IFERROR(VALUE(dtl_downloadDbLoadingData[[#This Row],[VALUE]]),"") ->  | C68: =IFERROR(C67+((B68/B67)-1),"") -> 
A69: =IFERROR(VALUE(dtl_downloadDbLoadingData[[#This Row],[REF_DATE]]),"") ->  | B69: =IFERROR(VALUE(dtl_downloadDbLoadingData[[#This Row],[VALUE]]),"") -> 
A70: =IFERROR(VALUE(dtl_downloadDbLoadingData[[#This Row],[REF_DATE]]),"") ->  | B70: =IFERROR(VALUE(dtl_downloadDbLoadingData[[#This Row],[VALUE]]),"") -> 
A71: =IFERROR(VALUE(dtl_downloadDbLoadingData[[#This Row],[REF_DATE]]),"") ->  | B71: =IFERROR(VALUE(dtl_downloadDbLoadingData[[#This Row],[VALUE]]),"") -> 
A72: =IFERROR(VALUE(dtl_downloadDbLoadingData[[#This Row],[REF_DATE]]),"") ->  | B72: =IFERROR(VALUE(dtl_downloadDbLoadingData[[#This Row],[VALUE]]),"") -> 
A73: =IFERROR(VALUE(dtl_downloadDbLoadingData[[#This Row],[REF_DATE]]),"") ->  | B73: =IFERROR(VALUE(dtl_downloadDbLoadingData[[#This Row],[VALUE]]),"") -> 
A74: =IFERROR(VALUE(dtl_downloadDbLoadingData[[#This Row],[REF_DATE]]),"") ->  | B74: =IFERROR(VALUE(dtl_downloadDbLoadingData[[#This Row],[VALUE]]),"") -> 
A75: =IFERROR(VALUE(dtl_downloadDbLoadingData[[#This Row],[REF_DATE]]),"") ->  | B75: =IFERROR(VALUE(dtl_downloadDbLoadingData[[#This Row],[VALUE]]),"") -> 
A76: =IFERROR(VALUE(dtl_downloadDbLoadingData[[#This Row],[REF_DATE]]),"") ->  | B76: =IFERROR(VALUE(dtl_downloadDbLoadingData[[#This Row],[VALUE]]),"") -> 
A77: =IFERROR(VALUE(dtl_downloadDbLoadingData[[#This Row],[REF_DATE]]),"") ->  | B77: =IFERROR(VALUE(dtl_downloadDbLoadingData[[#This Row],[VALUE]]),"") -> 
A78: =IFERROR(VALUE(dtl_downloadDbLoadingData[[#This Row],[REF_DATE]]),"") ->  | B78: =IFERROR(VALUE(dtl_downloadDbLoadingData[[#This Row],[VALUE]]),"") -> 
A79: =IFERROR(VALUE(dtl_downloadDbLoadingData[[#This Row],[REF_DATE]]),"") ->  | B79: =IFERROR(VALUE(dtl_downloadDbLoadingData[[#This Row],[VALUE]]),"") -> 
A80: =IFERROR(VALUE(dtl_downloadDbLoadingData[[#This Row],[REF_DATE]]),"") ->  | B80: =IFERROR(VALUE(dtl_downloadDbLoadingData[[#This Row],[VALUE]]),"") -> 
A81: =IFERROR(VALUE(dtl_downloadDbLoadingData[[#This Row],[REF_DATE]]),"") ->  | B81: =IFERROR(VALUE(dtl_downloadDbLoadingData[[#This Row],[VALUE]]),"") -> 
A82: =IFERROR(VALUE(dtl_downloadDbLoadingData[[#This Row],[REF_DATE]]),"") ->  | B82: =IFERROR(VALUE(dtl_downloadDbLoadingData[[#This Row],[VALUE]]),"") -> 
A83: =IFERROR(VALUE(dtl_downloadDbLoadingData[[#This Row],[REF_DATE]]),"") ->  | B83: =IFERROR(VALUE(dtl_downloadDbLoadingData[[#This Row],[VALUE]]),"") -> 
A84: =IFERROR(VALUE(dtl_downloadDbLoadingData[[#This Row],[REF_DATE]]),"") ->  | B84: =IFERROR(VALUE(dtl_downloadDbLoadingData[[#This Row],[VALUE]]),"") -> 
A85: =IFERROR(VALUE(dtl_downloadDbLoadingData[[#This Row],[REF_DATE]]),"") ->  | B85: =IFERROR(VALUE(dtl_downloadDbLoadingData[[#This Row],[VALUE]]),"") -> 
A86: =IFERROR(VALUE(dtl_downloadDbLoadingData[[#This Row],[REF_DATE]]),"") ->  | B86: =IFERROR(VALUE(dtl_downloadDbLoadingData[[#This Row],[VALUE]]),"") -> 
A87: =IFERROR(VALUE(dtl_downloadDbLoadingData[[#This Row],[REF_DATE]]),"") ->  | B87: =IFERROR(VALUE(dtl_downloadDbLoadingData[[#This Row],[VALUE]]),"") -> 
A88: =IFERROR(VALUE(dtl_downloadDbLoadingData[[#This Row],[REF_DATE]]),"") ->  | B88: =IFERROR(VALUE(dtl_downloadDbLoadingData[[#This Row],[VALUE]]),"") -> 
A89: =IFERROR(VALUE(dtl_downloadDbLoadingData[[#This Row],[REF_DATE]]),"") ->  | B89: =IFERROR(VALUE(dtl_downloadDbLoadingData[[#This Row],[VALUE]]),"") -> 
A90: =IFERROR(VALUE(dtl_downloadDbLoadingData[[#This Row],[REF_DATE]]),"") ->  | B90: =IFERROR(VALUE(dtl_downloadDbLoadingData[[#This Row],[VALUE]]),"") -> 
A91: =IFERROR(VALUE(dtl_downloadDbLoadingData[[#This Row],[REF_DATE]]),"") ->  | B91: =IFERROR(VALUE(dtl_downloadDbLoadingData[[#This Row],[VALUE]]),"") -> 
A92: =IFERROR(VALUE(dtl_downloadDbLoadingData[[#This Row],[REF_DATE]]),"") ->  | B92: =IFERROR(VALUE(dtl_downloadDbLoadingData[[#This Row],[VALUE]]),"") -> 
A93: =IFERROR(VALUE(dtl_downloadDbLoadingData[[#This Row],[REF_DATE]]),"") ->  | B93: =IFERROR(VALUE(dtl_downloadDbLoadingData[[#This Row],[VALUE]]),"") -> 
A94: =IFERROR(VALUE(dtl_downloadDbLoadingData[[#This Row],[REF_DATE]]),"") ->  | B94: =IFERROR(VALUE(dtl_downloadDbLoadingData[[#This Row],[VALUE]]),"") -> 
A95: =IFERROR(VALUE(dtl_downloadDbLoadingData[[#This Row],[REF_DATE]]),"") ->  | B95: =IFERROR(VALUE(dtl_downloadDbLoadingData[[#This Row],[VALUE]]),"") -> 
A96: =IFERROR(VALUE(dtl_downloadDbLoadingData[[#This Row],[REF_DATE]]),"") ->  | B96: =IFERROR(VALUE(dtl_downloadDbLoadingData[[#This Row],[VALUE]]),"") -> 
A97: =IFERROR(VALUE(dtl_downloadDbLoadingData[[#This Row],[REF_DATE]]),"") ->  | B97: =IFERROR(VALUE(dtl_downloadDbLoadingData[[#This Row],[VALUE]]),"") -> 
A98: =IFERROR(VALUE(dtl_downloadDbLoadingData[[#This Row],[REF_DATE]]),"") ->  | B98: =IFERROR(VALUE(dtl_downloadDbLoadingData[[#This Row],[VALUE]]),"") -> 
A99: =IFERROR(VALUE(dtl_downloadDbLoadingData[[#This Row],[REF_DATE]]),"") ->  | B99: =IFERROR(VALUE(dtl_downloadDbLoadingData[[#This Row],[VALUE]]),"") -> 
A100: =IFERROR(VALUE(dtl_downloadDbLoadingData[[#This Row],[REF_DATE]]),"") ->  | B100: =IFERROR(VALUE(dtl_downloadDbLoadingData[[#This Row],[VALUE]]),"") -> 
A101: =IFERROR(VALUE(dtl_downloadDbLoadingData[[#This Row],[REF_DATE]]),"") ->  | B101: =IFERROR(VALUE(dtl_downloadDbLoadingData[[#This Row],[VALUE]]),"") -> 
A102: =IFERROR(VALUE(dtl_downloadDbLoadingData[[#This Row],[REF_DATE]]),"") ->  | B102: =IFERROR(VALUE(dtl_downloadDbLoadingData[[#This Row],[VALUE]]),"") -> 
A103: =IFERROR(VALUE(dtl_downloadDbLoadingData[[#This Row],[REF_DATE]]),"") ->  | B103: =IFERROR(VALUE(dtl_downloadDbLoadingData[[#This Row],[VALUE]]),"") -> 
A104: =IFERROR(VALUE(dtl_downloadDbLoadingData[[#This Row],[REF_DATE]]),"") ->  | B104: =IFERROR(VALUE(dtl_downloadDbLoadingData[[#This Row],[VALUE]]),"") -> 
A105: =IFERROR(VALUE(dtl_downloadDbLoadingData[[#This Row],[REF_DATE]]),"") ->  | B105: =IFERROR(VALUE(dtl_downloadDbLoadingData[[#This Row],[VALUE]]),"") -> 
A106: =IFERROR(VALUE(dtl_downloadDbLoadingData[[#This Row],[REF_DATE]]),"") ->  | B106: =IFERROR(VALUE(dtl_downloadDbLoadingData[[#This Row],[VALUE]]),"") -> 
A107: =IFERROR(VALUE(dtl_downloadDbLoadingData[[#This Row],[REF_DATE]]),"") ->  | B107: =IFERROR(VALUE(dtl_downloadDbLoadingData[[#This Row],[VALUE]]),"") -> 
A108: =IFERROR(VALUE(dtl_downloadDbLoadingData[[#This Row],[REF_DATE]]),"") ->  | B108: =IFERROR(VALUE(dtl_downloadDbLoadingData[[#This Row],[VALUE]]),"") -> 
A109: =IFERROR(VALUE(dtl_downloadDbLoadingData[[#This Row],[REF_DATE]]),"") ->  | B109: =IFERROR(VALUE(dtl_downloadDbLoadingData[[#This Row],[VALUE]]),"") -> 
A110: =IFERROR(VALUE(dtl_downloadDbLoadingData[[#This Row],[REF_DATE]]),"") ->  | B110: =IFERROR(VALUE(dtl_downloadDbLoadingData[[#This Row],[VALUE]]),"") -> 
A111: =IFERROR(VALUE(dtl_downloadDbLoadingData[[#This Row],[REF_DATE]]),"") ->  | B111: =IFERROR(VALUE(dtl_downloadDbLoadingData[[#This Row],[VALUE]]),"") -> 
A112: =IFERROR(VALUE(dtl_downloadDbLoadingData[[#This Row],[REF_DATE]]),"") ->  | B112: =IFERROR(VALUE(dtl_downloadDbLoadingData[[#This Row],[VALUE]]),"") -> 
A113: =IFERROR(VALUE(dtl_downloadDbLoadingData[[#This Row],[REF_DATE]]),"") ->  | B113: =IFERROR(VALUE(dtl_downloadDbLoadingData[[#This Row],[VALUE]]),"") -> 
A114: =IFERROR(VALUE(dtl_downloadDbLoadingData[[#This Row],[REF_DATE]]),"") ->  | B114: =IFERROR(VALUE(dtl_downloadDbLoadingData[[#This Row],[VALUE]]),"") -> 
A115: =IFERROR(VALUE(dtl_downloadDbLoadingData[[#This Row],[REF_DATE]]),"") ->  | B115: =IFERROR(VALUE(dtl_downloadDbLoadingData[[#This Row],[VALUE]]),"") -> 
A116: =IFERROR(VALUE(dtl_downloadDbLoadingData[[#This Row],[REF_DATE]]),"") ->  | B116: =IFERROR(VALUE(dtl_downloadDbLoadingData[[#This Row],[VALUE]]),"") -> 
A117: =IFERROR(VALUE(dtl_downloadDbLoadingData[[#This Row],[REF_DATE]]),"") ->  | B117: =IFERROR(VALUE(dtl_downloadDbLoadingData[[#This Row],[VALUE]]),"") -> 
A118: =IFERROR(VALUE(dtl_downloadDbLoadingData[[#This Row],[REF_DATE]]),"") ->  | B118: =IFERROR(VALUE(dtl_downloadDbLoadingData[[#This Row],[VALUE]]),"") -> 
A119: =IFERROR(VALUE(dtl_downloadDbLoadingData[[#This Row],[REF_DATE]]),"") ->  | B119: =IFERROR(VALUE(dtl_downloadDbLoadingData[[#This Row],[VALUE]]),"") -> 
A120: =IFERROR(VALUE(dtl_downloadDbLoadingData[[#This Row],[REF_DATE]]),"") ->  | B120: =IFERROR(VALUE(dtl_downloadDbLoadingData[[#This Row],[VALUE]]),"") -> 
A121: =IFERROR(VALUE(dtl_downloadDbLoadingData[[#This Row],[REF_DATE]]),"") ->  | B121: =IFERROR(VALUE(dtl_downloadDbLoadingData[[#This Row],[VALUE]]),"") -> 
A122: =IFERROR(VALUE(dtl_downloadDbLoadingData[[#This Row],[REF_DATE]]),"") ->  | B122: =IFERROR(VALUE(dtl_downloadDbLoadingData[[#This Row],[VALUE]]),"") -> 
A123: =IFERROR(VALUE(dtl_downloadDbLoadingData[[#This Row],[REF_DATE]]),"") ->  | B123: =IFERROR(VALUE(dtl_downloadDbLoadingData[[#This Row],[VALUE]]),"") -> 
A124: =IFERROR(VALUE(dtl_downloadDbLoadingData[[#This Row],[REF_DATE]]),"") ->  | B124: =IFERROR(VALUE(dtl_downloadDbLoadingData[[#This Row],[VALUE]]),"") -> 
A125: =IFERROR(VALUE(dtl_downloadDbLoadingData[[#This Row],[REF_DATE]]),"") ->  | B125: =IFERROR(VALUE(dtl_downloadDbLoadingData[[#This Row],[VALUE]]),"") -> 
A126: =IFERROR(VALUE(dtl_downloadDbLoadingData[[#This Row],[REF_DATE]]),"") ->  | B126: =IFERROR(VALUE(dtl_downloadDbLoadingData[[#This Row],[VALUE]]),"") -> 
A127: =IFERROR(VALUE(dtl_downloadDbLoadingData[[#This Row],[REF_DATE]]),"") ->  | B127: =IFERROR(VALUE(dtl_downloadDbLoadingData[[#This Row],[VALUE]]),"") -> 
A128: =IFERROR(VALUE(dtl_downloadDbLoadingData[[#This Row],[REF_DATE]]),"") ->  | B128: =IFERROR(VALUE(dtl_downloadDbLoadingData[[#This Row],[VALUE]]),"") -> 
A129: =IFERROR(VALUE(dtl_downloadDbLoadingData[[#This Row],[REF_DATE]]),"") ->  | B129: =IFERROR(VALUE(dtl_downloadDbLoadingData[[#This Row],[VALUE]]),"") -> 
A130: =IFERROR(VALUE(dtl_downloadDbLoadingData[[#This Row],[REF_DATE]]),"") ->  | B130: =IFERROR(VALUE(dtl_downloadDbLoadingData[[#This Row],[VALUE]]),"") -> 
A131: =IFERROR(VALUE(dtl_downloadDbLoadingData[[#This Row],[REF_DATE]]),"") ->  | B131: =IFERROR(VALUE(dtl_downloadDbLoadingData[[#This Row],[VALUE]]),"") -> 
A132: =IFERROR(VALUE(dtl_downloadDbLoadingData[[#This Row],[REF_DATE]]),"") ->  | B132: =IFERROR(VALUE(dtl_downloadDbLoadingData[[#This Row],[VALUE]]),"") ->  | C132: =IFERROR(C131+((B132/B131)-1),"") -> 
A133: =IFERROR(VALUE(dtl_downloadDbLoadingData[[#This Row],[REF_DATE]]),"") ->  | B133: =IFERROR(VALUE(dtl_downloadDbLoadingData[[#This Row],[VALUE]]),"") -> 
A134: =IFERROR(VALUE(dtl_downloadDbLoadingData[[#This Row],[REF_DATE]]),"") ->  | B134: =IFERROR(VALUE(dtl_downloadDbLoadingData[[#This Row],[VALUE]]),"") -> 
A135: =IFERROR(VALUE(dtl_downloadDbLoadingData[[#This Row],[REF_DATE]]),"") ->  | B135: =IFERROR(VALUE(dtl_downloadDbLoadingData[[#This Row],[VALUE]]),"") -> 
A136: =IFERROR(VALUE(dtl_downloadDbLoadingData[[#This Row],[REF_DATE]]),"") ->  | B136: =IFERROR(VALUE(dtl_downloadDbLoadingData[[#This Row],[VALUE]]),"") -> 
A137: =IFERROR(VALUE(dtl_downloadDbLoadingData[[#This Row],[REF_DATE]]),"") ->  | B137: =IFERROR(VALUE(dtl_downloadDbLoadingData[[#This Row],[VALUE]]),"") -> 
A138: =IFERROR(VALUE(dtl_downloadDbLoadingData[[#This Row],[REF_DATE]]),"") ->  | B138: =IFERROR(VALUE(dtl_downloadDbLoadingData[[#This Row],[VALUE]]),"") -> 
A139: =IFERROR(VALUE(dtl_downloadDbLoadingData[[#This Row],[REF_DATE]]),"") ->  | B139: =IFERROR(VALUE(dtl_downloadDbLoadingData[[#This Row],[VALUE]]),"") -> 
A140: =IFERROR(VALUE(dtl_downloadDbLoadingData[[#This Row],[REF_DATE]]),"") ->  | B140: =IFERROR(VALUE(dtl_downloadDbLoadingData[[#This Row],[VALUE]]),"") -> 
A141: =IFERROR(VALUE(dtl_downloadDbLoadingData[[#This Row],[REF_DATE]]),"") ->  | B141: =IFERROR(VALUE(dtl_downloadDbLoadingData[[#This Row],[VALUE]]),"") -> 
A142: =IFERROR(VALUE(dtl_downloadDbLoadingData[[#This Row],[REF_DATE]]),"") ->  | B142: =IFERROR(VALUE(dtl_downloadDbLoadingData[[#This Row],[VALUE]]),"") -> 
A143: =IFERROR(VALUE(dtl_downloadDbLoadingData[[#This Row],[REF_DATE]]),"") ->  | B143: =IFERROR(VALUE(dtl_downloadDbLoadingData[[#This Row],[VALUE]]),"") -> 
A144: =IFERROR(VALUE(dtl_downloadDbLoadingData[[#This Row],[REF_DATE]]),"") ->  | B144: =IFERROR(VALUE(dtl_downloadDbLoadingData[[#This Row],[VALUE]]),"") -> 
A145: =IFERROR(VALUE(dtl_downloadDbLoadingData[[#This Row],[REF_DATE]]),"") ->  | B145: =IFERROR(VALUE(dtl_downloadDbLoadingData[[#This Row],[VALUE]]),"") -> 
A146: =IFERROR(VALUE(dtl_downloadDbLoadingData[[#This Row],[REF_DATE]]),"") ->  | B146: =IFERROR(VALUE(dtl_downloadDbLoadingData[[#This Row],[VALUE]]),"") -> 
A147: =IFERROR(VALUE(dtl_downloadDbLoadingData[[#This Row],[REF_DATE]]),"") ->  | B147: =IFERROR(VALUE(dtl_downloadDbLoadingData[[#This Row],[VALUE]]),"") -> 
A148: =IFERROR(VALUE(dtl_downloadDbLoadingData[[#This Row],[REF_DATE]]),"") ->  | B148: =IFERROR(VALUE(dtl_downloadDbLoadingData[[#This Row],[VALUE]]),"") -> 
A149: =IFERROR(VALUE(dtl_downloadDbLoadingData[[#This Row],[REF_DATE]]),"") ->  | B149: =IFERROR(VALUE(dtl_downloadDbLoadingData[[#This Row],[VALUE]]),"") -> 
A150: =IFERROR(VALUE(dtl_downloadDbLoadingData[[#This Row],[REF_DATE]]),"") ->  | B150: =IFERROR(VALUE(dtl_downloadDbLoadingData[[#This Row],[VALUE]]),"") -> 
A151: =IFERROR(VALUE(dtl_downloadDbLoadingData[[#This Row],[REF_DATE]]),"") ->  | B151: =IFERROR(VALUE(dtl_downloadDbLoadingData[[#This Row],[VALUE]]),"") -> 
A152: =IFERROR(VALUE(dtl_downloadDbLoadingData[[#This Row],[REF_DATE]]),"") ->  | B152: =IFERROR(VALUE(dtl_downloadDbLoadingData[[#This Row],[VALUE]]),"") -> 
A153: =IFERROR(VALUE(dtl_downloadDbLoadingData[[#This Row],[REF_DATE]]),"") ->  | B153: =IFERROR(VALUE(dtl_downloadDbLoadingData[[#This Row],[VALUE]]),"") -> 
A154: =IFERROR(VALUE(dtl_downloadDbLoadingData[[#This Row],[REF_DATE]]),"") ->  | B154: =IFERROR(VALUE(dtl_downloadDbLoadingData[[#This Row],[VALUE]]),"") -> 
A155: =IFERROR(VALUE(dtl_downloadDbLoadingData[[#This Row],[REF_DATE]]),"") ->  | B155: =IFERROR(VALUE(dtl_downloadDbLoadingData[[#This Row],[VALUE]]),"") -> 
A156: =IFERROR(VALUE(dtl_downloadDbLoadingData[[#This Row],[REF_DATE]]),"") ->  | B156: =IFERROR(VALUE(dtl_downloadDbLoadingData[[#This Row],[VALUE]]),"") -> 
A157: =IFERROR(VALUE(dtl_downloadDbLoadingData[[#This Row],[REF_DATE]]),"") ->  | B157: =IFERROR(VALUE(dtl_downloadDbLoadingData[[#This Row],[VALUE]]),"") -> 
A158: =IFERROR(VALUE(dtl_downloadDbLoadingData[[#This Row],[REF_DATE]]),"") ->  | B158: =IFERROR(VALUE(dtl_downloadDbLoadingData[[#This Row],[VALUE]]),"") -> 
A159: =IFERROR(VALUE(dtl_downloadDbLoadingData[[#This Row],[REF_DATE]]),"") ->  | B159: =IFERROR(VALUE(dtl_downloadDbLoadingData[[#This Row],[VALUE]]),"") -> 
A160: =IFERROR(VALUE(dtl_downloadDbLoadingData[[#This Row],[REF_DATE]]),"") ->  | B160: =IFERROR(VALUE(dtl_downloadDbLoadingData[[#This Row],[VALUE]]),"") -> 
A161: =IFERROR(VALUE(dtl_downloadDbLoadingData[[#This Row],[REF_DATE]]),"") ->  | B161: =IFERROR(VALUE(dtl_downloadDbLoadingData[[#This Row],[VALUE]]),"") -> 
A162: =IFERROR(VALUE(dtl_downloadDbLoadingData[[#This Row],[REF_DATE]]),"") ->  | B162: =IFERROR(VALUE(dtl_downloadDbLoadingData[[#This Row],[VALUE]]),"") -> 
A163: =IFERROR(VALUE(dtl_downloadDbLoadingData[[#This Row],[REF_DATE]]),"") ->  | B163: =IFERROR(VALUE(dtl_downloadDbLoadingData[[#This Row],[VALUE]]),"") -> 
A164: =IFERROR(VALUE(dtl_downloadDbLoadingData[[#This Row],[REF_DATE]]),"") ->  | B164: =IFERROR(VALUE(dtl_downloadDbLoadingData[[#This Row],[VALUE]]),"") -> 
A165: =IFERROR(VALUE(dtl_downloadDbLoadingData[[#This Row],[REF_DATE]]),"") ->  | B165: =IFERROR(VALUE(dtl_downloadDbLoadingData[[#This Row],[VALUE]]),"") -> 
A166: =IFERROR(VALUE(dtl_downloadDbLoadingData[[#This Row],[REF_DATE]]),"") ->  | B166: =IFERROR(VALUE(dtl_downloadDbLoadingData[[#This Row],[VALUE]]),"") -> 
A167: =IFERROR(VALUE(dtl_downloadDbLoadingData[[#This Row],[REF_DATE]]),"") ->  | B167: =IFERROR(VALUE(dtl_downloadDbLoadingData[[#This Row],[VALUE]]),"") -> 
A168: =IFERROR(VALUE(dtl_downloadDbLoadingData[[#This Row],[REF_DATE]]),"") ->  | B168: =IFERROR(VALUE(dtl_downloadDbLoadingData[[#This Row],[VALUE]]),"") -> 
A169: =IFERROR(VALUE(dtl_downloadDbLoadingData[[#This Row],[REF_DATE]]),"") ->  | B169: =IFERROR(VALUE(dtl_downloadDbLoadingData[[#This Row],[VALUE]]),"") -> 
A170: =IFERROR(VALUE(dtl_downloadDbLoadingData[[#This Row],[REF_DATE]]),"") ->  | B170: =IFERROR(VALUE(dtl_downloadDbLoadingData[[#This Row],[VALUE]]),"") -> 
A171: =IFERROR(VALUE(dtl_downloadDbLoadingData[[#This Row],[REF_DATE]]),"") ->  | B171: =IFERROR(VALUE(dtl_downloadDbLoadingData[[#This Row],[VALUE]]),"") -> 
A172: =IFERROR(VALUE(dtl_downloadDbLoadingData[[#This Row],[REF_DATE]]),"") ->  | B172: =IFERROR(VALUE(dtl_downloadDbLoadingData[[#This Row],[VALUE]]),"") -> 
A173: =IFERROR(VALUE(dtl_downloadDbLoadingData[[#This Row],[REF_DATE]]),"") ->  | B173: =IFERROR(VALUE(dtl_downloadDbLoadingData[[#This Row],[VALUE]]),"") -> 
A174: =IFERROR(VALUE(dtl_downloadDbLoadingData[[#This Row],[REF_DATE]]),"") ->  | B174: =IFERROR(VALUE(dtl_downloadDbLoadingData[[#This Row],[VALUE]]),"") -> 
A175: =IFERROR(VALUE(dtl_downloadDbLoadingData[[#This Row],[REF_DATE]]),"") ->  | B175: =IFERROR(VALUE(dtl_downloadDbLoadingData[[#This Row],[VALUE]]),"") -> 
A176: =IFERROR(VALUE(dtl_downloadDbLoadingData[[#This Row],[REF_DATE]]),"") ->  | B176: =IFERROR(VALUE(dtl_downloadDbLoadingData[[#This Row],[VALUE]]),"") -> 
A177: =IFERROR(VALUE(dtl_downloadDbLoadingData[[#This Row],[REF_DATE]]),"") ->  | B177: =IFERROR(VALUE(dtl_downloadDbLoadingData[[#This Row],[VALUE]]),"") -> 
A178: =IFERROR(VALUE(dtl_downloadDbLoadingData[[#This Row],[REF_DATE]]),"") ->  | B178: =IFERROR(VALUE(dtl_downloadDbLoadingData[[#This Row],[VALUE]]),"") -> 
A179: =IFERROR(VALUE(dtl_downloadDbLoadingData[[#This Row],[REF_DATE]]),"") ->  | B179: =IFERROR(VALUE(dtl_downloadDbLoadingData[[#This Row],[VALUE]]),"") -> 
A180: =IFERROR(VALUE(dtl_downloadDbLoadingData[[#This Row],[REF_DATE]]),"") ->  | B180: =IFERROR(VALUE(dtl_downloadDbLoadingData[[#This Row],[VALUE]]),"") -> 
A181: =IFERROR(VALUE(dtl_downloadDbLoadingData[[#This Row],[REF_DATE]]),"") ->  | B181: =IFERROR(VALUE(dtl_downloadDbLoadingData[[#This Row],[VALUE]]),"") -> 
A182: =IFERROR(VALUE(dtl_downloadDbLoadingData[[#This Row],[REF_DATE]]),"") ->  | B182: =IFERROR(VALUE(dtl_downloadDbLoadingData[[#This Row],[VALUE]]),"") -> 
A183: =IFERROR(VALUE(dtl_downloadDbLoadingData[[#This Row],[REF_DATE]]),"") ->  | B183: =IFERROR(VALUE(dtl_downloadDbLoadingData[[#This Row],[VALUE]]),"") -> 
A184: =IFERROR(VALUE(dtl_downloadDbLoadingData[[#This Row],[REF_DATE]]),"") ->  | B184: =IFERROR(VALUE(dtl_downloadDbLoadingData[[#This Row],[VALUE]]),"") -> 
A185: =IFERROR(VALUE(dtl_downloadDbLoadingData[[#This Row],[REF_DATE]]),"") ->  | B185: =IFERROR(VALUE(dtl_downloadDbLoadingData[[#This Row],[VALUE]]),"") -> 
A186: =IFERROR(VALUE(dtl_downloadDbLoadingData[[#This Row],[REF_DATE]]),"") ->  | B186: =IFERROR(VALUE(dtl_downloadDbLoadingData[[#This Row],[VALUE]]),"") -> 
A187: =IFERROR(VALUE(dtl_downloadDbLoadingData[[#This Row],[REF_DATE]]),"") ->  | B187: =IFERROR(VALUE(dtl_downloadDbLoadingData[[#This Row],[VALUE]]),"") -> 
A188: =IFERROR(VALUE(dtl_downloadDbLoadingData[[#This Row],[REF_DATE]]),"") ->  | B188: =IFERROR(VALUE(dtl_downloadDbLoadingData[[#This Row],[VALUE]]),"") -> 
A189: =IFERROR(VALUE(dtl_downloadDbLoadingData[[#This Row],[REF_DATE]]),"") ->  | B189: =IFERROR(VALUE(dtl_downloadDbLoadingData[[#This Row],[VALUE]]),"") -> 
A190: =IFERROR(VALUE(dtl_downloadDbLoadingData[[#This Row],[REF_DATE]]),"") ->  | B190: =IFERROR(VALUE(dtl_downloadDbLoadingData[[#This Row],[VALUE]]),"") -> 
A191: =IFERROR(VALUE(dtl_downloadDbLoadingData[[#This Row],[REF_DATE]]),"") ->  | B191: =IFERROR(VALUE(dtl_downloadDbLoadingData[[#This Row],[VALUE]]),"") -> 
A192: =IFERROR(VALUE(dtl_downloadDbLoadingData[[#This Row],[REF_DATE]]),"") ->  | B192: =IFERROR(VALUE(dtl_downloadDbLoadingData[[#This Row],[VALUE]]),"") -> 
A193: =IFERROR(VALUE(dtl_downloadDbLoadingData[[#This Row],[REF_DATE]]),"") ->  | B193: =IFERROR(VALUE(dtl_downloadDbLoadingData[[#This Row],[VALUE]]),"") -> 
A194: =IFERROR(VALUE(dtl_downloadDbLoadingData[[#This Row],[REF_DATE]]),"") ->  | B194: =IFERROR(VALUE(dtl_downloadDbLoadingData[[#This Row],[VALUE]]),"") -> 
A195: =IFERROR(VALUE(dtl_downloadDbLoadingData[[#This Row],[REF_DATE]]),"") ->  | B195: =IFERROR(VALUE(dtl_downloadDbLoadingData[[#This Row],[VALUE]]),"") -> 
A196: =IFERROR(VALUE(dtl_downloadDbLoadingData[[#This Row],[REF_DATE]]),"") ->  | B196: =IFERROR(VALUE(dtl_downloadDbLoadingData[[#This Row],[VALUE]]),"") ->  | C196: =IFERROR(C195+((B196/B195)-1),"") -> 
A197: =IFERROR(VALUE(dtl_downloadDbLoadingData[[#This Row],[REF_DATE]]),"") ->  | B197: =IFERROR(VALUE(dtl_downloadDbLoadingData[[#This Row],[VALUE]]),"") -> 
A198: =IFERROR(VALUE(dtl_downloadDbLoadingData[[#This Row],[REF_DATE]]),"") ->  | B198: =IFERROR(VALUE(dtl_downloadDbLoadingData[[#This Row],[VALUE]]),"") -> 
A199: =IFERROR(VALUE(dtl_downloadDbLoadingData[[#This Row],[REF_DATE]]),"") ->  | B199: =IFERROR(VALUE(dtl_downloadDbLoadingData[[#This Row],[VALUE]]),"") -> 
A200: =IFERROR(VALUE(dtl_downloadDbLoadingData[[#This Row],[REF_DATE]]),"") ->  | B200: =IFERROR(VALUE(dtl_downloadDbLoadingData[[#This Row],[VALUE]]),"") -> 
... 129 more rows

Sheet CPINWT (hidden)
D3: Sum of VALUE | E3: Column Labels
A4: Year | B4: Annual CPI (2002 Base Period) | C4: Cumulative CPI Change from 2024 | D4: Row Labels | E4: All-items | F4: Grand Total
A5: =IFERROR(VALUE(D5),"") -> 2019 | B5: =IFERROR(VALUE(GETPIVOTDATA("VALUE",$D$3,"REF_DATE",A5,"Products and product groups","All-items")),"") -> 138.8 | D5: 2019 | E5: 138.8 | F5: 138.8
A6: =IFERROR(VALUE(D6),"") -> 2020 | B6: =IFERROR(VALUE(GETPIVOTDATA("VALUE",$D$3,"REF_DATE",A6,"Products and product groups","All-items")),"") -> 138.9 | D6: 2020 | E6: 138.9 | F6: 138.9
A7: 2021 | B7: 142 | D7: 2021 | E7: 142 | F7: 142
A8: 2022 | B8: 151.9 | D8: 2022 | E8: 151.9 | F8: 151.9
A9: 2023 | B9: 156.9 | D9: 2023 | E9: 156.9 | F9: 156.9
C10: 1 | D10: Grand Total | E10: 728.5 | F10: 728.5
A11: 0 | C11: =IFERROR(C10+((B11/B10)-1),"") -> 
A12: 0
A13: 0
A14: 0
A15: 0
A16: 0
A17: 0
A18: 0
A19: 0
A20: 0
A21: 0
A22: 0
A23: 0
A24: 0
A25: 0
A26: 0
A27: 0
A28: 0
A29: 0
A30: 0
A31: 0
A32: 0
A33: 0 | B33: =IFERROR(VALUE(GETPIVOTDATA("VALUE",$D$3,"REF_DATE",A33,"Products and product groups","All-items")),"") -> 
A34: 0
A35: 0
A36: 0
A37: 0
A38: 0
A39: 0
A40: 0
A41: 0
A42: 0
A43: 0
A44: 0
A45: 0
A46: 0
A47: 0
A48: 0
A49: 0
A50: 0
A51: 0
A52: 0
A53: 0
A54: 0
A55: 0
A56: 0
A57: 0
A58: 0
A59: 0 | B59: =IFERROR(VALUE(dtl_downloadDbLoadingData[[#This Row],[VALUE]]),"") -> 
A60: 0 | B60: =IFERROR(VALUE(dtl_downloadDbLoadingData[[#This Row],[VALUE]]),"") -> 
A61: 0 | B61: =IFERROR(VALUE(dtl_downloadDbLoadingData[[#This Row],[VALUE]]),"") -> 
A62: 0 | B62: =IFERROR(VALUE(dtl_downloadDbLoadingData[[#This Row],[VALUE]]),"") -> 
A63: 0 | B63: =IFERROR(VALUE(dtl_downloadDbLoadingData[[#This Row],[VALUE]]),"") -> 
A64: 0 | B64: =IFERROR(VALUE(dtl_downloadDbLoadingData[[#This Row],[VALUE]]),"") -> 
A65: 0 | B65: =IFERROR(VALUE(dtl_downloadDbLoadingData[[#This Row],[VALUE]]),"") -> 
A66: 0 | B66: =IFERROR(VALUE(dtl_downloadDbLoadingData[[#This Row],[VALUE]]),"") -> 
A67: 0 | B67: =IFERROR(VALUE(dtl_downloadDbLoadingData[[#This Row],[VALUE]]),"") -> 
A68: 0 | B68: =IFERROR(VALUE(dtl_downloadDbLoadingData[[#This Row],[VALUE]]),"") -> 

Sheet CPINWT_base (hidden)
A1: REF_DATE | B1: GEO | C1: DGUID | D1: Products and product groups | E1: UOM | F1: UOM_ID | G1: SCALAR_FACTOR | H1: SCALAR_ID | I1: VECTOR | J1: COORDINATE | K1: VALUE | L1: STATUS | M1: SYMBOL | N1: TERMINATED | O1: DECIMALS
A2: 2019 | B2: Yellowknife, Northwest Territories | C2: 2011A00056106023 | D2: All-items | E2: 2002=100 | F2: 17 | G2: units | H2: 0 | I2: v41695020 | J2: 30.2 | K2: 138.8 | O2: 1
A3: 2020 | B3: Yellowknife, Northwest Territories | C3: 2011A00056106023 | D3: All-items | E3: 2002=100 | F3: 17 | G3: units | H3: 0 | I3: v41695020 | J3: 30.2 | K3: 138.9 | O3: 1
A4: 2021 | B4: Yellowknife, Northwest Territories | C4: 2011A00056106023 | D4: All-items | E4: 2002=100 | F4: 17 | G4: units | H4: 0 | I4: v41695020 | J4: 30.2 | K4: 142 | O4: 1
A5: 2022 | B5: Yellowknife, Northwest Territories | C5: 2011A00056106023 | D5: All-items | E5: 2002=100 | F5: 17 | G5: units | H5: 0 | I5: v41695020 | J5: 30.2 | K5: 151.9 | O5: 1
A6: 2023 | B6: Yellowknife, Northwest Territories | C6: 2011A00056106023 | D6: All-items | E6: 2002=100 | F6: 17 | G6: units | H6: 0 | I6: v41695020 | J6: 30.2 | K6: 156.9 | O6: 1
A7: 2019 | B7: Yellowknife, Northwest Territories | C7: 2011A00056106023 | D7: Food | E7: 2002=100 | F7: 17 | G7: units | H7: 0 | I7: v41695021 | J7: 30.3 | K7: 146.1 | O7: 1
A8: 2020 | B8: Yellowknife, Northwest Territories | C8: 2011A00056106023 | D8: Food | E8: 2002=100 | F8: 17 | G8: units | H8: 0 | I8: v41695021 | J8: 30.3 | K8: 146.2 | O8: 1
A9: 2021 | B9: Yellowknife, Northwest Territories | C9: 2011A00056106023 | D9: Food | E9: 2002=100 | F9: 17 | G9: units | H9: 0 | I9: v41695021 | J9: 30.3 | K9: 147.3 | O9: 1
A10: 2022 | B10: Yellowknife, Northwest Territories | C10: 2011A00056106023 | D10: Food | E10: 2002=100 | F10: 17 | G10: units | H10: 0 | I10: v41695021 | J10: 30.3 | K10: 159.2 | O10: 1
A11: 2023 | B11: Yellowknife, Northwest Territories | C11: 2011A00056106023 | D11: Food | E11: 2002=100 | F11: 17 | G11: units | H11: 0 | I11: v41695021 | J11: 30.3 | K11: 176.3 | O11: 1
A12: 2019 | B12: Yellowknife, Northwest Territories | C12: 2011A00056106023 | D12: Shelter | E12: 2002=100 | F12: 17 | G12: units | H12: 0 | I12: v41695053 | J12: 30.79 | K12: 159.9 | O12: 1
A13: 2020 | B13: Yellowknife, Northwest Territories | C13: 2011A00056106023 | D13: Shelter | E13: 2002=100 | F13: 17 | G13: units | H13: 0 | I13: v41695053 | J13: 30.79 | K13: 160.5 | O13: 1
A14: 2021 | B14: Yellowknife, Northwest Territories | C14: 2011A00056106023 | D14: Shelter | E14: 2002=100 | F14: 17 | G14: units | H14: 0 | I14: v41695053 | J14: 30.79 | K14: 163.8 | O14: 1
A15: 2022 | B15: Yellowknife, Northwest Territories | C15: 2011A00056106023 | D15: Shelter | E15: 2002=100 | F15: 17 | G15: units | H15: 0 | I15: v41695053 | J15: 30.79 | K15: 176.4 | O15: 1
A16: 2023 | B16: Yellowknife, Northwest Territories | C16: 2011A00056106023 | D16: Shelter | E16: 2002=100 | F16: 17 | G16: units | H16: 0 | I16: v41695053 | J16: 30.79 | K16: 183.6 | O16: 1
A17: 2019 | B17: Yellowknife, Northwest Territories | C17: 2011A00056106023 | D17: Household operations, furnishings and equipment | E17: 2002=100 | F17: 17 | G17: units | H17: 0 | I17: v41695058 | J17: 30.96 | K17: 114.1 | O17: 1
A18: 2020 | B18: Yellowknife, Northwest Territories | C18: 2011A00056106023 | D18: Household operations, furnishings and equipment | E18: 2002=100 | F18: 17 | G18: units | H18: 0 | I18: v41695058 | J18: 30.96 | K18: 113 | O18: 1
A19: 2021 | B19: Yellowknife, Northwest Territories | C19: 2011A00056106023 | D19: Household operations, furnishings and equipment | E19: 2002=100 | F19: 17 | G19: units | H19: 0 | I19: v41695058 | J19: 30.96 | K19: 112.7 | O19: 1
A20: 2022 | B20: Yellowknife, Northwest Territories | C20: 2011A00056106023 | D20: Household operations, furnishings and equipment | E20: 2002=100 | F20: 17 | G20: units | H20: 0 | I20: v41695058 | J20: 30.96 | K20: 118.3 | O20: 1
A21: 2023 | B21: Yellowknife, Northwest Territories | C21: 2011A00056106023 | D21: Household operations, furnishings and equipment | E21: 2002=100 | F21: 17 | G21: units | H21: 0 | I21: v41695058 | J21: 30.96 | K21: 110.7 | O21: 1
A22: 2019 | B22: Yellowknife, Northwest Territories | C22: 2011A00056106023 | D22: Clothing and footwear | E22: 2002=100 | F22: 17 | G22: units | H22: 0 | I22: v41695073 | J22: 30.139 | K22: 108.5 | O22: 1
A23: 2020 | B23: Yellowknife, Northwest Territories | C23: 2011A00056106023 | D23: Clothing and footwear | E23: 2002=100 | F23: 17 | G23: units | H23: 0 | I23: v41695073 | J23: 30.139 | K23: 106.5 | O23: 1
A24: 2021 | B24: Yellowknife, Northwest Territories | C24: 2011A00056106023 | D24: Clothing and footwear | E24: 2002=100 | F24: 17 | G24: units | H24: 0 | I24: v41695073 | J24: 30.139 | K24: 107.4 | O24: 1
A25: 2022 | B25: Yellowknife, Northwest Territories | C25: 2011A00056106023 | D25: Clothing and footwear | E25: 2002=100 | F25: 17 | G25: units | H25: 0 | I25: v41695073 | J25: 30.139 | K25: 110.8 | O25: 1
A26: 2023 | B26: Yellowknife, Northwest Territories | C26: 2011A00056106023 | D26: Clothing and footwear | E26: 2002=100 | F26: 17 | G26: units | H26: 0 | I26: v41695073 | J26: 30.139 | K26: 114.1 | O26: 1
A27: 2019 | B27: Yellowknife, Northwest Territories | C27: 2011A00056106023 | D27: Transportation | E27: 2002=100 | F27: 17 | G27: units | H27: 0 | I27: v41695081 | J27: 30.176 | K27: 138.7 | O27: 1
A28: 2020 | B28: Yellowknife, Northwest Territories | C28: 2011A00056106023 | D28: Transportation | E28: 2002=100 | F28: 17 | G28: units | H28: 0 | I28: v41695081 | J28: 30.176 | K28: 139.7 | O28: 1
A29: 2021 | B29: Yellowknife, Northwest Territories | C29: 2011A00056106023 | D29: Transportation | E29: 2002=100 | F29: 17 | G29: units | H29: 0 | I29: v41695081 | J29: 30.176 | K29: 148.6 | O29: 1
A30: 2022 | B30: Yellowknife, Northwest Territories | C30: 2011A00056106023 | D30: Transportation | E30: 2002=100 | F30: 17 | G30: units | H30: 0 | I30: v41695081 | J30: 30.176 | K30: 164 | O30: 1
A31: 2023 | B31: Yellowknife, Northwest Territories | C31: 2011A00056106023 | D31: Transportation | E31: 2002=100 | F31: 17 | G31: units | H31: 0 | I31: v41695081 | J31: 30.176 | K31: 167.2 | O31: 1
A32: 2019 | B32: Yellowknife, Northwest Territories | C32: 2011A00056106023 | D32: Gasoline | E32: 2002=100 | F32: 17 | G32: units | H32: 0 | I32: v41695087 | J32: 30.184 | K32: 150.4 | O32: 1
A33: 2020 | B33: Yellowknife, Northwest Territories | C33: 2011A00056106023 | D33: Gasoline | E33: 2002=100 | F33: 17 | G33: units | H33: 0 | I33: v41695087 | J33: 30.184 | K33: 131.4 | O33: 1
A34: 2021 | B34: Yellowknife, Northwest Territories | C34: 2011A00056106023 | D34: Gasoline | E34: 2002=100 | F34: 17 | G34: units | H34: 0 | I34: v41695087 | J34: 30.184 | K34: 161.8 | O34: 1
A35: 2022 | B35: Yellowknife, Northwest Territories | C35: 2011A00056106023 | D35: Gasoline | E35: 2002=100 | F35: 17 | G35: units | H35: 0 | I35: v41695087 | J35: 30.184 | K35: 201.7 | O35: 1
A36: 2023 | B36: Yellowknife, Northwest Territories | C36: 2011A00056106023 | D36: Gasoline | E36: 2002=100 | F36: 17 | G36: units | H36: 0 | I36: v41695087 | J36: 30.184 | K36: 188.7 | O36: 1
A37: 2019 | B37: Yellowknife, Northwest Territories | C37: 2011A00056106023 | D37: Health and personal care | E37: 2002=100 | F37: 17 | G37: units | H37: 0 | I37: v41695097 | J37: 30.201 | K37: 126.3 | O37: 1
A38: 2020 | B38: Yellowknife, Northwest Territories | C38: 2011A00056106023 | D38: Health and personal care | E38: 2002=100 | F38: 17 | G38: units | H38: 0 | I38: v41695097 | J38: 30.201 | K38: 125.7 | O38: 1
A39: 2021 | B39: Yellowknife, Northwest Territories | C39: 2011A00056106023 | D39: Health and personal care | E39: 2002=100 | F39: 17 | G39: units | H39: 0 | I39: v41695097 | J39: 30.201 | K39: 126 | O39: 1
A40: 2022 | B40: Yellowknife, Northwest Territories | C40: 2011A00056106023 | D40: Health and personal care | E40: 2002=100 | F40: 17 | G40: units | H40: 0 | I40: v41695097 | J40: 30.201 | K40: 131.5 | O40: 1
A41: 2023 | B41: Yellowknife, Northwest Territories | C41: 2011A00056106023 | D41: Health and personal care | E41: 2002=100 | F41: 17 | G41: units | H41: 0 | I41: v41695097 | J41: 30.201 | K41: 138.1 | O41: 1
A42: 2019 | B42: Yellowknife, Northwest Territories | C42: 2011A00056106023 | D42: Recreation, education and reading | E42: 2002=100 | F42: 17 | G42: units | H42: 0 | I42: v41695107 | J42: 30.219 | K42: 108.7 | O42: 1
A43: 2020 | B43: Yellowknife, Northwest Territories | C43: 2011A00056106023 | D43: Recreation, education and reading | E43: 2002=100 | F43: 17 | G43: units | H43: 0 | I43: v41695107 | J43: 30.219 | K43: 108.7 | O43: 1
A44: 2021 | B44: Yellowknife, Northwest Territories | C44: 2011A00056106023 | D44: Recreation, education and reading | E44: 2002=100 | F44: 17 | G44: units | H44: 0 | I44: v41695107 | J44: 30.219 | K44: 110.6 | O44: 1
A45: 2022 | B45: Yellowknife, Northwest Territories | C45: 2011A00056106023 | D45: Recreation, education and reading | E45: 2002=100 | F45: 17 | G45: units | H45: 0 | I45: v41695107 | J45: 30.219 | K45: 117.8 | O45: 1
A46: 2023 | B46: Yellowknife, Northwest Territories | C46: 2011A00056106023 | D46: Recreation, education and reading | E46: 2002=100 | F46: 17 | G46: units | H46: 0 | I46: v41695107 | J46: 30.219 | K46: 118.6 | O46: 1
A47: 2019 | B47: Yellowknife, Northwest Territories | C47: 2011A00056106023 | D47: Alcoholic beverages, tobacco products and recreational cannabis | E47: 2002=100 | F47: 17 | G47: units | H47: 0 | I47: v41695117 | J47: 30.256 | K47: 181.2 | O47: 1
A48: 2020 | B48: Yellowknife, Northwest Territories | C48: 2011A00056106023 | D48: Alcoholic beverages, tobacco products and recreational cannabis | E48: 2002=100 | F48: 17 | G48: units | H48: 0 | I48: v41695117 | J48: 30.256 | K48: 181.7 | O48: 1
A49: 2021 | B49: Yellowknife, Northwest Territories | C49: 2011A00056106023 | D49: Alcoholic beverages, tobacco products and recreational cannabis | E49: 2002=100 | F49: 17 | G49: units | H49: 0 | I49: v41695117 | J49: 30.256 | K49: 182.4 | O49: 1
A50: 2022 | B50: Yellowknife, Northwest Territories | C50: 2011A00056106023 | D50: Alcoholic beverages, tobacco products and recreational cannabis | E50: 2002=100 | F50: 17 | G50: units | H50: 0 | I50: v41695117 | J50: 30.256 | K50: 187 | O50: 1
A51: 2023 | B51: Yellowknife, Northwest Territories | C51: 2011A00056106023 | D51: Alcoholic beverages, tobacco products and recreational cannabis | E51: 2002=100 | F51: 17 | G51: units | H51: 0 | I51: v41695117 | J51: 30.256 | K51: 195 | O51: 1
A52: 2019 | B52: Yellowknife, Northwest Territories | C52: 2011A00056106023 | D52: All-items excluding food and energy | E52: 2002=100 | F52: 17 | G52: units | H52: 0 | I52: v41695134 | J52: 30.285 | K52: 131.6 | O52: 1
A53: 2020 | B53: Yellowknife, Northwest Territories | C53: 2011A00056106023 | D53: All-items excluding food and energy | E53: 2002=100 | F53: 17 | G53: units | H53: 0 | I53: v41695134 | J53: 30.285 | K53: 133 | O53: 1
A54: 2021 | B54: Yellowknife, Northwest Territories | C54: 2011A00056106023 | D54: All-items excluding food and energy | E54: 2002=100 | F54: 17 | G54: units | H54: 0 | I54: v41695134 | J54: 30.285 | K54: 134.9 | O54: 1
A55: 2022 | B55: Yellowknife, Northwest Territories | C55: 2011A00056106023 | D55: All-items excluding food and energy | E55: 2002=100 | F55: 17 | G55: units | H55: 0 | I55: v41695134 | J55: 30.285 | K55: 140.6 | O55: 1
A56: 2023 | B56: Yellowknife, Northwest Territories | C56: 2011A00056106023 | D56: All-items excluding food and energy | E56: 2002=100 | F56: 17 | G56: units | H56: 0 | I56: v41695134 | J56: 30.285 | K56: 143.1 | O56: 1
A57: 2019 | B57: Yellowknife, Northwest Territories | C57: 2011A00056106023 | D57: All-items excluding energy | E57: 2002=100 | F57: 17 | G57: units | H57: 0 | I57: v41695139 | J57: 30.287 | K57: 134.1 | O57: 1
A58: 2020 | B58: Yellowknife, Northwest Territories | C58: 2011A00056106023 | D58: All-items excluding energy | E58: 2002=100 | F58: 17 | G58: units | H58: 0 | I58: v41695139 | J58: 30.287 | K58: 135.3 | O58: 1
A59: 2021 | B59: Yellowknife, Northwest Territories | C59: 2011A00056106023 | D59: All-items excluding energy | E59: 2002=100 | F59: 17 | G59: units | H59: 0 | I59: v41695139 | J59: 30.287 | K59: 137.2 | O59: 1
A60: 2022 | B60: Yellowknife, Northwest Territories | C60: 2011A00056106023 | D60: All-items excluding energy | E60: 2002=100 | F60: 17 | G60: units | H60: 0 | I60: v41695139 | J60: 30.287 | K60: 144.3 | O60: 1
A61: 2023 | B61: Yellowknife, Northwest Territories | C61: 2011A00056106023 | D61: All-items excluding energy | E61: 2002=100 | F61: 17 | G61: units | H61: 0 | I61: v41695139 | J61: 30.287 | K61: 149.5 | O61: 1
A62: 2019 | B62: Yellowknife, Northwest Territories | C62: 2011A00056106023 | D62: Energy | E62: 2002=100 | F62: 17 | G62: units | H62: 0 | I62: v41695140 | J62: 30.288 | K62: 190.2 | O62: 1
A63: 2020 | B63: Yellowknife, Northwest Territories | C63: 2011A00056106023 | D63: Energy | E63: 2002=100 | F63: 17 | G63: units | H63: 0 | I63: v41695140 | J63: 30.288 | K63: 170.9 | O63: 1
A64: 2021 | B64: Yellowknife, Northwest Territories | C64: 2011A00056106023 | D64: Energy | E64: 2002=100 | F64: 17 | G64: units | H64: 0 | I64: v41695140 | J64: 30.288 | K64: 193.9 | O64: 1
A65: 2022 | B65: Yellowknife, Northwest Territories | C65: 2011A00056106023 | D65: Energy | E65: 2002=100 | F65: 17 | G65: units | H65: 0 | I65: v41695140 | J65: 30.288 | K65: 242.3 | O65: 1
A66: 2023 | B66: Yellowknife, Northwest Territories | C66: 2011A00056106023 | D66: Energy | E66: 2002=100 | F66: 17 | G66: units | H66: 0 | I66: v41695140 | J66: 30.288 | K66: 243.8 | O66: 1
A67: 2019 | B67: Yellowknife, Northwest Territories | C67: 2011A00056106023 | D67: Goods | E67: 2002=100 | F67: 17 | G67: units | H67: 0 | I67: v41695128 | J67: 30.274 | K67: 130.2 | O67: 1
A68: 2020 | B68: Yellowknife, Northwest Territories | C68: 2011A00056106023 | D68: Goods | E68: 2002=100 | F68: 17 | G68: units | H68: 0 | I68: v41695128 | J68: 30.274 | K68: 128.2 | O68: 1
A69: 2021 | B69: Yellowknife, Northwest Territories | C69: 2011A00056106023 | D69: Goods | E69: 2002=100 | F69: 17 | G69: units | H69: 0 | I69: v41695128 | J69: 30.274 | K69: 134.1 | O69: 1
A70: 2022 | B70: Yellowknife, Northwest Territories | C70: 2011A00056106023 | D70: Goods | E70: 2002=100 | F70: 17 | G70: units | H70: 0 | I70: v41695128 | J70: 30.274 | K70: 148.1 | O70: 1
A71: 2023 | B71: Yellowknife, Northwest Territories | C71: 2011A00056106023 | D71: Goods | E71: 2002=100 | F71: 17 | G71: units | H71: 0 | I71: v41695128 | J71: 30.274 | K71: 154.9 | O71: 1
A72: 2019 | B72: Yellowknife, Northwest Territories | C72: 2011A00056106023 | D72: Services | E72: 2002=100 | F72: 17 | G72: units | H72: 0 | I72: v41695132 | J72: 30.282 | K72: 147.4 | O72: 1
A73: 2020 | B73: Yellowknife, Northwest Territories | C73: 2011A00056106023 | D73: Services | E73: 2002=100 | F73: 17 | G73: units | H73: 0 | I73: v41695132 | J73: 30.282 | K73: 149.5 | O73: 1
A74: 2021 | B74: Yellowknife, Northwest Territories | C74: 2011A00056106023 | D74: Services | E74: 2002=100 | F74: 17 | G74: units | H74: 0 | I74: v41695132 | J74: 30.282 | K74: 149.5 | O74: 1
A75: 2022 | B75: Yellowknife, Northwest Territories | C75: 2011A00056106023 | D75: Services | E75: 2002=100 | F75: 17 | G75: units | H75: 0 | I75: v41695132 | J75: 30.282 | K75: 153.3 | O75: 1
A76: 2023 | B76: Yellowknife, Northwest Territories | C76: 2011A00056106023 | D76: Services | E76: 2002=100 | F76: 17 | G76: units | H76: 0 | I76: v41695132 | J76: 30.282 | K76: 155.6 | O76: 1
